{"text_format":"1","workbook":"xlsx","n_sheets":5,"sheets":["Invulblad_bedienden","Afdrukversie bedienden","Invulblad_arbeiders","Afdrukversie arbeiders","Handleiding"],"not_rendered":{"charts":0,"images":2,"macros":1,"external_links":0,"defined_names":3,"comments":0,"pivot_tables":0},"unopened":[],"bounds":{"document_bytes":16777216,"sheet_cells":100000,"rows_first":2000,"rows_last":500,"rows_between":2000,"halvings":0,"cell_chars":16384,"cell_head_chars":4096},"cells_cut":0,"cells_raw":0,"read":"row_number_cap","date_system":"1900"}

{"sheet":"Invulblad_bedienden","index":0,"n_rows":503,"n_cols":31,"rows_kept":503,"cut":false,"hidden":false,"merged":[[1,5,1,7],[1,8,1,14],[0,3,0,19],[0,21,1,30]]}
[null,null,null,"In te vullen velden",null,null,null,null,null,null,null,null,null,null,null,null,null,null,null,null,null,"Automatisch berekende velden"]
[null,null,null,null,null,"Optie 1\nIndien u het voltijds bruto jaarloon van de bediende op 31/12/2013 kent, vult u in één van de drie kolommen hieronder \"Y\" in (gegevens ingevuld in de kolommen m.b.t. OPTIE 2 worden genegeerd).",null,null,"Optie 2\nIndien u het voltijds bruto jaarloon van de bediende op 31/12/2013 wenst te berekenen. Gebruik deze optie ook om het fictief voltijds loon van deeltijdse werknemers te berekenen op basis van het effectief deeltijds loon."]
["NR","VOORNAAM","NAAM","PERSONEELS-NUMMER","DATUM INDIENSTTREDING","Voltijds bruto jaarloon lager dan of gelijk aan 32.254 EUR?","Voltijds bruto jaarloon hoger dan 32.254 EUR maar lager dan of gelijk aan 64.508 EUR?","Voltijds bruto jaarloon hoger dan 64.508 EUR?","MAANDLOON","EINDEJAARS-PREMIE","DUBBEL VAKANTIEGELD","VARIABEL LOON VERDIEND IN VOORIJE 12 MAANDEN","VAKANTIEGELD OP VARIABEL LOON","MAANDBEDRAG PREMIE HOSPITALISATIE-VERZEKERING","MAANDBEDRAG PREMIE GROEPS-VERZEKERING","BIJDRAGE WERKGEVER IN MAALTIJDCHEQUE (per cheque)","MAANDBEDRAG VOORDEEL BEDRIJFSWAGEN","MAANDBEDRAG VOORDEEL PRIVEGEBRUIK GSM / PC","ANDERE VOORDELEN OP JAARBASIS (bijv. ecocheques)","VOLTIJDS/\nDEELTIJDS\n(waarde van 0 tot 100)","VOLTIJDS BRUTO JAARLOON (ter controle)","VOLTIJDS BRUTO JAARLOON (berekeningsbasis)","REGELS OPZEGGING BEDIENDEN VAN TOEPASSING OP 31/12/2013","TYPE BEDIENDE","ANCIËNNITEIT TOT 31/12/2013","OPZEG TOT 31/12/2013 - ontslag door werkgever\n(in maanden)","OPZEG TOT 31/12/2013 - ontslagname door werknemer\n(in maanden)","TEWERKSTELLINGSBREUK","MAANDLOON (print version)","NAAM BEDIENDE (printversie)","PERSONEELS-NUMMER (printversie)"]
[1,"Jan","Jansens",6510,"2003-09-01",null,null,null,1900,{"$f":"I4*1","v":1900},{"$f":"I4*92%","v":1748},5000,{"$f":"L4*15.67%","v":783.5},15,150,5.91,0,0,0,100,{"$f":"IF(OR(F4=\"Y\",G4=\"Y\",H4=\"Y\"),\"n.v.t.\",((I4*12)+J4+K4+L4+M4+(N4*12)+(O4*12)+(P4*21*11)+(Q4*12)+(R4*12)+(S4))*(100/T4))","v":35576.71},{"$f":"IF(OR(F4=\"Y\",G4=\"Y\",H4=\"Y\"),\"n.v.t.\",((I4*12)+J4+K4+L4+M4+(N4*12)+(O4*12)+(P4*21*11)+(Q4*12)+(R4*12)+(S4))*(100/T4))","v":35576.71},{"$f":"IF(X4=0,0,IF(X4=1,\"jaarloon <= 32.254 EUR\",IF(X4=2,\"32.254 EUR < jaarloon <= 64.508 EUR\",IF(X4=3,\"jaarloon > 64.508 EUR\",\"-\"))))","v":"32.254 EUR < jaarloon <= 64.508 EUR"},{"$f":"IF(V4=0,0,(IF(OR(F4=\"Y\",V4<=32254),1,IF(OR(G4=\"Y\",V4<=64508),2,IF(OR(H4=\"Y\",V4>64508),3,\"-\")))))","v":2},{"$f":"IF(W4<>0,(DATEDIF(E4-1,DATE(2013,12,31),\"y\"))+(DATEDIF(E4-1,DATE(2013,12,31),\"ym\")/12)+(DATEDIF(E4-1,DATE(2013,12,31),\"md\")/365.25),\"-\")","v":10.333333333333334},{"$f":"IFERROR(IF(X4=1,(ROUNDUP(Y4/5,0)*3),MAX(ROUNDUP(Y4,0),3)),\"-\")","v":11},{"$f":"IFERROR(IF(X4=1,MIN(ROUNDUP(Y4/5,0)*1.5,3),IF(X4=2,(MIN(ROUNDUP(Y4/5,0)*1.5,4.5)),(MIN(ROUNDUP(Y4/5,0)*1.5,6)))),\"-\")","v":4.5},{"$f":"IF(V4=\"n.v.t.\",\"n.v.t.\",IF(V4=0,0,(IF(T4<=1,T4,T4/100))))","v":1},{"$f":"IF(V4=\"n.v.t.\",\"n.v.t.\",I4)","v":1900},{"$f":"IF(OR(ISTEXT(B4),ISTEXT(C4)),B4&\" \"&C4,\"-\")","v":"Jan Jansens"},{"$f":"IF(ISBLANK(D4),\"-\",D4)","v":6510}]
[2,"Frederik","Geens",6511,"2001-05-01","Y",null,null,2500,{"$f":"I5*1","v":2500},{"$f":"I5*92%","v":2300},null,{"$f":"L5*15.67%","v":0},null,null,null,null,null,null,100,{"$f":"IF(OR(F5=\"Y\",G5=\"Y\",H5=\"Y\"),\"n.v.t.\",((I5*12)+J5+K5+L5+M5+(N5*12)+(O5*12)+(P5*21*11)+(Q5*12)+(R5*12)+(S5))*(100/T5))","v":"n.v.t."},{"$f":"IF(OR(F5=\"Y\",G5=\"Y\",H5=\"Y\"),\"n.v.t.\",((I5*12)+J5+K5+L5+M5+(N5*12)+(O5*12)+(P5*21*11)+(Q5*12)+(R5*12)+(S5))*(100/T5))","v":"n.v.t."},{"$f":"IF(X5=0,0,IF(X5=1,\"jaarloon <= 32.254 EUR\",IF(X5=2,\"32.254 EUR < jaarloon <= 64.508 EUR\",IF(X5=3,\"jaarloon > 64.508 EUR\",\"-\"))))","v":"jaarloon <= 32.254 EUR"},{"$f":"IF(V5=0,0,(IF(OR(F5=\"Y\",V5<=32254),1,IF(OR(G5=\"Y\",V5<=64508),2,IF(OR(H5=\"Y\",V5>64508),3,\"-\")))))","v":1},{"$f":"IF(W5<>0,(DATEDIF(E5-1,DATE(2013,12,31),\"y\"))+(DATEDIF(E5-1,DATE(2013,12,31),\"ym\")/12)+(DATEDIF(E5-1,DATE(2013,12,31),\"md\")/365.25),\"-\")","v":12.669404517453799},{"$f":"IFERROR(IF(X5=1,(ROUNDUP(Y5/5,0)*3),MAX(ROUNDUP(Y5,0),3)),\"-\")","v":9},{"$f":"IFERROR(IF(X5=1,MIN(ROUNDUP(Y5/5,0)*1.5,3),IF(X5=2,(MIN(ROUNDUP(Y5/5,0)*1.5,4.5)),(MIN(ROUNDUP(Y5/5,0)*1.5,6)))),\"-\")","v":3},{"$f":"IF(V5=\"n.v.t.\",\"n.v.t.\",IF(V5=0,0,(IF(T5<=1,T5,T5/100))))","v":"n.v.t."},{"$f":"IF(V5=\"n.v.t.\",\"n.v.t.\",I5)","v":"n.v.t."},{"$f":"IF(OR(ISTEXT(B5),ISTEXT(C5)),B5&\" \"&C5,\"-\")","v":"Frederik Geens"},{"$f":"IF(ISBLANK(D5),\"-\",D5)","v":6511}]
[3,null,null,null,null,null,null,null,null,0,0,null,0,null,null,null,null,null,null,100,0,0,0,0,"-","-","-",0,0,"-","-"]
[4,null,null,null,null,null,null,null,null,0,0,null,0,null,null,null,null,null,null,100,0,0,0,0,"-","-","-",0,0,"-","-"]
[5,null,null,null,null,null,null,null,null,0,0,null,0,null,null,null,null,null,null,100,0,0,0,0,"-","-","-",0,0,"-","-"]
[6,null,null,null,null,null,null,null,null,0,0,null,0,null,null,null,null,null,null,100,0,0,0,0,"-","-","-",0,0,"-","-"]
[7,null,null,null,null,null,null,null,null,0,0,null,0,null,null,null,null,null,null,100,0,0,0,0,"-","-","-",0,0,"-","-"]
[8,null,null,null,null,null,null,null,null,0,0,null,0,null,null,null,null,null,null,100,0,0,0,0,"-","-","-",0,0,"-","-"]
[9,null,null,null,null,null,null,null,null,0,0,null,0,null,null,null,null,null,null,100,0,0,0,0,"-","-","-",0,0,"-","-"]
[10,null,null,null,null,null,null,null,null,0,0,null,0,null,null,null,null,null,null,100,0,0,0,0,"-","-","-",0,0,"-","-"]
[11,null,null,null,null,null,null,null,null,0,0,null,0,null,null,null,null,null,null,100,0,0,0,0,"-","-","-",0,0,"-","-"]
[12,null,null,null,null,null,null,null,null,0,0,null,0,null,null,null,null,null,null,100,0,0,0,0,"-","-","-",0,0,"-","-"]
[13,null,null,null,null,null,null,null,null,0,0,null,0,null,null,null,null,null,null,100,0,0,0,0,"-","-","-",0,0,"-","-"]
[14,null,null,null,null,null,null,null,null,0,0,null,0,null,null,null,null,null,null,100,0,0,0,0,"-","-","-",0,0,"-","-"]
[15,null,null,null,null,null,null,null,null,0,0,null,0,null,null,null,null,null,null,100,0,0,0,0,"-","-","-",0,0,"-","-"]
[16,null,null,null,null,null,null,null,null,0,0,null,0,null,null,null,null,null,null,100,0,0,0,0,"-","-","-",0,0,"-","-"]
[17,null,null,null,null,null,null,null,null,0,0,null,0,null,null,null,null,null,null,100,0,0,0,0,"-","-","-",0,0,"-","-"]
[18,null,null,null,null,null,null,null,null,0,0,null,0,null,null,null,null,null,null,100,0,0,0,0,"-","-","-",0,0,"-","-"]
[19,null,null,null,null,null,null,null,null,0,0,null,0,null,null,null,null,null,null,100,0,0,0,0,"-","-","-",0,0,"-","-"]
[20,null,null,null,null,null,null,null,null,0,0,null,0,null,null,null,null,null,null,100,0,0,0,0,"-","-","-",0,0,"-","-"]
[21,null,null,null,null,null,null,null,null,0,0,null,0,null,null,null,null,null,null,100,0,0,0,0,"-","-","-",0,0,"-","-"]
[22,null,null,null,null,null,null,null,null,0,0,null,0,null,null,null,null,null,null,100,0,0,0,0,"-","-","-",0,0,"-","-"]
[23,null,null,null,null,null,null,null,null,0,0,null,0,null,null,null,null,null,null,100,0,0,0,0,"-","-","-",0,0,"-","-"]
[24,null,null,null,null,null,null,null,null,0,0,null,0,null,null,null,null,null,null,100,0,0,0,0,"-","-","-",0,0,"-","-"]
[25,null,null,null,null,null,null,null,null,0,0,null,0,null,null,null,null,null,null,100,0,0,0,0,"-","-","-",0,0,"-","-"]
[26,null,null,null,null,null,null,null,null,0,0,null,0,null,null,null,null,null,null,100,0,0,0,0,"-","-","-",0,0,"-","-"]
[27,null,null,null,null,null,null,null,null,0,0,null,0,null,null,null,null,null,null,100,0,0,0,0,"-","-","-",0,0,"-","-"]
[28,null,null,null,null,null,null,null,null,0,0,null,0,null,null,null,null,null,null,100,0,0,0,0,"-","-","-",0,0,"-","-"]
[29,null,null,null,null,null,null,null,null,0,0,null,0,null,null,null,null,null,null,100,0,0,0,0,"-","-","-",0,0,"-","-"]
[30,null,null,null,null,null,null,null,null,0,0,null,0,null,null,null,null,null,null,100,0,0,0,0,"-","-","-",0,0,"-","-"]
[31,null,null,null,null,null,null,null,null,0,0,null,0,null,null,null,null,null,null,100,0,0,0,0,"-","-","-",0,0,"-","-"]
[32,null,null,null,null,null,null,null,null,0,0,null,0,null,null,null,null,null,null,100,0,0,0,0,"-","-","-",0,0,"-","-"]
[33,null,null,null,null,null,null,null,null,0,0,null,0,null,null,null,null,null,null,100,0,0,0,0,"-","-","-",0,0,"-","-"]
[34,null,null,null,null,null,null,null,null,0,0,null,0,null,null,null,null,null,null,100,0,0,0,0,"-","-","-",0,0,"-","-"]
[35,null,null,null,null,null,null,null,null,0,0,null,0,null,null,null,null,null,null,100,0,0,0,0,"-","-","-",0,0,"-","-"]
[36,null,null,null,null,null,null,null,null,0,0,null,0,null,null,null,null,null,null,100,0,0,0,0,"-","-","-",0,0,"-","-"]
[37,null,null,null,null,null,null,null,null,0,0,null,0,null,null,null,null,null,null,100,0,0,0,0,"-","-","-",0,0,"-","-"]
[38,null,null,null,null,null,null,null,null,0,0,null,0,null,null,null,null,null,null,100,0,0,0,0,"-","-","-",0,0,"-","-"]
[39,null,null,null,null,null,null,null,null,0,0,null,0,null,null,null,null,null,null,100,0,0,0,0,"-","-","-",0,0,"-","-"]
[40,null,null,null,null,null,null,null,null,0,0,null,0,null,null,null,null,null,null,100,0,0,0,0,"-","-","-",0,0,"-","-"]
[41,null,null,null,null,null,null,null,null,0,0,null,0,null,null,null,null,null,null,100,0,0,0,0,"-","-","-",0,0,"-","-"]
[42,null,null,null,null,null,null,null,null,0,0,null,0,null,null,null,null,null,null,100,0,0,0,0,"-","-","-",0,0,"-","-"]
[43,null,null,null,null,null,null,null,null,0,0,null,0,null,null,null,null,null,null,100,0,0,0,0,"-","-","-",0,0,"-","-"]
[44,null,null,null,null,null,null,null,null,0,0,null,0,null,null,null,null,null,null,100,0,0,0,0,"-","-","-",0,0,"-","-"]
[45,null,null,null,null,null,null,null,null,0,0,null,0,null,null,null,null,null,null,100,0,0,0,0,"-","-","-",0,0,"-","-"]
[46,null,null,null,null,null,null,null,null,0,0,null,0,null,null,null,null,null,null,100,0,0,0,0,"-","-","-",0,0,"-","-"]
[47,null,null,null,null,null,null,null,null,0,0,null,0,null,null,null,null,null,null,100,0,0,0,0,"-","-","-",0,0,"-","-"]
[48,null,null,null,null,null,null,null,null,0,0,null,0,null,null,null,null,null,null,100,0,0,0,0,"-","-","-",0,0,"-","-"]
[49,null,null,null,null,null,null,null,null,0,0,null,0,null,null,null,null,null,null,100,0,0,0,0,"-","-","-",0,0,"-","-"]
[50,null,null,null,null,null,null,null,null,0,0,null,0,null,null,null,null,null,null,100,0,0,0,0,"-","-","-",0,0,"-","-"]
[51,null,null,null,null,null,null,null,null,0,0,null,0,null,null,null,null,null,null,100,0,0,0,0,"-","-","-",0,0,"-","-"]
[52,null,null,null,null,null,null,null,null,0,0,null,0,null,null,null,null,null,null,100,0,0,0,0,"-","-","-",0,0,"-","-"]
[53,null,null,null,null,null,null,null,null,0,0,null,0,null,null,null,null,null,null,100,0,0,0,0,"-","-","-",0,0,"-","-"]
[54,null,null,null,null,null,null,null,null,0,0,null,0,null,null,null,null,null,null,100,0,0,0,0,"-","-","-",0,0,"-","-"]
[55,null,null,null,null,null,null,null,null,0,0,null,0,null,null,null,null,null,null,100,0,0,0,0,"-","-","-",0,0,"-","-"]
[56,null,null,null,null,null,null,null,null,0,0,null,0,null,null,null,null,null,null,100,0,0,0,0,"-","-","-",0,0,"-","-"]
[57,null,null,null,null,null,null,null,null,0,0,null,0,null,null,null,null,null,null,100,0,0,0,0,"-","-","-",0,0,"-","-"]
[58,null,null,null,null,null,null,null,null,0,0,null,0,null,null,null,null,null,null,100,0,0,0,0,"-","-","-",0,0,"-","-"]
[59,null,null,null,null,null,null,null,null,0,0,null,0,null,null,null,null,null,null,100,0,0,0,0,"-","-","-",0,0,"-","-"]
[60,null,null,null,null,null,null,null,null,0,0,null,0,null,null,null,null,null,null,100,0,0,0,0,"-","-","-",0,0,"-","-"]
[61,null,null,null,null,null,null,null,null,0,0,null,0,null,null,null,null,null,null,100,0,0,0,0,"-","-","-",0,0,"-","-"]
[62,null,null,null,null,null,null,null,null,0,0,null,0,null,null,null,null,null,null,100,0,0,0,0,"-","-","-",0,0,"-","-"]
[63,null,null,null,null,null,null,null,null,0,0,null,0,null,null,null,null,null,null,100,0,0,0,0,"-","-","-",0,0,"-","-"]
[64,null,null,null,null,null,null,null,null,0,0,null,0,null,null,null,null,null,null,100,0,0,0,0,"-","-","-",0,0,"-","-"]
[65,null,null,null,null,null,null,null,null,0,0,null,0,null,null,null,null,null,null,100,0,0,0,0,"-","-","-",0,0,"-","-"]
[66,null,null,null,null,null,null,null,null,{"$f":"I69*1","v":0},{"$f":"I69*92%","v":0},null,{"$f":"L69*15.67%","v":0},null,null,null,null,null,null,100,{"$f":"IF(OR(F69=\"Y\",G69=\"Y\",H69=\"Y\"),\"n.v.t.\",((I69*12)+J69+K69+L69+M69+(N69*12)+(O69*12)+(P69*21*11)+(Q69*12)+(R69*12)+(S69))*(100/T69))","v":0},{"$f":"IF(OR(F69=\"Y\",G69=\"Y\",H69=\"Y\"),\"n.v.t.\",((I69*12)+J69+K69+L69+M69+(N69*12)+(O69*12)+(P69*21*11)+(Q69*12)+(R69*12)+(S69))*(100/T69))","v":0},{"$f":"IF(X69=0,0,IF(X69=1,\"jaarloon <= 32.254 EUR\",IF(X69=2,\"32.254 EUR < jaarloon <= 64.508 EUR\",IF(X69=3,\"jaarloon > 64.508 EUR\",\"-\"))))","v":0},{"$f":"IF(V69=0,0,(IF(OR(F69=\"Y\",V69<=32254),1,IF(OR(G69=\"Y\",V69<=64508),2,IF(OR(H69=\"Y\",V69>64508),3,\"-\")))))","v":0},{"$f":"IF(W69<>0,(DATEDIF(E69-1,DATE(2013,12,31),\"y\"))+(DATEDIF(E69-1,DATE(2013,12,31),\"ym\")/12)+(DATEDIF(E69-1,DATE(2013,12,31),\"md\")/365.25),\"-\")","v":"-"},{"$f":"IFERROR(IF(X69=1,(ROUNDUP(Y69/5,0)*3),MAX(ROUNDUP(Y69,0),3)),\"-\")","v":"-"},{"$f":"IFERROR(IF(X69=1,MIN(ROUNDUP(Y69/5,0)*1.5,3),IF(X69=2,(MIN(ROUNDUP(Y69/5,0)*1.5,4.5)),(MIN(ROUNDUP(Y69/5,0)*1.5,6)))),\"-\")","v":"-"},{"$f":"IF(V69=\"n.v.t.\",\"n.v.t.\",IF(V69=0,0,(IF(T69<=1,T69,T69/100))))","v":0},{"$f":"IF(V69=\"n.v.t.\",\"n.v.t.\",I69)","v":0},{"$f":"IF(OR(ISTEXT(B69),ISTEXT(C69)),B69&\" \"&C69,\"-\")","v":"-"},{"$f":"IF(ISBLANK(D69),\"-\",D69)","v":"-"}]
[67,null,null,null,null,null,null,null,null,0,0,null,0,null,null,null,null,null,null,100,0,0,0,0,"-","-","-",0,0,"-","-"]
[68,null,null,null,null,null,null,null,null,0,0,null,0,null,null,null,null,null,null,100,0,0,0,0,"-","-","-",0,0,"-","-"]
[69,null,null,null,null,null,null,null,null,0,0,null,0,null,null,null,null,null,null,100,0,0,0,0,"-","-","-",0,0,"-","-"]
[70,null,null,null,null,null,null,null,null,0,0,null,0,null,null,null,null,null,null,100,0,0,0,0,"-","-","-",0,0,"-","-"]
[71,null,null,null,null,null,null,null,null,0,0,null,0,null,null,null,null,null,null,100,0,0,0,0,"-","-","-",0,0,"-","-"]
[72,null,null,null,null,null,null,null,null,0,0,null,0,null,null,null,null,null,null,100,0,0,0,0,"-","-","-",0,0,"-","-"]
[73,null,null,null,null,null,null,null,null,0,0,null,0,null,null,null,null,null,null,100,0,0,0,0,"-","-","-",0,0,"-","-"]
[74,null,null,null,null,null,null,null,null,0,0,null,0,null,null,null,null,null,null,100,0,0,0,0,"-","-","-",0,0,"-","-"]
[75,null,null,null,null,null,null,null,null,0,0,null,0,null,null,null,null,null,null,100,0,0,0,0,"-","-","-",0,0,"-","-"]
[76,null,null,null,null,null,null,null,null,0,0,null,0,null,null,null,null,null,null,100,0,0,0,0,"-","-","-",0,0,"-","-"]
[77,null,null,null,null,null,null,null,null,0,0,null,0,null,null,null,null,null,null,100,0,0,0,0,"-","-","-",0,0,"-","-"]
[78,null,null,null,null,null,null,null,null,0,0,null,0,null,null,null,null,null,null,100,0,0,0,0,"-","-","-",0,0,"-","-"]
[79,null,null,null,null,null,null,null,null,0,0,null,0,null,null,null,null,null,null,100,0,0,0,0,"-","-","-",0,0,"-","-"]
[80,null,null,null,null,null,null,null,null,0,0,null,0,null,null,null,null,null,null,100,0,0,0,0,"-","-","-",0,0,"-","-"]
[81,null,null,null,null,null,null,null,null,0,0,null,0,null,null,null,null,null,null,100,0,0,0,0,"-","-","-",0,0,"-","-"]
[82,null,null,null,null,null,null,null,null,0,0,null,0,null,null,null,null,null,null,100,0,0,0,0,"-","-","-",0,0,"-","-"]
[83,null,null,null,null,null,null,null,null,0,0,null,0,null,null,null,null,null,null,100,0,0,0,0,"-","-","-",0,0,"-","-"]
[84,null,null,null,null,null,null,null,null,0,0,null,0,null,null,null,null,null,null,100,0,0,0,0,"-","-","-",0,0,"-","-"]
[85,null,null,null,null,null,null,null,null,0,0,null,0,null,null,null,null,null,null,100,0,0,0,0,"-","-","-",0,0,"-","-"]
[86,null,null,null,null,null,null,null,null,0,0,null,0,null,null,null,null,null,null,100,0,0,0,0,"-","-","-",0,0,"-","-"]
[87,null,null,null,null,null,null,null,null,0,0,null,0,null,null,null,null,null,null,100,0,0,0,0,"-","-","-",0,0,"-","-"]
[88,null,null,null,null,null,null,null,null,0,0,null,0,null,null,null,null,null,null,100,0,0,0,0,"-","-","-",0,0,"-","-"]
[89,null,null,null,null,null,null,null,null,0,0,null,0,null,null,null,null,null,null,100,0,0,0,0,"-","-","-",0,0,"-","-"]
[90,null,null,null,null,null,null,null,null,0,0,null,0,null,null,null,null,null,null,100,0,0,0,0,"-","-","-",0,0,"-","-"]
[91,null,null,null,null,null,null,null,null,0,0,null,0,null,null,null,null,null,null,100,0,0,0,0,"-","-","-",0,0,"-","-"]
[92,null,null,null,null,null,null,null,null,0,0,null,0,null,null,null,null,null,null,100,0,0,0,0,"-","-","-",0,0,"-","-"]
[93,null,null,null,null,null,null,null,null,0,0,null,0,null,null,null,null,null,null,100,0,0,0,0,"-","-","-",0,0,"-","-"]
[94,null,null,null,null,null,null,null,null,0,0,null,0,null,null,null,null,null,null,100,0,0,0,0,"-","-","-",0,0,"-","-"]
[95,null,null,null,null,null,null,null,null,0,0,null,0,null,null,null,null,null,null,100,0,0,0,0,"-","-","-",0,0,"-","-"]
[96,null,null,null,null,null,null,null,null,0,0,null,0,null,null,null,null,null,null,100,0,0,0,0,"-","-","-",0,0,"-","-"]
[97,null,null,null,null,null,null,null,null,0,0,null,0,null,null,null,null,null,null,100,0,0,0,0,"-","-","-",0,0,"-","-"]
[98,null,null,null,null,null,null,null,null,0,0,null,0,null,null,null,null,null,null,100,0,0,0,0,"-","-","-",0,0,"-","-"]
[99,null,null,null,null,null,null,null,null,0,0,null,0,null,null,null,null,null,null,100,0,0,0,0,"-","-","-",0,0,"-","-"]
[100,null,null,null,null,null,null,null,null,0,0,null,0,null,null,null,null,null,null,100,0,0,0,0,"-","-","-",0,0,"-","-"]
[101,null,null,null,null,null,null,null,null,0,0,null,0,null,null,null,null,null,null,100,0,0,0,0,"-","-","-",0,0,"-","-"]
[102,null,null,null,null,null,null,null,null,0,0,null,0,null,null,null,null,null,null,100,0,0,0,0,"-","-","-",0,0,"-","-"]
[103,null,null,null,null,null,null,null,null,0,0,null,0,null,null,null,null,null,null,100,0,0,0,0,"-","-","-",0,0,"-","-"]
[104,null,null,null,null,null,null,null,null,0,0,null,0,null,null,null,null,null,null,100,0,0,0,0,"-","-","-",0,0,"-","-"]
[105,null,null,null,null,null,null,null,null,0,0,null,0,null,null,null,null,null,null,100,0,0,0,0,"-","-","-",0,0,"-","-"]
[106,null,null,null,null,null,null,null,null,0,0,null,0,null,null,null,null,null,null,100,0,0,0,0,"-","-","-",0,0,"-","-"]
[107,null,null,null,null,null,null,null,null,0,0,null,0,null,null,null,null,null,null,100,0,0,0,0,"-","-","-",0,0,"-","-"]
[108,null,null,null,null,null,null,null,null,0,0,null,0,null,null,null,null,null,null,100,0,0,0,0,"-","-","-",0,0,"-","-"]
[109,null,null,null,null,null,null,null,null,0,0,null,0,null,null,null,null,null,null,100,0,0,0,0,"-","-","-",0,0,"-","-"]
[110,null,null,null,null,null,null,null,null,0,0,null,0,null,null,null,null,null,null,100,0,0,0,0,"-","-","-",0,0,"-","-"]
[111,null,null,null,null,null,null,null,null,0,0,null,0,null,null,null,null,null,null,100,0,0,0,0,"-","-","-",0,0,"-","-"]
[112,null,null,null,null,null,null,null,null,0,0,null,0,null,null,null,null,null,null,100,0,0,0,0,"-","-","-",0,0,"-","-"]
[113,null,null,null,null,null,null,null,null,0,0,null,0,null,null,null,null,null,null,100,0,0,0,0,"-","-","-",0,0,"-","-"]
[114,null,null,null,null,null,null,null,null,0,0,null,0,null,null,null,null,null,null,100,0,0,0,0,"-","-","-",0,0,"-","-"]
[115,null,null,null,null,null,null,null,null,0,0,null,0,null,null,null,null,null,null,100,0,0,0,0,"-","-","-",0,0,"-","-"]
[116,null,null,null,null,null,null,null,null,0,0,null,0,null,null,null,null,null,null,100,0,0,0,0,"-","-","-",0,0,"-","-"]
[117,null,null,null,null,null,null,null,null,0,0,null,0,null,null,null,null,null,null,100,0,0,0,0,"-","-","-",0,0,"-","-"]
[118,null,null,null,null,null,null,null,null,0,0,null,0,null,null,null,null,null,null,100,0,0,0,0,"-","-","-",0,0,"-","-"]
[119,null,null,null,null,null,null,null,null,0,0,null,0,null,null,null,null,null,null,100,0,0,0,0,"-","-","-",0,0,"-","-"]
[120,null,null,null,null,null,null,null,null,0,0,null,0,null,null,null,null,null,null,100,0,0,0,0,"-","-","-",0,0,"-","-"]
[121,null,null,null,null,null,null,null,null,0,0,null,0,null,null,null,null,null,null,100,0,0,0,0,"-","-","-",0,0,"-","-"]
[122,null,null,null,null,null,null,null,null,0,0,null,0,null,null,null,null,null,null,100,0,0,0,0,"-","-","-",0,0,"-","-"]
[123,null,null,null,null,null,null,null,null,0,0,null,0,null,null,null,null,null,null,100,0,0,0,0,"-","-","-",0,0,"-","-"]
[124,null,null,null,null,null,null,null,null,0,0,null,0,null,null,null,null,null,null,100,0,0,0,0,"-","-","-",0,0,"-","-"]
[125,null,null,null,null,null,null,null,null,0,0,null,0,null,null,null,null,null,null,100,0,0,0,0,"-","-","-",0,0,"-","-"]
[126,null,null,null,null,null,null,null,null,0,0,null,0,null,null,null,null,null,null,100,0,0,0,0,"-","-","-",0,0,"-","-"]
[127,null,null,null,null,null,null,null,null,0,0,null,0,null,null,null,null,null,null,100,0,0,0,0,"-","-","-",0,0,"-","-"]
[128,null,null,null,null,null,null,null,null,0,0,null,0,null,null,null,null,null,null,100,0,0,0,0,"-","-","-",0,0,"-","-"]
[129,null,null,null,null,null,null,null,null,0,0,null,0,null,null,null,null,null,null,100,0,0,0,0,"-","-","-",0,0,"-","-"]
[130,null,null,null,null,null,null,null,null,{"$f":"I133*1","v":0},{"$f":"I133*92%","v":0},null,{"$f":"L133*15.67%","v":0},null,null,null,null,null,null,100,{"$f":"IF(OR(F133=\"Y\",G133=\"Y\",H133=\"Y\"),\"n.v.t.\",((I133*12)+J133+K133+L133+M133+(N133*12)+(O133*12)+(P133*21*11)+(Q133*12)+(R133*12)+(S133))*(100/T133))","v":0},{"$f":"IF(OR(F133=\"Y\",G133=\"Y\",H133=\"Y\"),\"n.v.t.\",((I133*12)+J133+K133+L133+M133+(N133*12)+(O133*12)+(P133*21*11)+(Q133*12)+(R133*12)+(S133))*(100/T133))","v":0},{"$f":"IF(X133=0,0,IF(X133=1,\"jaarloon <= 32.254 EUR\",IF(X133=2,\"32.254 EUR < jaarloon <= 64.508 EUR\",IF(X133=3,\"jaarloon > 64.508 EUR\",\"-\"))))","v":0},{"$f":"IF(V133=0,0,(IF(OR(F133=\"Y\",V133<=32254),1,IF(OR(G133=\"Y\",V133<=64508),2,IF(OR(H133=\"Y\",V133>64508),3,\"-\")))))","v":0},{"$f":"IF(W133<>0,(DATEDIF(E133-1,DATE(2013,12,31),\"y\"))+(DATEDIF(E133-1,DATE(2013,12,31),\"ym\")/12)+(DATEDIF(E133-1,DATE(2013,12,31),\"md\")/365.25),\"-\")","v":"-"},{"$f":"IFERROR(IF(X133=1,(ROUNDUP(Y133/5,0)*3),MAX(ROUNDUP(Y133,0),3)),\"-\")","v":"-"},{"$f":"IFERROR(IF(X133=1,MIN(ROUNDUP(Y133/5,0)*1.5,3),IF(X133=2,(MIN(ROUNDUP(Y133/5,0)*1.5,4.5)),(MIN(ROUNDUP(Y133/5,0)*1.5,6)))),\"-\")","v":"-"},{"$f":"IF(V133=\"n.v.t.\",\"n.v.t.\",IF(V133=0,0,(IF(T133<=1,T133,T133/100))))","v":0},{"$f":"IF(V133=\"n.v.t.\",\"n.v.t.\",I133)","v":0},{"$f":"IF(OR(ISTEXT(B133),ISTEXT(C133)),B133&\" \"&C133,\"-\")","v":"-"},{"$f":"IF(ISBLANK(D133),\"-\",D133)","v":"-"}]
[131,null,null,null,null,null,null,null,null,0,0,null,0,null,null,null,null,null,null,100,0,0,0,0,"-","-","-",0,0,"-","-"]
[132,null,null,null,null,null,null,null,null,0,0,null,0,null,null,null,null,null,null,100,0,0,0,0,"-","-","-",0,0,"-","-"]
[133,null,null,null,null,null,null,null,null,0,0,null,0,null,null,null,null,null,null,100,0,0,0,0,"-","-","-",0,0,"-","-"]
[134,null,null,null,null,null,null,null,null,0,0,null,0,null,null,null,null,null,null,100,0,0,0,0,"-","-","-",0,0,"-","-"]
[135,null,null,null,null,null,null,null,null,0,0,null,0,null,null,null,null,null,null,100,0,0,0,0,"-","-","-",0,0,"-","-"]
[136,null,null,null,null,null,null,null,null,0,0,null,0,null,null,null,null,null,null,100,0,0,0,0,"-","-","-",0,0,"-","-"]
[137,null,null,null,null,null,null,null,null,0,0,null,0,null,null,null,null,null,null,100,0,0,0,0,"-","-","-",0,0,"-","-"]
[138,null,null,null,null,null,null,null,null,0,0,null,0,null,null,null,null,null,null,100,0,0,0,0,"-","-","-",0,0,"-","-"]
[139,null,null,null,null,null,null,null,null,0,0,null,0,null,null,null,null,null,null,100,0,0,0,0,"-","-","-",0,0,"-","-"]
[140,null,null,null,null,null,null,null,null,0,0,null,0,null,null,null,null,null,null,100,0,0,0,0,"-","-","-",0,0,"-","-"]
[141,null,null,null,null,null,null,null,null,0,0,null,0,null,null,null,null,null,null,100,0,0,0,0,"-","-","-",0,0,"-","-"]
[142,null,null,null,null,null,null,null,null,0,0,null,0,null,null,null,null,null,null,100,0,0,0,0,"-","-","-",0,0,"-","-"]
[143,null,null,null,null,null,null,null,null,0,0,null,0,null,null,null,null,null,null,100,0,0,0,0,"-","-","-",0,0,"-","-"]
[144,null,null,null,null,null,null,null,null,0,0,null,0,null,null,null,null,null,null,100,0,0,0,0,"-","-","-",0,0,"-","-"]
[145,null,null,null,null,null,null,null,null,0,0,null,0,null,null,null,null,null,null,100,0,0,0,0,"-","-","-",0,0,"-","-"]
[146,null,null,null,null,null,null,null,null,0,0,null,0,null,null,null,null,null,null,100,0,0,0,0,"-","-","-",0,0,"-","-"]
[147,null,null,null,null,null,null,null,null,0,0,null,0,null,null,null,null,null,null,100,0,0,0,0,"-","-","-",0,0,"-","-"]
[148,null,null,null,null,null,null,null,null,0,0,null,0,null,null,null,null,null,null,100,0,0,0,0,"-","-","-",0,0,"-","-"]
[149,null,null,null,null,null,null,null,null,0,0,null,0,null,null,null,null,null,null,100,0,0,0,0,"-","-","-",0,0,"-","-"]
[150,null,null,null,null,null,null,null,null,0,0,null,0,null,null,null,null,null,null,100,0,0,0,0,"-","-","-",0,0,"-","-"]
[151,null,null,null,null,null,null,null,null,0,0,null,0,null,null,null,null,null,null,100,0,0,0,0,"-","-","-",0,0,"-","-"]
[152,null,null,null,null,null,null,null,null,0,0,null,0,null,null,null,null,null,null,100,0,0,0,0,"-","-","-",0,0,"-","-"]
[153,null,null,null,null,null,null,null,null,0,0,null,0,null,null,null,null,null,null,100,0,0,0,0,"-","-","-",0,0,"-","-"]
[154,null,null,null,null,null,null,null,null,0,0,null,0,null,null,null,null,null,null,100,0,0,0,0,"-","-","-",0,0,"-","-"]
[155,null,null,null,null,null,null,null,null,0,0,null,0,null,null,null,null,null,null,100,0,0,0,0,"-","-","-",0,0,"-","-"]
[156,null,null,null,null,null,null,null,null,0,0,null,0,null,null,null,null,null,null,100,0,0,0,0,"-","-","-",0,0,"-","-"]
[157,null,null,null,null,null,null,null,null,0,0,null,0,null,null,null,null,null,null,100,0,0,0,0,"-","-","-",0,0,"-","-"]
[158,null,null,null,null,null,null,null,null,0,0,null,0,null,null,null,null,null,null,100,0,0,0,0,"-","-","-",0,0,"-","-"]
[159,null,null,null,null,null,null,null,null,0,0,null,0,null,null,null,null,null,null,100,0,0,0,0,"-","-","-",0,0,"-","-"]
[160,null,null,null,null,null,null,null,null,0,0,null,0,null,null,null,null,null,null,100,0,0,0,0,"-","-","-",0,0,"-","-"]
[161,null,null,null,null,null,null,null,null,0,0,null,0,null,null,null,null,null,null,100,0,0,0,0,"-","-","-",0,0,"-","-"]
[162,null,null,null,null,null,null,null,null,0,0,null,0,null,null,null,null,null,null,100,0,0,0,0,"-","-","-",0,0,"-","-"]
[163,null,null,null,null,null,null,null,null,0,0,null,0,null,null,null,null,null,null,100,0,0,0,0,"-","-","-",0,0,"-","-"]
[164,null,null,null,null,null,null,null,null,0,0,null,0,null,null,null,null,null,null,100,0,0,0,0,"-","-","-",0,0,"-","-"]
[165,null,null,null,null,null,null,null,null,0,0,null,0,null,null,null,null,null,null,100,0,0,0,0,"-","-","-",0,0,"-","-"]
[166,null,null,null,null,null,null,null,null,0,0,null,0,null,null,null,null,null,null,100,0,0,0,0,"-","-","-",0,0,"-","-"]
[167,null,null,null,null,null,null,null,null,0,0,null,0,null,null,null,null,null,null,100,0,0,0,0,"-","-","-",0,0,"-","-"]
[168,null,null,null,null,null,null,null,null,0,0,null,0,null,null,null,null,null,null,100,0,0,0,0,"-","-","-",0,0,"-","-"]
[169,null,null,null,null,null,null,null,null,0,0,null,0,null,null,null,null,null,null,100,0,0,0,0,"-","-","-",0,0,"-","-"]
[170,null,null,null,null,null,null,null,null,0,0,null,0,null,null,null,null,null,null,100,0,0,0,0,"-","-","-",0,0,"-","-"]
[171,null,null,null,null,null,null,null,null,0,0,null,0,null,null,null,null,null,null,100,0,0,0,0,"-","-","-",0,0,"-","-"]
[172,null,null,null,null,null,null,null,null,0,0,null,0,null,null,null,null,null,null,100,0,0,0,0,"-","-","-",0,0,"-","-"]
[173,null,null,null,null,null,null,null,null,0,0,null,0,null,null,null,null,null,null,100,0,0,0,0,"-","-","-",0,0,"-","-"]
[174,null,null,null,null,null,null,null,null,0,0,null,0,null,null,null,null,null,null,100,0,0,0,0,"-","-","-",0,0,"-","-"]
[175,null,null,null,null,null,null,null,null,0,0,null,0,null,null,null,null,null,null,100,0,0,0,0,"-","-","-",0,0,"-","-"]
[176,null,null,null,null,null,null,null,null,0,0,null,0,null,null,null,null,null,null,100,0,0,0,0,"-","-","-",0,0,"-","-"]
[177,null,null,null,null,null,null,null,null,0,0,null,0,null,null,null,null,null,null,100,0,0,0,0,"-","-","-",0,0,"-","-"]
[178,null,null,null,null,null,null,null,null,0,0,null,0,null,null,null,null,null,null,100,0,0,0,0,"-","-","-",0,0,"-","-"]
[179,null,null,null,null,null,null,null,null,0,0,null,0,null,null,null,null,null,null,100,0,0,0,0,"-","-","-",0,0,"-","-"]
[180,null,null,null,null,null,null,null,null,0,0,null,0,null,null,null,null,null,null,100,0,0,0,0,"-","-","-",0,0,"-","-"]
[181,null,null,null,null,null,null,null,null,0,0,null,0,null,null,null,null,null,null,100,0,0,0,0,"-","-","-",0,0,"-","-"]
[182,null,null,null,null,null,null,null,null,0,0,null,0,null,null,null,null,null,null,100,0,0,0,0,"-","-","-",0,0,"-","-"]
[183,null,null,null,null,null,null,null,null,0,0,null,0,null,null,null,null,null,null,100,0,0,0,0,"-","-","-",0,0,"-","-"]
[184,null,null,null,null,null,null,null,null,0,0,null,0,null,null,null,null,null,null,100,0,0,0,0,"-","-","-",0,0,"-","-"]
[185,null,null,null,null,null,null,null,null,0,0,null,0,null,null,null,null,null,null,100,0,0,0,0,"-","-","-",0,0,"-","-"]
[186,null,null,null,null,null,null,null,null,0,0,null,0,null,null,null,null,null,null,100,0,0,0,0,"-","-","-",0,0,"-","-"]
[187,null,null,null,null,null,null,null,null,0,0,null,0,null,null,null,null,null,null,100,0,0,0,0,"-","-","-",0,0,"-","-"]
[188,null,null,null,null,null,null,null,null,0,0,null,0,null,null,null,null,null,null,100,0,0,0,0,"-","-","-",0,0,"-","-"]
[189,null,null,null,null,null,null,null,null,0,0,null,0,null,null,null,null,null,null,100,0,0,0,0,"-","-","-",0,0,"-","-"]
[190,null,null,null,null,null,null,null,null,0,0,null,0,null,null,null,null,null,null,100,0,0,0,0,"-","-","-",0,0,"-","-"]
[191,null,null,null,null,null,null,null,null,0,0,null,0,null,null,null,null,null,null,100,0,0,0,0,"-","-","-",0,0,"-","-"]
[192,null,null,null,null,null,null,null,null,0,0,null,0,null,null,null,null,null,null,100,0,0,0,0,"-","-","-",0,0,"-","-"]
[193,null,null,null,null,null,null,null,null,0,0,null,0,null,null,null,null,null,null,100,0,0,0,0,"-","-","-",0,0,"-","-"]
[194,null,null,null,null,null,null,null,null,{"$f":"I197*1","v":0},{"$f":"I197*92%","v":0},null,{"$f":"L197*15.67%","v":0},null,null,null,null,null,null,100,{"$f":"IF(OR(F197=\"Y\",G197=\"Y\",H197=\"Y\"),\"n.v.t.\",((I197*12)+J197+K197+L197+M197+(N197*12)+(O197*12)+(P197*21*11)+(Q197*12)+(R197*12)+(S197))*(100/T197))","v":0},{"$f":"IF(OR(F197=\"Y\",G197=\"Y\",H197=\"Y\"),\"n.v.t.\",((I197*12)+J197+K197+L197+M197+(N197*12)+(O197*12)+(P197*21*11)+(Q197*12)+(R197*12)+(S197))*(100/T197))","v":0},{"$f":"IF(X197=0,0,IF(X197=1,\"jaarloon <= 32.254 EUR\",IF(X197=2,\"32.254 EUR < jaarloon <= 64.508 EUR\",IF(X197=3,\"jaarloon > 64.508 EUR\",\"-\"))))","v":0},{"$f":"IF(V197=0,0,(IF(OR(F197=\"Y\",V197<=32254),1,IF(OR(G197=\"Y\",V197<=64508),2,IF(OR(H197=\"Y\",V197>64508),3,\"-\")))))","v":0},{"$f":"IF(W197<>0,(DATEDIF(E197-1,DATE(2013,12,31),\"y\"))+(DATEDIF(E197-1,DATE(2013,12,31),\"ym\")/12)+(DATEDIF(E197-1,DATE(2013,12,31),\"md\")/365.25),\"-\")","v":"-"},{"$f":"IFERROR(IF(X197=1,(ROUNDUP(Y197/5,0)*3),MAX(ROUNDUP(Y197,0),3)),\"-\")","v":"-"},{"$f":"IFERROR(IF(X197=1,MIN(ROUNDUP(Y197/5,0)*1.5,3),IF(X197=2,(MIN(ROUNDUP(Y197/5,0)*1.5,4.5)),(MIN(ROUNDUP(Y197/5,0)*1.5,6)))),\"-\")","v":"-"},{"$f":"IF(V197=\"n.v.t.\",\"n.v.t.\",IF(V197=0,0,(IF(T197<=1,T197,T197/100))))","v":0},{"$f":"IF(V197=\"n.v.t.\",\"n.v.t.\",I197)","v":0},{"$f":"IF(OR(ISTEXT(B197),ISTEXT(C197)),B197&\" \"&C197,\"-\")","v":"-"},{"$f":"IF(ISBLANK(D197),\"-\",D197)","v":"-"}]
[195,null,null,null,null,null,null,null,null,0,0,null,0,null,null,null,null,null,null,100,0,0,0,0,"-","-","-",0,0,"-","-"]
[196,null,null,null,null,null,null,null,null,0,0,null,0,null,null,null,null,null,null,100,0,0,0,0,"-","-","-",0,0,"-","-"]
[197,null,null,null,null,null,null,null,null,0,0,null,0,null,null,null,null,null,null,100,0,0,0,0,"-","-","-",0,0,"-","-"]
[198,null,null,null,null,null,null,null,null,0,0,null,0,null,null,null,null,null,null,100,0,0,0,0,"-","-","-",0,0,"-","-"]
[199,null,null,null,null,null,null,null,null,0,0,null,0,null,null,null,null,null,null,100,0,0,0,0,"-","-","-",0,0,"-","-"]
[200,null,null,null,null,null,null,null,null,0,0,null,0,null,null,null,null,null,null,100,0,0,0,0,"-","-","-",0,0,"-","-"]
[201,null,null,null,null,null,null,null,null,0,0,null,0,null,null,null,null,null,null,100,0,0,0,0,"-","-","-",0,0,"-","-"]
[202,null,null,null,null,null,null,null,null,0,0,null,0,null,null,null,null,null,null,100,0,0,0,0,"-","-","-",0,0,"-","-"]
[203,null,null,null,null,null,null,null,null,0,0,null,0,null,null,null,null,null,null,100,0,0,0,0,"-","-","-",0,0,"-","-"]
[204,null,null,null,null,null,null,null,null,0,0,null,0,null,null,null,null,null,null,100,0,0,0,0,"-","-","-",0,0,"-","-"]
[205,null,null,null,null,null,null,null,null,0,0,null,0,null,null,null,null,null,null,100,0,0,0,0,"-","-","-",0,0,"-","-"]
[206,null,null,null,null,null,null,null,null,0,0,null,0,null,null,null,null,null,null,100,0,0,0,0,"-","-","-",0,0,"-","-"]
[207,null,null,null,null,null,null,null,null,0,0,null,0,null,null,null,null,null,null,100,0,0,0,0,"-","-","-",0,0,"-","-"]
[208,null,null,null,null,null,null,null,null,0,0,null,0,null,null,null,null,null,null,100,0,0,0,0,"-","-","-",0,0,"-","-"]
[209,null,null,null,null,null,null,null,null,0,0,null,0,null,null,null,null,null,null,100,0,0,0,0,"-","-","-",0,0,"-","-"]
[210,null,null,null,null,null,null,null,null,0,0,null,0,null,null,null,null,null,null,100,0,0,0,0,"-","-","-",0,0,"-","-"]
[211,null,null,null,null,null,null,null,null,0,0,null,0,null,null,null,null,null,null,100,0,0,0,0,"-","-","-",0,0,"-","-"]
[212,null,null,null,null,null,null,null,null,0,0,null,0,null,null,null,null,null,null,100,0,0,0,0,"-","-","-",0,0,"-","-"]
[213,null,null,null,null,null,null,null,null,0,0,null,0,null,null,null,null,null,null,100,0,0,0,0,"-","-","-",0,0,"-","-"]
[214,null,null,null,null,null,null,null,null,0,0,null,0,null,null,null,null,null,null,100,0,0,0,0,"-","-","-",0,0,"-","-"]
[215,null,null,null,null,null,null,null,null,0,0,null,0,null,null,null,null,null,null,100,0,0,0,0,"-","-","-",0,0,"-","-"]
[216,null,null,null,null,null,null,null,null,0,0,null,0,null,null,null,null,null,null,100,0,0,0,0,"-","-","-",0,0,"-","-"]
[217,null,null,null,null,null,null,null,null,0,0,null,0,null,null,null,null,null,null,100,0,0,0,0,"-","-","-",0,0,"-","-"]
[218,null,null,null,null,null,null,null,null,0,0,null,0,null,null,null,null,null,null,100,0,0,0,0,"-","-","-",0,0,"-","-"]
[219,null,null,null,null,null,null,null,null,0,0,null,0,null,null,null,null,null,null,100,0,0,0,0,"-","-","-",0,0,"-","-"]
[220,null,null,null,null,null,null,null,null,0,0,null,0,null,null,null,null,null,null,100,0,0,0,0,"-","-","-",0,0,"-","-"]
[221,null,null,null,null,null,null,null,null,0,0,null,0,null,null,null,null,null,null,100,0,0,0,0,"-","-","-",0,0,"-","-"]
[222,null,null,null,null,null,null,null,null,0,0,null,0,null,null,null,null,null,null,100,0,0,0,0,"-","-","-",0,0,"-","-"]
[223,null,null,null,null,null,null,null,null,0,0,null,0,null,null,null,null,null,null,100,0,0,0,0,"-","-","-",0,0,"-","-"]
[224,null,null,null,null,null,null,null,null,0,0,null,0,null,null,null,null,null,null,100,0,0,0,0,"-","-","-",0,0,"-","-"]
[225,null,null,null,null,null,null,null,null,0,0,null,0,null,null,null,null,null,null,100,0,0,0,0,"-","-","-",0,0,"-","-"]
[226,null,null,null,null,null,null,null,null,0,0,null,0,null,null,null,null,null,null,100,0,0,0,0,"-","-","-",0,0,"-","-"]
[227,null,null,null,null,null,null,null,null,0,0,null,0,null,null,null,null,null,null,100,0,0,0,0,"-","-","-",0,0,"-","-"]
[228,null,null,null,null,null,null,null,null,0,0,null,0,null,null,null,null,null,null,100,0,0,0,0,"-","-","-",0,0,"-","-"]
[229,null,null,null,null,null,null,null,null,0,0,null,0,null,null,null,null,null,null,100,0,0,0,0,"-","-","-",0,0,"-","-"]
[230,null,null,null,null,null,null,null,null,0,0,null,0,null,null,null,null,null,null,100,0,0,0,0,"-","-","-",0,0,"-","-"]
[231,null,null,null,null,null,null,null,null,0,0,null,0,null,null,null,null,null,null,100,0,0,0,0,"-","-","-",0,0,"-","-"]
[232,null,null,null,null,null,null,null,null,0,0,null,0,null,null,null,null,null,null,100,0,0,0,0,"-","-","-",0,0,"-","-"]
[233,null,null,null,null,null,null,null,null,0,0,null,0,null,null,null,null,null,null,100,0,0,0,0,"-","-","-",0,0,"-","-"]
[234,null,null,null,null,null,null,null,null,0,0,null,0,null,null,null,null,null,null,100,0,0,0,0,"-","-","-",0,0,"-","-"]
[235,null,null,null,null,null,null,null,null,0,0,null,0,null,null,null,null,null,null,100,0,0,0,0,"-","-","-",0,0,"-","-"]
[236,null,null,null,null,null,null,null,null,0,0,null,0,null,null,null,null,null,null,100,0,0,0,0,"-","-","-",0,0,"-","-"]
[237,null,null,null,null,null,null,null,null,0,0,null,0,null,null,null,null,null,null,100,0,0,0,0,"-","-","-",0,0,"-","-"]
[238,null,null,null,null,null,null,null,null,0,0,null,0,null,null,null,null,null,null,100,0,0,0,0,"-","-","-",0,0,"-","-"]
[239,null,null,null,null,null,null,null,null,0,0,null,0,null,null,null,null,null,null,100,0,0,0,0,"-","-","-",0,0,"-","-"]
[240,null,null,null,null,null,null,null,null,0,0,null,0,null,null,null,null,null,null,100,0,0,0,0,"-","-","-",0,0,"-","-"]
[241,null,null,null,null,null,null,null,null,0,0,null,0,null,null,null,null,null,null,100,0,0,0,0,"-","-","-",0,0,"-","-"]
[242,null,null,null,null,null,null,null,null,0,0,null,0,null,null,null,null,null,null,100,0,0,0,0,"-","-","-",0,0,"-","-"]
[243,null,null,null,null,null,null,null,null,0,0,null,0,null,null,null,null,null,null,100,0,0,0,0,"-","-","-",0,0,"-","-"]
[244,null,null,null,null,null,null,null,null,0,0,null,0,null,null,null,null,null,null,100,0,0,0,0,"-","-","-",0,0,"-","-"]
[245,null,null,null,null,null,null,null,null,0,0,null,0,null,null,null,null,null,null,100,0,0,0,0,"-","-","-",0,0,"-","-"]
[246,null,null,null,null,null,null,null,null,0,0,null,0,null,null,null,null,null,null,100,0,0,0,0,"-","-","-",0,0,"-","-"]
[247,null,null,null,null,null,null,null,null,0,0,null,0,null,null,null,null,null,null,100,0,0,0,0,"-","-","-",0,0,"-","-"]
[248,null,null,null,null,null,null,null,null,0,0,null,0,null,null,null,null,null,null,100,0,0,0,0,"-","-","-",0,0,"-","-"]
[249,null,null,null,null,null,null,null,null,0,0,null,0,null,null,null,null,null,null,100,0,0,0,0,"-","-","-",0,0,"-","-"]
[250,null,null,null,null,null,null,null,null,0,0,null,0,null,null,null,null,null,null,100,0,0,0,0,"-","-","-",0,0,"-","-"]
[251,null,null,null,null,null,null,null,null,0,0,null,0,null,null,null,null,null,null,100,0,0,0,0,"-","-","-",0,0,"-","-"]
[252,null,null,null,null,null,null,null,null,0,0,null,0,null,null,null,null,null,null,100,0,0,0,0,"-","-","-",0,0,"-","-"]
[253,null,null,null,null,null,null,null,null,0,0,null,0,null,null,null,null,null,null,100,0,0,0,0,"-","-","-",0,0,"-","-"]
[254,null,null,null,null,null,null,null,null,0,0,null,0,null,null,null,null,null,null,100,0,0,0,0,"-","-","-",0,0,"-","-"]
[255,null,null,null,null,null,null,null,null,0,0,null,0,null,null,null,null,null,null,100,0,0,0,0,"-","-","-",0,0,"-","-"]
[256,null,null,null,null,null,null,null,null,0,0,null,0,null,null,null,null,null,null,100,0,0,0,0,"-","-","-",0,0,"-","-"]
[257,null,null,null,null,null,null,null,null,0,0,null,0,null,null,null,null,null,null,100,0,0,0,0,"-","-","-",0,0,"-","-"]
[258,null,null,null,null,null,null,null,null,{"$f":"I261*1","v":0},{"$f":"I261*92%","v":0},null,{"$f":"L261*15.67%","v":0},null,null,null,null,null,null,100,{"$f":"IF(OR(F261=\"Y\",G261=\"Y\",H261=\"Y\"),\"n.v.t.\",((I261*12)+J261+K261+L261+M261+(N261*12)+(O261*12)+(P261*21*11)+(Q261*12)+(R261*12)+(S261))*(100/T261))","v":0},{"$f":"IF(OR(F261=\"Y\",G261=\"Y\",H261=\"Y\"),\"n.v.t.\",((I261*12)+J261+K261+L261+M261+(N261*12)+(O261*12)+(P261*21*11)+(Q261*12)+(R261*12)+(S261))*(100/T261))","v":0},{"$f":"IF(X261=0,0,IF(X261=1,\"jaarloon <= 32.254 EUR\",IF(X261=2,\"32.254 EUR < jaarloon <= 64.508 EUR\",IF(X261=3,\"jaarloon > 64.508 EUR\",\"-\"))))","v":0},{"$f":"IF(V261=0,0,(IF(OR(F261=\"Y\",V261<=32254),1,IF(OR(G261=\"Y\",V261<=64508),2,IF(OR(H261=\"Y\",V261>64508),3,\"-\")))))","v":0},{"$f":"IF(W261<>0,(DATEDIF(E261-1,DATE(2013,12,31),\"y\"))+(DATEDIF(E261-1,DATE(2013,12,31),\"ym\")/12)+(DATEDIF(E261-1,DATE(2013,12,31),\"md\")/365.25),\"-\")","v":"-"},{"$f":"IFERROR(IF(X261=1,(ROUNDUP(Y261/5,0)*3),MAX(ROUNDUP(Y261,0),3)),\"-\")","v":"-"},{"$f":"IFERROR(IF(X261=1,MIN(ROUNDUP(Y261/5,0)*1.5,3),IF(X261=2,(MIN(ROUNDUP(Y261/5,0)*1.5,4.5)),(MIN(ROUNDUP(Y261/5,0)*1.5,6)))),\"-\")","v":"-"},{"$f":"IF(V261=\"n.v.t.\",\"n.v.t.\",IF(V261=0,0,(IF(T261<=1,T261,T261/100))))","v":0},{"$f":"IF(V261=\"n.v.t.\",\"n.v.t.\",I261)","v":0},{"$f":"IF(OR(ISTEXT(B261),ISTEXT(C261)),B261&\" \"&C261,\"-\")","v":"-"},{"$f":"IF(ISBLANK(D261),\"-\",D261)","v":"-"}]
[259,null,null,null,null,null,null,null,null,0,0,null,0,null,null,null,null,null,null,100,0,0,0,0,"-","-","-",0,0,"-","-"]
[260,null,null,null,null,null,null,null,null,0,0,null,0,null,null,null,null,null,null,100,0,0,0,0,"-","-","-",0,0,"-","-"]
[261,null,null,null,null,null,null,null,null,0,0,null,0,null,null,null,null,null,null,100,0,0,0,0,"-","-","-",0,0,"-","-"]
[262,null,null,null,null,null,null,null,null,0,0,null,0,null,null,null,null,null,null,100,0,0,0,0,"-","-","-",0,0,"-","-"]
[263,null,null,null,null,null,null,null,null,0,0,null,0,null,null,null,null,null,null,100,0,0,0,0,"-","-","-",0,0,"-","-"]
[264,null,null,null,null,null,null,null,null,0,0,null,0,null,null,null,null,null,null,100,0,0,0,0,"-","-","-",0,0,"-","-"]
[265,null,null,null,null,null,null,null,null,0,0,null,0,null,null,null,null,null,null,100,0,0,0,0,"-","-","-",0,0,"-","-"]
[266,null,null,null,null,null,null,null,null,0,0,null,0,null,null,null,null,null,null,100,0,0,0,0,"-","-","-",0,0,"-","-"]
[267,null,null,null,null,null,null,null,null,0,0,null,0,null,null,null,null,null,null,100,0,0,0,0,"-","-","-",0,0,"-","-"]
[268,null,null,null,null,null,null,null,null,0,0,null,0,null,null,null,null,null,null,100,0,0,0,0,"-","-","-",0,0,"-","-"]
[269,null,null,null,null,null,null,null,null,0,0,null,0,null,null,null,null,null,null,100,0,0,0,0,"-","-","-",0,0,"-","-"]
[270,null,null,null,null,null,null,null,null,0,0,null,0,null,null,null,null,null,null,100,0,0,0,0,"-","-","-",0,0,"-","-"]
[271,null,null,null,null,null,null,null,null,0,0,null,0,null,null,null,null,null,null,100,0,0,0,0,"-","-","-",0,0,"-","-"]
[272,null,null,null,null,null,null,null,null,0,0,null,0,null,null,null,null,null,null,100,0,0,0,0,"-","-","-",0,0,"-","-"]
[273,null,null,null,null,null,null,null,null,0,0,null,0,null,null,null,null,null,null,100,0,0,0,0,"-","-","-",0,0,"-","-"]
[274,null,null,null,null,null,null,null,null,0,0,null,0,null,null,null,null,null,null,100,0,0,0,0,"-","-","-",0,0,"-","-"]
[275,null,null,null,null,null,null,null,null,0,0,null,0,null,null,null,null,null,null,100,0,0,0,0,"-","-","-",0,0,"-","-"]
[276,null,null,null,null,null,null,null,null,0,0,null,0,null,null,null,null,null,null,100,0,0,0,0,"-","-","-",0,0,"-","-"]
[277,null,null,null,null,null,null,null,null,0,0,null,0,null,null,null,null,null,null,100,0,0,0,0,"-","-","-",0,0,"-","-"]
[278,null,null,null,null,null,null,null,null,0,0,null,0,null,null,null,null,null,null,100,0,0,0,0,"-","-","-",0,0,"-","-"]
[279,null,null,null,null,null,null,null,null,0,0,null,0,null,null,null,null,null,null,100,0,0,0,0,"-","-","-",0,0,"-","-"]
[280,null,null,null,null,null,null,null,null,0,0,null,0,null,null,null,null,null,null,100,0,0,0,0,"-","-","-",0,0,"-","-"]
[281,null,null,null,null,null,null,null,null,0,0,null,0,null,null,null,null,null,null,100,0,0,0,0,"-","-","-",0,0,"-","-"]
[282,null,null,null,null,null,null,null,null,0,0,null,0,null,null,null,null,null,null,100,0,0,0,0,"-","-","-",0,0,"-","-"]
[283,null,null,null,null,null,null,null,null,0,0,null,0,null,null,null,null,null,null,100,0,0,0,0,"-","-","-",0,0,"-","-"]
[284,null,null,null,null,null,null,null,null,0,0,null,0,null,null,null,null,null,null,100,0,0,0,0,"-","-","-",0,0,"-","-"]
[285,null,null,null,null,null,null,null,null,0,0,null,0,null,null,null,null,null,null,100,0,0,0,0,"-","-","-",0,0,"-","-"]
[286,null,null,null,null,null,null,null,null,0,0,null,0,null,null,null,null,null,null,100,0,0,0,0,"-","-","-",0,0,"-","-"]
[287,null,null,null,null,null,null,null,null,0,0,null,0,null,null,null,null,null,null,100,0,0,0,0,"-","-","-",0,0,"-","-"]
[288,null,null,null,null,null,null,null,null,0,0,null,0,null,null,null,null,null,null,100,0,0,0,0,"-","-","-",0,0,"-","-"]
[289,null,null,null,null,null,null,null,null,0,0,null,0,null,null,null,null,null,null,100,0,0,0,0,"-","-","-",0,0,"-","-"]
[290,null,null,null,null,null,null,null,null,0,0,null,0,null,null,null,null,null,null,100,0,0,0,0,"-","-","-",0,0,"-","-"]
[291,null,null,null,null,null,null,null,null,0,0,null,0,null,null,null,null,null,null,100,0,0,0,0,"-","-","-",0,0,"-","-"]
[292,null,null,null,null,null,null,null,null,0,0,null,0,null,null,null,null,null,null,100,0,0,0,0,"-","-","-",0,0,"-","-"]
[293,null,null,null,null,null,null,null,null,0,0,null,0,null,null,null,null,null,null,100,0,0,0,0,"-","-","-",0,0,"-","-"]
[294,null,null,null,null,null,null,null,null,0,0,null,0,null,null,null,null,null,null,100,0,0,0,0,"-","-","-",0,0,"-","-"]
[295,null,null,null,null,null,null,null,null,0,0,null,0,null,null,null,null,null,null,100,0,0,0,0,"-","-","-",0,0,"-","-"]
[296,null,null,null,null,null,null,null,null,0,0,null,0,null,null,null,null,null,null,100,0,0,0,0,"-","-","-",0,0,"-","-"]
[297,null,null,null,null,null,null,null,null,0,0,null,0,null,null,null,null,null,null,100,0,0,0,0,"-","-","-",0,0,"-","-"]
[298,null,null,null,null,null,null,null,null,0,0,null,0,null,null,null,null,null,null,100,0,0,0,0,"-","-","-",0,0,"-","-"]
[299,null,null,null,null,null,null,null,null,0,0,null,0,null,null,null,null,null,null,100,0,0,0,0,"-","-","-",0,0,"-","-"]
[300,null,null,null,null,null,null,null,null,0,0,null,0,null,null,null,null,null,null,100,0,0,0,0,"-","-","-",0,0,"-","-"]
[301,null,null,null,null,null,null,null,null,0,0,null,0,null,null,null,null,null,null,100,0,0,0,0,"-","-","-",0,0,"-","-"]
[302,null,null,null,null,null,null,null,null,0,0,null,0,null,null,null,null,null,null,100,0,0,0,0,"-","-","-",0,0,"-","-"]
[303,null,null,null,null,null,null,null,null,0,0,null,0,null,null,null,null,null,null,100,0,0,0,0,"-","-","-",0,0,"-","-"]
[304,null,null,null,null,null,null,null,null,0,0,null,0,null,null,null,null,null,null,100,0,0,0,0,"-","-","-",0,0,"-","-"]
[305,null,null,null,null,null,null,null,null,0,0,null,0,null,null,null,null,null,null,100,0,0,0,0,"-","-","-",0,0,"-","-"]
[306,null,null,null,null,null,null,null,null,0,0,null,0,null,null,null,null,null,null,100,0,0,0,0,"-","-","-",0,0,"-","-"]
[307,null,null,null,null,null,null,null,null,0,0,null,0,null,null,null,null,null,null,100,0,0,0,0,"-","-","-",0,0,"-","-"]
[308,null,null,null,null,null,null,null,null,0,0,null,0,null,null,null,null,null,null,100,0,0,0,0,"-","-","-",0,0,"-","-"]
[309,null,null,null,null,null,null,null,null,0,0,null,0,null,null,null,null,null,null,100,0,0,0,0,"-","-","-",0,0,"-","-"]
[310,null,null,null,null,null,null,null,null,0,0,null,0,null,null,null,null,null,null,100,0,0,0,0,"-","-","-",0,0,"-","-"]
[311,null,null,null,null,null,null,null,null,0,0,null,0,null,null,null,null,null,null,100,0,0,0,0,"-","-","-",0,0,"-","-"]
[312,null,null,null,null,null,null,null,null,0,0,null,0,null,null,null,null,null,null,100,0,0,0,0,"-","-","-",0,0,"-","-"]
[313,null,null,null,null,null,null,null,null,0,0,null,0,null,null,null,null,null,null,100,0,0,0,0,"-","-","-",0,0,"-","-"]
[314,null,null,null,null,null,null,null,null,0,0,null,0,null,null,null,null,null,null,100,0,0,0,0,"-","-","-",0,0,"-","-"]
[315,null,null,null,null,null,null,null,null,0,0,null,0,null,null,null,null,null,null,100,0,0,0,0,"-","-","-",0,0,"-","-"]
[316,null,null,null,null,null,null,null,null,0,0,null,0,null,null,null,null,null,null,100,0,0,0,0,"-","-","-",0,0,"-","-"]
[317,null,null,null,null,null,null,null,null,0,0,null,0,null,null,null,null,null,null,100,0,0,0,0,"-","-","-",0,0,"-","-"]
[318,null,null,null,null,null,null,null,null,0,0,null,0,null,null,null,null,null,null,100,0,0,0,0,"-","-","-",0,0,"-","-"]
[319,null,null,null,null,null,null,null,null,0,0,null,0,null,null,null,null,null,null,100,0,0,0,0,"-","-","-",0,0,"-","-"]
[320,null,null,null,null,null,null,null,null,0,0,null,0,null,null,null,null,null,null,100,0,0,0,0,"-","-","-",0,0,"-","-"]
[321,null,null,null,null,null,null,null,null,0,0,null,0,null,null,null,null,null,null,100,0,0,0,0,"-","-","-",0,0,"-","-"]
[322,null,null,null,null,null,null,null,null,{"$f":"I325*1","v":0},{"$f":"I325*92%","v":0},null,{"$f":"L325*15.67%","v":0},null,null,null,null,null,null,100,{"$f":"IF(OR(F325=\"Y\",G325=\"Y\",H325=\"Y\"),\"n.v.t.\",((I325*12)+J325+K325+L325+M325+(N325*12)+(O325*12)+(P325*21*11)+(Q325*12)+(R325*12)+(S325))*(100/T325))","v":0},{"$f":"IF(OR(F325=\"Y\",G325=\"Y\",H325=\"Y\"),\"n.v.t.\",((I325*12)+J325+K325+L325+M325+(N325*12)+(O325*12)+(P325*21*11)+(Q325*12)+(R325*12)+(S325))*(100/T325))","v":0},{"$f":"IF(X325=0,0,IF(X325=1,\"jaarloon <= 32.254 EUR\",IF(X325=2,\"32.254 EUR < jaarloon <= 64.508 EUR\",IF(X325=3,\"jaarloon > 64.508 EUR\",\"-\"))))","v":0},{"$f":"IF(V325=0,0,(IF(OR(F325=\"Y\",V325<=32254),1,IF(OR(G325=\"Y\",V325<=64508),2,IF(OR(H325=\"Y\",V325>64508),3,\"-\")))))","v":0},{"$f":"IF(W325<>0,(DATEDIF(E325-1,DATE(2013,12,31),\"y\"))+(DATEDIF(E325-1,DATE(2013,12,31),\"ym\")/12)+(DATEDIF(E325-1,DATE(2013,12,31),\"md\")/365.25),\"-\")","v":"-"},{"$f":"IFERROR(IF(X325=1,(ROUNDUP(Y325/5,0)*3),MAX(ROUNDUP(Y325,0),3)),\"-\")","v":"-"},{"$f":"IFERROR(IF(X325=1,MIN(ROUNDUP(Y325/5,0)*1.5,3),IF(X325=2,(MIN(ROUNDUP(Y325/5,0)*1.5,4.5)),(MIN(ROUNDUP(Y325/5,0)*1.5,6)))),\"-\")","v":"-"},{"$f":"IF(V325=\"n.v.t.\",\"n.v.t.\",IF(V325=0,0,(IF(T325<=1,T325,T325/100))))","v":0},{"$f":"IF(V325=\"n.v.t.\",\"n.v.t.\",I325)","v":0},{"$f":"IF(OR(ISTEXT(B325),ISTEXT(C325)),B325&\" \"&C325,\"-\")","v":"-"},{"$f":"IF(ISBLANK(D325),\"-\",D325)","v":"-"}]
[323,null,null,null,null,null,null,null,null,0,0,null,0,null,null,null,null,null,null,100,0,0,0,0,"-","-","-",0,0,"-","-"]
[324,null,null,null,null,null,null,null,null,0,0,null,0,null,null,null,null,null,null,100,0,0,0,0,"-","-","-",0,0,"-","-"]
[325,null,null,null,null,null,null,null,null,0,0,null,0,null,null,null,null,null,null,100,0,0,0,0,"-","-","-",0,0,"-","-"]
[326,null,null,null,null,null,null,null,null,0,0,null,0,null,null,null,null,null,null,100,0,0,0,0,"-","-","-",0,0,"-","-"]
[327,null,null,null,null,null,null,null,null,0,0,null,0,null,null,null,null,null,null,100,0,0,0,0,"-","-","-",0,0,"-","-"]
[328,null,null,null,null,null,null,null,null,0,0,null,0,null,null,null,null,null,null,100,0,0,0,0,"-","-","-",0,0,"-","-"]
[329,null,null,null,null,null,null,null,null,0,0,null,0,null,null,null,null,null,null,100,0,0,0,0,"-","-","-",0,0,"-","-"]
[330,null,null,null,null,null,null,null,null,0,0,null,0,null,null,null,null,null,null,100,0,0,0,0,"-","-","-",0,0,"-","-"]
[331,null,null,null,null,null,null,null,null,0,0,null,0,null,null,null,null,null,null,100,0,0,0,0,"-","-","-",0,0,"-","-"]
[332,null,null,null,null,null,null,null,null,0,0,null,0,null,null,null,null,null,null,100,0,0,0,0,"-","-","-",0,0,"-","-"]
[333,null,null,null,null,null,null,null,null,0,0,null,0,null,null,null,null,null,null,100,0,0,0,0,"-","-","-",0,0,"-","-"]
[334,null,null,null,null,null,null,null,null,0,0,null,0,null,null,null,null,null,null,100,0,0,0,0,"-","-","-",0,0,"-","-"]
[335,null,null,null,null,null,null,null,null,0,0,null,0,null,null,null,null,null,null,100,0,0,0,0,"-","-","-",0,0,"-","-"]
[336,null,null,null,null,null,null,null,null,0,0,null,0,null,null,null,null,null,null,100,0,0,0,0,"-","-","-",0,0,"-","-"]
[337,null,null,null,null,null,null,null,null,0,0,null,0,null,null,null,null,null,null,100,0,0,0,0,"-","-","-",0,0,"-","-"]
[338,null,null,null,null,null,null,null,null,0,0,null,0,null,null,null,null,null,null,100,0,0,0,0,"-","-","-",0,0,"-","-"]
[339,null,null,null,null,null,null,null,null,0,0,null,0,null,null,null,null,null,null,100,0,0,0,0,"-","-","-",0,0,"-","-"]
[340,null,null,null,null,null,null,null,null,0,0,null,0,null,null,null,null,null,null,100,0,0,0,0,"-","-","-",0,0,"-","-"]
[341,null,null,null,null,null,null,null,null,0,0,null,0,null,null,null,null,null,null,100,0,0,0,0,"-","-","-",0,0,"-","-"]
[342,null,null,null,null,null,null,null,null,0,0,null,0,null,null,null,null,null,null,100,0,0,0,0,"-","-","-",0,0,"-","-"]
[343,null,null,null,null,null,null,null,null,0,0,null,0,null,null,null,null,null,null,100,0,0,0,0,"-","-","-",0,0,"-","-"]
[344,null,null,null,null,null,null,null,null,0,0,null,0,null,null,null,null,null,null,100,0,0,0,0,"-","-","-",0,0,"-","-"]
[345,null,null,null,null,null,null,null,null,0,0,null,0,null,null,null,null,null,null,100,0,0,0,0,"-","-","-",0,0,"-","-"]
[346,null,null,null,null,null,null,null,null,0,0,null,0,null,null,null,null,null,null,100,0,0,0,0,"-","-","-",0,0,"-","-"]
[347,null,null,null,null,null,null,null,null,0,0,null,0,null,null,null,null,null,null,100,0,0,0,0,"-","-","-",0,0,"-","-"]
[348,null,null,null,null,null,null,null,null,0,0,null,0,null,null,null,null,null,null,100,0,0,0,0,"-","-","-",0,0,"-","-"]
[349,null,null,null,null,null,null,null,null,0,0,null,0,null,null,null,null,null,null,100,0,0,0,0,"-","-","-",0,0,"-","-"]
[350,null,null,null,null,null,null,null,null,0,0,null,0,null,null,null,null,null,null,100,0,0,0,0,"-","-","-",0,0,"-","-"]
[351,null,null,null,null,null,null,null,null,0,0,null,0,null,null,null,null,null,null,100,0,0,0,0,"-","-","-",0,0,"-","-"]
[352,null,null,null,null,null,null,null,null,0,0,null,0,null,null,null,null,null,null,100,0,0,0,0,"-","-","-",0,0,"-","-"]
[353,null,null,null,null,null,null,null,null,0,0,null,0,null,null,null,null,null,null,100,0,0,0,0,"-","-","-",0,0,"-","-"]
[354,null,null,null,null,null,null,null,null,0,0,null,0,null,null,null,null,null,null,100,0,0,0,0,"-","-","-",0,0,"-","-"]
[355,null,null,null,null,null,null,null,null,0,0,null,0,null,null,null,null,null,null,100,0,0,0,0,"-","-","-",0,0,"-","-"]
[356,null,null,null,null,null,null,null,null,0,0,null,0,null,null,null,null,null,null,100,0,0,0,0,"-","-","-",0,0,"-","-"]
[357,null,null,null,null,null,null,null,null,0,0,null,0,null,null,null,null,null,null,100,0,0,0,0,"-","-","-",0,0,"-","-"]
[358,null,null,null,null,null,null,null,null,0,0,null,0,null,null,null,null,null,null,100,0,0,0,0,"-","-","-",0,0,"-","-"]
[359,null,null,null,null,null,null,null,null,0,0,null,0,null,null,null,null,null,null,100,0,0,0,0,"-","-","-",0,0,"-","-"]
[360,null,null,null,null,null,null,null,null,0,0,null,0,null,null,null,null,null,null,100,0,0,0,0,"-","-","-",0,0,"-","-"]
[361,null,null,null,null,null,null,null,null,0,0,null,0,null,null,null,null,null,null,100,0,0,0,0,"-","-","-",0,0,"-","-"]
[362,null,null,null,null,null,null,null,null,0,0,null,0,null,null,null,null,null,null,100,0,0,0,0,"-","-","-",0,0,"-","-"]
[363,null,null,null,null,null,null,null,null,0,0,null,0,null,null,null,null,null,null,100,0,0,0,0,"-","-","-",0,0,"-","-"]
[364,null,null,null,null,null,null,null,null,0,0,null,0,null,null,null,null,null,null,100,0,0,0,0,"-","-","-",0,0,"-","-"]
[365,null,null,null,null,null,null,null,null,0,0,null,0,null,null,null,null,null,null,100,0,0,0,0,"-","-","-",0,0,"-","-"]
[366,null,null,null,null,null,null,null,null,0,0,null,0,null,null,null,null,null,null,100,0,0,0,0,"-","-","-",0,0,"-","-"]
[367,null,null,null,null,null,null,null,null,0,0,null,0,null,null,null,null,null,null,100,0,0,0,0,"-","-","-",0,0,"-","-"]
[368,null,null,null,null,null,null,null,null,0,0,null,0,null,null,null,null,null,null,100,0,0,0,0,"-","-","-",0,0,"-","-"]
[369,null,null,null,null,null,null,null,null,0,0,null,0,null,null,null,null,null,null,100,0,0,0,0,"-","-","-",0,0,"-","-"]
[370,null,null,null,null,null,null,null,null,0,0,null,0,null,null,null,null,null,null,100,0,0,0,0,"-","-","-",0,0,"-","-"]
[371,null,null,null,null,null,null,null,null,0,0,null,0,null,null,null,null,null,null,100,0,0,0,0,"-","-","-",0,0,"-","-"]
[372,null,null,null,null,null,null,null,null,0,0,null,0,null,null,null,null,null,null,100,0,0,0,0,"-","-","-",0,0,"-","-"]
[373,null,null,null,null,null,null,null,null,0,0,null,0,null,null,null,null,null,null,100,0,0,0,0,"-","-","-",0,0,"-","-"]
[374,null,null,null,null,null,null,null,null,0,0,null,0,null,null,null,null,null,null,100,0,0,0,0,"-","-","-",0,0,"-","-"]
[375,null,null,null,null,null,null,null,null,0,0,null,0,null,null,null,null,null,null,100,0,0,0,0,"-","-","-",0,0,"-","-"]
[376,null,null,null,null,null,null,null,null,0,0,null,0,null,null,null,null,null,null,100,0,0,0,0,"-","-","-",0,0,"-","-"]
[377,null,null,null,null,null,null,null,null,0,0,null,0,null,null,null,null,null,null,100,0,0,0,0,"-","-","-",0,0,"-","-"]
[378,null,null,null,null,null,null,null,null,0,0,null,0,null,null,null,null,null,null,100,0,0,0,0,"-","-","-",0,0,"-","-"]
[379,null,null,null,null,null,null,null,null,0,0,null,0,null,null,null,null,null,null,100,0,0,0,0,"-","-","-",0,0,"-","-"]
[380,null,null,null,null,null,null,null,null,0,0,null,0,null,null,null,null,null,null,100,0,0,0,0,"-","-","-",0,0,"-","-"]
[381,null,null,null,null,null,null,null,null,0,0,null,0,null,null,null,null,null,null,100,0,0,0,0,"-","-","-",0,0,"-","-"]
[382,null,null,null,null,null,null,null,null,0,0,null,0,null,null,null,null,null,null,100,0,0,0,0,"-","-","-",0,0,"-","-"]
[383,null,null,null,null,null,null,null,null,0,0,null,0,null,null,null,null,null,null,100,0,0,0,0,"-","-","-",0,0,"-","-"]
[384,null,null,null,null,null,null,null,null,0,0,null,0,null,null,null,null,null,null,100,0,0,0,0,"-","-","-",0,0,"-","-"]
[385,null,null,null,null,null,null,null,null,0,0,null,0,null,null,null,null,null,null,100,0,0,0,0,"-","-","-",0,0,"-","-"]
[386,null,null,null,null,null,null,null,null,{"$f":"I389*1","v":0},{"$f":"I389*92%","v":0},null,{"$f":"L389*15.67%","v":0},null,null,null,null,null,null,100,{"$f":"IF(OR(F389=\"Y\",G389=\"Y\",H389=\"Y\"),\"n.v.t.\",((I389*12)+J389+K389+L389+M389+(N389*12)+(O389*12)+(P389*21*11)+(Q389*12)+(R389*12)+(S389))*(100/T389))","v":0},{"$f":"IF(OR(F389=\"Y\",G389=\"Y\",H389=\"Y\"),\"n.v.t.\",((I389*12)+J389+K389+L389+M389+(N389*12)+(O389*12)+(P389*21*11)+(Q389*12)+(R389*12)+(S389))*(100/T389))","v":0},{"$f":"IF(X389=0,0,IF(X389=1,\"jaarloon <= 32.254 EUR\",IF(X389=2,\"32.254 EUR < jaarloon <= 64.508 EUR\",IF(X389=3,\"jaarloon > 64.508 EUR\",\"-\"))))","v":0},{"$f":"IF(V389=0,0,(IF(OR(F389=\"Y\",V389<=32254),1,IF(OR(G389=\"Y\",V389<=64508),2,IF(OR(H389=\"Y\",V389>64508),3,\"-\")))))","v":0},{"$f":"IF(W389<>0,(DATEDIF(E389-1,DATE(2013,12,31),\"y\"))+(DATEDIF(E389-1,DATE(2013,12,31),\"ym\")/12)+(DATEDIF(E389-1,DATE(2013,12,31),\"md\")/365.25),\"-\")","v":"-"},{"$f":"IFERROR(IF(X389=1,(ROUNDUP(Y389/5,0)*3),MAX(ROUNDUP(Y389,0),3)),\"-\")","v":"-"},{"$f":"IFERROR(IF(X389=1,MIN(ROUNDUP(Y389/5,0)*1.5,3),IF(X389=2,(MIN(ROUNDUP(Y389/5,0)*1.5,4.5)),(MIN(ROUNDUP(Y389/5,0)*1.5,6)))),\"-\")","v":"-"},{"$f":"IF(V389=\"n.v.t.\",\"n.v.t.\",IF(V389=0,0,(IF(T389<=1,T389,T389/100))))","v":0},{"$f":"IF(V389=\"n.v.t.\",\"n.v.t.\",I389)","v":0},{"$f":"IF(OR(ISTEXT(B389),ISTEXT(C389)),B389&\" \"&C389,\"-\")","v":"-"},{"$f":"IF(ISBLANK(D389),\"-\",D389)","v":"-"}]
[387,null,null,null,null,null,null,null,null,0,0,null,0,null,null,null,null,null,null,100,0,0,0,0,"-","-","-",0,0,"-","-"]
[388,null,null,null,null,null,null,null,null,0,0,null,0,null,null,null,null,null,null,100,0,0,0,0,"-","-","-",0,0,"-","-"]
[389,null,null,null,null,null,null,null,null,0,0,null,0,null,null,null,null,null,null,100,0,0,0,0,"-","-","-",0,0,"-","-"]
[390,null,null,null,null,null,null,null,null,0,0,null,0,null,null,null,null,null,null,100,0,0,0,0,"-","-","-",0,0,"-","-"]
[391,null,null,null,null,null,null,null,null,0,0,null,0,null,null,null,null,null,null,100,0,0,0,0,"-","-","-",0,0,"-","-"]
[392,null,null,null,null,null,null,null,null,0,0,null,0,null,null,null,null,null,null,100,0,0,0,0,"-","-","-",0,0,"-","-"]
[393,null,null,null,null,null,null,null,null,0,0,null,0,null,null,null,null,null,null,100,0,0,0,0,"-","-","-",0,0,"-","-"]
[394,null,null,null,null,null,null,null,null,0,0,null,0,null,null,null,null,null,null,100,0,0,0,0,"-","-","-",0,0,"-","-"]
[395,null,null,null,null,null,null,null,null,0,0,null,0,null,null,null,null,null,null,100,0,0,0,0,"-","-","-",0,0,"-","-"]
[396,null,null,null,null,null,null,null,null,0,0,null,0,null,null,null,null,null,null,100,0,0,0,0,"-","-","-",0,0,"-","-"]
[397,null,null,null,null,null,null,null,null,0,0,null,0,null,null,null,null,null,null,100,0,0,0,0,"-","-","-",0,0,"-","-"]
[398,null,null,null,null,null,null,null,null,0,0,null,0,null,null,null,null,null,null,100,0,0,0,0,"-","-","-",0,0,"-","-"]
[399,null,null,null,null,null,null,null,null,0,0,null,0,null,null,null,null,null,null,100,0,0,0,0,"-","-","-",0,0,"-","-"]
[400,null,null,null,null,null,null,null,null,0,0,null,0,null,null,null,null,null,null,100,0,0,0,0,"-","-","-",0,0,"-","-"]
[401,null,null,null,null,null,null,null,null,0,0,null,0,null,null,null,null,null,null,100,0,0,0,0,"-","-","-",0,0,"-","-"]
[402,null,null,null,null,null,null,null,null,0,0,null,0,null,null,null,null,null,null,100,0,0,0,0,"-","-","-",0,0,"-","-"]
[403,null,null,null,null,null,null,null,null,0,0,null,0,null,null,null,null,null,null,100,0,0,0,0,"-","-","-",0,0,"-","-"]
[404,null,null,null,null,null,null,null,null,0,0,null,0,null,null,null,null,null,null,100,0,0,0,0,"-","-","-",0,0,"-","-"]
[405,null,null,null,null,null,null,null,null,0,0,null,0,null,null,null,null,null,null,100,0,0,0,0,"-","-","-",0,0,"-","-"]
[406,null,null,null,null,null,null,null,null,0,0,null,0,null,null,null,null,null,null,100,0,0,0,0,"-","-","-",0,0,"-","-"]
[407,null,null,null,null,null,null,null,null,0,0,null,0,null,null,null,null,null,null,100,0,0,0,0,"-","-","-",0,0,"-","-"]
[408,null,null,null,null,null,null,null,null,0,0,null,0,null,null,null,null,null,null,100,0,0,0,0,"-","-","-",0,0,"-","-"]
[409,null,null,null,null,null,null,null,null,0,0,null,0,null,null,null,null,null,null,100,0,0,0,0,"-","-","-",0,0,"-","-"]
[410,null,null,null,null,null,null,null,null,0,0,null,0,null,null,null,null,null,null,100,0,0,0,0,"-","-","-",0,0,"-","-"]
[411,null,null,null,null,null,null,null,null,0,0,null,0,null,null,null,null,null,null,100,0,0,0,0,"-","-","-",0,0,"-","-"]
[412,null,null,null,null,null,null,null,null,0,0,null,0,null,null,null,null,null,null,100,0,0,0,0,"-","-","-",0,0,"-","-"]
[413,null,null,null,null,null,null,null,null,0,0,null,0,null,null,null,null,null,null,100,0,0,0,0,"-","-","-",0,0,"-","-"]
[414,null,null,null,null,null,null,null,null,0,0,null,0,null,null,null,null,null,null,100,0,0,0,0,"-","-","-",0,0,"-","-"]
[415,null,null,null,null,null,null,null,null,0,0,null,0,null,null,null,null,null,null,100,0,0,0,0,"-","-","-",0,0,"-","-"]
[416,null,null,null,null,null,null,null,null,0,0,null,0,null,null,null,null,null,null,100,0,0,0,0,"-","-","-",0,0,"-","-"]
[417,null,null,null,null,null,null,null,null,0,0,null,0,null,null,null,null,null,null,100,0,0,0,0,"-","-","-",0,0,"-","-"]
[418,null,null,null,null,null,null,null,null,0,0,null,0,null,null,null,null,null,null,100,0,0,0,0,"-","-","-",0,0,"-","-"]
[419,null,null,null,null,null,null,null,null,0,0,null,0,null,null,null,null,null,null,100,0,0,0,0,"-","-","-",0,0,"-","-"]
[420,null,null,null,null,null,null,null,null,0,0,null,0,null,null,null,null,null,null,100,0,0,0,0,"-","-","-",0,0,"-","-"]
[421,null,null,null,null,null,null,null,null,0,0,null,0,null,null,null,null,null,null,100,0,0,0,0,"-","-","-",0,0,"-","-"]
[422,null,null,null,null,null,null,null,null,0,0,null,0,null,null,null,null,null,null,100,0,0,0,0,"-","-","-",0,0,"-","-"]
[423,null,null,null,null,null,null,null,null,0,0,null,0,null,null,null,null,null,null,100,0,0,0,0,"-","-","-",0,0,"-","-"]
[424,null,null,null,null,null,null,null,null,0,0,null,0,null,null,null,null,null,null,100,0,0,0,0,"-","-","-",0,0,"-","-"]
[425,null,null,null,null,null,null,null,null,0,0,null,0,null,null,null,null,null,null,100,0,0,0,0,"-","-","-",0,0,"-","-"]
[426,null,null,null,null,null,null,null,null,0,0,null,0,null,null,null,null,null,null,100,0,0,0,0,"-","-","-",0,0,"-","-"]
[427,null,null,null,null,null,null,null,null,0,0,null,0,null,null,null,null,null,null,100,0,0,0,0,"-","-","-",0,0,"-","-"]
[428,null,null,null,null,null,null,null,null,0,0,null,0,null,null,null,null,null,null,100,0,0,0,0,"-","-","-",0,0,"-","-"]
[429,null,null,null,null,null,null,null,null,0,0,null,0,null,null,null,null,null,null,100,0,0,0,0,"-","-","-",0,0,"-","-"]
[430,null,null,null,null,null,null,null,null,0,0,null,0,null,null,null,null,null,null,100,0,0,0,0,"-","-","-",0,0,"-","-"]
[431,null,null,null,null,null,null,null,null,0,0,null,0,null,null,null,null,null,null,100,0,0,0,0,"-","-","-",0,0,"-","-"]
[432,null,null,null,null,null,null,null,null,0,0,null,0,null,null,null,null,null,null,100,0,0,0,0,"-","-","-",0,0,"-","-"]
[433,null,null,null,null,null,null,null,null,0,0,null,0,null,null,null,null,null,null,100,0,0,0,0,"-","-","-",0,0,"-","-"]
[434,null,null,null,null,null,null,null,null,0,0,null,0,null,null,null,null,null,null,100,0,0,0,0,"-","-","-",0,0,"-","-"]
[435,null,null,null,null,null,null,null,null,0,0,null,0,null,null,null,null,null,null,100,0,0,0,0,"-","-","-",0,0,"-","-"]
[436,null,null,null,null,null,null,null,null,0,0,null,0,null,null,null,null,null,null,100,0,0,0,0,"-","-","-",0,0,"-","-"]
[437,null,null,null,null,null,null,null,null,0,0,null,0,null,null,null,null,null,null,100,0,0,0,0,"-","-","-",0,0,"-","-"]
[438,null,null,null,null,null,null,null,null,0,0,null,0,null,null,null,null,null,null,100,0,0,0,0,"-","-","-",0,0,"-","-"]
[439,null,null,null,null,null,null,null,null,0,0,null,0,null,null,null,null,null,null,100,0,0,0,0,"-","-","-",0,0,"-","-"]
[440,null,null,null,null,null,null,null,null,0,0,null,0,null,null,null,null,null,null,100,0,0,0,0,"-","-","-",0,0,"-","-"]
[441,null,null,null,null,null,null,null,null,0,0,null,0,null,null,null,null,null,null,100,0,0,0,0,"-","-","-",0,0,"-","-"]
[442,null,null,null,null,null,null,null,null,0,0,null,0,null,null,null,null,null,null,100,0,0,0,0,"-","-","-",0,0,"-","-"]
[443,null,null,null,null,null,null,null,null,0,0,null,0,null,null,null,null,null,null,100,0,0,0,0,"-","-","-",0,0,"-","-"]
[444,null,null,null,null,null,null,null,null,0,0,null,0,null,null,null,null,null,null,100,0,0,0,0,"-","-","-",0,0,"-","-"]
[445,null,null,null,null,null,null,null,null,0,0,null,0,null,null,null,null,null,null,100,0,0,0,0,"-","-","-",0,0,"-","-"]
[446,null,null,null,null,null,null,null,null,0,0,null,0,null,null,null,null,null,null,100,0,0,0,0,"-","-","-",0,0,"-","-"]
[447,null,null,null,null,null,null,null,null,0,0,null,0,null,null,null,null,null,null,100,0,0,0,0,"-","-","-",0,0,"-","-"]
[448,null,null,null,null,null,null,null,null,0,0,null,0,null,null,null,null,null,null,100,0,0,0,0,"-","-","-",0,0,"-","-"]
[449,null,null,null,null,null,null,null,null,0,0,null,0,null,null,null,null,null,null,100,0,0,0,0,"-","-","-",0,0,"-","-"]
[450,null,null,null,null,null,null,null,null,{"$f":"I453*1","v":0},{"$f":"I453*92%","v":0},null,{"$f":"L453*15.67%","v":0},null,null,null,null,null,null,100,{"$f":"IF(OR(F453=\"Y\",G453=\"Y\",H453=\"Y\"),\"n.v.t.\",((I453*12)+J453+K453+L453+M453+(N453*12)+(O453*12)+(P453*21*11)+(Q453*12)+(R453*12)+(S453))*(100/T453))","v":0},{"$f":"IF(OR(F453=\"Y\",G453=\"Y\",H453=\"Y\"),\"n.v.t.\",((I453*12)+J453+K453+L453+M453+(N453*12)+(O453*12)+(P453*21*11)+(Q453*12)+(R453*12)+(S453))*(100/T453))","v":0},{"$f":"IF(X453=0,0,IF(X453=1,\"jaarloon <= 32.254 EUR\",IF(X453=2,\"32.254 EUR < jaarloon <= 64.508 EUR\",IF(X453=3,\"jaarloon > 64.508 EUR\",\"-\"))))","v":0},{"$f":"IF(V453=0,0,(IF(OR(F453=\"Y\",V453<=32254),1,IF(OR(G453=\"Y\",V453<=64508),2,IF(OR(H453=\"Y\",V453>64508),3,\"-\")))))","v":0},{"$f":"IF(W453<>0,(DATEDIF(E453-1,DATE(2013,12,31),\"y\"))+(DATEDIF(E453-1,DATE(2013,12,31),\"ym\")/12)+(DATEDIF(E453-1,DATE(2013,12,31),\"md\")/365.25),\"-\")","v":"-"},{"$f":"IFERROR(IF(X453=1,(ROUNDUP(Y453/5,0)*3),MAX(ROUNDUP(Y453,0),3)),\"-\")","v":"-"},{"$f":"IFERROR(IF(X453=1,MIN(ROUNDUP(Y453/5,0)*1.5,3),IF(X453=2,(MIN(ROUNDUP(Y453/5,0)*1.5,4.5)),(MIN(ROUNDUP(Y453/5,0)*1.5,6)))),\"-\")","v":"-"},{"$f":"IF(V453=\"n.v.t.\",\"n.v.t.\",IF(V453=0,0,(IF(T453<=1,T453,T453/100))))","v":0},{"$f":"IF(V453=\"n.v.t.\",\"n.v.t.\",I453)","v":0},{"$f":"IF(OR(ISTEXT(B453),ISTEXT(C453)),B453&\" \"&C453,\"-\")","v":"-"},{"$f":"IF(ISBLANK(D453),\"-\",D453)","v":"-"}]
[451,null,null,null,null,null,null,null,null,0,0,null,0,null,null,null,null,null,null,100,0,0,0,0,"-","-","-",0,0,"-","-"]
[452,null,null,null,null,null,null,null,null,0,0,null,0,null,null,null,null,null,null,100,0,0,0,0,"-","-","-",0,0,"-","-"]
[453,null,null,null,null,null,null,null,null,0,0,null,0,null,null,null,null,null,null,100,0,0,0,0,"-","-","-",0,0,"-","-"]
[454,null,null,null,null,null,null,null,null,0,0,null,0,null,null,null,null,null,null,100,0,0,0,0,"-","-","-",0,0,"-","-"]
[455,null,null,null,null,null,null,null,null,0,0,null,0,null,null,null,null,null,null,100,0,0,0,0,"-","-","-",0,0,"-","-"]
[456,null,null,null,null,null,null,null,null,0,0,null,0,null,null,null,null,null,null,100,0,0,0,0,"-","-","-",0,0,"-","-"]
[457,null,null,null,null,null,null,null,null,0,0,null,0,null,null,null,null,null,null,100,0,0,0,0,"-","-","-",0,0,"-","-"]
[458,null,null,null,null,null,null,null,null,0,0,null,0,null,null,null,null,null,null,100,0,0,0,0,"-","-","-",0,0,"-","-"]
[459,null,null,null,null,null,null,null,null,0,0,null,0,null,null,null,null,null,null,100,0,0,0,0,"-","-","-",0,0,"-","-"]
[460,null,null,null,null,null,null,null,null,0,0,null,0,null,null,null,null,null,null,100,0,0,0,0,"-","-","-",0,0,"-","-"]
[461,null,null,null,null,null,null,null,null,0,0,null,0,null,null,null,null,null,null,100,0,0,0,0,"-","-","-",0,0,"-","-"]
[462,null,null,null,null,null,null,null,null,0,0,null,0,null,null,null,null,null,null,100,0,0,0,0,"-","-","-",0,0,"-","-"]
[463,null,null,null,null,null,null,null,null,0,0,null,0,null,null,null,null,null,null,100,0,0,0,0,"-","-","-",0,0,"-","-"]
[464,null,null,null,null,null,null,null,null,0,0,null,0,null,null,null,null,null,null,100,0,0,0,0,"-","-","-",0,0,"-","-"]
[465,null,null,null,null,null,null,null,null,0,0,null,0,null,null,null,null,null,null,100,0,0,0,0,"-","-","-",0,0,"-","-"]
[466,null,null,null,null,null,null,null,null,0,0,null,0,null,null,null,null,null,null,100,0,0,0,0,"-","-","-",0,0,"-","-"]
[467,null,null,null,null,null,null,null,null,0,0,null,0,null,null,null,null,null,null,100,0,0,0,0,"-","-","-",0,0,"-","-"]
[468,null,null,null,null,null,null,null,null,0,0,null,0,null,null,null,null,null,null,100,0,0,0,0,"-","-","-",0,0,"-","-"]
[469,null,null,null,null,null,null,null,null,0,0,null,0,null,null,null,null,null,null,100,0,0,0,0,"-","-","-",0,0,"-","-"]
[470,null,null,null,null,null,null,null,null,0,0,null,0,null,null,null,null,null,null,100,0,0,0,0,"-","-","-",0,0,"-","-"]
[471,null,null,null,null,null,null,null,null,0,0,null,0,null,null,null,null,null,null,100,0,0,0,0,"-","-","-",0,0,"-","-"]
[472,null,null,null,null,null,null,null,null,0,0,null,0,null,null,null,null,null,null,100,0,0,0,0,"-","-","-",0,0,"-","-"]
[473,null,null,null,null,null,null,null,null,0,0,null,0,null,null,null,null,null,null,100,0,0,0,0,"-","-","-",0,0,"-","-"]
[474,null,null,null,null,null,null,null,null,0,0,null,0,null,null,null,null,null,null,100,0,0,0,0,"-","-","-",0,0,"-","-"]
[475,null,null,null,null,null,null,null,null,0,0,null,0,null,null,null,null,null,null,100,0,0,0,0,"-","-","-",0,0,"-","-"]
[476,null,null,null,null,null,null,null,null,0,0,null,0,null,null,null,null,null,null,100,0,0,0,0,"-","-","-",0,0,"-","-"]
[477,null,null,null,null,null,null,null,null,0,0,null,0,null,null,null,null,null,null,100,0,0,0,0,"-","-","-",0,0,"-","-"]
[478,null,null,null,null,null,null,null,null,0,0,null,0,null,null,null,null,null,null,100,0,0,0,0,"-","-","-",0,0,"-","-"]
[479,null,null,null,null,null,null,null,null,0,0,null,0,null,null,null,null,null,null,100,0,0,0,0,"-","-","-",0,0,"-","-"]
[480,null,null,null,null,null,null,null,null,0,0,null,0,null,null,null,null,null,null,100,0,0,0,0,"-","-","-",0,0,"-","-"]
[481,null,null,null,null,null,null,null,null,0,0,null,0,null,null,null,null,null,null,100,0,0,0,0,"-","-","-",0,0,"-","-"]
[482,null,null,null,null,null,null,null,null,0,0,null,0,null,null,null,null,null,null,100,0,0,0,0,"-","-","-",0,0,"-","-"]
[483,null,null,null,null,null,null,null,null,0,0,null,0,null,null,null,null,null,null,100,0,0,0,0,"-","-","-",0,0,"-","-"]
[484,null,null,null,null,null,null,null,null,0,0,null,0,null,null,null,null,null,null,100,0,0,0,0,"-","-","-",0,0,"-","-"]
[485,null,null,null,null,null,null,null,null,0,0,null,0,null,null,null,null,null,null,100,0,0,0,0,"-","-","-",0,0,"-","-"]
[486,null,null,null,null,null,null,null,null,0,0,null,0,null,null,null,null,null,null,100,0,0,0,0,"-","-","-",0,0,"-","-"]
[487,null,null,null,null,null,null,null,null,0,0,null,0,null,null,null,null,null,null,100,0,0,0,0,"-","-","-",0,0,"-","-"]
[488,null,null,null,null,null,null,null,null,0,0,null,0,null,null,null,null,null,null,100,0,0,0,0,"-","-","-",0,0,"-","-"]
[489,null,null,null,null,null,null,null,null,0,0,null,0,null,null,null,null,null,null,100,0,0,0,0,"-","-","-",0,0,"-","-"]
[490,null,null,null,null,null,null,null,null,0,0,null,0,null,null,null,null,null,null,100,0,0,0,0,"-","-","-",0,0,"-","-"]
[491,null,null,null,null,null,null,null,null,0,0,null,0,null,null,null,null,null,null,100,0,0,0,0,"-","-","-",0,0,"-","-"]
[492,null,null,null,null,null,null,null,null,0,0,null,0,null,null,null,null,null,null,100,0,0,0,0,"-","-","-",0,0,"-","-"]
[493,null,null,null,null,null,null,null,null,0,0,null,0,null,null,null,null,null,null,100,0,0,0,0,"-","-","-",0,0,"-","-"]
[494,null,null,null,null,null,null,null,null,0,0,null,0,null,null,null,null,null,null,100,0,0,0,0,"-","-","-",0,0,"-","-"]
[495,null,null,null,null,null,null,null,null,0,0,null,0,null,null,null,null,null,null,100,0,0,0,0,"-","-","-",0,0,"-","-"]
[496,null,null,null,null,null,null,null,null,0,0,null,0,null,null,null,null,null,null,100,0,0,0,0,"-","-","-",0,0,"-","-"]
[497,null,null,null,null,null,null,null,null,0,0,null,0,null,null,null,null,null,null,100,0,0,0,0,"-","-","-",0,0,"-","-"]
[498,null,null,null,null,null,null,null,null,0,0,null,0,null,null,null,null,null,null,100,0,0,0,0,"-","-","-",0,0,"-","-"]
[499,null,null,null,null,null,null,null,null,0,0,null,0,null,null,null,null,null,null,100,0,0,0,0,"-","-","-",0,0,"-","-"]
[500,null,null,null,null,null,null,null,null,0,0,null,0,null,null,null,null,null,null,100,0,0,0,0,"-","-","-",0,0,"-","-"]

{"sheet":"Afdrukversie bedienden","index":1,"n_rows":41,"n_cols":13,"rows_kept":41,"cut":false,"hidden":false,"merged":[[24,2,24,3],[22,2,22,3],[25,9,26,13],[13,2,13,3],[14,2,14,3],[16,11,17,11],[14,9,15,13],[20,9,21,13],[20,2,20,4],[16,2,16,4],[17,2,17,3],[18,2,18,3],[5,2,5,4],[11,2,11,4],[7,2,7,4],[12,2,12,3],[9,2,9,3],[8,2,8,3]],"read":"row_number_cap"}
[]
[]
[]
[]
[]
[null,null,"Opzeggingstermijn op basis van anciënniteit verworven op 31/12/2013"]
[]
[null,null,"Persoonsgegevens"]
[null,null,"Naam van de werknemer",null,{"$f":"Invulblad_bedienden!AD4","v":"Jan Jansens"}]
[null,null,"Personeelsnummer",null,{"$f":"Invulblad_bedienden!AE4","v":6510}]
[]
[null,null,"Loongegevens op 31/12/2013"]
[null,null,"Bruto maandloon (*)",null,{"$f":"Invulblad_bedienden!AC4","v":1900}]
[null,null,"Bruto jaarloon (op voltijdse basis)",null,{"$f":"Invulblad_bedienden!V4","v":35576.71}]
[null,null,"Toepasselijke opzeggingsregels",null,{"$f":"Invulblad_bedienden!W4","v":"32.254 EUR < jaarloon <= 64.508 EUR"},null,null,null,null,"Huidige pagina printen"]
[]
[null,null,"Anciënniteit verworven op 31/12/2013",null,null,null,null,null,null,null,null,1]
[null,null,"Datum indiensttreding",null,{"$f":"Invulblad_bedienden!E4","v":"2003-09-01"}]
[null,null,"Verworven anciënniteit",null,{"$f":"Invulblad_bedienden!Y4","v":10.333333333333334}]
[]
[null,null,"Opzeg volgens de oude ontslagregels op 31/12/2013",null,null,null,null,null,null,"Meerdere pagina's printen"]
[null,null,"Ontslag door werkgever (in maanden)",null,{"$f":"Invulblad_bedienden!Z4","v":11}]
[null,null,"Ontslagname door de werknemer (in maanden)",null,{"$f":"Invulblad_bedienden!AA4","v":4.5},null,null,null,null,"De",1,"à",500]
[]
[]
[null,null,null,null,null,null,null,null,null,"Alle pagina's printen"]
[]
[]
[]
[]
[]
[]
[]
[]
[]
[]
[]
[]
[]
[]
[null,null,"(*) Overeenkomstig tewerkstellingsbreuk op 31/12/2013:",null,{"$f":"Invulblad_bedienden!AB4","v":1}]

{"sheet":"Invulblad_arbeiders","index":2,"n_rows":1004,"n_cols":18,"rows_kept":1004,"cut":false,"hidden":false,"merged":[[2,1,2,2],[2,3,2,4],[0,7,2,10],[0,11,2,17],[1,1,1,4]]}
[null,null,null,null,null,null,null,"In te vullen velden",null,null,null,"Automatisch berekende velden"]
[null,"Opzeggingstermijnen van toepassing op 31/12/2013"]
[null,"ANCIËNNITEIT TUSSEN X en Y (in jaren)",null,"OPZEGTERMIJNEN (in dagen)"]
[null,"X","Y","OPZEG DOOR DE WERKGEVER","OPZEG DOOR DE WERKNEMER",null,"NR","VOORNAAM","NAAM","PERSONEELS-NUMMER","DATUM INDIENSTTREDING","ANCIËNNITEIT TOT 31/12/2013","OPZEG TOT 31/12/2013 - ontslag door werkgever\n(in dagen)","OPZEG TOT 31/12/2013 - ontslag door werkgever\n(in weken)","OPZEG TOT 31/12/2013 - ontslagname door werknemer\n(in dagen)","OPZEG TOT 31/12/2013 - ontslagname door werknemer\n(in weken)","NAAM BEDIENDE (printversie)","PERSONEELS-NUMMER (printversie)"]
[null,0,{"$f":"IF(B6<>\"\",B6-0.0001,\"onbeperkt\")","v":0.49990000000000001},28,14,null,1,"Jan","Jansens",6510,"1999-01-01",{"$f":"IF(OR(H5<>\"\",J5<>\"\"),(DATEDIF(K5-1,DATE(2013,12,31),\"y\"))+(DATEDIF(K5-1,DATE(2013,12,31),\"ym\")/12)+(DATEDIF(K5-1,DATE(2013,12,31),\"md\")/365.25),\"-\")","v":15},{"$f":"IFERROR(INDEX(OpzegArbeiders[OPZEG DOOR DE WERKGEVER],MATCH(L5,OpzegArbeiders[X],1),1),\"-\")","v":84},{"$f":"IFERROR(M5/7,\"-\")","v":12},{"$f":"IFERROR(INDEX(OpzegArbeiders[OPZEG DOOR DE WERKNEMER],MATCH(L5,OpzegArbeiders[X],1),1),\"-\")","v":14},{"$f":"IFERROR(O5/7,\"-\")","v":2},{"$f":"IF(OR(ISTEXT(H5),ISTEXT(I5)),H5&\" \"&I5,\"-\")","v":"Jan Jansens"},{"$f":"IF(ISBLANK(J5),\"-\",J5)","v":6510}]
[null,0.5,4.9999000000000002,35,14,null,2,"Frederik","Geens",6512,"2001-01-01",{"$f":"IF(OR(H6<>\"\",J6<>\"\"),(DATEDIF(K6-1,DATE(2013,12,31),\"y\"))+(DATEDIF(K6-1,DATE(2013,12,31),\"ym\")/12)+(DATEDIF(K6-1,DATE(2013,12,31),\"md\")/365.25),\"-\")","v":13},{"$f":"IFERROR(INDEX(OpzegArbeiders[OPZEG DOOR DE WERKGEVER],MATCH(L6,OpzegArbeiders[X],1),1),\"-\")","v":56},{"$f":"IFERROR(M6/7,\"-\")","v":8},{"$f":"IFERROR(INDEX(OpzegArbeiders[OPZEG DOOR DE WERKNEMER],MATCH(L6,OpzegArbeiders[X],1),1),\"-\")","v":14},{"$f":"IFERROR(O6/7,\"-\")","v":2},{"$f":"IF(OR(ISTEXT(H6),ISTEXT(I6)),H6&\" \"&I6,\"-\")","v":"Frederik Geens"},{"$f":"IF(ISBLANK(J6),\"-\",J6)","v":6512}]
[null,5,9.9999000000000002,42,14,null,3,null,null,null,null,"-",{"$f":"IFERROR(INDEX(OpzegArbeiders[OPZEG DOOR DE WERKGEVER],MATCH(L7,OpzegArbeiders[X],1),1),\"-\")","v":"-"},"-",{"$f":"IFERROR(INDEX(OpzegArbeiders[OPZEG DOOR DE WERKNEMER],MATCH(L7,OpzegArbeiders[X],1),1),\"-\")","v":"-"},"-","-","-"]
[null,10,14.9999,56,14,null,4,null,null,null,null,"-",{"$f":"IFERROR(INDEX(OpzegArbeiders[OPZEG DOOR DE WERKGEVER],MATCH(L8,OpzegArbeiders[X],1),1),\"-\")","v":"-"},"-",{"$f":"IFERROR(INDEX(OpzegArbeiders[OPZEG DOOR DE WERKNEMER],MATCH(L8,OpzegArbeiders[X],1),1),\"-\")","v":"-"},"-","-","-"]
[null,15,19.9999,84,14,null,5,null,null,null,null,"-",{"$f":"IFERROR(INDEX(OpzegArbeiders[OPZEG DOOR DE WERKGEVER],MATCH(L9,OpzegArbeiders[X],1),1),\"-\")","v":"-"},"-",{"$f":"IFERROR(INDEX(OpzegArbeiders[OPZEG DOOR DE WERKNEMER],MATCH(L9,OpzegArbeiders[X],1),1),\"-\")","v":"-"},"-","-","-"]
[null,20,"onbeperkt",112,28,null,6,null,null,null,null,"-",{"$f":"IFERROR(INDEX(OpzegArbeiders[OPZEG DOOR DE WERKGEVER],MATCH(L10,OpzegArbeiders[X],1),1),\"-\")","v":"-"},"-",{"$f":"IFERROR(INDEX(OpzegArbeiders[OPZEG DOOR DE WERKNEMER],MATCH(L10,OpzegArbeiders[X],1),1),\"-\")","v":"-"},"-","-","-"]
[null,null,"onbeperkt",null,null,null,7,null,null,null,null,"-",{"$f":"IFERROR(INDEX(OpzegArbeiders[OPZEG DOOR DE WERKGEVER],MATCH(L11,OpzegArbeiders[X],1),1),\"-\")","v":"-"},"-",{"$f":"IFERROR(INDEX(OpzegArbeiders[OPZEG DOOR DE WERKNEMER],MATCH(L11,OpzegArbeiders[X],1),1),\"-\")","v":"-"},"-","-","-"]
[null,null,"onbeperkt",null,null,null,8,null,null,null,null,"-",{"$f":"IFERROR(INDEX(OpzegArbeiders[OPZEG DOOR DE WERKGEVER],MATCH(L12,OpzegArbeiders[X],1),1),\"-\")","v":"-"},"-",{"$f":"IFERROR(INDEX(OpzegArbeiders[OPZEG DOOR DE WERKNEMER],MATCH(L12,OpzegArbeiders[X],1),1),\"-\")","v":"-"},"-","-","-"]
[null,null,"onbeperkt",null,null,null,9,null,null,null,null,"-",{"$f":"IFERROR(INDEX(OpzegArbeiders[OPZEG DOOR DE WERKGEVER],MATCH(L13,OpzegArbeiders[X],1),1),\"-\")","v":"-"},"-",{"$f":"IFERROR(INDEX(OpzegArbeiders[OPZEG DOOR DE WERKNEMER],MATCH(L13,OpzegArbeiders[X],1),1),\"-\")","v":"-"},"-","-","-"]
[null,null,"onbeperkt",null,null,null,10,null,null,null,null,"-",{"$f":"IFERROR(INDEX(OpzegArbeiders[OPZEG DOOR DE WERKGEVER],MATCH(L14,OpzegArbeiders[X],1),1),\"-\")","v":"-"},"-",{"$f":"IFERROR(INDEX(OpzegArbeiders[OPZEG DOOR DE WERKNEMER],MATCH(L14,OpzegArbeiders[X],1),1),\"-\")","v":"-"},"-","-","-"]
[null,null,"onbeperkt",null,null,null,11,null,null,null,null,"-",{"$f":"IFERROR(INDEX(OpzegArbeiders[OPZEG DOOR DE WERKGEVER],MATCH(L15,OpzegArbeiders[X],1),1),\"-\")","v":"-"},"-",{"$f":"IFERROR(INDEX(OpzegArbeiders[OPZEG DOOR DE WERKNEMER],MATCH(L15,OpzegArbeiders[X],1),1),\"-\")","v":"-"},"-","-","-"]
[null,null,"onbeperkt",null,null,null,12,null,null,null,null,"-",{"$f":"IFERROR(INDEX(OpzegArbeiders[OPZEG DOOR DE WERKGEVER],MATCH(L16,OpzegArbeiders[X],1),1),\"-\")","v":"-"},"-",{"$f":"IFERROR(INDEX(OpzegArbeiders[OPZEG DOOR DE WERKNEMER],MATCH(L16,OpzegArbeiders[X],1),1),\"-\")","v":"-"},"-","-","-"]
[null,null,"onbeperkt",null,null,null,13,null,null,null,null,"-",{"$f":"IFERROR(INDEX(OpzegArbeiders[OPZEG DOOR DE WERKGEVER],MATCH(L17,OpzegArbeiders[X],1),1),\"-\")","v":"-"},"-",{"$f":"IFERROR(INDEX(OpzegArbeiders[OPZEG DOOR DE WERKNEMER],MATCH(L17,OpzegArbeiders[X],1),1),\"-\")","v":"-"},"-","-","-"]
[null,null,"onbeperkt",null,null,null,14,null,null,null,null,"-",{"$f":"IFERROR(INDEX(OpzegArbeiders[OPZEG DOOR DE WERKGEVER],MATCH(L18,OpzegArbeiders[X],1),1),\"-\")","v":"-"},"-",{"$f":"IFERROR(INDEX(OpzegArbeiders[OPZEG DOOR DE WERKNEMER],MATCH(L18,OpzegArbeiders[X],1),1),\"-\")","v":"-"},"-","-","-"]
[null,null,"onbeperkt",null,null,null,15,null,null,null,null,"-",{"$f":"IFERROR(INDEX(OpzegArbeiders[OPZEG DOOR DE WERKGEVER],MATCH(L19,OpzegArbeiders[X],1),1),\"-\")","v":"-"},"-",{"$f":"IFERROR(INDEX(OpzegArbeiders[OPZEG DOOR DE WERKNEMER],MATCH(L19,OpzegArbeiders[X],1),1),\"-\")","v":"-"},"-","-","-"]
[null,null,null,null,null,null,16,null,null,null,null,"-",{"$f":"IFERROR(INDEX(OpzegArbeiders[OPZEG DOOR DE WERKGEVER],MATCH(L20,OpzegArbeiders[X],1),1),\"-\")","v":"-"},"-",{"$f":"IFERROR(INDEX(OpzegArbeiders[OPZEG DOOR DE WERKNEMER],MATCH(L20,OpzegArbeiders[X],1),1),\"-\")","v":"-"},"-","-","-"]
[null,null,null,null,null,null,17,null,null,null,null,"-",{"$f":"IFERROR(INDEX(OpzegArbeiders[OPZEG DOOR DE WERKGEVER],MATCH(L21,OpzegArbeiders[X],1),1),\"-\")","v":"-"},"-",{"$f":"IFERROR(INDEX(OpzegArbeiders[OPZEG DOOR DE WERKNEMER],MATCH(L21,OpzegArbeiders[X],1),1),\"-\")","v":"-"},"-","-","-"]
[null,null,null,null,null,null,18,null,null,null,null,"-",{"$f":"IFERROR(INDEX(OpzegArbeiders[OPZEG DOOR DE WERKGEVER],MATCH(L22,OpzegArbeiders[X],1),1),\"-\")","v":"-"},"-",{"$f":"IFERROR(INDEX(OpzegArbeiders[OPZEG DOOR DE WERKNEMER],MATCH(L22,OpzegArbeiders[X],1),1),\"-\")","v":"-"},"-","-","-"]
[null,null,null,null,null,null,19,null,null,null,null,"-",{"$f":"IFERROR(INDEX(OpzegArbeiders[OPZEG DOOR DE WERKGEVER],MATCH(L23,OpzegArbeiders[X],1),1),\"-\")","v":"-"},"-",{"$f":"IFERROR(INDEX(OpzegArbeiders[OPZEG DOOR DE WERKNEMER],MATCH(L23,OpzegArbeiders[X],1),1),\"-\")","v":"-"},"-","-","-"]
[null,null,null,null,null,null,20,null,null,null,null,"-",{"$f":"IFERROR(INDEX(OpzegArbeiders[OPZEG DOOR DE WERKGEVER],MATCH(L24,OpzegArbeiders[X],1),1),\"-\")","v":"-"},"-",{"$f":"IFERROR(INDEX(OpzegArbeiders[OPZEG DOOR DE WERKNEMER],MATCH(L24,OpzegArbeiders[X],1),1),\"-\")","v":"-"},"-","-","-"]
[null,null,null,null,null,null,21,null,null,null,null,"-",{"$f":"IFERROR(INDEX(OpzegArbeiders[OPZEG DOOR DE WERKGEVER],MATCH(L25,OpzegArbeiders[X],1),1),\"-\")","v":"-"},"-",{"$f":"IFERROR(INDEX(OpzegArbeiders[OPZEG DOOR DE WERKNEMER],MATCH(L25,OpzegArbeiders[X],1),1),\"-\")","v":"-"},"-","-","-"]
[null,null,null,null,null,null,22,null,null,null,null,"-",{"$f":"IFERROR(INDEX(OpzegArbeiders[OPZEG DOOR DE WERKGEVER],MATCH(L26,OpzegArbeiders[X],1),1),\"-\")","v":"-"},"-",{"$f":"IFERROR(INDEX(OpzegArbeiders[OPZEG DOOR DE WERKNEMER],MATCH(L26,OpzegArbeiders[X],1),1),\"-\")","v":"-"},"-","-","-"]
[null,null,null,null,null,null,23,null,null,null,null,"-",{"$f":"IFERROR(INDEX(OpzegArbeiders[OPZEG DOOR DE WERKGEVER],MATCH(L27,OpzegArbeiders[X],1),1),\"-\")","v":"-"},"-",{"$f":"IFERROR(INDEX(OpzegArbeiders[OPZEG DOOR DE WERKNEMER],MATCH(L27,OpzegArbeiders[X],1),1),\"-\")","v":"-"},"-","-","-"]
[null,null,null,null,null,null,24,null,null,null,null,"-",{"$f":"IFERROR(INDEX(OpzegArbeiders[OPZEG DOOR DE WERKGEVER],MATCH(L28,OpzegArbeiders[X],1),1),\"-\")","v":"-"},"-",{"$f":"IFERROR(INDEX(OpzegArbeiders[OPZEG DOOR DE WERKNEMER],MATCH(L28,OpzegArbeiders[X],1),1),\"-\")","v":"-"},"-","-","-"]
[null,null,null,null,null,null,25,null,null,null,null,"-",{"$f":"IFERROR(INDEX(OpzegArbeiders[OPZEG DOOR DE WERKGEVER],MATCH(L29,OpzegArbeiders[X],1),1),\"-\")","v":"-"},"-",{"$f":"IFERROR(INDEX(OpzegArbeiders[OPZEG DOOR DE WERKNEMER],MATCH(L29,OpzegArbeiders[X],1),1),\"-\")","v":"-"},"-","-","-"]
[null,null,null,null,null,null,26,null,null,null,null,"-",{"$f":"IFERROR(INDEX(OpzegArbeiders[OPZEG DOOR DE WERKGEVER],MATCH(L30,OpzegArbeiders[X],1),1),\"-\")","v":"-"},"-",{"$f":"IFERROR(INDEX(OpzegArbeiders[OPZEG DOOR DE WERKNEMER],MATCH(L30,OpzegArbeiders[X],1),1),\"-\")","v":"-"},"-","-","-"]
[null,null,null,null,null,null,27,null,null,null,null,"-",{"$f":"IFERROR(INDEX(OpzegArbeiders[OPZEG DOOR DE WERKGEVER],MATCH(L31,OpzegArbeiders[X],1),1),\"-\")","v":"-"},"-",{"$f":"IFERROR(INDEX(OpzegArbeiders[OPZEG DOOR DE WERKNEMER],MATCH(L31,OpzegArbeiders[X],1),1),\"-\")","v":"-"},"-","-","-"]
[null,null,null,null,null,null,28,null,null,null,null,"-",{"$f":"IFERROR(INDEX(OpzegArbeiders[OPZEG DOOR DE WERKGEVER],MATCH(L32,OpzegArbeiders[X],1),1),\"-\")","v":"-"},"-",{"$f":"IFERROR(INDEX(OpzegArbeiders[OPZEG DOOR DE WERKNEMER],MATCH(L32,OpzegArbeiders[X],1),1),\"-\")","v":"-"},"-","-","-"]
[null,null,null,null,null,null,29,null,null,null,null,"-",{"$f":"IFERROR(INDEX(OpzegArbeiders[OPZEG DOOR DE WERKGEVER],MATCH(L33,OpzegArbeiders[X],1),1),\"-\")","v":"-"},"-",{"$f":"IFERROR(INDEX(OpzegArbeiders[OPZEG DOOR DE WERKNEMER],MATCH(L33,OpzegArbeiders[X],1),1),\"-\")","v":"-"},"-","-","-"]
[null,null,null,null,null,null,30,null,null,null,null,"-",{"$f":"IFERROR(INDEX(OpzegArbeiders[OPZEG DOOR DE WERKGEVER],MATCH(L34,OpzegArbeiders[X],1),1),\"-\")","v":"-"},"-",{"$f":"IFERROR(INDEX(OpzegArbeiders[OPZEG DOOR DE WERKNEMER],MATCH(L34,OpzegArbeiders[X],1),1),\"-\")","v":"-"},"-","-","-"]
[null,null,null,null,null,null,31,null,null,null,null,"-",{"$f":"IFERROR(INDEX(OpzegArbeiders[OPZEG DOOR DE WERKGEVER],MATCH(L35,OpzegArbeiders[X],1),1),\"-\")","v":"-"},"-",{"$f":"IFERROR(INDEX(OpzegArbeiders[OPZEG DOOR DE WERKNEMER],MATCH(L35,OpzegArbeiders[X],1),1),\"-\")","v":"-"},"-","-","-"]
[null,null,null,null,null,null,32,null,null,null,null,"-",{"$f":"IFERROR(INDEX(OpzegArbeiders[OPZEG DOOR DE WERKGEVER],MATCH(L36,OpzegArbeiders[X],1),1),\"-\")","v":"-"},"-",{"$f":"IFERROR(INDEX(OpzegArbeiders[OPZEG DOOR DE WERKNEMER],MATCH(L36,OpzegArbeiders[X],1),1),\"-\")","v":"-"},"-","-","-"]
[null,null,null,null,null,null,33,null,null,null,null,"-",{"$f":"IFERROR(INDEX(OpzegArbeiders[OPZEG DOOR DE WERKGEVER],MATCH(L37,OpzegArbeiders[X],1),1),\"-\")","v":"-"},"-",{"$f":"IFERROR(INDEX(OpzegArbeiders[OPZEG DOOR DE WERKNEMER],MATCH(L37,OpzegArbeiders[X],1),1),\"-\")","v":"-"},"-","-","-"]
[null,null,null,null,null,null,34,null,null,null,null,"-",{"$f":"IFERROR(INDEX(OpzegArbeiders[OPZEG DOOR DE WERKGEVER],MATCH(L38,OpzegArbeiders[X],1),1),\"-\")","v":"-"},"-",{"$f":"IFERROR(INDEX(OpzegArbeiders[OPZEG DOOR DE WERKNEMER],MATCH(L38,OpzegArbeiders[X],1),1),\"-\")","v":"-"},"-","-","-"]
[null,null,null,null,null,null,35,null,null,null,null,"-",{"$f":"IFERROR(INDEX(OpzegArbeiders[OPZEG DOOR DE WERKGEVER],MATCH(L39,OpzegArbeiders[X],1),1),\"-\")","v":"-"},"-",{"$f":"IFERROR(INDEX(OpzegArbeiders[OPZEG DOOR DE WERKNEMER],MATCH(L39,OpzegArbeiders[X],1),1),\"-\")","v":"-"},"-","-","-"]
[null,null,null,null,null,null,36,null,null,null,null,"-",{"$f":"IFERROR(INDEX(OpzegArbeiders[OPZEG DOOR DE WERKGEVER],MATCH(L40,OpzegArbeiders[X],1),1),\"-\")","v":"-"},"-",{"$f":"IFERROR(INDEX(OpzegArbeiders[OPZEG DOOR DE WERKNEMER],MATCH(L40,OpzegArbeiders[X],1),1),\"-\")","v":"-"},"-","-","-"]
[null,null,null,null,null,null,37,null,null,null,null,"-",{"$f":"IFERROR(INDEX(OpzegArbeiders[OPZEG DOOR DE WERKGEVER],MATCH(L41,OpzegArbeiders[X],1),1),\"-\")","v":"-"},"-",{"$f":"IFERROR(INDEX(OpzegArbeiders[OPZEG DOOR DE WERKNEMER],MATCH(L41,OpzegArbeiders[X],1),1),\"-\")","v":"-"},"-","-","-"]
[null,null,null,null,null,null,38,null,null,null,null,"-",{"$f":"IFERROR(INDEX(OpzegArbeiders[OPZEG DOOR DE WERKGEVER],MATCH(L42,OpzegArbeiders[X],1),1),\"-\")","v":"-"},"-",{"$f":"IFERROR(INDEX(OpzegArbeiders[OPZEG DOOR DE WERKNEMER],MATCH(L42,OpzegArbeiders[X],1),1),\"-\")","v":"-"},"-","-","-"]
[null,null,null,null,null,null,39,null,null,null,null,"-",{"$f":"IFERROR(INDEX(OpzegArbeiders[OPZEG DOOR DE WERKGEVER],MATCH(L43,OpzegArbeiders[X],1),1),\"-\")","v":"-"},"-",{"$f":"IFERROR(INDEX(OpzegArbeiders[OPZEG DOOR DE WERKNEMER],MATCH(L43,OpzegArbeiders[X],1),1),\"-\")","v":"-"},"-","-","-"]
[null,null,null,null,null,null,40,null,null,null,null,"-",{"$f":"IFERROR(INDEX(OpzegArbeiders[OPZEG DOOR DE WERKGEVER],MATCH(L44,OpzegArbeiders[X],1),1),\"-\")","v":"-"},"-",{"$f":"IFERROR(INDEX(OpzegArbeiders[OPZEG DOOR DE WERKNEMER],MATCH(L44,OpzegArbeiders[X],1),1),\"-\")","v":"-"},"-","-","-"]
[null,null,null,null,null,null,41,null,null,null,null,"-",{"$f":"IFERROR(INDEX(OpzegArbeiders[OPZEG DOOR DE WERKGEVER],MATCH(L45,OpzegArbeiders[X],1),1),\"-\")","v":"-"},"-",{"$f":"IFERROR(INDEX(OpzegArbeiders[OPZEG DOOR DE WERKNEMER],MATCH(L45,OpzegArbeiders[X],1),1),\"-\")","v":"-"},"-","-","-"]
[null,null,null,null,null,null,42,null,null,null,null,"-",{"$f":"IFERROR(INDEX(OpzegArbeiders[OPZEG DOOR DE WERKGEVER],MATCH(L46,OpzegArbeiders[X],1),1),\"-\")","v":"-"},"-",{"$f":"IFERROR(INDEX(OpzegArbeiders[OPZEG DOOR DE WERKNEMER],MATCH(L46,OpzegArbeiders[X],1),1),\"-\")","v":"-"},"-","-","-"]
[null,null,null,null,null,null,43,null,null,null,null,"-",{"$f":"IFERROR(INDEX(OpzegArbeiders[OPZEG DOOR DE WERKGEVER],MATCH(L47,OpzegArbeiders[X],1),1),\"-\")","v":"-"},"-",{"$f":"IFERROR(INDEX(OpzegArbeiders[OPZEG DOOR DE WERKNEMER],MATCH(L47,OpzegArbeiders[X],1),1),\"-\")","v":"-"},"-","-","-"]
[null,null,null,null,null,null,44,null,null,null,null,"-",{"$f":"IFERROR(INDEX(OpzegArbeiders[OPZEG DOOR DE WERKGEVER],MATCH(L48,OpzegArbeiders[X],1),1),\"-\")","v":"-"},"-",{"$f":"IFERROR(INDEX(OpzegArbeiders[OPZEG DOOR DE WERKNEMER],MATCH(L48,OpzegArbeiders[X],1),1),\"-\")","v":"-"},"-","-","-"]
[null,null,null,null,null,null,45,null,null,null,null,"-",{"$f":"IFERROR(INDEX(OpzegArbeiders[OPZEG DOOR DE WERKGEVER],MATCH(L49,OpzegArbeiders[X],1),1),\"-\")","v":"-"},"-",{"$f":"IFERROR(INDEX(OpzegArbeiders[OPZEG DOOR DE WERKNEMER],MATCH(L49,OpzegArbeiders[X],1),1),\"-\")","v":"-"},"-","-","-"]
[null,null,null,null,null,null,46,null,null,null,null,"-",{"$f":"IFERROR(INDEX(OpzegArbeiders[OPZEG DOOR DE WERKGEVER],MATCH(L50,OpzegArbeiders[X],1),1),\"-\")","v":"-"},"-",{"$f":"IFERROR(INDEX(OpzegArbeiders[OPZEG DOOR DE WERKNEMER],MATCH(L50,OpzegArbeiders[X],1),1),\"-\")","v":"-"},"-","-","-"]
[null,null,null,null,null,null,47,null,null,null,null,"-",{"$f":"IFERROR(INDEX(OpzegArbeiders[OPZEG DOOR DE WERKGEVER],MATCH(L51,OpzegArbeiders[X],1),1),\"-\")","v":"-"},"-",{"$f":"IFERROR(INDEX(OpzegArbeiders[OPZEG DOOR DE WERKNEMER],MATCH(L51,OpzegArbeiders[X],1),1),\"-\")","v":"-"},"-","-","-"]
[null,null,null,null,null,null,48,null,null,null,null,"-",{"$f":"IFERROR(INDEX(OpzegArbeiders[OPZEG DOOR DE WERKGEVER],MATCH(L52,OpzegArbeiders[X],1),1),\"-\")","v":"-"},"-",{"$f":"IFERROR(INDEX(OpzegArbeiders[OPZEG DOOR DE WERKNEMER],MATCH(L52,OpzegArbeiders[X],1),1),\"-\")","v":"-"},"-","-","-"]
[null,null,null,null,null,null,49,null,null,null,null,"-",{"$f":"IFERROR(INDEX(OpzegArbeiders[OPZEG DOOR DE WERKGEVER],MATCH(L53,OpzegArbeiders[X],1),1),\"-\")","v":"-"},"-",{"$f":"IFERROR(INDEX(OpzegArbeiders[OPZEG DOOR DE WERKNEMER],MATCH(L53,OpzegArbeiders[X],1),1),\"-\")","v":"-"},"-","-","-"]
[null,null,null,null,null,null,50,null,null,null,null,"-",{"$f":"IFERROR(INDEX(OpzegArbeiders[OPZEG DOOR DE WERKGEVER],MATCH(L54,OpzegArbeiders[X],1),1),\"-\")","v":"-"},"-",{"$f":"IFERROR(INDEX(OpzegArbeiders[OPZEG DOOR DE WERKNEMER],MATCH(L54,OpzegArbeiders[X],1),1),\"-\")","v":"-"},"-","-","-"]
[null,null,null,null,null,null,51,null,null,null,null,"-",{"$f":"IFERROR(INDEX(OpzegArbeiders[OPZEG DOOR DE WERKGEVER],MATCH(L55,OpzegArbeiders[X],1),1),\"-\")","v":"-"},"-",{"$f":"IFERROR(INDEX(OpzegArbeiders[OPZEG DOOR DE WERKNEMER],MATCH(L55,OpzegArbeiders[X],1),1),\"-\")","v":"-"},"-","-","-"]
[null,null,null,null,null,null,52,null,null,null,null,"-",{"$f":"IFERROR(INDEX(OpzegArbeiders[OPZEG DOOR DE WERKGEVER],MATCH(L56,OpzegArbeiders[X],1),1),\"-\")","v":"-"},"-",{"$f":"IFERROR(INDEX(OpzegArbeiders[OPZEG DOOR DE WERKNEMER],MATCH(L56,OpzegArbeiders[X],1),1),\"-\")","v":"-"},"-","-","-"]
[null,null,null,null,null,null,53,null,null,null,null,"-",{"$f":"IFERROR(INDEX(OpzegArbeiders[OPZEG DOOR DE WERKGEVER],MATCH(L57,OpzegArbeiders[X],1),1),\"-\")","v":"-"},"-",{"$f":"IFERROR(INDEX(OpzegArbeiders[OPZEG DOOR DE WERKNEMER],MATCH(L57,OpzegArbeiders[X],1),1),\"-\")","v":"-"},"-","-","-"]
[null,null,null,null,null,null,54,null,null,null,null,"-",{"$f":"IFERROR(INDEX(OpzegArbeiders[OPZEG DOOR DE WERKGEVER],MATCH(L58,OpzegArbeiders[X],1),1),\"-\")","v":"-"},"-",{"$f":"IFERROR(INDEX(OpzegArbeiders[OPZEG DOOR DE WERKNEMER],MATCH(L58,OpzegArbeiders[X],1),1),\"-\")","v":"-"},"-","-","-"]
[null,null,null,null,null,null,55,null,null,null,null,"-",{"$f":"IFERROR(INDEX(OpzegArbeiders[OPZEG DOOR DE WERKGEVER],MATCH(L59,OpzegArbeiders[X],1),1),\"-\")","v":"-"},"-",{"$f":"IFERROR(INDEX(OpzegArbeiders[OPZEG DOOR DE WERKNEMER],MATCH(L59,OpzegArbeiders[X],1),1),\"-\")","v":"-"},"-","-","-"]
[null,null,null,null,null,null,56,null,null,null,null,"-",{"$f":"IFERROR(INDEX(OpzegArbeiders[OPZEG DOOR DE WERKGEVER],MATCH(L60,OpzegArbeiders[X],1),1),\"-\")","v":"-"},"-",{"$f":"IFERROR(INDEX(OpzegArbeiders[OPZEG DOOR DE WERKNEMER],MATCH(L60,OpzegArbeiders[X],1),1),\"-\")","v":"-"},"-","-","-"]
[null,null,null,null,null,null,57,null,null,null,null,"-",{"$f":"IFERROR(INDEX(OpzegArbeiders[OPZEG DOOR DE WERKGEVER],MATCH(L61,OpzegArbeiders[X],1),1),\"-\")","v":"-"},"-",{"$f":"IFERROR(INDEX(OpzegArbeiders[OPZEG DOOR DE WERKNEMER],MATCH(L61,OpzegArbeiders[X],1),1),\"-\")","v":"-"},"-","-","-"]
[null,null,null,null,null,null,58,null,null,null,null,"-",{"$f":"IFERROR(INDEX(OpzegArbeiders[OPZEG DOOR DE WERKGEVER],MATCH(L62,OpzegArbeiders[X],1),1),\"-\")","v":"-"},"-",{"$f":"IFERROR(INDEX(OpzegArbeiders[OPZEG DOOR DE WERKNEMER],MATCH(L62,OpzegArbeiders[X],1),1),\"-\")","v":"-"},"-","-","-"]
[null,null,null,null,null,null,59,null,null,null,null,"-",{"$f":"IFERROR(INDEX(OpzegArbeiders[OPZEG DOOR DE WERKGEVER],MATCH(L63,OpzegArbeiders[X],1),1),\"-\")","v":"-"},"-",{"$f":"IFERROR(INDEX(OpzegArbeiders[OPZEG DOOR DE WERKNEMER],MATCH(L63,OpzegArbeiders[X],1),1),\"-\")","v":"-"},"-","-","-"]
[null,null,null,null,null,null,60,null,null,null,null,"-",{"$f":"IFERROR(INDEX(OpzegArbeiders[OPZEG DOOR DE WERKGEVER],MATCH(L64,OpzegArbeiders[X],1),1),\"-\")","v":"-"},"-",{"$f":"IFERROR(INDEX(OpzegArbeiders[OPZEG DOOR DE WERKNEMER],MATCH(L64,OpzegArbeiders[X],1),1),\"-\")","v":"-"},"-","-","-"]
[null,null,null,null,null,null,61,null,null,null,null,"-",{"$f":"IFERROR(INDEX(OpzegArbeiders[OPZEG DOOR DE WERKGEVER],MATCH(L65,OpzegArbeiders[X],1),1),\"-\")","v":"-"},"-",{"$f":"IFERROR(INDEX(OpzegArbeiders[OPZEG DOOR DE WERKNEMER],MATCH(L65,OpzegArbeiders[X],1),1),\"-\")","v":"-"},"-","-","-"]
[null,null,null,null,null,null,62,null,null,null,null,"-",{"$f":"IFERROR(INDEX(OpzegArbeiders[OPZEG DOOR DE WERKGEVER],MATCH(L66,OpzegArbeiders[X],1),1),\"-\")","v":"-"},"-",{"$f":"IFERROR(INDEX(OpzegArbeiders[OPZEG DOOR DE WERKNEMER],MATCH(L66,OpzegArbeiders[X],1),1),\"-\")","v":"-"},"-","-","-"]
[null,null,null,null,null,null,63,null,null,null,null,"-",{"$f":"IFERROR(INDEX(OpzegArbeiders[OPZEG DOOR DE WERKGEVER],MATCH(L67,OpzegArbeiders[X],1),1),\"-\")","v":"-"},"-",{"$f":"IFERROR(INDEX(OpzegArbeiders[OPZEG DOOR DE WERKNEMER],MATCH(L67,OpzegArbeiders[X],1),1),\"-\")","v":"-"},"-","-","-"]
[null,null,null,null,null,null,64,null,null,null,null,"-",{"$f":"IFERROR(INDEX(OpzegArbeiders[OPZEG DOOR DE WERKGEVER],MATCH(L68,OpzegArbeiders[X],1),1),\"-\")","v":"-"},"-",{"$f":"IFERROR(INDEX(OpzegArbeiders[OPZEG DOOR DE WERKNEMER],MATCH(L68,OpzegArbeiders[X],1),1),\"-\")","v":"-"},"-","-","-"]
[null,null,null,null,null,null,65,null,null,null,null,"-",{"$f":"IFERROR(INDEX(OpzegArbeiders[OPZEG DOOR DE WERKGEVER],MATCH(L69,OpzegArbeiders[X],1),1),\"-\")","v":"-"},"-",{"$f":"IFERROR(INDEX(OpzegArbeiders[OPZEG DOOR DE WERKNEMER],MATCH(L69,OpzegArbeiders[X],1),1),\"-\")","v":"-"},"-","-","-"]
[null,null,null,null,null,null,66,null,null,null,null,{"$f":"IF(OR(H70<>\"\",J70<>\"\"),(DATEDIF(K70-1,DATE(2013,12,31),\"y\"))+(DATEDIF(K70-1,DATE(2013,12,31),\"ym\")/12)+(DATEDIF(K70-1,DATE(2013,12,31),\"md\")/365.25),\"-\")","v":"-"},{"$f":"IFERROR(INDEX(OpzegArbeiders[OPZEG DOOR DE WERKGEVER],MATCH(L70,OpzegArbeiders[X],1),1),\"-\")","v":"-"},{"$f":"IFERROR(M70/7,\"-\")","v":"-"},{"$f":"IFERROR(INDEX(OpzegArbeiders[OPZEG DOOR DE WERKNEMER],MATCH(L70,OpzegArbeiders[X],1),1),\"-\")","v":"-"},{"$f":"IFERROR(O70/7,\"-\")","v":"-"},{"$f":"IF(OR(ISTEXT(H70),ISTEXT(I70)),H70&\" \"&I70,\"-\")","v":"-"},{"$f":"IF(ISBLANK(J70),\"-\",J70)","v":"-"}]
[null,null,null,null,null,null,67,null,null,null,null,"-",{"$f":"IFERROR(INDEX(OpzegArbeiders[OPZEG DOOR DE WERKGEVER],MATCH(L71,OpzegArbeiders[X],1),1),\"-\")","v":"-"},"-",{"$f":"IFERROR(INDEX(OpzegArbeiders[OPZEG DOOR DE WERKNEMER],MATCH(L71,OpzegArbeiders[X],1),1),\"-\")","v":"-"},"-","-","-"]
[null,null,null,null,null,null,68,null,null,null,null,"-",{"$f":"IFERROR(INDEX(OpzegArbeiders[OPZEG DOOR DE WERKGEVER],MATCH(L72,OpzegArbeiders[X],1),1),\"-\")","v":"-"},"-",{"$f":"IFERROR(INDEX(OpzegArbeiders[OPZEG DOOR DE WERKNEMER],MATCH(L72,OpzegArbeiders[X],1),1),\"-\")","v":"-"},"-","-","-"]
[null,null,null,null,null,null,69,null,null,null,null,"-",{"$f":"IFERROR(INDEX(OpzegArbeiders[OPZEG DOOR DE WERKGEVER],MATCH(L73,OpzegArbeiders[X],1),1),\"-\")","v":"-"},"-",{"$f":"IFERROR(INDEX(OpzegArbeiders[OPZEG DOOR DE WERKNEMER],MATCH(L73,OpzegArbeiders[X],1),1),\"-\")","v":"-"},"-","-","-"]
[null,null,null,null,null,null,70,null,null,null,null,"-",{"$f":"IFERROR(INDEX(OpzegArbeiders[OPZEG DOOR DE WERKGEVER],MATCH(L74,OpzegArbeiders[X],1),1),\"-\")","v":"-"},"-",{"$f":"IFERROR(INDEX(OpzegArbeiders[OPZEG DOOR DE WERKNEMER],MATCH(L74,OpzegArbeiders[X],1),1),\"-\")","v":"-"},"-","-","-"]
[null,null,null,null,null,null,71,null,null,null,null,"-",{"$f":"IFERROR(INDEX(OpzegArbeiders[OPZEG DOOR DE WERKGEVER],MATCH(L75,OpzegArbeiders[X],1),1),\"-\")","v":"-"},"-",{"$f":"IFERROR(INDEX(OpzegArbeiders[OPZEG DOOR DE WERKNEMER],MATCH(L75,OpzegArbeiders[X],1),1),\"-\")","v":"-"},"-","-","-"]
[null,null,null,null,null,null,72,null,null,null,null,"-",{"$f":"IFERROR(INDEX(OpzegArbeiders[OPZEG DOOR DE WERKGEVER],MATCH(L76,OpzegArbeiders[X],1),1),\"-\")","v":"-"},"-",{"$f":"IFERROR(INDEX(OpzegArbeiders[OPZEG DOOR DE WERKNEMER],MATCH(L76,OpzegArbeiders[X],1),1),\"-\")","v":"-"},"-","-","-"]
[null,null,null,null,null,null,73,null,null,null,null,"-",{"$f":"IFERROR(INDEX(OpzegArbeiders[OPZEG DOOR DE WERKGEVER],MATCH(L77,OpzegArbeiders[X],1),1),\"-\")","v":"-"},"-",{"$f":"IFERROR(INDEX(OpzegArbeiders[OPZEG DOOR DE WERKNEMER],MATCH(L77,OpzegArbeiders[X],1),1),\"-\")","v":"-"},"-","-","-"]
[null,null,null,null,null,null,74,null,null,null,null,"-",{"$f":"IFERROR(INDEX(OpzegArbeiders[OPZEG DOOR DE WERKGEVER],MATCH(L78,OpzegArbeiders[X],1),1),\"-\")","v":"-"},"-",{"$f":"IFERROR(INDEX(OpzegArbeiders[OPZEG DOOR DE WERKNEMER],MATCH(L78,OpzegArbeiders[X],1),1),\"-\")","v":"-"},"-","-","-"]
[null,null,null,null,null,null,75,null,null,null,null,"-",{"$f":"IFERROR(INDEX(OpzegArbeiders[OPZEG DOOR DE WERKGEVER],MATCH(L79,OpzegArbeiders[X],1),1),\"-\")","v":"-"},"-",{"$f":"IFERROR(INDEX(OpzegArbeiders[OPZEG DOOR DE WERKNEMER],MATCH(L79,OpzegArbeiders[X],1),1),\"-\")","v":"-"},"-","-","-"]
[null,null,null,null,null,null,76,null,null,null,null,"-",{"$f":"IFERROR(INDEX(OpzegArbeiders[OPZEG DOOR DE WERKGEVER],MATCH(L80,OpzegArbeiders[X],1),1),\"-\")","v":"-"},"-",{"$f":"IFERROR(INDEX(OpzegArbeiders[OPZEG DOOR DE WERKNEMER],MATCH(L80,OpzegArbeiders[X],1),1),\"-\")","v":"-"},"-","-","-"]
[null,null,null,null,null,null,77,null,null,null,null,"-",{"$f":"IFERROR(INDEX(OpzegArbeiders[OPZEG DOOR DE WERKGEVER],MATCH(L81,OpzegArbeiders[X],1),1),\"-\")","v":"-"},"-",{"$f":"IFERROR(INDEX(OpzegArbeiders[OPZEG DOOR DE WERKNEMER],MATCH(L81,OpzegArbeiders[X],1),1),\"-\")","v":"-"},"-","-","-"]
[null,null,null,null,null,null,78,null,null,null,null,"-",{"$f":"IFERROR(INDEX(OpzegArbeiders[OPZEG DOOR DE WERKGEVER],MATCH(L82,OpzegArbeiders[X],1),1),\"-\")","v":"-"},"-",{"$f":"IFERROR(INDEX(OpzegArbeiders[OPZEG DOOR DE WERKNEMER],MATCH(L82,OpzegArbeiders[X],1),1),\"-\")","v":"-"},"-","-","-"]
[null,null,null,null,null,null,79,null,null,null,null,"-",{"$f":"IFERROR(INDEX(OpzegArbeiders[OPZEG DOOR DE WERKGEVER],MATCH(L83,OpzegArbeiders[X],1),1),\"-\")","v":"-"},"-",{"$f":"IFERROR(INDEX(OpzegArbeiders[OPZEG DOOR DE WERKNEMER],MATCH(L83,OpzegArbeiders[X],1),1),\"-\")","v":"-"},"-","-","-"]
[null,null,null,null,null,null,80,null,null,null,null,"-",{"$f":"IFERROR(INDEX(OpzegArbeiders[OPZEG DOOR DE WERKGEVER],MATCH(L84,OpzegArbeiders[X],1),1),\"-\")","v":"-"},"-",{"$f":"IFERROR(INDEX(OpzegArbeiders[OPZEG DOOR DE WERKNEMER],MATCH(L84,OpzegArbeiders[X],1),1),\"-\")","v":"-"},"-","-","-"]
[null,null,null,null,null,null,81,null,null,null,null,"-",{"$f":"IFERROR(INDEX(OpzegArbeiders[OPZEG DOOR DE WERKGEVER],MATCH(L85,OpzegArbeiders[X],1),1),\"-\")","v":"-"},"-",{"$f":"IFERROR(INDEX(OpzegArbeiders[OPZEG DOOR DE WERKNEMER],MATCH(L85,OpzegArbeiders[X],1),1),\"-\")","v":"-"},"-","-","-"]
[null,null,null,null,null,null,82,null,null,null,null,"-",{"$f":"IFERROR(INDEX(OpzegArbeiders[OPZEG DOOR DE WERKGEVER],MATCH(L86,OpzegArbeiders[X],1),1),\"-\")","v":"-"},"-",{"$f":"IFERROR(INDEX(OpzegArbeiders[OPZEG DOOR DE WERKNEMER],MATCH(L86,OpzegArbeiders[X],1),1),\"-\")","v":"-"},"-","-","-"]
[null,null,null,null,null,null,83,null,null,null,null,"-",{"$f":"IFERROR(INDEX(OpzegArbeiders[OPZEG DOOR DE WERKGEVER],MATCH(L87,OpzegArbeiders[X],1),1),\"-\")","v":"-"},"-",{"$f":"IFERROR(INDEX(OpzegArbeiders[OPZEG DOOR DE WERKNEMER],MATCH(L87,OpzegArbeiders[X],1),1),\"-\")","v":"-"},"-","-","-"]
[null,null,null,null,null,null,84,null,null,null,null,"-",{"$f":"IFERROR(INDEX(OpzegArbeiders[OPZEG DOOR DE WERKGEVER],MATCH(L88,OpzegArbeiders[X],1),1),\"-\")","v":"-"},"-",{"$f":"IFERROR(INDEX(OpzegArbeiders[OPZEG DOOR DE WERKNEMER],MATCH(L88,OpzegArbeiders[X],1),1),\"-\")","v":"-"},"-","-","-"]
[null,null,null,null,null,null,85,null,null,null,null,"-",{"$f":"IFERROR(INDEX(OpzegArbeiders[OPZEG DOOR DE WERKGEVER],MATCH(L89,OpzegArbeiders[X],1),1),\"-\")","v":"-"},"-",{"$f":"IFERROR(INDEX(OpzegArbeiders[OPZEG DOOR DE WERKNEMER],MATCH(L89,OpzegArbeiders[X],1),1),\"-\")","v":"-"},"-","-","-"]
[null,null,null,null,null,null,86,null,null,null,null,"-",{"$f":"IFERROR(INDEX(OpzegArbeiders[OPZEG DOOR DE WERKGEVER],MATCH(L90,OpzegArbeiders[X],1),1),\"-\")","v":"-"},"-",{"$f":"IFERROR(INDEX(OpzegArbeiders[OPZEG DOOR DE WERKNEMER],MATCH(L90,OpzegArbeiders[X],1),1),\"-\")","v":"-"},"-","-","-"]
[null,null,null,null,null,null,87,null,null,null,null,"-",{"$f":"IFERROR(INDEX(OpzegArbeiders[OPZEG DOOR DE WERKGEVER],MATCH(L91,OpzegArbeiders[X],1),1),\"-\")","v":"-"},"-",{"$f":"IFERROR(INDEX(OpzegArbeiders[OPZEG DOOR DE WERKNEMER],MATCH(L91,OpzegArbeiders[X],1),1),\"-\")","v":"-"},"-","-","-"]
[null,null,null,null,null,null,88,null,null,null,null,"-",{"$f":"IFERROR(INDEX(OpzegArbeiders[OPZEG DOOR DE WERKGEVER],MATCH(L92,OpzegArbeiders[X],1),1),\"-\")","v":"-"},"-",{"$f":"IFERROR(INDEX(OpzegArbeiders[OPZEG DOOR DE WERKNEMER],MATCH(L92,OpzegArbeiders[X],1),1),\"-\")","v":"-"},"-","-","-"]
[null,null,null,null,null,null,89,null,null,null,null,"-",{"$f":"IFERROR(INDEX(OpzegArbeiders[OPZEG DOOR DE WERKGEVER],MATCH(L93,OpzegArbeiders[X],1),1),\"-\")","v":"-"},"-",{"$f":"IFERROR(INDEX(OpzegArbeiders[OPZEG DOOR DE WERKNEMER],MATCH(L93,OpzegArbeiders[X],1),1),\"-\")","v":"-"},"-","-","-"]
[null,null,null,null,null,null,90,null,null,null,null,"-",{"$f":"IFERROR(INDEX(OpzegArbeiders[OPZEG DOOR DE WERKGEVER],MATCH(L94,OpzegArbeiders[X],1),1),\"-\")","v":"-"},"-",{"$f":"IFERROR(INDEX(OpzegArbeiders[OPZEG DOOR DE WERKNEMER],MATCH(L94,OpzegArbeiders[X],1),1),\"-\")","v":"-"},"-","-","-"]
[null,null,null,null,null,null,91,null,null,null,null,"-",{"$f":"IFERROR(INDEX(OpzegArbeiders[OPZEG DOOR DE WERKGEVER],MATCH(L95,OpzegArbeiders[X],1),1),\"-\")","v":"-"},"-",{"$f":"IFERROR(INDEX(OpzegArbeiders[OPZEG DOOR DE WERKNEMER],MATCH(L95,OpzegArbeiders[X],1),1),\"-\")","v":"-"},"-","-","-"]
[null,null,null,null,null,null,92,null,null,null,null,"-",{"$f":"IFERROR(INDEX(OpzegArbeiders[OPZEG DOOR DE WERKGEVER],MATCH(L96,OpzegArbeiders[X],1),1),\"-\")","v":"-"},"-",{"$f":"IFERROR(INDEX(OpzegArbeiders[OPZEG DOOR DE WERKNEMER],MATCH(L96,OpzegArbeiders[X],1),1),\"-\")","v":"-"},"-","-","-"]
[null,null,null,null,null,null,93,null,null,null,null,"-",{"$f":"IFERROR(INDEX(OpzegArbeiders[OPZEG DOOR DE WERKGEVER],MATCH(L97,OpzegArbeiders[X],1),1),\"-\")","v":"-"},"-",{"$f":"IFERROR(INDEX(OpzegArbeiders[OPZEG DOOR DE WERKNEMER],MATCH(L97,OpzegArbeiders[X],1),1),\"-\")","v":"-"},"-","-","-"]
[null,null,null,null,null,null,94,null,null,null,null,"-",{"$f":"IFERROR(INDEX(OpzegArbeiders[OPZEG DOOR DE WERKGEVER],MATCH(L98,OpzegArbeiders[X],1),1),\"-\")","v":"-"},"-",{"$f":"IFERROR(INDEX(OpzegArbeiders[OPZEG DOOR DE WERKNEMER],MATCH(L98,OpzegArbeiders[X],1),1),\"-\")","v":"-"},"-","-","-"]
[null,null,null,null,null,null,95,null,null,null,null,"-",{"$f":"IFERROR(INDEX(OpzegArbeiders[OPZEG DOOR DE WERKGEVER],MATCH(L99,OpzegArbeiders[X],1),1),\"-\")","v":"-"},"-",{"$f":"IFERROR(INDEX(OpzegArbeiders[OPZEG DOOR DE WERKNEMER],MATCH(L99,OpzegArbeiders[X],1),1),\"-\")","v":"-"},"-","-","-"]
[null,null,null,null,null,null,96,null,null,null,null,"-",{"$f":"IFERROR(INDEX(OpzegArbeiders[OPZEG DOOR DE WERKGEVER],MATCH(L100,OpzegArbeiders[X],1),1),\"-\")","v":"-"},"-",{"$f":"IFERROR(INDEX(OpzegArbeiders[OPZEG DOOR DE WERKNEMER],MATCH(L100,OpzegArbeiders[X],1),1),\"-\")","v":"-"},"-","-","-"]
[null,null,null,null,null,null,97,null,null,null,null,"-",{"$f":"IFERROR(INDEX(OpzegArbeiders[OPZEG DOOR DE WERKGEVER],MATCH(L101,OpzegArbeiders[X],1),1),\"-\")","v":"-"},"-",{"$f":"IFERROR(INDEX(OpzegArbeiders[OPZEG DOOR DE WERKNEMER],MATCH(L101,OpzegArbeiders[X],1),1),\"-\")","v":"-"},"-","-","-"]
[null,null,null,null,null,null,98,null,null,null,null,"-",{"$f":"IFERROR(INDEX(OpzegArbeiders[OPZEG DOOR DE WERKGEVER],MATCH(L102,OpzegArbeiders[X],1),1),\"-\")","v":"-"},"-",{"$f":"IFERROR(INDEX(OpzegArbeiders[OPZEG DOOR DE WERKNEMER],MATCH(L102,OpzegArbeiders[X],1),1),\"-\")","v":"-"},"-","-","-"]
[null,null,null,null,null,null,99,null,null,null,null,"-",{"$f":"IFERROR(INDEX(OpzegArbeiders[OPZEG DOOR DE WERKGEVER],MATCH(L103,OpzegArbeiders[X],1),1),\"-\")","v":"-"},"-",{"$f":"IFERROR(INDEX(OpzegArbeiders[OPZEG DOOR DE WERKNEMER],MATCH(L103,OpzegArbeiders[X],1),1),\"-\")","v":"-"},"-","-","-"]
[null,null,null,null,null,null,100,null,null,null,null,"-",{"$f":"IFERROR(INDEX(OpzegArbeiders[OPZEG DOOR DE WERKGEVER],MATCH(L104,OpzegArbeiders[X],1),1),\"-\")","v":"-"},"-",{"$f":"IFERROR(INDEX(OpzegArbeiders[OPZEG DOOR DE WERKNEMER],MATCH(L104,OpzegArbeiders[X],1),1),\"-\")","v":"-"},"-","-","-"]
[null,null,null,null,null,null,101,null,null,null,null,"-",{"$f":"IFERROR(INDEX(OpzegArbeiders[OPZEG DOOR DE WERKGEVER],MATCH(L105,OpzegArbeiders[X],1),1),\"-\")","v":"-"},"-",{"$f":"IFERROR(INDEX(OpzegArbeiders[OPZEG DOOR DE WERKNEMER],MATCH(L105,OpzegArbeiders[X],1),1),\"-\")","v":"-"},"-","-","-"]
[null,null,null,null,null,null,102,null,null,null,null,"-",{"$f":"IFERROR(INDEX(OpzegArbeiders[OPZEG DOOR DE WERKGEVER],MATCH(L106,OpzegArbeiders[X],1),1),\"-\")","v":"-"},"-",{"$f":"IFERROR(INDEX(OpzegArbeiders[OPZEG DOOR DE WERKNEMER],MATCH(L106,OpzegArbeiders[X],1),1),\"-\")","v":"-"},"-","-","-"]
[null,null,null,null,null,null,103,null,null,null,null,"-",{"$f":"IFERROR(INDEX(OpzegArbeiders[OPZEG DOOR DE WERKGEVER],MATCH(L107,OpzegArbeiders[X],1),1),\"-\")","v":"-"},"-",{"$f":"IFERROR(INDEX(OpzegArbeiders[OPZEG DOOR DE WERKNEMER],MATCH(L107,OpzegArbeiders[X],1),1),\"-\")","v":"-"},"-","-","-"]
[null,null,null,null,null,null,104,null,null,null,null,"-",{"$f":"IFERROR(INDEX(OpzegArbeiders[OPZEG DOOR DE WERKGEVER],MATCH(L108,OpzegArbeiders[X],1),1),\"-\")","v":"-"},"-",{"$f":"IFERROR(INDEX(OpzegArbeiders[OPZEG DOOR DE WERKNEMER],MATCH(L108,OpzegArbeiders[X],1),1),\"-\")","v":"-"},"-","-","-"]
[null,null,null,null,null,null,105,null,null,null,null,"-",{"$f":"IFERROR(INDEX(OpzegArbeiders[OPZEG DOOR DE WERKGEVER],MATCH(L109,OpzegArbeiders[X],1),1),\"-\")","v":"-"},"-",{"$f":"IFERROR(INDEX(OpzegArbeiders[OPZEG DOOR DE WERKNEMER],MATCH(L109,OpzegArbeiders[X],1),1),\"-\")","v":"-"},"-","-","-"]
[null,null,null,null,null,null,106,null,null,null,null,"-",{"$f":"IFERROR(INDEX(OpzegArbeiders[OPZEG DOOR DE WERKGEVER],MATCH(L110,OpzegArbeiders[X],1),1),\"-\")","v":"-"},"-",{"$f":"IFERROR(INDEX(OpzegArbeiders[OPZEG DOOR DE WERKNEMER],MATCH(L110,OpzegArbeiders[X],1),1),\"-\")","v":"-"},"-","-","-"]
[null,null,null,null,null,null,107,null,null,null,null,"-",{"$f":"IFERROR(INDEX(OpzegArbeiders[OPZEG DOOR DE WERKGEVER],MATCH(L111,OpzegArbeiders[X],1),1),\"-\")","v":"-"},"-",{"$f":"IFERROR(INDEX(OpzegArbeiders[OPZEG DOOR DE WERKNEMER],MATCH(L111,OpzegArbeiders[X],1),1),\"-\")","v":"-"},"-","-","-"]
[null,null,null,null,null,null,108,null,null,null,null,"-",{"$f":"IFERROR(INDEX(OpzegArbeiders[OPZEG DOOR DE WERKGEVER],MATCH(L112,OpzegArbeiders[X],1),1),\"-\")","v":"-"},"-",{"$f":"IFERROR(INDEX(OpzegArbeiders[OPZEG DOOR DE WERKNEMER],MATCH(L112,OpzegArbeiders[X],1),1),\"-\")","v":"-"},"-","-","-"]
[null,null,null,null,null,null,109,null,null,null,null,"-",{"$f":"IFERROR(INDEX(OpzegArbeiders[OPZEG DOOR DE WERKGEVER],MATCH(L113,OpzegArbeiders[X],1),1),\"-\")","v":"-"},"-",{"$f":"IFERROR(INDEX(OpzegArbeiders[OPZEG DOOR DE WERKNEMER],MATCH(L113,OpzegArbeiders[X],1),1),\"-\")","v":"-"},"-","-","-"]
[null,null,null,null,null,null,110,null,null,null,null,"-",{"$f":"IFERROR(INDEX(OpzegArbeiders[OPZEG DOOR DE WERKGEVER],MATCH(L114,OpzegArbeiders[X],1),1),\"-\")","v":"-"},"-",{"$f":"IFERROR(INDEX(OpzegArbeiders[OPZEG DOOR DE WERKNEMER],MATCH(L114,OpzegArbeiders[X],1),1),\"-\")","v":"-"},"-","-","-"]
[null,null,null,null,null,null,111,null,null,null,null,"-",{"$f":"IFERROR(INDEX(OpzegArbeiders[OPZEG DOOR DE WERKGEVER],MATCH(L115,OpzegArbeiders[X],1),1),\"-\")","v":"-"},"-",{"$f":"IFERROR(INDEX(OpzegArbeiders[OPZEG DOOR DE WERKNEMER],MATCH(L115,OpzegArbeiders[X],1),1),\"-\")","v":"-"},"-","-","-"]
[null,null,null,null,null,null,112,null,null,null,null,"-",{"$f":"IFERROR(INDEX(OpzegArbeiders[OPZEG DOOR DE WERKGEVER],MATCH(L116,OpzegArbeiders[X],1),1),\"-\")","v":"-"},"-",{"$f":"IFERROR(INDEX(OpzegArbeiders[OPZEG DOOR DE WERKNEMER],MATCH(L116,OpzegArbeiders[X],1),1),\"-\")","v":"-"},"-","-","-"]
[null,null,null,null,null,null,113,null,null,null,null,"-",{"$f":"IFERROR(INDEX(OpzegArbeiders[OPZEG DOOR DE WERKGEVER],MATCH(L117,OpzegArbeiders[X],1),1),\"-\")","v":"-"},"-",{"$f":"IFERROR(INDEX(OpzegArbeiders[OPZEG DOOR DE WERKNEMER],MATCH(L117,OpzegArbeiders[X],1),1),\"-\")","v":"-"},"-","-","-"]
[null,null,null,null,null,null,114,null,null,null,null,"-",{"$f":"IFERROR(INDEX(OpzegArbeiders[OPZEG DOOR DE WERKGEVER],MATCH(L118,OpzegArbeiders[X],1),1),\"-\")","v":"-"},"-",{"$f":"IFERROR(INDEX(OpzegArbeiders[OPZEG DOOR DE WERKNEMER],MATCH(L118,OpzegArbeiders[X],1),1),\"-\")","v":"-"},"-","-","-"]
[null,null,null,null,null,null,115,null,null,null,null,"-",{"$f":"IFERROR(INDEX(OpzegArbeiders[OPZEG DOOR DE WERKGEVER],MATCH(L119,OpzegArbeiders[X],1),1),\"-\")","v":"-"},"-",{"$f":"IFERROR(INDEX(OpzegArbeiders[OPZEG DOOR DE WERKNEMER],MATCH(L119,OpzegArbeiders[X],1),1),\"-\")","v":"-"},"-","-","-"]
[null,null,null,null,null,null,116,null,null,null,null,"-",{"$f":"IFERROR(INDEX(OpzegArbeiders[OPZEG DOOR DE WERKGEVER],MATCH(L120,OpzegArbeiders[X],1),1),\"-\")","v":"-"},"-",{"$f":"IFERROR(INDEX(OpzegArbeiders[OPZEG DOOR DE WERKNEMER],MATCH(L120,OpzegArbeiders[X],1),1),\"-\")","v":"-"},"-","-","-"]
[null,null,null,null,null,null,117,null,null,null,null,"-",{"$f":"IFERROR(INDEX(OpzegArbeiders[OPZEG DOOR DE WERKGEVER],MATCH(L121,OpzegArbeiders[X],1),1),\"-\")","v":"-"},"-",{"$f":"IFERROR(INDEX(OpzegArbeiders[OPZEG DOOR DE WERKNEMER],MATCH(L121,OpzegArbeiders[X],1),1),\"-\")","v":"-"},"-","-","-"]
[null,null,null,null,null,null,118,null,null,null,null,"-",{"$f":"IFERROR(INDEX(OpzegArbeiders[OPZEG DOOR DE WERKGEVER],MATCH(L122,OpzegArbeiders[X],1),1),\"-\")","v":"-"},"-",{"$f":"IFERROR(INDEX(OpzegArbeiders[OPZEG DOOR DE WERKNEMER],MATCH(L122,OpzegArbeiders[X],1),1),\"-\")","v":"-"},"-","-","-"]
[null,null,null,null,null,null,119,null,null,null,null,"-",{"$f":"IFERROR(INDEX(OpzegArbeiders[OPZEG DOOR DE WERKGEVER],MATCH(L123,OpzegArbeiders[X],1),1),\"-\")","v":"-"},"-",{"$f":"IFERROR(INDEX(OpzegArbeiders[OPZEG DOOR DE WERKNEMER],MATCH(L123,OpzegArbeiders[X],1),1),\"-\")","v":"-"},"-","-","-"]
[null,null,null,null,null,null,120,null,null,null,null,"-",{"$f":"IFERROR(INDEX(OpzegArbeiders[OPZEG DOOR DE WERKGEVER],MATCH(L124,OpzegArbeiders[X],1),1),\"-\")","v":"-"},"-",{"$f":"IFERROR(INDEX(OpzegArbeiders[OPZEG DOOR DE WERKNEMER],MATCH(L124,OpzegArbeiders[X],1),1),\"-\")","v":"-"},"-","-","-"]
[null,null,null,null,null,null,121,null,null,null,null,"-",{"$f":"IFERROR(INDEX(OpzegArbeiders[OPZEG DOOR DE WERKGEVER],MATCH(L125,OpzegArbeiders[X],1),1),\"-\")","v":"-"},"-",{"$f":"IFERROR(INDEX(OpzegArbeiders[OPZEG DOOR DE WERKNEMER],MATCH(L125,OpzegArbeiders[X],1),1),\"-\")","v":"-"},"-","-","-"]
[null,null,null,null,null,null,122,null,null,null,null,"-",{"$f":"IFERROR(INDEX(OpzegArbeiders[OPZEG DOOR DE WERKGEVER],MATCH(L126,OpzegArbeiders[X],1),1),\"-\")","v":"-"},"-",{"$f":"IFERROR(INDEX(OpzegArbeiders[OPZEG DOOR DE WERKNEMER],MATCH(L126,OpzegArbeiders[X],1),1),\"-\")","v":"-"},"-","-","-"]
[null,null,null,null,null,null,123,null,null,null,null,"-",{"$f":"IFERROR(INDEX(OpzegArbeiders[OPZEG DOOR DE WERKGEVER],MATCH(L127,OpzegArbeiders[X],1),1),\"-\")","v":"-"},"-",{"$f":"IFERROR(INDEX(OpzegArbeiders[OPZEG DOOR DE WERKNEMER],MATCH(L127,OpzegArbeiders[X],1),1),\"-\")","v":"-"},"-","-","-"]
[null,null,null,null,null,null,124,null,null,null,null,"-",{"$f":"IFERROR(INDEX(OpzegArbeiders[OPZEG DOOR DE WERKGEVER],MATCH(L128,OpzegArbeiders[X],1),1),\"-\")","v":"-"},"-",{"$f":"IFERROR(INDEX(OpzegArbeiders[OPZEG DOOR DE WERKNEMER],MATCH(L128,OpzegArbeiders[X],1),1),\"-\")","v":"-"},"-","-","-"]
[null,null,null,null,null,null,125,null,null,null,null,"-",{"$f":"IFERROR(INDEX(OpzegArbeiders[OPZEG DOOR DE WERKGEVER],MATCH(L129,OpzegArbeiders[X],1),1),\"-\")","v":"-"},"-",{"$f":"IFERROR(INDEX(OpzegArbeiders[OPZEG DOOR DE WERKNEMER],MATCH(L129,OpzegArbeiders[X],1),1),\"-\")","v":"-"},"-","-","-"]
[null,null,null,null,null,null,126,null,null,null,null,"-",{"$f":"IFERROR(INDEX(OpzegArbeiders[OPZEG DOOR DE WERKGEVER],MATCH(L130,OpzegArbeiders[X],1),1),\"-\")","v":"-"},"-",{"$f":"IFERROR(INDEX(OpzegArbeiders[OPZEG DOOR DE WERKNEMER],MATCH(L130,OpzegArbeiders[X],1),1),\"-\")","v":"-"},"-","-","-"]
[null,null,null,null,null,null,127,null,null,null,null,"-",{"$f":"IFERROR(INDEX(OpzegArbeiders[OPZEG DOOR DE WERKGEVER],MATCH(L131,OpzegArbeiders[X],1),1),\"-\")","v":"-"},"-",{"$f":"IFERROR(INDEX(OpzegArbeiders[OPZEG DOOR DE WERKNEMER],MATCH(L131,OpzegArbeiders[X],1),1),\"-\")","v":"-"},"-","-","-"]
[null,null,null,null,null,null,128,null,null,null,null,"-",{"$f":"IFERROR(INDEX(OpzegArbeiders[OPZEG DOOR DE WERKGEVER],MATCH(L132,OpzegArbeiders[X],1),1),\"-\")","v":"-"},"-",{"$f":"IFERROR(INDEX(OpzegArbeiders[OPZEG DOOR DE WERKNEMER],MATCH(L132,OpzegArbeiders[X],1),1),\"-\")","v":"-"},"-","-","-"]
[null,null,null,null,null,null,129,null,null,null,null,"-",{"$f":"IFERROR(INDEX(OpzegArbeiders[OPZEG DOOR DE WERKGEVER],MATCH(L133,OpzegArbeiders[X],1),1),\"-\")","v":"-"},"-",{"$f":"IFERROR(INDEX(OpzegArbeiders[OPZEG DOOR DE WERKNEMER],MATCH(L133,OpzegArbeiders[X],1),1),\"-\")","v":"-"},"-","-","-"]
[null,null,null,null,null,null,130,null,null,null,null,{"$f":"IF(OR(H134<>\"\",J134<>\"\"),(DATEDIF(K134-1,DATE(2013,12,31),\"y\"))+(DATEDIF(K134-1,DATE(2013,12,31),\"ym\")/12)+(DATEDIF(K134-1,DATE(2013,12,31),\"md\")/365.25),\"-\")","v":"-"},{"$f":"IFERROR(INDEX(OpzegArbeiders[OPZEG DOOR DE WERKGEVER],MATCH(L134,OpzegArbeiders[X],1),1),\"-\")","v":"-"},{"$f":"IFERROR(M134/7,\"-\")","v":"-"},{"$f":"IFERROR(INDEX(OpzegArbeiders[OPZEG DOOR DE WERKNEMER],MATCH(L134,OpzegArbeiders[X],1),1),\"-\")","v":"-"},{"$f":"IFERROR(O134/7,\"-\")","v":"-"},{"$f":"IF(OR(ISTEXT(H134),ISTEXT(I134)),H134&\" \"&I134,\"-\")","v":"-"},{"$f":"IF(ISBLANK(J134),\"-\",J134)","v":"-"}]
[null,null,null,null,null,null,131,null,null,null,null,"-",{"$f":"IFERROR(INDEX(OpzegArbeiders[OPZEG DOOR DE WERKGEVER],MATCH(L135,OpzegArbeiders[X],1),1),\"-\")","v":"-"},"-",{"$f":"IFERROR(INDEX(OpzegArbeiders[OPZEG DOOR DE WERKNEMER],MATCH(L135,OpzegArbeiders[X],1),1),\"-\")","v":"-"},"-","-","-"]
[null,null,null,null,null,null,132,null,null,null,null,"-",{"$f":"IFERROR(INDEX(OpzegArbeiders[OPZEG DOOR DE WERKGEVER],MATCH(L136,OpzegArbeiders[X],1),1),\"-\")","v":"-"},"-",{"$f":"IFERROR(INDEX(OpzegArbeiders[OPZEG DOOR DE WERKNEMER],MATCH(L136,OpzegArbeiders[X],1),1),\"-\")","v":"-"},"-","-","-"]
[null,null,null,null,null,null,133,null,null,null,null,"-",{"$f":"IFERROR(INDEX(OpzegArbeiders[OPZEG DOOR DE WERKGEVER],MATCH(L137,OpzegArbeiders[X],1),1),\"-\")","v":"-"},"-",{"$f":"IFERROR(INDEX(OpzegArbeiders[OPZEG DOOR DE WERKNEMER],MATCH(L137,OpzegArbeiders[X],1),1),\"-\")","v":"-"},"-","-","-"]
[null,null,null,null,null,null,134,null,null,null,null,"-",{"$f":"IFERROR(INDEX(OpzegArbeiders[OPZEG DOOR DE WERKGEVER],MATCH(L138,OpzegArbeiders[X],1),1),\"-\")","v":"-"},"-",{"$f":"IFERROR(INDEX(OpzegArbeiders[OPZEG DOOR DE WERKNEMER],MATCH(L138,OpzegArbeiders[X],1),1),\"-\")","v":"-"},"-","-","-"]
[null,null,null,null,null,null,135,null,null,null,null,"-",{"$f":"IFERROR(INDEX(OpzegArbeiders[OPZEG DOOR DE WERKGEVER],MATCH(L139,OpzegArbeiders[X],1),1),\"-\")","v":"-"},"-",{"$f":"IFERROR(INDEX(OpzegArbeiders[OPZEG DOOR DE WERKNEMER],MATCH(L139,OpzegArbeiders[X],1),1),\"-\")","v":"-"},"-","-","-"]
[null,null,null,null,null,null,136,null,null,null,null,"-",{"$f":"IFERROR(INDEX(OpzegArbeiders[OPZEG DOOR DE WERKGEVER],MATCH(L140,OpzegArbeiders[X],1),1),\"-\")","v":"-"},"-",{"$f":"IFERROR(INDEX(OpzegArbeiders[OPZEG DOOR DE WERKNEMER],MATCH(L140,OpzegArbeiders[X],1),1),\"-\")","v":"-"},"-","-","-"]
[null,null,null,null,null,null,137,null,null,null,null,"-",{"$f":"IFERROR(INDEX(OpzegArbeiders[OPZEG DOOR DE WERKGEVER],MATCH(L141,OpzegArbeiders[X],1),1),\"-\")","v":"-"},"-",{"$f":"IFERROR(INDEX(OpzegArbeiders[OPZEG DOOR DE WERKNEMER],MATCH(L141,OpzegArbeiders[X],1),1),\"-\")","v":"-"},"-","-","-"]
[null,null,null,null,null,null,138,null,null,null,null,"-",{"$f":"IFERROR(INDEX(OpzegArbeiders[OPZEG DOOR DE WERKGEVER],MATCH(L142,OpzegArbeiders[X],1),1),\"-\")","v":"-"},"-",{"$f":"IFERROR(INDEX(OpzegArbeiders[OPZEG DOOR DE WERKNEMER],MATCH(L142,OpzegArbeiders[X],1),1),\"-\")","v":"-"},"-","-","-"]
[null,null,null,null,null,null,139,null,null,null,null,"-",{"$f":"IFERROR(INDEX(OpzegArbeiders[OPZEG DOOR DE WERKGEVER],MATCH(L143,OpzegArbeiders[X],1),1),\"-\")","v":"-"},"-",{"$f":"IFERROR(INDEX(OpzegArbeiders[OPZEG DOOR DE WERKNEMER],MATCH(L143,OpzegArbeiders[X],1),1),\"-\")","v":"-"},"-","-","-"]
[null,null,null,null,null,null,140,null,null,null,null,"-",{"$f":"IFERROR(INDEX(OpzegArbeiders[OPZEG DOOR DE WERKGEVER],MATCH(L144,OpzegArbeiders[X],1),1),\"-\")","v":"-"},"-",{"$f":"IFERROR(INDEX(OpzegArbeiders[OPZEG DOOR DE WERKNEMER],MATCH(L144,OpzegArbeiders[X],1),1),\"-\")","v":"-"},"-","-","-"]
[null,null,null,null,null,null,141,null,null,null,null,"-",{"$f":"IFERROR(INDEX(OpzegArbeiders[OPZEG DOOR DE WERKGEVER],MATCH(L145,OpzegArbeiders[X],1),1),\"-\")","v":"-"},"-",{"$f":"IFERROR(INDEX(OpzegArbeiders[OPZEG DOOR DE WERKNEMER],MATCH(L145,OpzegArbeiders[X],1),1),\"-\")","v":"-"},"-","-","-"]
[null,null,null,null,null,null,142,null,null,null,null,"-",{"$f":"IFERROR(INDEX(OpzegArbeiders[OPZEG DOOR DE WERKGEVER],MATCH(L146,OpzegArbeiders[X],1),1),\"-\")","v":"-"},"-",{"$f":"IFERROR(INDEX(OpzegArbeiders[OPZEG DOOR DE WERKNEMER],MATCH(L146,OpzegArbeiders[X],1),1),\"-\")","v":"-"},"-","-","-"]
[null,null,null,null,null,null,143,null,null,null,null,"-",{"$f":"IFERROR(INDEX(OpzegArbeiders[OPZEG DOOR DE WERKGEVER],MATCH(L147,OpzegArbeiders[X],1),1),\"-\")","v":"-"},"-",{"$f":"IFERROR(INDEX(OpzegArbeiders[OPZEG DOOR DE WERKNEMER],MATCH(L147,OpzegArbeiders[X],1),1),\"-\")","v":"-"},"-","-","-"]
[null,null,null,null,null,null,144,null,null,null,null,"-",{"$f":"IFERROR(INDEX(OpzegArbeiders[OPZEG DOOR DE WERKGEVER],MATCH(L148,OpzegArbeiders[X],1),1),\"-\")","v":"-"},"-",{"$f":"IFERROR(INDEX(OpzegArbeiders[OPZEG DOOR DE WERKNEMER],MATCH(L148,OpzegArbeiders[X],1),1),\"-\")","v":"-"},"-","-","-"]
[null,null,null,null,null,null,145,null,null,null,null,"-",{"$f":"IFERROR(INDEX(OpzegArbeiders[OPZEG DOOR DE WERKGEVER],MATCH(L149,OpzegArbeiders[X],1),1),\"-\")","v":"-"},"-",{"$f":"IFERROR(INDEX(OpzegArbeiders[OPZEG DOOR DE WERKNEMER],MATCH(L149,OpzegArbeiders[X],1),1),\"-\")","v":"-"},"-","-","-"]
[null,null,null,null,null,null,146,null,null,null,null,"-",{"$f":"IFERROR(INDEX(OpzegArbeiders[OPZEG DOOR DE WERKGEVER],MATCH(L150,OpzegArbeiders[X],1),1),\"-\")","v":"-"},"-",{"$f":"IFERROR(INDEX(OpzegArbeiders[OPZEG DOOR DE WERKNEMER],MATCH(L150,OpzegArbeiders[X],1),1),\"-\")","v":"-"},"-","-","-"]
[null,null,null,null,null,null,147,null,null,null,null,"-",{"$f":"IFERROR(INDEX(OpzegArbeiders[OPZEG DOOR DE WERKGEVER],MATCH(L151,OpzegArbeiders[X],1),1),\"-\")","v":"-"},"-",{"$f":"IFERROR(INDEX(OpzegArbeiders[OPZEG DOOR DE WERKNEMER],MATCH(L151,OpzegArbeiders[X],1),1),\"-\")","v":"-"},"-","-","-"]
[null,null,null,null,null,null,148,null,null,null,null,"-",{"$f":"IFERROR(INDEX(OpzegArbeiders[OPZEG DOOR DE WERKGEVER],MATCH(L152,OpzegArbeiders[X],1),1),\"-\")","v":"-"},"-",{"$f":"IFERROR(INDEX(OpzegArbeiders[OPZEG DOOR DE WERKNEMER],MATCH(L152,OpzegArbeiders[X],1),1),\"-\")","v":"-"},"-","-","-"]
[null,null,null,null,null,null,149,null,null,null,null,"-",{"$f":"IFERROR(INDEX(OpzegArbeiders[OPZEG DOOR DE WERKGEVER],MATCH(L153,OpzegArbeiders[X],1),1),\"-\")","v":"-"},"-",{"$f":"IFERROR(INDEX(OpzegArbeiders[OPZEG DOOR DE WERKNEMER],MATCH(L153,OpzegArbeiders[X],1),1),\"-\")","v":"-"},"-","-","-"]
[null,null,null,null,null,null,150,null,null,null,null,"-",{"$f":"IFERROR(INDEX(OpzegArbeiders[OPZEG DOOR DE WERKGEVER],MATCH(L154,OpzegArbeiders[X],1),1),\"-\")","v":"-"},"-",{"$f":"IFERROR(INDEX(OpzegArbeiders[OPZEG DOOR DE WERKNEMER],MATCH(L154,OpzegArbeiders[X],1),1),\"-\")","v":"-"},"-","-","-"]
[null,null,null,null,null,null,151,null,null,null,null,"-",{"$f":"IFERROR(INDEX(OpzegArbeiders[OPZEG DOOR DE WERKGEVER],MATCH(L155,OpzegArbeiders[X],1),1),\"-\")","v":"-"},"-",{"$f":"IFERROR(INDEX(OpzegArbeiders[OPZEG DOOR DE WERKNEMER],MATCH(L155,OpzegArbeiders[X],1),1),\"-\")","v":"-"},"-","-","-"]
[null,null,null,null,null,null,152,null,null,null,null,"-",{"$f":"IFERROR(INDEX(OpzegArbeiders[OPZEG DOOR DE WERKGEVER],MATCH(L156,OpzegArbeiders[X],1),1),\"-\")","v":"-"},"-",{"$f":"IFERROR(INDEX(OpzegArbeiders[OPZEG DOOR DE WERKNEMER],MATCH(L156,OpzegArbeiders[X],1),1),\"-\")","v":"-"},"-","-","-"]
[null,null,null,null,null,null,153,null,null,null,null,"-",{"$f":"IFERROR(INDEX(OpzegArbeiders[OPZEG DOOR DE WERKGEVER],MATCH(L157,OpzegArbeiders[X],1),1),\"-\")","v":"-"},"-",{"$f":"IFERROR(INDEX(OpzegArbeiders[OPZEG DOOR DE WERKNEMER],MATCH(L157,OpzegArbeiders[X],1),1),\"-\")","v":"-"},"-","-","-"]
[null,null,null,null,null,null,154,null,null,null,null,"-",{"$f":"IFERROR(INDEX(OpzegArbeiders[OPZEG DOOR DE WERKGEVER],MATCH(L158,OpzegArbeiders[X],1),1),\"-\")","v":"-"},"-",{"$f":"IFERROR(INDEX(OpzegArbeiders[OPZEG DOOR DE WERKNEMER],MATCH(L158,OpzegArbeiders[X],1),1),\"-\")","v":"-"},"-","-","-"]
[null,null,null,null,null,null,155,null,null,null,null,"-",{"$f":"IFERROR(INDEX(OpzegArbeiders[OPZEG DOOR DE WERKGEVER],MATCH(L159,OpzegArbeiders[X],1),1),\"-\")","v":"-"},"-",{"$f":"IFERROR(INDEX(OpzegArbeiders[OPZEG DOOR DE WERKNEMER],MATCH(L159,OpzegArbeiders[X],1),1),\"-\")","v":"-"},"-","-","-"]
[null,null,null,null,null,null,156,null,null,null,null,"-",{"$f":"IFERROR(INDEX(OpzegArbeiders[OPZEG DOOR DE WERKGEVER],MATCH(L160,OpzegArbeiders[X],1),1),\"-\")","v":"-"},"-",{"$f":"IFERROR(INDEX(OpzegArbeiders[OPZEG DOOR DE WERKNEMER],MATCH(L160,OpzegArbeiders[X],1),1),\"-\")","v":"-"},"-","-","-"]
[null,null,null,null,null,null,157,null,null,null,null,"-",{"$f":"IFERROR(INDEX(OpzegArbeiders[OPZEG DOOR DE WERKGEVER],MATCH(L161,OpzegArbeiders[X],1),1),\"-\")","v":"-"},"-",{"$f":"IFERROR(INDEX(OpzegArbeiders[OPZEG DOOR DE WERKNEMER],MATCH(L161,OpzegArbeiders[X],1),1),\"-\")","v":"-"},"-","-","-"]
[null,null,null,null,null,null,158,null,null,null,null,"-",{"$f":"IFERROR(INDEX(OpzegArbeiders[OPZEG DOOR DE WERKGEVER],MATCH(L162,OpzegArbeiders[X],1),1),\"-\")","v":"-"},"-",{"$f":"IFERROR(INDEX(OpzegArbeiders[OPZEG DOOR DE WERKNEMER],MATCH(L162,OpzegArbeiders[X],1),1),\"-\")","v":"-"},"-","-","-"]
[null,null,null,null,null,null,159,null,null,null,null,"-",{"$f":"IFERROR(INDEX(OpzegArbeiders[OPZEG DOOR DE WERKGEVER],MATCH(L163,OpzegArbeiders[X],1),1),\"-\")","v":"-"},"-",{"$f":"IFERROR(INDEX(OpzegArbeiders[OPZEG DOOR DE WERKNEMER],MATCH(L163,OpzegArbeiders[X],1),1),\"-\")","v":"-"},"-","-","-"]
[null,null,null,null,null,null,160,null,null,null,null,"-",{"$f":"IFERROR(INDEX(OpzegArbeiders[OPZEG DOOR DE WERKGEVER],MATCH(L164,OpzegArbeiders[X],1),1),\"-\")","v":"-"},"-",{"$f":"IFERROR(INDEX(OpzegArbeiders[OPZEG DOOR DE WERKNEMER],MATCH(L164,OpzegArbeiders[X],1),1),\"-\")","v":"-"},"-","-","-"]
[null,null,null,null,null,null,161,null,null,null,null,"-",{"$f":"IFERROR(INDEX(OpzegArbeiders[OPZEG DOOR DE WERKGEVER],MATCH(L165,OpzegArbeiders[X],1),1),\"-\")","v":"-"},"-",{"$f":"IFERROR(INDEX(OpzegArbeiders[OPZEG DOOR DE WERKNEMER],MATCH(L165,OpzegArbeiders[X],1),1),\"-\")","v":"-"},"-","-","-"]
[null,null,null,null,null,null,162,null,null,null,null,"-",{"$f":"IFERROR(INDEX(OpzegArbeiders[OPZEG DOOR DE WERKGEVER],MATCH(L166,OpzegArbeiders[X],1),1),\"-\")","v":"-"},"-",{"$f":"IFERROR(INDEX(OpzegArbeiders[OPZEG DOOR DE WERKNEMER],MATCH(L166,OpzegArbeiders[X],1),1),\"-\")","v":"-"},"-","-","-"]
[null,null,null,null,null,null,163,null,null,null,null,"-",{"$f":"IFERROR(INDEX(OpzegArbeiders[OPZEG DOOR DE WERKGEVER],MATCH(L167,OpzegArbeiders[X],1),1),\"-\")","v":"-"},"-",{"$f":"IFERROR(INDEX(OpzegArbeiders[OPZEG DOOR DE WERKNEMER],MATCH(L167,OpzegArbeiders[X],1),1),\"-\")","v":"-"},"-","-","-"]
[null,null,null,null,null,null,164,null,null,null,null,"-",{"$f":"IFERROR(INDEX(OpzegArbeiders[OPZEG DOOR DE WERKGEVER],MATCH(L168,OpzegArbeiders[X],1),1),\"-\")","v":"-"},"-",{"$f":"IFERROR(INDEX(OpzegArbeiders[OPZEG DOOR DE WERKNEMER],MATCH(L168,OpzegArbeiders[X],1),1),\"-\")","v":"-"},"-","-","-"]
[null,null,null,null,null,null,165,null,null,null,null,"-",{"$f":"IFERROR(INDEX(OpzegArbeiders[OPZEG DOOR DE WERKGEVER],MATCH(L169,OpzegArbeiders[X],1),1),\"-\")","v":"-"},"-",{"$f":"IFERROR(INDEX(OpzegArbeiders[OPZEG DOOR DE WERKNEMER],MATCH(L169,OpzegArbeiders[X],1),1),\"-\")","v":"-"},"-","-","-"]
[null,null,null,null,null,null,166,null,null,null,null,"-",{"$f":"IFERROR(INDEX(OpzegArbeiders[OPZEG DOOR DE WERKGEVER],MATCH(L170,OpzegArbeiders[X],1),1),\"-\")","v":"-"},"-",{"$f":"IFERROR(INDEX(OpzegArbeiders[OPZEG DOOR DE WERKNEMER],MATCH(L170,OpzegArbeiders[X],1),1),\"-\")","v":"-"},"-","-","-"]
[null,null,null,null,null,null,167,null,null,null,null,"-",{"$f":"IFERROR(INDEX(OpzegArbeiders[OPZEG DOOR DE WERKGEVER],MATCH(L171,OpzegArbeiders[X],1),1),\"-\")","v":"-"},"-",{"$f":"IFERROR(INDEX(OpzegArbeiders[OPZEG DOOR DE WERKNEMER],MATCH(L171,OpzegArbeiders[X],1),1),\"-\")","v":"-"},"-","-","-"]
[null,null,null,null,null,null,168,null,null,null,null,"-",{"$f":"IFERROR(INDEX(OpzegArbeiders[OPZEG DOOR DE WERKGEVER],MATCH(L172,OpzegArbeiders[X],1),1),\"-\")","v":"-"},"-",{"$f":"IFERROR(INDEX(OpzegArbeiders[OPZEG DOOR DE WERKNEMER],MATCH(L172,OpzegArbeiders[X],1),1),\"-\")","v":"-"},"-","-","-"]
[null,null,null,null,null,null,169,null,null,null,null,"-",{"$f":"IFERROR(INDEX(OpzegArbeiders[OPZEG DOOR DE WERKGEVER],MATCH(L173,OpzegArbeiders[X],1),1),\"-\")","v":"-"},"-",{"$f":"IFERROR(INDEX(OpzegArbeiders[OPZEG DOOR DE WERKNEMER],MATCH(L173,OpzegArbeiders[X],1),1),\"-\")","v":"-"},"-","-","-"]
[null,null,null,null,null,null,170,null,null,null,null,"-",{"$f":"IFERROR(INDEX(OpzegArbeiders[OPZEG DOOR DE WERKGEVER],MATCH(L174,OpzegArbeiders[X],1),1),\"-\")","v":"-"},"-",{"$f":"IFERROR(INDEX(OpzegArbeiders[OPZEG DOOR DE WERKNEMER],MATCH(L174,OpzegArbeiders[X],1),1),\"-\")","v":"-"},"-","-","-"]
[null,null,null,null,null,null,171,null,null,null,null,"-",{"$f":"IFERROR(INDEX(OpzegArbeiders[OPZEG DOOR DE WERKGEVER],MATCH(L175,OpzegArbeiders[X],1),1),\"-\")","v":"-"},"-",{"$f":"IFERROR(INDEX(OpzegArbeiders[OPZEG DOOR DE WERKNEMER],MATCH(L175,OpzegArbeiders[X],1),1),\"-\")","v":"-"},"-","-","-"]
[null,null,null,null,null,null,172,null,null,null,null,"-",{"$f":"IFERROR(INDEX(OpzegArbeiders[OPZEG DOOR DE WERKGEVER],MATCH(L176,OpzegArbeiders[X],1),1),\"-\")","v":"-"},"-",{"$f":"IFERROR(INDEX(OpzegArbeiders[OPZEG DOOR DE WERKNEMER],MATCH(L176,OpzegArbeiders[X],1),1),\"-\")","v":"-"},"-","-","-"]
[null,null,null,null,null,null,173,null,null,null,null,"-",{"$f":"IFERROR(INDEX(OpzegArbeiders[OPZEG DOOR DE WERKGEVER],MATCH(L177,OpzegArbeiders[X],1),1),\"-\")","v":"-"},"-",{"$f":"IFERROR(INDEX(OpzegArbeiders[OPZEG DOOR DE WERKNEMER],MATCH(L177,OpzegArbeiders[X],1),1),\"-\")","v":"-"},"-","-","-"]
[null,null,null,null,null,null,174,null,null,null,null,"-",{"$f":"IFERROR(INDEX(OpzegArbeiders[OPZEG DOOR DE WERKGEVER],MATCH(L178,OpzegArbeiders[X],1),1),\"-\")","v":"-"},"-",{"$f":"IFERROR(INDEX(OpzegArbeiders[OPZEG DOOR DE WERKNEMER],MATCH(L178,OpzegArbeiders[X],1),1),\"-\")","v":"-"},"-","-","-"]
[null,null,null,null,null,null,175,null,null,null,null,"-",{"$f":"IFERROR(INDEX(OpzegArbeiders[OPZEG DOOR DE WERKGEVER],MATCH(L179,OpzegArbeiders[X],1),1),\"-\")","v":"-"},"-",{"$f":"IFERROR(INDEX(OpzegArbeiders[OPZEG DOOR DE WERKNEMER],MATCH(L179,OpzegArbeiders[X],1),1),\"-\")","v":"-"},"-","-","-"]
[null,null,null,null,null,null,176,null,null,null,null,"-",{"$f":"IFERROR(INDEX(OpzegArbeiders[OPZEG DOOR DE WERKGEVER],MATCH(L180,OpzegArbeiders[X],1),1),\"-\")","v":"-"},"-",{"$f":"IFERROR(INDEX(OpzegArbeiders[OPZEG DOOR DE WERKNEMER],MATCH(L180,OpzegArbeiders[X],1),1),\"-\")","v":"-"},"-","-","-"]
[null,null,null,null,null,null,177,null,null,null,null,"-",{"$f":"IFERROR(INDEX(OpzegArbeiders[OPZEG DOOR DE WERKGEVER],MATCH(L181,OpzegArbeiders[X],1),1),\"-\")","v":"-"},"-",{"$f":"IFERROR(INDEX(OpzegArbeiders[OPZEG DOOR DE WERKNEMER],MATCH(L181,OpzegArbeiders[X],1),1),\"-\")","v":"-"},"-","-","-"]
[null,null,null,null,null,null,178,null,null,null,null,"-",{"$f":"IFERROR(INDEX(OpzegArbeiders[OPZEG DOOR DE WERKGEVER],MATCH(L182,OpzegArbeiders[X],1),1),\"-\")","v":"-"},"-",{"$f":"IFERROR(INDEX(OpzegArbeiders[OPZEG DOOR DE WERKNEMER],MATCH(L182,OpzegArbeiders[X],1),1),\"-\")","v":"-"},"-","-","-"]
[null,null,null,null,null,null,179,null,null,null,null,"-",{"$f":"IFERROR(INDEX(OpzegArbeiders[OPZEG DOOR DE WERKGEVER],MATCH(L183,OpzegArbeiders[X],1),1),\"-\")","v":"-"},"-",{"$f":"IFERROR(INDEX(OpzegArbeiders[OPZEG DOOR DE WERKNEMER],MATCH(L183,OpzegArbeiders[X],1),1),\"-\")","v":"-"},"-","-","-"]
[null,null,null,null,null,null,180,null,null,null,null,"-",{"$f":"IFERROR(INDEX(OpzegArbeiders[OPZEG DOOR DE WERKGEVER],MATCH(L184,OpzegArbeiders[X],1),1),\"-\")","v":"-"},"-",{"$f":"IFERROR(INDEX(OpzegArbeiders[OPZEG DOOR DE WERKNEMER],MATCH(L184,OpzegArbeiders[X],1),1),\"-\")","v":"-"},"-","-","-"]
[null,null,null,null,null,null,181,null,null,null,null,"-",{"$f":"IFERROR(INDEX(OpzegArbeiders[OPZEG DOOR DE WERKGEVER],MATCH(L185,OpzegArbeiders[X],1),1),\"-\")","v":"-"},"-",{"$f":"IFERROR(INDEX(OpzegArbeiders[OPZEG DOOR DE WERKNEMER],MATCH(L185,OpzegArbeiders[X],1),1),\"-\")","v":"-"},"-","-","-"]
[null,null,null,null,null,null,182,null,null,null,null,"-",{"$f":"IFERROR(INDEX(OpzegArbeiders[OPZEG DOOR DE WERKGEVER],MATCH(L186,OpzegArbeiders[X],1),1),\"-\")","v":"-"},"-",{"$f":"IFERROR(INDEX(OpzegArbeiders[OPZEG DOOR DE WERKNEMER],MATCH(L186,OpzegArbeiders[X],1),1),\"-\")","v":"-"},"-","-","-"]
[null,null,null,null,null,null,183,null,null,null,null,"-",{"$f":"IFERROR(INDEX(OpzegArbeiders[OPZEG DOOR DE WERKGEVER],MATCH(L187,OpzegArbeiders[X],1),1),\"-\")","v":"-"},"-",{"$f":"IFERROR(INDEX(OpzegArbeiders[OPZEG DOOR DE WERKNEMER],MATCH(L187,OpzegArbeiders[X],1),1),\"-\")","v":"-"},"-","-","-"]
[null,null,null,null,null,null,184,null,null,null,null,"-",{"$f":"IFERROR(INDEX(OpzegArbeiders[OPZEG DOOR DE WERKGEVER],MATCH(L188,OpzegArbeiders[X],1),1),\"-\")","v":"-"},"-",{"$f":"IFERROR(INDEX(OpzegArbeiders[OPZEG DOOR DE WERKNEMER],MATCH(L188,OpzegArbeiders[X],1),1),\"-\")","v":"-"},"-","-","-"]
[null,null,null,null,null,null,185,null,null,null,null,"-",{"$f":"IFERROR(INDEX(OpzegArbeiders[OPZEG DOOR DE WERKGEVER],MATCH(L189,OpzegArbeiders[X],1),1),\"-\")","v":"-"},"-",{"$f":"IFERROR(INDEX(OpzegArbeiders[OPZEG DOOR DE WERKNEMER],MATCH(L189,OpzegArbeiders[X],1),1),\"-\")","v":"-"},"-","-","-"]
[null,null,null,null,null,null,186,null,null,null,null,"-",{"$f":"IFERROR(INDEX(OpzegArbeiders[OPZEG DOOR DE WERKGEVER],MATCH(L190,OpzegArbeiders[X],1),1),\"-\")","v":"-"},"-",{"$f":"IFERROR(INDEX(OpzegArbeiders[OPZEG DOOR DE WERKNEMER],MATCH(L190,OpzegArbeiders[X],1),1),\"-\")","v":"-"},"-","-","-"]
[null,null,null,null,null,null,187,null,null,null,null,"-",{"$f":"IFERROR(INDEX(OpzegArbeiders[OPZEG DOOR DE WERKGEVER],MATCH(L191,OpzegArbeiders[X],1),1),\"-\")","v":"-"},"-",{"$f":"IFERROR(INDEX(OpzegArbeiders[OPZEG DOOR DE WERKNEMER],MATCH(L191,OpzegArbeiders[X],1),1),\"-\")","v":"-"},"-","-","-"]
[null,null,null,null,null,null,188,null,null,null,null,"-",{"$f":"IFERROR(INDEX(OpzegArbeiders[OPZEG DOOR DE WERKGEVER],MATCH(L192,OpzegArbeiders[X],1),1),\"-\")","v":"-"},"-",{"$f":"IFERROR(INDEX(OpzegArbeiders[OPZEG DOOR DE WERKNEMER],MATCH(L192,OpzegArbeiders[X],1),1),\"-\")","v":"-"},"-","-","-"]
[null,null,null,null,null,null,189,null,null,null,null,"-",{"$f":"IFERROR(INDEX(OpzegArbeiders[OPZEG DOOR DE WERKGEVER],MATCH(L193,OpzegArbeiders[X],1),1),\"-\")","v":"-"},"-",{"$f":"IFERROR(INDEX(OpzegArbeiders[OPZEG DOOR DE WERKNEMER],MATCH(L193,OpzegArbeiders[X],1),1),\"-\")","v":"-"},"-","-","-"]
[null,null,null,null,null,null,190,null,null,null,null,"-",{"$f":"IFERROR(INDEX(OpzegArbeiders[OPZEG DOOR DE WERKGEVER],MATCH(L194,OpzegArbeiders[X],1),1),\"-\")","v":"-"},"-",{"$f":"IFERROR(INDEX(OpzegArbeiders[OPZEG DOOR DE WERKNEMER],MATCH(L194,OpzegArbeiders[X],1),1),\"-\")","v":"-"},"-","-","-"]
[null,null,null,null,null,null,191,null,null,null,null,"-",{"$f":"IFERROR(INDEX(OpzegArbeiders[OPZEG DOOR DE WERKGEVER],MATCH(L195,OpzegArbeiders[X],1),1),\"-\")","v":"-"},"-",{"$f":"IFERROR(INDEX(OpzegArbeiders[OPZEG DOOR DE WERKNEMER],MATCH(L195,OpzegArbeiders[X],1),1),\"-\")","v":"-"},"-","-","-"]
[null,null,null,null,null,null,192,null,null,null,null,"-",{"$f":"IFERROR(INDEX(OpzegArbeiders[OPZEG DOOR DE WERKGEVER],MATCH(L196,OpzegArbeiders[X],1),1),\"-\")","v":"-"},"-",{"$f":"IFERROR(INDEX(OpzegArbeiders[OPZEG DOOR DE WERKNEMER],MATCH(L196,OpzegArbeiders[X],1),1),\"-\")","v":"-"},"-","-","-"]
[null,null,null,null,null,null,193,null,null,null,null,"-",{"$f":"IFERROR(INDEX(OpzegArbeiders[OPZEG DOOR DE WERKGEVER],MATCH(L197,OpzegArbeiders[X],1),1),\"-\")","v":"-"},"-",{"$f":"IFERROR(INDEX(OpzegArbeiders[OPZEG DOOR DE WERKNEMER],MATCH(L197,OpzegArbeiders[X],1),1),\"-\")","v":"-"},"-","-","-"]
[null,null,null,null,null,null,194,null,null,null,null,{"$f":"IF(OR(H198<>\"\",J198<>\"\"),(DATEDIF(K198-1,DATE(2013,12,31),\"y\"))+(DATEDIF(K198-1,DATE(2013,12,31),\"ym\")/12)+(DATEDIF(K198-1,DATE(2013,12,31),\"md\")/365.25),\"-\")","v":"-"},{"$f":"IFERROR(INDEX(OpzegArbeiders[OPZEG DOOR DE WERKGEVER],MATCH(L198,OpzegArbeiders[X],1),1),\"-\")","v":"-"},{"$f":"IFERROR(M198/7,\"-\")","v":"-"},{"$f":"IFERROR(INDEX(OpzegArbeiders[OPZEG DOOR DE WERKNEMER],MATCH(L198,OpzegArbeiders[X],1),1),\"-\")","v":"-"},{"$f":"IFERROR(O198/7,\"-\")","v":"-"},{"$f":"IF(OR(ISTEXT(H198),ISTEXT(I198)),H198&\" \"&I198,\"-\")","v":"-"},{"$f":"IF(ISBLANK(J198),\"-\",J198)","v":"-"}]
[null,null,null,null,null,null,195,null,null,null,null,"-",{"$f":"IFERROR(INDEX(OpzegArbeiders[OPZEG DOOR DE WERKGEVER],MATCH(L199,OpzegArbeiders[X],1),1),\"-\")","v":"-"},"-",{"$f":"IFERROR(INDEX(OpzegArbeiders[OPZEG DOOR DE WERKNEMER],MATCH(L199,OpzegArbeiders[X],1),1),\"-\")","v":"-"},"-","-","-"]
[null,null,null,null,null,null,196,null,null,null,null,"-",{"$f":"IFERROR(INDEX(OpzegArbeiders[OPZEG DOOR DE WERKGEVER],MATCH(L200,OpzegArbeiders[X],1),1),\"-\")","v":"-"},"-",{"$f":"IFERROR(INDEX(OpzegArbeiders[OPZEG DOOR DE WERKNEMER],MATCH(L200,OpzegArbeiders[X],1),1),\"-\")","v":"-"},"-","-","-"]
[null,null,null,null,null,null,197,null,null,null,null,"-",{"$f":"IFERROR(INDEX(OpzegArbeiders[OPZEG DOOR DE WERKGEVER],MATCH(L201,OpzegArbeiders[X],1),1),\"-\")","v":"-"},"-",{"$f":"IFERROR(INDEX(OpzegArbeiders[OPZEG DOOR DE WERKNEMER],MATCH(L201,OpzegArbeiders[X],1),1),\"-\")","v":"-"},"-","-","-"]
[null,null,null,null,null,null,198,null,null,null,null,"-",{"$f":"IFERROR(INDEX(OpzegArbeiders[OPZEG DOOR DE WERKGEVER],MATCH(L202,OpzegArbeiders[X],1),1),\"-\")","v":"-"},"-",{"$f":"IFERROR(INDEX(OpzegArbeiders[OPZEG DOOR DE WERKNEMER],MATCH(L202,OpzegArbeiders[X],1),1),\"-\")","v":"-"},"-","-","-"]
[null,null,null,null,null,null,199,null,null,null,null,"-",{"$f":"IFERROR(INDEX(OpzegArbeiders[OPZEG DOOR DE WERKGEVER],MATCH(L203,OpzegArbeiders[X],1),1),\"-\")","v":"-"},"-",{"$f":"IFERROR(INDEX(OpzegArbeiders[OPZEG DOOR DE WERKNEMER],MATCH(L203,OpzegArbeiders[X],1),1),\"-\")","v":"-"},"-","-","-"]
[null,null,null,null,null,null,200,null,null,null,null,"-",{"$f":"IFERROR(INDEX(OpzegArbeiders[OPZEG DOOR DE WERKGEVER],MATCH(L204,OpzegArbeiders[X],1),1),\"-\")","v":"-"},"-",{"$f":"IFERROR(INDEX(OpzegArbeiders[OPZEG DOOR DE WERKNEMER],MATCH(L204,OpzegArbeiders[X],1),1),\"-\")","v":"-"},"-","-","-"]
[null,null,null,null,null,null,201,null,null,null,null,"-",{"$f":"IFERROR(INDEX(OpzegArbeiders[OPZEG DOOR DE WERKGEVER],MATCH(L205,OpzegArbeiders[X],1),1),\"-\")","v":"-"},"-",{"$f":"IFERROR(INDEX(OpzegArbeiders[OPZEG DOOR DE WERKNEMER],MATCH(L205,OpzegArbeiders[X],1),1),\"-\")","v":"-"},"-","-","-"]
[null,null,null,null,null,null,202,null,null,null,null,"-",{"$f":"IFERROR(INDEX(OpzegArbeiders[OPZEG DOOR DE WERKGEVER],MATCH(L206,OpzegArbeiders[X],1),1),\"-\")","v":"-"},"-",{"$f":"IFERROR(INDEX(OpzegArbeiders[OPZEG DOOR DE WERKNEMER],MATCH(L206,OpzegArbeiders[X],1),1),\"-\")","v":"-"},"-","-","-"]
[null,null,null,null,null,null,203,null,null,null,null,"-",{"$f":"IFERROR(INDEX(OpzegArbeiders[OPZEG DOOR DE WERKGEVER],MATCH(L207,OpzegArbeiders[X],1),1),\"-\")","v":"-"},"-",{"$f":"IFERROR(INDEX(OpzegArbeiders[OPZEG DOOR DE WERKNEMER],MATCH(L207,OpzegArbeiders[X],1),1),\"-\")","v":"-"},"-","-","-"]
[null,null,null,null,null,null,204,null,null,null,null,"-",{"$f":"IFERROR(INDEX(OpzegArbeiders[OPZEG DOOR DE WERKGEVER],MATCH(L208,OpzegArbeiders[X],1),1),\"-\")","v":"-"},"-",{"$f":"IFERROR(INDEX(OpzegArbeiders[OPZEG DOOR DE WERKNEMER],MATCH(L208,OpzegArbeiders[X],1),1),\"-\")","v":"-"},"-","-","-"]
[null,null,null,null,null,null,205,null,null,null,null,"-",{"$f":"IFERROR(INDEX(OpzegArbeiders[OPZEG DOOR DE WERKGEVER],MATCH(L209,OpzegArbeiders[X],1),1),\"-\")","v":"-"},"-",{"$f":"IFERROR(INDEX(OpzegArbeiders[OPZEG DOOR DE WERKNEMER],MATCH(L209,OpzegArbeiders[X],1),1),\"-\")","v":"-"},"-","-","-"]
[null,null,null,null,null,null,206,null,null,null,null,"-",{"$f":"IFERROR(INDEX(OpzegArbeiders[OPZEG DOOR DE WERKGEVER],MATCH(L210,OpzegArbeiders[X],1),1),\"-\")","v":"-"},"-",{"$f":"IFERROR(INDEX(OpzegArbeiders[OPZEG DOOR DE WERKNEMER],MATCH(L210,OpzegArbeiders[X],1),1),\"-\")","v":"-"},"-","-","-"]
[null,null,null,null,null,null,207,null,null,null,null,"-",{"$f":"IFERROR(INDEX(OpzegArbeiders[OPZEG DOOR DE WERKGEVER],MATCH(L211,OpzegArbeiders[X],1),1),\"-\")","v":"-"},"-",{"$f":"IFERROR(INDEX(OpzegArbeiders[OPZEG DOOR DE WERKNEMER],MATCH(L211,OpzegArbeiders[X],1),1),\"-\")","v":"-"},"-","-","-"]
[null,null,null,null,null,null,208,null,null,null,null,"-",{"$f":"IFERROR(INDEX(OpzegArbeiders[OPZEG DOOR DE WERKGEVER],MATCH(L212,OpzegArbeiders[X],1),1),\"-\")","v":"-"},"-",{"$f":"IFERROR(INDEX(OpzegArbeiders[OPZEG DOOR DE WERKNEMER],MATCH(L212,OpzegArbeiders[X],1),1),\"-\")","v":"-"},"-","-","-"]
[null,null,null,null,null,null,209,null,null,null,null,"-",{"$f":"IFERROR(INDEX(OpzegArbeiders[OPZEG DOOR DE WERKGEVER],MATCH(L213,OpzegArbeiders[X],1),1),\"-\")","v":"-"},"-",{"$f":"IFERROR(INDEX(OpzegArbeiders[OPZEG DOOR DE WERKNEMER],MATCH(L213,OpzegArbeiders[X],1),1),\"-\")","v":"-"},"-","-","-"]
[null,null,null,null,null,null,210,null,null,null,null,"-",{"$f":"IFERROR(INDEX(OpzegArbeiders[OPZEG DOOR DE WERKGEVER],MATCH(L214,OpzegArbeiders[X],1),1),\"-\")","v":"-"},"-",{"$f":"IFERROR(INDEX(OpzegArbeiders[OPZEG DOOR DE WERKNEMER],MATCH(L214,OpzegArbeiders[X],1),1),\"-\")","v":"-"},"-","-","-"]
[null,null,null,null,null,null,211,null,null,null,null,"-",{"$f":"IFERROR(INDEX(OpzegArbeiders[OPZEG DOOR DE WERKGEVER],MATCH(L215,OpzegArbeiders[X],1),1),\"-\")","v":"-"},"-",{"$f":"IFERROR(INDEX(OpzegArbeiders[OPZEG DOOR DE WERKNEMER],MATCH(L215,OpzegArbeiders[X],1),1),\"-\")","v":"-"},"-","-","-"]
[null,null,null,null,null,null,212,null,null,null,null,"-",{"$f":"IFERROR(INDEX(OpzegArbeiders[OPZEG DOOR DE WERKGEVER],MATCH(L216,OpzegArbeiders[X],1),1),\"-\")","v":"-"},"-",{"$f":"IFERROR(INDEX(OpzegArbeiders[OPZEG DOOR DE WERKNEMER],MATCH(L216,OpzegArbeiders[X],1),1),\"-\")","v":"-"},"-","-","-"]
[null,null,null,null,null,null,213,null,null,null,null,"-",{"$f":"IFERROR(INDEX(OpzegArbeiders[OPZEG DOOR DE WERKGEVER],MATCH(L217,OpzegArbeiders[X],1),1),\"-\")","v":"-"},"-",{"$f":"IFERROR(INDEX(OpzegArbeiders[OPZEG DOOR DE WERKNEMER],MATCH(L217,OpzegArbeiders[X],1),1),\"-\")","v":"-"},"-","-","-"]
[null,null,null,null,null,null,214,null,null,null,null,"-",{"$f":"IFERROR(INDEX(OpzegArbeiders[OPZEG DOOR DE WERKGEVER],MATCH(L218,OpzegArbeiders[X],1),1),\"-\")","v":"-"},"-",{"$f":"IFERROR(INDEX(OpzegArbeiders[OPZEG DOOR DE WERKNEMER],MATCH(L218,OpzegArbeiders[X],1),1),\"-\")","v":"-"},"-","-","-"]
[null,null,null,null,null,null,215,null,null,null,null,"-",{"$f":"IFERROR(INDEX(OpzegArbeiders[OPZEG DOOR DE WERKGEVER],MATCH(L219,OpzegArbeiders[X],1),1),\"-\")","v":"-"},"-",{"$f":"IFERROR(INDEX(OpzegArbeiders[OPZEG DOOR DE WERKNEMER],MATCH(L219,OpzegArbeiders[X],1),1),\"-\")","v":"-"},"-","-","-"]
[null,null,null,null,null,null,216,null,null,null,null,"-",{"$f":"IFERROR(INDEX(OpzegArbeiders[OPZEG DOOR DE WERKGEVER],MATCH(L220,OpzegArbeiders[X],1),1),\"-\")","v":"-"},"-",{"$f":"IFERROR(INDEX(OpzegArbeiders[OPZEG DOOR DE WERKNEMER],MATCH(L220,OpzegArbeiders[X],1),1),\"-\")","v":"-"},"-","-","-"]
[null,null,null,null,null,null,217,null,null,null,null,"-",{"$f":"IFERROR(INDEX(OpzegArbeiders[OPZEG DOOR DE WERKGEVER],MATCH(L221,OpzegArbeiders[X],1),1),\"-\")","v":"-"},"-",{"$f":"IFERROR(INDEX(OpzegArbeiders[OPZEG DOOR DE WERKNEMER],MATCH(L221,OpzegArbeiders[X],1),1),\"-\")","v":"-"},"-","-","-"]
[null,null,null,null,null,null,218,null,null,null,null,"-",{"$f":"IFERROR(INDEX(OpzegArbeiders[OPZEG DOOR DE WERKGEVER],MATCH(L222,OpzegArbeiders[X],1),1),\"-\")","v":"-"},"-",{"$f":"IFERROR(INDEX(OpzegArbeiders[OPZEG DOOR DE WERKNEMER],MATCH(L222,OpzegArbeiders[X],1),1),\"-\")","v":"-"},"-","-","-"]
[null,null,null,null,null,null,219,null,null,null,null,"-",{"$f":"IFERROR(INDEX(OpzegArbeiders[OPZEG DOOR DE WERKGEVER],MATCH(L223,OpzegArbeiders[X],1),1),\"-\")","v":"-"},"-",{"$f":"IFERROR(INDEX(OpzegArbeiders[OPZEG DOOR DE WERKNEMER],MATCH(L223,OpzegArbeiders[X],1),1),\"-\")","v":"-"},"-","-","-"]
[null,null,null,null,null,null,220,null,null,null,null,"-",{"$f":"IFERROR(INDEX(OpzegArbeiders[OPZEG DOOR DE WERKGEVER],MATCH(L224,OpzegArbeiders[X],1),1),\"-\")","v":"-"},"-",{"$f":"IFERROR(INDEX(OpzegArbeiders[OPZEG DOOR DE WERKNEMER],MATCH(L224,OpzegArbeiders[X],1),1),\"-\")","v":"-"},"-","-","-"]
[null,null,null,null,null,null,221,null,null,null,null,"-",{"$f":"IFERROR(INDEX(OpzegArbeiders[OPZEG DOOR DE WERKGEVER],MATCH(L225,OpzegArbeiders[X],1),1),\"-\")","v":"-"},"-",{"$f":"IFERROR(INDEX(OpzegArbeiders[OPZEG DOOR DE WERKNEMER],MATCH(L225,OpzegArbeiders[X],1),1),\"-\")","v":"-"},"-","-","-"]
[null,null,null,null,null,null,222,null,null,null,null,"-",{"$f":"IFERROR(INDEX(OpzegArbeiders[OPZEG DOOR DE WERKGEVER],MATCH(L226,OpzegArbeiders[X],1),1),\"-\")","v":"-"},"-",{"$f":"IFERROR(INDEX(OpzegArbeiders[OPZEG DOOR DE WERKNEMER],MATCH(L226,OpzegArbeiders[X],1),1),\"-\")","v":"-"},"-","-","-"]
[null,null,null,null,null,null,223,null,null,null,null,"-",{"$f":"IFERROR(INDEX(OpzegArbeiders[OPZEG DOOR DE WERKGEVER],MATCH(L227,OpzegArbeiders[X],1),1),\"-\")","v":"-"},"-",{"$f":"IFERROR(INDEX(OpzegArbeiders[OPZEG DOOR DE WERKNEMER],MATCH(L227,OpzegArbeiders[X],1),1),\"-\")","v":"-"},"-","-","-"]
[null,null,null,null,null,null,224,null,null,null,null,"-",{"$f":"IFERROR(INDEX(OpzegArbeiders[OPZEG DOOR DE WERKGEVER],MATCH(L228,OpzegArbeiders[X],1),1),\"-\")","v":"-"},"-",{"$f":"IFERROR(INDEX(OpzegArbeiders[OPZEG DOOR DE WERKNEMER],MATCH(L228,OpzegArbeiders[X],1),1),\"-\")","v":"-"},"-","-","-"]
[null,null,null,null,null,null,225,null,null,null,null,"-",{"$f":"IFERROR(INDEX(OpzegArbeiders[OPZEG DOOR DE WERKGEVER],MATCH(L229,OpzegArbeiders[X],1),1),\"-\")","v":"-"},"-",{"$f":"IFERROR(INDEX(OpzegArbeiders[OPZEG DOOR DE WERKNEMER],MATCH(L229,OpzegArbeiders[X],1),1),\"-\")","v":"-"},"-","-","-"]
[null,null,null,null,null,null,226,null,null,null,null,"-",{"$f":"IFERROR(INDEX(OpzegArbeiders[OPZEG DOOR DE WERKGEVER],MATCH(L230,OpzegArbeiders[X],1),1),\"-\")","v":"-"},"-",{"$f":"IFERROR(INDEX(OpzegArbeiders[OPZEG DOOR DE WERKNEMER],MATCH(L230,OpzegArbeiders[X],1),1),\"-\")","v":"-"},"-","-","-"]
[null,null,null,null,null,null,227,null,null,null,null,"-",{"$f":"IFERROR(INDEX(OpzegArbeiders[OPZEG DOOR DE WERKGEVER],MATCH(L231,OpzegArbeiders[X],1),1),\"-\")","v":"-"},"-",{"$f":"IFERROR(INDEX(OpzegArbeiders[OPZEG DOOR DE WERKNEMER],MATCH(L231,OpzegArbeiders[X],1),1),\"-\")","v":"-"},"-","-","-"]
[null,null,null,null,null,null,228,null,null,null,null,"-",{"$f":"IFERROR(INDEX(OpzegArbeiders[OPZEG DOOR DE WERKGEVER],MATCH(L232,OpzegArbeiders[X],1),1),\"-\")","v":"-"},"-",{"$f":"IFERROR(INDEX(OpzegArbeiders[OPZEG DOOR DE WERKNEMER],MATCH(L232,OpzegArbeiders[X],1),1),\"-\")","v":"-"},"-","-","-"]
[null,null,null,null,null,null,229,null,null,null,null,"-",{"$f":"IFERROR(INDEX(OpzegArbeiders[OPZEG DOOR DE WERKGEVER],MATCH(L233,OpzegArbeiders[X],1),1),\"-\")","v":"-"},"-",{"$f":"IFERROR(INDEX(OpzegArbeiders[OPZEG DOOR DE WERKNEMER],MATCH(L233,OpzegArbeiders[X],1),1),\"-\")","v":"-"},"-","-","-"]
[null,null,null,null,null,null,230,null,null,null,null,"-",{"$f":"IFERROR(INDEX(OpzegArbeiders[OPZEG DOOR DE WERKGEVER],MATCH(L234,OpzegArbeiders[X],1),1),\"-\")","v":"-"},"-",{"$f":"IFERROR(INDEX(OpzegArbeiders[OPZEG DOOR DE WERKNEMER],MATCH(L234,OpzegArbeiders[X],1),1),\"-\")","v":"-"},"-","-","-"]
[null,null,null,null,null,null,231,null,null,null,null,"-",{"$f":"IFERROR(INDEX(OpzegArbeiders[OPZEG DOOR DE WERKGEVER],MATCH(L235,OpzegArbeiders[X],1),1),\"-\")","v":"-"},"-",{"$f":"IFERROR(INDEX(OpzegArbeiders[OPZEG DOOR DE WERKNEMER],MATCH(L235,OpzegArbeiders[X],1),1),\"-\")","v":"-"},"-","-","-"]
[null,null,null,null,null,null,232,null,null,null,null,"-",{"$f":"IFERROR(INDEX(OpzegArbeiders[OPZEG DOOR DE WERKGEVER],MATCH(L236,OpzegArbeiders[X],1),1),\"-\")","v":"-"},"-",{"$f":"IFERROR(INDEX(OpzegArbeiders[OPZEG DOOR DE WERKNEMER],MATCH(L236,OpzegArbeiders[X],1),1),\"-\")","v":"-"},"-","-","-"]
[null,null,null,null,null,null,233,null,null,null,null,"-",{"$f":"IFERROR(INDEX(OpzegArbeiders[OPZEG DOOR DE WERKGEVER],MATCH(L237,OpzegArbeiders[X],1),1),\"-\")","v":"-"},"-",{"$f":"IFERROR(INDEX(OpzegArbeiders[OPZEG DOOR DE WERKNEMER],MATCH(L237,OpzegArbeiders[X],1),1),\"-\")","v":"-"},"-","-","-"]
[null,null,null,null,null,null,234,null,null,null,null,"-",{"$f":"IFERROR(INDEX(OpzegArbeiders[OPZEG DOOR DE WERKGEVER],MATCH(L238,OpzegArbeiders[X],1),1),\"-\")","v":"-"},"-",{"$f":"IFERROR(INDEX(OpzegArbeiders[OPZEG DOOR DE WERKNEMER],MATCH(L238,OpzegArbeiders[X],1),1),\"-\")","v":"-"},"-","-","-"]
[null,null,null,null,null,null,235,null,null,null,null,"-",{"$f":"IFERROR(INDEX(OpzegArbeiders[OPZEG DOOR DE WERKGEVER],MATCH(L239,OpzegArbeiders[X],1),1),\"-\")","v":"-"},"-",{"$f":"IFERROR(INDEX(OpzegArbeiders[OPZEG DOOR DE WERKNEMER],MATCH(L239,OpzegArbeiders[X],1),1),\"-\")","v":"-"},"-","-","-"]
[null,null,null,null,null,null,236,null,null,null,null,"-",{"$f":"IFERROR(INDEX(OpzegArbeiders[OPZEG DOOR DE WERKGEVER],MATCH(L240,OpzegArbeiders[X],1),1),\"-\")","v":"-"},"-",{"$f":"IFERROR(INDEX(OpzegArbeiders[OPZEG DOOR DE WERKNEMER],MATCH(L240,OpzegArbeiders[X],1),1),\"-\")","v":"-"},"-","-","-"]
[null,null,null,null,null,null,237,null,null,null,null,"-",{"$f":"IFERROR(INDEX(OpzegArbeiders[OPZEG DOOR DE WERKGEVER],MATCH(L241,OpzegArbeiders[X],1),1),\"-\")","v":"-"},"-",{"$f":"IFERROR(INDEX(OpzegArbeiders[OPZEG DOOR DE WERKNEMER],MATCH(L241,OpzegArbeiders[X],1),1),\"-\")","v":"-"},"-","-","-"]
[null,null,null,null,null,null,238,null,null,null,null,"-",{"$f":"IFERROR(INDEX(OpzegArbeiders[OPZEG DOOR DE WERKGEVER],MATCH(L242,OpzegArbeiders[X],1),1),\"-\")","v":"-"},"-",{"$f":"IFERROR(INDEX(OpzegArbeiders[OPZEG DOOR DE WERKNEMER],MATCH(L242,OpzegArbeiders[X],1),1),\"-\")","v":"-"},"-","-","-"]
[null,null,null,null,null,null,239,null,null,null,null,"-",{"$f":"IFERROR(INDEX(OpzegArbeiders[OPZEG DOOR DE WERKGEVER],MATCH(L243,OpzegArbeiders[X],1),1),\"-\")","v":"-"},"-",{"$f":"IFERROR(INDEX(OpzegArbeiders[OPZEG DOOR DE WERKNEMER],MATCH(L243,OpzegArbeiders[X],1),1),\"-\")","v":"-"},"-","-","-"]
[null,null,null,null,null,null,240,null,null,null,null,"-",{"$f":"IFERROR(INDEX(OpzegArbeiders[OPZEG DOOR DE WERKGEVER],MATCH(L244,OpzegArbeiders[X],1),1),\"-\")","v":"-"},"-",{"$f":"IFERROR(INDEX(OpzegArbeiders[OPZEG DOOR DE WERKNEMER],MATCH(L244,OpzegArbeiders[X],1),1),\"-\")","v":"-"},"-","-","-"]
[null,null,null,null,null,null,241,null,null,null,null,"-",{"$f":"IFERROR(INDEX(OpzegArbeiders[OPZEG DOOR DE WERKGEVER],MATCH(L245,OpzegArbeiders[X],1),1),\"-\")","v":"-"},"-",{"$f":"IFERROR(INDEX(OpzegArbeiders[OPZEG DOOR DE WERKNEMER],MATCH(L245,OpzegArbeiders[X],1),1),\"-\")","v":"-"},"-","-","-"]
[null,null,null,null,null,null,242,null,null,null,null,"-",{"$f":"IFERROR(INDEX(OpzegArbeiders[OPZEG DOOR DE WERKGEVER],MATCH(L246,OpzegArbeiders[X],1),1),\"-\")","v":"-"},"-",{"$f":"IFERROR(INDEX(OpzegArbeiders[OPZEG DOOR DE WERKNEMER],MATCH(L246,OpzegArbeiders[X],1),1),\"-\")","v":"-"},"-","-","-"]
[null,null,null,null,null,null,243,null,null,null,null,"-",{"$f":"IFERROR(INDEX(OpzegArbeiders[OPZEG DOOR DE WERKGEVER],MATCH(L247,OpzegArbeiders[X],1),1),\"-\")","v":"-"},"-",{"$f":"IFERROR(INDEX(OpzegArbeiders[OPZEG DOOR DE WERKNEMER],MATCH(L247,OpzegArbeiders[X],1),1),\"-\")","v":"-"},"-","-","-"]
[null,null,null,null,null,null,244,null,null,null,null,"-",{"$f":"IFERROR(INDEX(OpzegArbeiders[OPZEG DOOR DE WERKGEVER],MATCH(L248,OpzegArbeiders[X],1),1),\"-\")","v":"-"},"-",{"$f":"IFERROR(INDEX(OpzegArbeiders[OPZEG DOOR DE WERKNEMER],MATCH(L248,OpzegArbeiders[X],1),1),\"-\")","v":"-"},"-","-","-"]
[null,null,null,null,null,null,245,null,null,null,null,"-",{"$f":"IFERROR(INDEX(OpzegArbeiders[OPZEG DOOR DE WERKGEVER],MATCH(L249,OpzegArbeiders[X],1),1),\"-\")","v":"-"},"-",{"$f":"IFERROR(INDEX(OpzegArbeiders[OPZEG DOOR DE WERKNEMER],MATCH(L249,OpzegArbeiders[X],1),1),\"-\")","v":"-"},"-","-","-"]
[null,null,null,null,null,null,246,null,null,null,null,"-",{"$f":"IFERROR(INDEX(OpzegArbeiders[OPZEG DOOR DE WERKGEVER],MATCH(L250,OpzegArbeiders[X],1),1),\"-\")","v":"-"},"-",{"$f":"IFERROR(INDEX(OpzegArbeiders[OPZEG DOOR DE WERKNEMER],MATCH(L250,OpzegArbeiders[X],1),1),\"-\")","v":"-"},"-","-","-"]
[null,null,null,null,null,null,247,null,null,null,null,"-",{"$f":"IFERROR(INDEX(OpzegArbeiders[OPZEG DOOR DE WERKGEVER],MATCH(L251,OpzegArbeiders[X],1),1),\"-\")","v":"-"},"-",{"$f":"IFERROR(INDEX(OpzegArbeiders[OPZEG DOOR DE WERKNEMER],MATCH(L251,OpzegArbeiders[X],1),1),\"-\")","v":"-"},"-","-","-"]
[null,null,null,null,null,null,248,null,null,null,null,"-",{"$f":"IFERROR(INDEX(OpzegArbeiders[OPZEG DOOR DE WERKGEVER],MATCH(L252,OpzegArbeiders[X],1),1),\"-\")","v":"-"},"-",{"$f":"IFERROR(INDEX(OpzegArbeiders[OPZEG DOOR DE WERKNEMER],MATCH(L252,OpzegArbeiders[X],1),1),\"-\")","v":"-"},"-","-","-"]
[null,null,null,null,null,null,249,null,null,null,null,"-",{"$f":"IFERROR(INDEX(OpzegArbeiders[OPZEG DOOR DE WERKGEVER],MATCH(L253,OpzegArbeiders[X],1),1),\"-\")","v":"-"},"-",{"$f":"IFERROR(INDEX(OpzegArbeiders[OPZEG DOOR DE WERKNEMER],MATCH(L253,OpzegArbeiders[X],1),1),\"-\")","v":"-"},"-","-","-"]
[null,null,null,null,null,null,250,null,null,null,null,"-",{"$f":"IFERROR(INDEX(OpzegArbeiders[OPZEG DOOR DE WERKGEVER],MATCH(L254,OpzegArbeiders[X],1),1),\"-\")","v":"-"},"-",{"$f":"IFERROR(INDEX(OpzegArbeiders[OPZEG DOOR DE WERKNEMER],MATCH(L254,OpzegArbeiders[X],1),1),\"-\")","v":"-"},"-","-","-"]
[null,null,null,null,null,null,251,null,null,null,null,"-",{"$f":"IFERROR(INDEX(OpzegArbeiders[OPZEG DOOR DE WERKGEVER],MATCH(L255,OpzegArbeiders[X],1),1),\"-\")","v":"-"},"-",{"$f":"IFERROR(INDEX(OpzegArbeiders[OPZEG DOOR DE WERKNEMER],MATCH(L255,OpzegArbeiders[X],1),1),\"-\")","v":"-"},"-","-","-"]
[null,null,null,null,null,null,252,null,null,null,null,"-",{"$f":"IFERROR(INDEX(OpzegArbeiders[OPZEG DOOR DE WERKGEVER],MATCH(L256,OpzegArbeiders[X],1),1),\"-\")","v":"-"},"-",{"$f":"IFERROR(INDEX(OpzegArbeiders[OPZEG DOOR DE WERKNEMER],MATCH(L256,OpzegArbeiders[X],1),1),\"-\")","v":"-"},"-","-","-"]
[null,null,null,null,null,null,253,null,null,null,null,"-",{"$f":"IFERROR(INDEX(OpzegArbeiders[OPZEG DOOR DE WERKGEVER],MATCH(L257,OpzegArbeiders[X],1),1),\"-\")","v":"-"},"-",{"$f":"IFERROR(INDEX(OpzegArbeiders[OPZEG DOOR DE WERKNEMER],MATCH(L257,OpzegArbeiders[X],1),1),\"-\")","v":"-"},"-","-","-"]
[null,null,null,null,null,null,254,null,null,null,null,"-",{"$f":"IFERROR(INDEX(OpzegArbeiders[OPZEG DOOR DE WERKGEVER],MATCH(L258,OpzegArbeiders[X],1),1),\"-\")","v":"-"},"-",{"$f":"IFERROR(INDEX(OpzegArbeiders[OPZEG DOOR DE WERKNEMER],MATCH(L258,OpzegArbeiders[X],1),1),\"-\")","v":"-"},"-","-","-"]
[null,null,null,null,null,null,255,null,null,null,null,"-",{"$f":"IFERROR(INDEX(OpzegArbeiders[OPZEG DOOR DE WERKGEVER],MATCH(L259,OpzegArbeiders[X],1),1),\"-\")","v":"-"},"-",{"$f":"IFERROR(INDEX(OpzegArbeiders[OPZEG DOOR DE WERKNEMER],MATCH(L259,OpzegArbeiders[X],1),1),\"-\")","v":"-"},"-","-","-"]
[null,null,null,null,null,null,256,null,null,null,null,"-",{"$f":"IFERROR(INDEX(OpzegArbeiders[OPZEG DOOR DE WERKGEVER],MATCH(L260,OpzegArbeiders[X],1),1),\"-\")","v":"-"},"-",{"$f":"IFERROR(INDEX(OpzegArbeiders[OPZEG DOOR DE WERKNEMER],MATCH(L260,OpzegArbeiders[X],1),1),\"-\")","v":"-"},"-","-","-"]
[null,null,null,null,null,null,257,null,null,null,null,"-",{"$f":"IFERROR(INDEX(OpzegArbeiders[OPZEG DOOR DE WERKGEVER],MATCH(L261,OpzegArbeiders[X],1),1),\"-\")","v":"-"},"-",{"$f":"IFERROR(INDEX(OpzegArbeiders[OPZEG DOOR DE WERKNEMER],MATCH(L261,OpzegArbeiders[X],1),1),\"-\")","v":"-"},"-","-","-"]
[null,null,null,null,null,null,258,null,null,null,null,{"$f":"IF(OR(H262<>\"\",J262<>\"\"),(DATEDIF(K262-1,DATE(2013,12,31),\"y\"))+(DATEDIF(K262-1,DATE(2013,12,31),\"ym\")/12)+(DATEDIF(K262-1,DATE(2013,12,31),\"md\")/365.25),\"-\")","v":"-"},{"$f":"IFERROR(INDEX(OpzegArbeiders[OPZEG DOOR DE WERKGEVER],MATCH(L262,OpzegArbeiders[X],1),1),\"-\")","v":"-"},{"$f":"IFERROR(M262/7,\"-\")","v":"-"},{"$f":"IFERROR(INDEX(OpzegArbeiders[OPZEG DOOR DE WERKNEMER],MATCH(L262,OpzegArbeiders[X],1),1),\"-\")","v":"-"},{"$f":"IFERROR(O262/7,\"-\")","v":"-"},{"$f":"IF(OR(ISTEXT(H262),ISTEXT(I262)),H262&\" \"&I262,\"-\")","v":"-"},{"$f":"IF(ISBLANK(J262),\"-\",J262)","v":"-"}]
[null,null,null,null,null,null,259,null,null,null,null,"-",{"$f":"IFERROR(INDEX(OpzegArbeiders[OPZEG DOOR DE WERKGEVER],MATCH(L263,OpzegArbeiders[X],1),1),\"-\")","v":"-"},"-",{"$f":"IFERROR(INDEX(OpzegArbeiders[OPZEG DOOR DE WERKNEMER],MATCH(L263,OpzegArbeiders[X],1),1),\"-\")","v":"-"},"-","-","-"]
[null,null,null,null,null,null,260,null,null,null,null,"-",{"$f":"IFERROR(INDEX(OpzegArbeiders[OPZEG DOOR DE WERKGEVER],MATCH(L264,OpzegArbeiders[X],1),1),\"-\")","v":"-"},"-",{"$f":"IFERROR(INDEX(OpzegArbeiders[OPZEG DOOR DE WERKNEMER],MATCH(L264,OpzegArbeiders[X],1),1),\"-\")","v":"-"},"-","-","-"]
[null,null,null,null,null,null,261,null,null,null,null,"-",{"$f":"IFERROR(INDEX(OpzegArbeiders[OPZEG DOOR DE WERKGEVER],MATCH(L265,OpzegArbeiders[X],1),1),\"-\")","v":"-"},"-",{"$f":"IFERROR(INDEX(OpzegArbeiders[OPZEG DOOR DE WERKNEMER],MATCH(L265,OpzegArbeiders[X],1),1),\"-\")","v":"-"},"-","-","-"]
[null,null,null,null,null,null,262,null,null,null,null,"-",{"$f":"IFERROR(INDEX(OpzegArbeiders[OPZEG DOOR DE WERKGEVER],MATCH(L266,OpzegArbeiders[X],1),1),\"-\")","v":"-"},"-",{"$f":"IFERROR(INDEX(OpzegArbeiders[OPZEG DOOR DE WERKNEMER],MATCH(L266,OpzegArbeiders[X],1),1),\"-\")","v":"-"},"-","-","-"]
[null,null,null,null,null,null,263,null,null,null,null,"-",{"$f":"IFERROR(INDEX(OpzegArbeiders[OPZEG DOOR DE WERKGEVER],MATCH(L267,OpzegArbeiders[X],1),1),\"-\")","v":"-"},"-",{"$f":"IFERROR(INDEX(OpzegArbeiders[OPZEG DOOR DE WERKNEMER],MATCH(L267,OpzegArbeiders[X],1),1),\"-\")","v":"-"},"-","-","-"]
[null,null,null,null,null,null,264,null,null,null,null,"-",{"$f":"IFERROR(INDEX(OpzegArbeiders[OPZEG DOOR DE WERKGEVER],MATCH(L268,OpzegArbeiders[X],1),1),\"-\")","v":"-"},"-",{"$f":"IFERROR(INDEX(OpzegArbeiders[OPZEG DOOR DE WERKNEMER],MATCH(L268,OpzegArbeiders[X],1),1),\"-\")","v":"-"},"-","-","-"]
[null,null,null,null,null,null,265,null,null,null,null,"-",{"$f":"IFERROR(INDEX(OpzegArbeiders[OPZEG DOOR DE WERKGEVER],MATCH(L269,OpzegArbeiders[X],1),1),\"-\")","v":"-"},"-",{"$f":"IFERROR(INDEX(OpzegArbeiders[OPZEG DOOR DE WERKNEMER],MATCH(L269,OpzegArbeiders[X],1),1),\"-\")","v":"-"},"-","-","-"]
[null,null,null,null,null,null,266,null,null,null,null,"-",{"$f":"IFERROR(INDEX(OpzegArbeiders[OPZEG DOOR DE WERKGEVER],MATCH(L270,OpzegArbeiders[X],1),1),\"-\")","v":"-"},"-",{"$f":"IFERROR(INDEX(OpzegArbeiders[OPZEG DOOR DE WERKNEMER],MATCH(L270,OpzegArbeiders[X],1),1),\"-\")","v":"-"},"-","-","-"]
[null,null,null,null,null,null,267,null,null,null,null,"-",{"$f":"IFERROR(INDEX(OpzegArbeiders[OPZEG DOOR DE WERKGEVER],MATCH(L271,OpzegArbeiders[X],1),1),\"-\")","v":"-"},"-",{"$f":"IFERROR(INDEX(OpzegArbeiders[OPZEG DOOR DE WERKNEMER],MATCH(L271,OpzegArbeiders[X],1),1),\"-\")","v":"-"},"-","-","-"]
[null,null,null,null,null,null,268,null,null,null,null,"-",{"$f":"IFERROR(INDEX(OpzegArbeiders[OPZEG DOOR DE WERKGEVER],MATCH(L272,OpzegArbeiders[X],1),1),\"-\")","v":"-"},"-",{"$f":"IFERROR(INDEX(OpzegArbeiders[OPZEG DOOR DE WERKNEMER],MATCH(L272,OpzegArbeiders[X],1),1),\"-\")","v":"-"},"-","-","-"]
[null,null,null,null,null,null,269,null,null,null,null,"-",{"$f":"IFERROR(INDEX(OpzegArbeiders[OPZEG DOOR DE WERKGEVER],MATCH(L273,OpzegArbeiders[X],1),1),\"-\")","v":"-"},"-",{"$f":"IFERROR(INDEX(OpzegArbeiders[OPZEG DOOR DE WERKNEMER],MATCH(L273,OpzegArbeiders[X],1),1),\"-\")","v":"-"},"-","-","-"]
[null,null,null,null,null,null,270,null,null,null,null,"-",{"$f":"IFERROR(INDEX(OpzegArbeiders[OPZEG DOOR DE WERKGEVER],MATCH(L274,OpzegArbeiders[X],1),1),\"-\")","v":"-"},"-",{"$f":"IFERROR(INDEX(OpzegArbeiders[OPZEG DOOR DE WERKNEMER],MATCH(L274,OpzegArbeiders[X],1),1),\"-\")","v":"-"},"-","-","-"]
[null,null,null,null,null,null,271,null,null,null,null,"-",{"$f":"IFERROR(INDEX(OpzegArbeiders[OPZEG DOOR DE WERKGEVER],MATCH(L275,OpzegArbeiders[X],1),1),\"-\")","v":"-"},"-",{"$f":"IFERROR(INDEX(OpzegArbeiders[OPZEG DOOR DE WERKNEMER],MATCH(L275,OpzegArbeiders[X],1),1),\"-\")","v":"-"},"-","-","-"]
[null,null,null,null,null,null,272,null,null,null,null,"-",{"$f":"IFERROR(INDEX(OpzegArbeiders[OPZEG DOOR DE WERKGEVER],MATCH(L276,OpzegArbeiders[X],1),1),\"-\")","v":"-"},"-",{"$f":"IFERROR(INDEX(OpzegArbeiders[OPZEG DOOR DE WERKNEMER],MATCH(L276,OpzegArbeiders[X],1),1),\"-\")","v":"-"},"-","-","-"]
[null,null,null,null,null,null,273,null,null,null,null,"-",{"$f":"IFERROR(INDEX(OpzegArbeiders[OPZEG DOOR DE WERKGEVER],MATCH(L277,OpzegArbeiders[X],1),1),\"-\")","v":"-"},"-",{"$f":"IFERROR(INDEX(OpzegArbeiders[OPZEG DOOR DE WERKNEMER],MATCH(L277,OpzegArbeiders[X],1),1),\"-\")","v":"-"},"-","-","-"]
[null,null,null,null,null,null,274,null,null,null,null,"-",{"$f":"IFERROR(INDEX(OpzegArbeiders[OPZEG DOOR DE WERKGEVER],MATCH(L278,OpzegArbeiders[X],1),1),\"-\")","v":"-"},"-",{"$f":"IFERROR(INDEX(OpzegArbeiders[OPZEG DOOR DE WERKNEMER],MATCH(L278,OpzegArbeiders[X],1),1),\"-\")","v":"-"},"-","-","-"]
[null,null,null,null,null,null,275,null,null,null,null,"-",{"$f":"IFERROR(INDEX(OpzegArbeiders[OPZEG DOOR DE WERKGEVER],MATCH(L279,OpzegArbeiders[X],1),1),\"-\")","v":"-"},"-",{"$f":"IFERROR(INDEX(OpzegArbeiders[OPZEG DOOR DE WERKNEMER],MATCH(L279,OpzegArbeiders[X],1),1),\"-\")","v":"-"},"-","-","-"]
[null,null,null,null,null,null,276,null,null,null,null,"-",{"$f":"IFERROR(INDEX(OpzegArbeiders[OPZEG DOOR DE WERKGEVER],MATCH(L280,OpzegArbeiders[X],1),1),\"-\")","v":"-"},"-",{"$f":"IFERROR(INDEX(OpzegArbeiders[OPZEG DOOR DE WERKNEMER],MATCH(L280,OpzegArbeiders[X],1),1),\"-\")","v":"-"},"-","-","-"]
[null,null,null,null,null,null,277,null,null,null,null,"-",{"$f":"IFERROR(INDEX(OpzegArbeiders[OPZEG DOOR DE WERKGEVER],MATCH(L281,OpzegArbeiders[X],1),1),\"-\")","v":"-"},"-",{"$f":"IFERROR(INDEX(OpzegArbeiders[OPZEG DOOR DE WERKNEMER],MATCH(L281,OpzegArbeiders[X],1),1),\"-\")","v":"-"},"-","-","-"]
[null,null,null,null,null,null,278,null,null,null,null,"-",{"$f":"IFERROR(INDEX(OpzegArbeiders[OPZEG DOOR DE WERKGEVER],MATCH(L282,OpzegArbeiders[X],1),1),\"-\")","v":"-"},"-",{"$f":"IFERROR(INDEX(OpzegArbeiders[OPZEG DOOR DE WERKNEMER],MATCH(L282,OpzegArbeiders[X],1),1),\"-\")","v":"-"},"-","-","-"]
[null,null,null,null,null,null,279,null,null,null,null,"-",{"$f":"IFERROR(INDEX(OpzegArbeiders[OPZEG DOOR DE WERKGEVER],MATCH(L283,OpzegArbeiders[X],1),1),\"-\")","v":"-"},"-",{"$f":"IFERROR(INDEX(OpzegArbeiders[OPZEG DOOR DE WERKNEMER],MATCH(L283,OpzegArbeiders[X],1),1),\"-\")","v":"-"},"-","-","-"]
[null,null,null,null,null,null,280,null,null,null,null,"-",{"$f":"IFERROR(INDEX(OpzegArbeiders[OPZEG DOOR DE WERKGEVER],MATCH(L284,OpzegArbeiders[X],1),1),\"-\")","v":"-"},"-",{"$f":"IFERROR(INDEX(OpzegArbeiders[OPZEG DOOR DE WERKNEMER],MATCH(L284,OpzegArbeiders[X],1),1),\"-\")","v":"-"},"-","-","-"]
[null,null,null,null,null,null,281,null,null,null,null,"-",{"$f":"IFERROR(INDEX(OpzegArbeiders[OPZEG DOOR DE WERKGEVER],MATCH(L285,OpzegArbeiders[X],1),1),\"-\")","v":"-"},"-",{"$f":"IFERROR(INDEX(OpzegArbeiders[OPZEG DOOR DE WERKNEMER],MATCH(L285,OpzegArbeiders[X],1),1),\"-\")","v":"-"},"-","-","-"]
[null,null,null,null,null,null,282,null,null,null,null,"-",{"$f":"IFERROR(INDEX(OpzegArbeiders[OPZEG DOOR DE WERKGEVER],MATCH(L286,OpzegArbeiders[X],1),1),\"-\")","v":"-"},"-",{"$f":"IFERROR(INDEX(OpzegArbeiders[OPZEG DOOR DE WERKNEMER],MATCH(L286,OpzegArbeiders[X],1),1),\"-\")","v":"-"},"-","-","-"]
[null,null,null,null,null,null,283,null,null,null,null,"-",{"$f":"IFERROR(INDEX(OpzegArbeiders[OPZEG DOOR DE WERKGEVER],MATCH(L287,OpzegArbeiders[X],1),1),\"-\")","v":"-"},"-",{"$f":"IFERROR(INDEX(OpzegArbeiders[OPZEG DOOR DE WERKNEMER],MATCH(L287,OpzegArbeiders[X],1),1),\"-\")","v":"-"},"-","-","-"]
[null,null,null,null,null,null,284,null,null,null,null,"-",{"$f":"IFERROR(INDEX(OpzegArbeiders[OPZEG DOOR DE WERKGEVER],MATCH(L288,OpzegArbeiders[X],1),1),\"-\")","v":"-"},"-",{"$f":"IFERROR(INDEX(OpzegArbeiders[OPZEG DOOR DE WERKNEMER],MATCH(L288,OpzegArbeiders[X],1),1),\"-\")","v":"-"},"-","-","-"]
[null,null,null,null,null,null,285,null,null,null,null,"-",{"$f":"IFERROR(INDEX(OpzegArbeiders[OPZEG DOOR DE WERKGEVER],MATCH(L289,OpzegArbeiders[X],1),1),\"-\")","v":"-"},"-",{"$f":"IFERROR(INDEX(OpzegArbeiders[OPZEG DOOR DE WERKNEMER],MATCH(L289,OpzegArbeiders[X],1),1),\"-\")","v":"-"},"-","-","-"]
[null,null,null,null,null,null,286,null,null,null,null,"-",{"$f":"IFERROR(INDEX(OpzegArbeiders[OPZEG DOOR DE WERKGEVER],MATCH(L290,OpzegArbeiders[X],1),1),\"-\")","v":"-"},"-",{"$f":"IFERROR(INDEX(OpzegArbeiders[OPZEG DOOR DE WERKNEMER],MATCH(L290,OpzegArbeiders[X],1),1),\"-\")","v":"-"},"-","-","-"]
[null,null,null,null,null,null,287,null,null,null,null,"-",{"$f":"IFERROR(INDEX(OpzegArbeiders[OPZEG DOOR DE WERKGEVER],MATCH(L291,OpzegArbeiders[X],1),1),\"-\")","v":"-"},"-",{"$f":"IFERROR(INDEX(OpzegArbeiders[OPZEG DOOR DE WERKNEMER],MATCH(L291,OpzegArbeiders[X],1),1),\"-\")","v":"-"},"-","-","-"]
[null,null,null,null,null,null,288,null,null,null,null,"-",{"$f":"IFERROR(INDEX(OpzegArbeiders[OPZEG DOOR DE WERKGEVER],MATCH(L292,OpzegArbeiders[X],1),1),\"-\")","v":"-"},"-",{"$f":"IFERROR(INDEX(OpzegArbeiders[OPZEG DOOR DE WERKNEMER],MATCH(L292,OpzegArbeiders[X],1),1),\"-\")","v":"-"},"-","-","-"]
[null,null,null,null,null,null,289,null,null,null,null,"-",{"$f":"IFERROR(INDEX(OpzegArbeiders[OPZEG DOOR DE WERKGEVER],MATCH(L293,OpzegArbeiders[X],1),1),\"-\")","v":"-"},"-",{"$f":"IFERROR(INDEX(OpzegArbeiders[OPZEG DOOR DE WERKNEMER],MATCH(L293,OpzegArbeiders[X],1),1),\"-\")","v":"-"},"-","-","-"]
[null,null,null,null,null,null,290,null,null,null,null,"-",{"$f":"IFERROR(INDEX(OpzegArbeiders[OPZEG DOOR DE WERKGEVER],MATCH(L294,OpzegArbeiders[X],1),1),\"-\")","v":"-"},"-",{"$f":"IFERROR(INDEX(OpzegArbeiders[OPZEG DOOR DE WERKNEMER],MATCH(L294,OpzegArbeiders[X],1),1),\"-\")","v":"-"},"-","-","-"]
[null,null,null,null,null,null,291,null,null,null,null,"-",{"$f":"IFERROR(INDEX(OpzegArbeiders[OPZEG DOOR DE WERKGEVER],MATCH(L295,OpzegArbeiders[X],1),1),\"-\")","v":"-"},"-",{"$f":"IFERROR(INDEX(OpzegArbeiders[OPZEG DOOR DE WERKNEMER],MATCH(L295,OpzegArbeiders[X],1),1),\"-\")","v":"-"},"-","-","-"]
[null,null,null,null,null,null,292,null,null,null,null,"-",{"$f":"IFERROR(INDEX(OpzegArbeiders[OPZEG DOOR DE WERKGEVER],MATCH(L296,OpzegArbeiders[X],1),1),\"-\")","v":"-"},"-",{"$f":"IFERROR(INDEX(OpzegArbeiders[OPZEG DOOR DE WERKNEMER],MATCH(L296,OpzegArbeiders[X],1),1),\"-\")","v":"-"},"-","-","-"]
[null,null,null,null,null,null,293,null,null,null,null,"-",{"$f":"IFERROR(INDEX(OpzegArbeiders[OPZEG DOOR DE WERKGEVER],MATCH(L297,OpzegArbeiders[X],1),1),\"-\")","v":"-"},"-",{"$f":"IFERROR(INDEX(OpzegArbeiders[OPZEG DOOR DE WERKNEMER],MATCH(L297,OpzegArbeiders[X],1),1),\"-\")","v":"-"},"-","-","-"]
[null,null,null,null,null,null,294,null,null,null,null,"-",{"$f":"IFERROR(INDEX(OpzegArbeiders[OPZEG DOOR DE WERKGEVER],MATCH(L298,OpzegArbeiders[X],1),1),\"-\")","v":"-"},"-",{"$f":"IFERROR(INDEX(OpzegArbeiders[OPZEG DOOR DE WERKNEMER],MATCH(L298,OpzegArbeiders[X],1),1),\"-\")","v":"-"},"-","-","-"]
[null,null,null,null,null,null,295,null,null,null,null,"-",{"$f":"IFERROR(INDEX(OpzegArbeiders[OPZEG DOOR DE WERKGEVER],MATCH(L299,OpzegArbeiders[X],1),1),\"-\")","v":"-"},"-",{"$f":"IFERROR(INDEX(OpzegArbeiders[OPZEG DOOR DE WERKNEMER],MATCH(L299,OpzegArbeiders[X],1),1),\"-\")","v":"-"},"-","-","-"]
[null,null,null,null,null,null,296,null,null,null,null,"-",{"$f":"IFERROR(INDEX(OpzegArbeiders[OPZEG DOOR DE WERKGEVER],MATCH(L300,OpzegArbeiders[X],1),1),\"-\")","v":"-"},"-",{"$f":"IFERROR(INDEX(OpzegArbeiders[OPZEG DOOR DE WERKNEMER],MATCH(L300,OpzegArbeiders[X],1),1),\"-\")","v":"-"},"-","-","-"]
[null,null,null,null,null,null,297,null,null,null,null,"-",{"$f":"IFERROR(INDEX(OpzegArbeiders[OPZEG DOOR DE WERKGEVER],MATCH(L301,OpzegArbeiders[X],1),1),\"-\")","v":"-"},"-",{"$f":"IFERROR(INDEX(OpzegArbeiders[OPZEG DOOR DE WERKNEMER],MATCH(L301,OpzegArbeiders[X],1),1),\"-\")","v":"-"},"-","-","-"]
[null,null,null,null,null,null,298,null,null,null,null,"-",{"$f":"IFERROR(INDEX(OpzegArbeiders[OPZEG DOOR DE WERKGEVER],MATCH(L302,OpzegArbeiders[X],1),1),\"-\")","v":"-"},"-",{"$f":"IFERROR(INDEX(OpzegArbeiders[OPZEG DOOR DE WERKNEMER],MATCH(L302,OpzegArbeiders[X],1),1),\"-\")","v":"-"},"-","-","-"]
[null,null,null,null,null,null,299,null,null,null,null,"-",{"$f":"IFERROR(INDEX(OpzegArbeiders[OPZEG DOOR DE WERKGEVER],MATCH(L303,OpzegArbeiders[X],1),1),\"-\")","v":"-"},"-",{"$f":"IFERROR(INDEX(OpzegArbeiders[OPZEG DOOR DE WERKNEMER],MATCH(L303,OpzegArbeiders[X],1),1),\"-\")","v":"-"},"-","-","-"]
[null,null,null,null,null,null,300,null,null,null,null,"-",{"$f":"IFERROR(INDEX(OpzegArbeiders[OPZEG DOOR DE WERKGEVER],MATCH(L304,OpzegArbeiders[X],1),1),\"-\")","v":"-"},"-",{"$f":"IFERROR(INDEX(OpzegArbeiders[OPZEG DOOR DE WERKNEMER],MATCH(L304,OpzegArbeiders[X],1),1),\"-\")","v":"-"},"-","-","-"]
[null,null,null,null,null,null,301,null,null,null,null,"-",{"$f":"IFERROR(INDEX(OpzegArbeiders[OPZEG DOOR DE WERKGEVER],MATCH(L305,OpzegArbeiders[X],1),1),\"-\")","v":"-"},"-",{"$f":"IFERROR(INDEX(OpzegArbeiders[OPZEG DOOR DE WERKNEMER],MATCH(L305,OpzegArbeiders[X],1),1),\"-\")","v":"-"},"-","-","-"]
[null,null,null,null,null,null,302,null,null,null,null,"-",{"$f":"IFERROR(INDEX(OpzegArbeiders[OPZEG DOOR DE WERKGEVER],MATCH(L306,OpzegArbeiders[X],1),1),\"-\")","v":"-"},"-",{"$f":"IFERROR(INDEX(OpzegArbeiders[OPZEG DOOR DE WERKNEMER],MATCH(L306,OpzegArbeiders[X],1),1),\"-\")","v":"-"},"-","-","-"]
[null,null,null,null,null,null,303,null,null,null,null,"-",{"$f":"IFERROR(INDEX(OpzegArbeiders[OPZEG DOOR DE WERKGEVER],MATCH(L307,OpzegArbeiders[X],1),1),\"-\")","v":"-"},"-",{"$f":"IFERROR(INDEX(OpzegArbeiders[OPZEG DOOR DE WERKNEMER],MATCH(L307,OpzegArbeiders[X],1),1),\"-\")","v":"-"},"-","-","-"]
[null,null,null,null,null,null,304,null,null,null,null,"-",{"$f":"IFERROR(INDEX(OpzegArbeiders[OPZEG DOOR DE WERKGEVER],MATCH(L308,OpzegArbeiders[X],1),1),\"-\")","v":"-"},"-",{"$f":"IFERROR(INDEX(OpzegArbeiders[OPZEG DOOR DE WERKNEMER],MATCH(L308,OpzegArbeiders[X],1),1),\"-\")","v":"-"},"-","-","-"]
[null,null,null,null,null,null,305,null,null,null,null,"-",{"$f":"IFERROR(INDEX(OpzegArbeiders[OPZEG DOOR DE WERKGEVER],MATCH(L309,OpzegArbeiders[X],1),1),\"-\")","v":"-"},"-",{"$f":"IFERROR(INDEX(OpzegArbeiders[OPZEG DOOR DE WERKNEMER],MATCH(L309,OpzegArbeiders[X],1),1),\"-\")","v":"-"},"-","-","-"]
[null,null,null,null,null,null,306,null,null,null,null,"-",{"$f":"IFERROR(INDEX(OpzegArbeiders[OPZEG DOOR DE WERKGEVER],MATCH(L310,OpzegArbeiders[X],1),1),\"-\")","v":"-"},"-",{"$f":"IFERROR(INDEX(OpzegArbeiders[OPZEG DOOR DE WERKNEMER],MATCH(L310,OpzegArbeiders[X],1),1),\"-\")","v":"-"},"-","-","-"]
[null,null,null,null,null,null,307,null,null,null,null,"-",{"$f":"IFERROR(INDEX(OpzegArbeiders[OPZEG DOOR DE WERKGEVER],MATCH(L311,OpzegArbeiders[X],1),1),\"-\")","v":"-"},"-",{"$f":"IFERROR(INDEX(OpzegArbeiders[OPZEG DOOR DE WERKNEMER],MATCH(L311,OpzegArbeiders[X],1),1),\"-\")","v":"-"},"-","-","-"]
[null,null,null,null,null,null,308,null,null,null,null,"-",{"$f":"IFERROR(INDEX(OpzegArbeiders[OPZEG DOOR DE WERKGEVER],MATCH(L312,OpzegArbeiders[X],1),1),\"-\")","v":"-"},"-",{"$f":"IFERROR(INDEX(OpzegArbeiders[OPZEG DOOR DE WERKNEMER],MATCH(L312,OpzegArbeiders[X],1),1),\"-\")","v":"-"},"-","-","-"]
[null,null,null,null,null,null,309,null,null,null,null,"-",{"$f":"IFERROR(INDEX(OpzegArbeiders[OPZEG DOOR DE WERKGEVER],MATCH(L313,OpzegArbeiders[X],1),1),\"-\")","v":"-"},"-",{"$f":"IFERROR(INDEX(OpzegArbeiders[OPZEG DOOR DE WERKNEMER],MATCH(L313,OpzegArbeiders[X],1),1),\"-\")","v":"-"},"-","-","-"]
[null,null,null,null,null,null,310,null,null,null,null,"-",{"$f":"IFERROR(INDEX(OpzegArbeiders[OPZEG DOOR DE WERKGEVER],MATCH(L314,OpzegArbeiders[X],1),1),\"-\")","v":"-"},"-",{"$f":"IFERROR(INDEX(OpzegArbeiders[OPZEG DOOR DE WERKNEMER],MATCH(L314,OpzegArbeiders[X],1),1),\"-\")","v":"-"},"-","-","-"]
[null,null,null,null,null,null,311,null,null,null,null,"-",{"$f":"IFERROR(INDEX(OpzegArbeiders[OPZEG DOOR DE WERKGEVER],MATCH(L315,OpzegArbeiders[X],1),1),\"-\")","v":"-"},"-",{"$f":"IFERROR(INDEX(OpzegArbeiders[OPZEG DOOR DE WERKNEMER],MATCH(L315,OpzegArbeiders[X],1),1),\"-\")","v":"-"},"-","-","-"]
[null,null,null,null,null,null,312,null,null,null,null,"-",{"$f":"IFERROR(INDEX(OpzegArbeiders[OPZEG DOOR DE WERKGEVER],MATCH(L316,OpzegArbeiders[X],1),1),\"-\")","v":"-"},"-",{"$f":"IFERROR(INDEX(OpzegArbeiders[OPZEG DOOR DE WERKNEMER],MATCH(L316,OpzegArbeiders[X],1),1),\"-\")","v":"-"},"-","-","-"]
[null,null,null,null,null,null,313,null,null,null,null,"-",{"$f":"IFERROR(INDEX(OpzegArbeiders[OPZEG DOOR DE WERKGEVER],MATCH(L317,OpzegArbeiders[X],1),1),\"-\")","v":"-"},"-",{"$f":"IFERROR(INDEX(OpzegArbeiders[OPZEG DOOR DE WERKNEMER],MATCH(L317,OpzegArbeiders[X],1),1),\"-\")","v":"-"},"-","-","-"]
[null,null,null,null,null,null,314,null,null,null,null,"-",{"$f":"IFERROR(INDEX(OpzegArbeiders[OPZEG DOOR DE WERKGEVER],MATCH(L318,OpzegArbeiders[X],1),1),\"-\")","v":"-"},"-",{"$f":"IFERROR(INDEX(OpzegArbeiders[OPZEG DOOR DE WERKNEMER],MATCH(L318,OpzegArbeiders[X],1),1),\"-\")","v":"-"},"-","-","-"]
[null,null,null,null,null,null,315,null,null,null,null,"-",{"$f":"IFERROR(INDEX(OpzegArbeiders[OPZEG DOOR DE WERKGEVER],MATCH(L319,OpzegArbeiders[X],1),1),\"-\")","v":"-"},"-",{"$f":"IFERROR(INDEX(OpzegArbeiders[OPZEG DOOR DE WERKNEMER],MATCH(L319,OpzegArbeiders[X],1),1),\"-\")","v":"-"},"-","-","-"]
[null,null,null,null,null,null,316,null,null,null,null,"-",{"$f":"IFERROR(INDEX(OpzegArbeiders[OPZEG DOOR DE WERKGEVER],MATCH(L320,OpzegArbeiders[X],1),1),\"-\")","v":"-"},"-",{"$f":"IFERROR(INDEX(OpzegArbeiders[OPZEG DOOR DE WERKNEMER],MATCH(L320,OpzegArbeiders[X],1),1),\"-\")","v":"-"},"-","-","-"]
[null,null,null,null,null,null,317,null,null,null,null,"-",{"$f":"IFERROR(INDEX(OpzegArbeiders[OPZEG DOOR DE WERKGEVER],MATCH(L321,OpzegArbeiders[X],1),1),\"-\")","v":"-"},"-",{"$f":"IFERROR(INDEX(OpzegArbeiders[OPZEG DOOR DE WERKNEMER],MATCH(L321,OpzegArbeiders[X],1),1),\"-\")","v":"-"},"-","-","-"]
[null,null,null,null,null,null,318,null,null,null,null,"-",{"$f":"IFERROR(INDEX(OpzegArbeiders[OPZEG DOOR DE WERKGEVER],MATCH(L322,OpzegArbeiders[X],1),1),\"-\")","v":"-"},"-",{"$f":"IFERROR(INDEX(OpzegArbeiders[OPZEG DOOR DE WERKNEMER],MATCH(L322,OpzegArbeiders[X],1),1),\"-\")","v":"-"},"-","-","-"]
[null,null,null,null,null,null,319,null,null,null,null,"-",{"$f":"IFERROR(INDEX(OpzegArbeiders[OPZEG DOOR DE WERKGEVER],MATCH(L323,OpzegArbeiders[X],1),1),\"-\")","v":"-"},"-",{"$f":"IFERROR(INDEX(OpzegArbeiders[OPZEG DOOR DE WERKNEMER],MATCH(L323,OpzegArbeiders[X],1),1),\"-\")","v":"-"},"-","-","-"]
[null,null,null,null,null,null,320,null,null,null,null,"-",{"$f":"IFERROR(INDEX(OpzegArbeiders[OPZEG DOOR DE WERKGEVER],MATCH(L324,OpzegArbeiders[X],1),1),\"-\")","v":"-"},"-",{"$f":"IFERROR(INDEX(OpzegArbeiders[OPZEG DOOR DE WERKNEMER],MATCH(L324,OpzegArbeiders[X],1),1),\"-\")","v":"-"},"-","-","-"]
[null,null,null,null,null,null,321,null,null,null,null,"-",{"$f":"IFERROR(INDEX(OpzegArbeiders[OPZEG DOOR DE WERKGEVER],MATCH(L325,OpzegArbeiders[X],1),1),\"-\")","v":"-"},"-",{"$f":"IFERROR(INDEX(OpzegArbeiders[OPZEG DOOR DE WERKNEMER],MATCH(L325,OpzegArbeiders[X],1),1),\"-\")","v":"-"},"-","-","-"]
[null,null,null,null,null,null,322,null,null,null,null,{"$f":"IF(OR(H326<>\"\",J326<>\"\"),(DATEDIF(K326-1,DATE(2013,12,31),\"y\"))+(DATEDIF(K326-1,DATE(2013,12,31),\"ym\")/12)+(DATEDIF(K326-1,DATE(2013,12,31),\"md\")/365.25),\"-\")","v":"-"},{"$f":"IFERROR(INDEX(OpzegArbeiders[OPZEG DOOR DE WERKGEVER],MATCH(L326,OpzegArbeiders[X],1),1),\"-\")","v":"-"},{"$f":"IFERROR(M326/7,\"-\")","v":"-"},{"$f":"IFERROR(INDEX(OpzegArbeiders[OPZEG DOOR DE WERKNEMER],MATCH(L326,OpzegArbeiders[X],1),1),\"-\")","v":"-"},{"$f":"IFERROR(O326/7,\"-\")","v":"-"},{"$f":"IF(OR(ISTEXT(H326),ISTEXT(I326)),H326&\" \"&I326,\"-\")","v":"-"},{"$f":"IF(ISBLANK(J326),\"-\",J326)","v":"-"}]
[null,null,null,null,null,null,323,null,null,null,null,"-",{"$f":"IFERROR(INDEX(OpzegArbeiders[OPZEG DOOR DE WERKGEVER],MATCH(L327,OpzegArbeiders[X],1),1),\"-\")","v":"-"},"-",{"$f":"IFERROR(INDEX(OpzegArbeiders[OPZEG DOOR DE WERKNEMER],MATCH(L327,OpzegArbeiders[X],1),1),\"-\")","v":"-"},"-","-","-"]
[null,null,null,null,null,null,324,null,null,null,null,"-",{"$f":"IFERROR(INDEX(OpzegArbeiders[OPZEG DOOR DE WERKGEVER],MATCH(L328,OpzegArbeiders[X],1),1),\"-\")","v":"-"},"-",{"$f":"IFERROR(INDEX(OpzegArbeiders[OPZEG DOOR DE WERKNEMER],MATCH(L328,OpzegArbeiders[X],1),1),\"-\")","v":"-"},"-","-","-"]
[null,null,null,null,null,null,325,null,null,null,null,"-",{"$f":"IFERROR(INDEX(OpzegArbeiders[OPZEG DOOR DE WERKGEVER],MATCH(L329,OpzegArbeiders[X],1),1),\"-\")","v":"-"},"-",{"$f":"IFERROR(INDEX(OpzegArbeiders[OPZEG DOOR DE WERKNEMER],MATCH(L329,OpzegArbeiders[X],1),1),\"-\")","v":"-"},"-","-","-"]
[null,null,null,null,null,null,326,null,null,null,null,"-",{"$f":"IFERROR(INDEX(OpzegArbeiders[OPZEG DOOR DE WERKGEVER],MATCH(L330,OpzegArbeiders[X],1),1),\"-\")","v":"-"},"-",{"$f":"IFERROR(INDEX(OpzegArbeiders[OPZEG DOOR DE WERKNEMER],MATCH(L330,OpzegArbeiders[X],1),1),\"-\")","v":"-"},"-","-","-"]
[null,null,null,null,null,null,327,null,null,null,null,"-",{"$f":"IFERROR(INDEX(OpzegArbeiders[OPZEG DOOR DE WERKGEVER],MATCH(L331,OpzegArbeiders[X],1),1),\"-\")","v":"-"},"-",{"$f":"IFERROR(INDEX(OpzegArbeiders[OPZEG DOOR DE WERKNEMER],MATCH(L331,OpzegArbeiders[X],1),1),\"-\")","v":"-"},"-","-","-"]
[null,null,null,null,null,null,328,null,null,null,null,"-",{"$f":"IFERROR(INDEX(OpzegArbeiders[OPZEG DOOR DE WERKGEVER],MATCH(L332,OpzegArbeiders[X],1),1),\"-\")","v":"-"},"-",{"$f":"IFERROR(INDEX(OpzegArbeiders[OPZEG DOOR DE WERKNEMER],MATCH(L332,OpzegArbeiders[X],1),1),\"-\")","v":"-"},"-","-","-"]
[null,null,null,null,null,null,329,null,null,null,null,"-",{"$f":"IFERROR(INDEX(OpzegArbeiders[OPZEG DOOR DE WERKGEVER],MATCH(L333,OpzegArbeiders[X],1),1),\"-\")","v":"-"},"-",{"$f":"IFERROR(INDEX(OpzegArbeiders[OPZEG DOOR DE WERKNEMER],MATCH(L333,OpzegArbeiders[X],1),1),\"-\")","v":"-"},"-","-","-"]
[null,null,null,null,null,null,330,null,null,null,null,"-",{"$f":"IFERROR(INDEX(OpzegArbeiders[OPZEG DOOR DE WERKGEVER],MATCH(L334,OpzegArbeiders[X],1),1),\"-\")","v":"-"},"-",{"$f":"IFERROR(INDEX(OpzegArbeiders[OPZEG DOOR DE WERKNEMER],MATCH(L334,OpzegArbeiders[X],1),1),\"-\")","v":"-"},"-","-","-"]
[null,null,null,null,null,null,331,null,null,null,null,"-",{"$f":"IFERROR(INDEX(OpzegArbeiders[OPZEG DOOR DE WERKGEVER],MATCH(L335,OpzegArbeiders[X],1),1),\"-\")","v":"-"},"-",{"$f":"IFERROR(INDEX(OpzegArbeiders[OPZEG DOOR DE WERKNEMER],MATCH(L335,OpzegArbeiders[X],1),1),\"-\")","v":"-"},"-","-","-"]
[null,null,null,null,null,null,332,null,null,null,null,"-",{"$f":"IFERROR(INDEX(OpzegArbeiders[OPZEG DOOR DE WERKGEVER],MATCH(L336,OpzegArbeiders[X],1),1),\"-\")","v":"-"},"-",{"$f":"IFERROR(INDEX(OpzegArbeiders[OPZEG DOOR DE WERKNEMER],MATCH(L336,OpzegArbeiders[X],1),1),\"-\")","v":"-"},"-","-","-"]
[null,null,null,null,null,null,333,null,null,null,null,"-",{"$f":"IFERROR(INDEX(OpzegArbeiders[OPZEG DOOR DE WERKGEVER],MATCH(L337,OpzegArbeiders[X],1),1),\"-\")","v":"-"},"-",{"$f":"IFERROR(INDEX(OpzegArbeiders[OPZEG DOOR DE WERKNEMER],MATCH(L337,OpzegArbeiders[X],1),1),\"-\")","v":"-"},"-","-","-"]
[null,null,null,null,null,null,334,null,null,null,null,"-",{"$f":"IFERROR(INDEX(OpzegArbeiders[OPZEG DOOR DE WERKGEVER],MATCH(L338,OpzegArbeiders[X],1),1),\"-\")","v":"-"},"-",{"$f":"IFERROR(INDEX(OpzegArbeiders[OPZEG DOOR DE WERKNEMER],MATCH(L338,OpzegArbeiders[X],1),1),\"-\")","v":"-"},"-","-","-"]
[null,null,null,null,null,null,335,null,null,null,null,"-",{"$f":"IFERROR(INDEX(OpzegArbeiders[OPZEG DOOR DE WERKGEVER],MATCH(L339,OpzegArbeiders[X],1),1),\"-\")","v":"-"},"-",{"$f":"IFERROR(INDEX(OpzegArbeiders[OPZEG DOOR DE WERKNEMER],MATCH(L339,OpzegArbeiders[X],1),1),\"-\")","v":"-"},"-","-","-"]
[null,null,null,null,null,null,336,null,null,null,null,"-",{"$f":"IFERROR(INDEX(OpzegArbeiders[OPZEG DOOR DE WERKGEVER],MATCH(L340,OpzegArbeiders[X],1),1),\"-\")","v":"-"},"-",{"$f":"IFERROR(INDEX(OpzegArbeiders[OPZEG DOOR DE WERKNEMER],MATCH(L340,OpzegArbeiders[X],1),1),\"-\")","v":"-"},"-","-","-"]
[null,null,null,null,null,null,337,null,null,null,null,"-",{"$f":"IFERROR(INDEX(OpzegArbeiders[OPZEG DOOR DE WERKGEVER],MATCH(L341,OpzegArbeiders[X],1),1),\"-\")","v":"-"},"-",{"$f":"IFERROR(INDEX(OpzegArbeiders[OPZEG DOOR DE WERKNEMER],MATCH(L341,OpzegArbeiders[X],1),1),\"-\")","v":"-"},"-","-","-"]
[null,null,null,null,null,null,338,null,null,null,null,"-",{"$f":"IFERROR(INDEX(OpzegArbeiders[OPZEG DOOR DE WERKGEVER],MATCH(L342,OpzegArbeiders[X],1),1),\"-\")","v":"-"},"-",{"$f":"IFERROR(INDEX(OpzegArbeiders[OPZEG DOOR DE WERKNEMER],MATCH(L342,OpzegArbeiders[X],1),1),\"-\")","v":"-"},"-","-","-"]
[null,null,null,null,null,null,339,null,null,null,null,"-",{"$f":"IFERROR(INDEX(OpzegArbeiders[OPZEG DOOR DE WERKGEVER],MATCH(L343,OpzegArbeiders[X],1),1),\"-\")","v":"-"},"-",{"$f":"IFERROR(INDEX(OpzegArbeiders[OPZEG DOOR DE WERKNEMER],MATCH(L343,OpzegArbeiders[X],1),1),\"-\")","v":"-"},"-","-","-"]
[null,null,null,null,null,null,340,null,null,null,null,"-",{"$f":"IFERROR(INDEX(OpzegArbeiders[OPZEG DOOR DE WERKGEVER],MATCH(L344,OpzegArbeiders[X],1),1),\"-\")","v":"-"},"-",{"$f":"IFERROR(INDEX(OpzegArbeiders[OPZEG DOOR DE WERKNEMER],MATCH(L344,OpzegArbeiders[X],1),1),\"-\")","v":"-"},"-","-","-"]
[null,null,null,null,null,null,341,null,null,null,null,"-",{"$f":"IFERROR(INDEX(OpzegArbeiders[OPZEG DOOR DE WERKGEVER],MATCH(L345,OpzegArbeiders[X],1),1),\"-\")","v":"-"},"-",{"$f":"IFERROR(INDEX(OpzegArbeiders[OPZEG DOOR DE WERKNEMER],MATCH(L345,OpzegArbeiders[X],1),1),\"-\")","v":"-"},"-","-","-"]
[null,null,null,null,null,null,342,null,null,null,null,"-",{"$f":"IFERROR(INDEX(OpzegArbeiders[OPZEG DOOR DE WERKGEVER],MATCH(L346,OpzegArbeiders[X],1),1),\"-\")","v":"-"},"-",{"$f":"IFERROR(INDEX(OpzegArbeiders[OPZEG DOOR DE WERKNEMER],MATCH(L346,OpzegArbeiders[X],1),1),\"-\")","v":"-"},"-","-","-"]
[null,null,null,null,null,null,343,null,null,null,null,"-",{"$f":"IFERROR(INDEX(OpzegArbeiders[OPZEG DOOR DE WERKGEVER],MATCH(L347,OpzegArbeiders[X],1),1),\"-\")","v":"-"},"-",{"$f":"IFERROR(INDEX(OpzegArbeiders[OPZEG DOOR DE WERKNEMER],MATCH(L347,OpzegArbeiders[X],1),1),\"-\")","v":"-"},"-","-","-"]
[null,null,null,null,null,null,344,null,null,null,null,"-",{"$f":"IFERROR(INDEX(OpzegArbeiders[OPZEG DOOR DE WERKGEVER],MATCH(L348,OpzegArbeiders[X],1),1),\"-\")","v":"-"},"-",{"$f":"IFERROR(INDEX(OpzegArbeiders[OPZEG DOOR DE WERKNEMER],MATCH(L348,OpzegArbeiders[X],1),1),\"-\")","v":"-"},"-","-","-"]
[null,null,null,null,null,null,345,null,null,null,null,"-",{"$f":"IFERROR(INDEX(OpzegArbeiders[OPZEG DOOR DE WERKGEVER],MATCH(L349,OpzegArbeiders[X],1),1),\"-\")","v":"-"},"-",{"$f":"IFERROR(INDEX(OpzegArbeiders[OPZEG DOOR DE WERKNEMER],MATCH(L349,OpzegArbeiders[X],1),1),\"-\")","v":"-"},"-","-","-"]
[null,null,null,null,null,null,346,null,null,null,null,"-",{"$f":"IFERROR(INDEX(OpzegArbeiders[OPZEG DOOR DE WERKGEVER],MATCH(L350,OpzegArbeiders[X],1),1),\"-\")","v":"-"},"-",{"$f":"IFERROR(INDEX(OpzegArbeiders[OPZEG DOOR DE WERKNEMER],MATCH(L350,OpzegArbeiders[X],1),1),\"-\")","v":"-"},"-","-","-"]
[null,null,null,null,null,null,347,null,null,null,null,"-",{"$f":"IFERROR(INDEX(OpzegArbeiders[OPZEG DOOR DE WERKGEVER],MATCH(L351,OpzegArbeiders[X],1),1),\"-\")","v":"-"},"-",{"$f":"IFERROR(INDEX(OpzegArbeiders[OPZEG DOOR DE WERKNEMER],MATCH(L351,OpzegArbeiders[X],1),1),\"-\")","v":"-"},"-","-","-"]
[null,null,null,null,null,null,348,null,null,null,null,"-",{"$f":"IFERROR(INDEX(OpzegArbeiders[OPZEG DOOR DE WERKGEVER],MATCH(L352,OpzegArbeiders[X],1),1),\"-\")","v":"-"},"-",{"$f":"IFERROR(INDEX(OpzegArbeiders[OPZEG DOOR DE WERKNEMER],MATCH(L352,OpzegArbeiders[X],1),1),\"-\")","v":"-"},"-","-","-"]
[null,null,null,null,null,null,349,null,null,null,null,"-",{"$f":"IFERROR(INDEX(OpzegArbeiders[OPZEG DOOR DE WERKGEVER],MATCH(L353,OpzegArbeiders[X],1),1),\"-\")","v":"-"},"-",{"$f":"IFERROR(INDEX(OpzegArbeiders[OPZEG DOOR DE WERKNEMER],MATCH(L353,OpzegArbeiders[X],1),1),\"-\")","v":"-"},"-","-","-"]
[null,null,null,null,null,null,350,null,null,null,null,"-",{"$f":"IFERROR(INDEX(OpzegArbeiders[OPZEG DOOR DE WERKGEVER],MATCH(L354,OpzegArbeiders[X],1),1),\"-\")","v":"-"},"-",{"$f":"IFERROR(INDEX(OpzegArbeiders[OPZEG DOOR DE WERKNEMER],MATCH(L354,OpzegArbeiders[X],1),1),\"-\")","v":"-"},"-","-","-"]
[null,null,null,null,null,null,351,null,null,null,null,"-",{"$f":"IFERROR(INDEX(OpzegArbeiders[OPZEG DOOR DE WERKGEVER],MATCH(L355,OpzegArbeiders[X],1),1),\"-\")","v":"-"},"-",{"$f":"IFERROR(INDEX(OpzegArbeiders[OPZEG DOOR DE WERKNEMER],MATCH(L355,OpzegArbeiders[X],1),1),\"-\")","v":"-"},"-","-","-"]
[null,null,null,null,null,null,352,null,null,null,null,"-",{"$f":"IFERROR(INDEX(OpzegArbeiders[OPZEG DOOR DE WERKGEVER],MATCH(L356,OpzegArbeiders[X],1),1),\"-\")","v":"-"},"-",{"$f":"IFERROR(INDEX(OpzegArbeiders[OPZEG DOOR DE WERKNEMER],MATCH(L356,OpzegArbeiders[X],1),1),\"-\")","v":"-"},"-","-","-"]
[null,null,null,null,null,null,353,null,null,null,null,"-",{"$f":"IFERROR(INDEX(OpzegArbeiders[OPZEG DOOR DE WERKGEVER],MATCH(L357,OpzegArbeiders[X],1),1),\"-\")","v":"-"},"-",{"$f":"IFERROR(INDEX(OpzegArbeiders[OPZEG DOOR DE WERKNEMER],MATCH(L357,OpzegArbeiders[X],1),1),\"-\")","v":"-"},"-","-","-"]
[null,null,null,null,null,null,354,null,null,null,null,"-",{"$f":"IFERROR(INDEX(OpzegArbeiders[OPZEG DOOR DE WERKGEVER],MATCH(L358,OpzegArbeiders[X],1),1),\"-\")","v":"-"},"-",{"$f":"IFERROR(INDEX(OpzegArbeiders[OPZEG DOOR DE WERKNEMER],MATCH(L358,OpzegArbeiders[X],1),1),\"-\")","v":"-"},"-","-","-"]
[null,null,null,null,null,null,355,null,null,null,null,"-",{"$f":"IFERROR(INDEX(OpzegArbeiders[OPZEG DOOR DE WERKGEVER],MATCH(L359,OpzegArbeiders[X],1),1),\"-\")","v":"-"},"-",{"$f":"IFERROR(INDEX(OpzegArbeiders[OPZEG DOOR DE WERKNEMER],MATCH(L359,OpzegArbeiders[X],1),1),\"-\")","v":"-"},"-","-","-"]
[null,null,null,null,null,null,356,null,null,null,null,"-",{"$f":"IFERROR(INDEX(OpzegArbeiders[OPZEG DOOR DE WERKGEVER],MATCH(L360,OpzegArbeiders[X],1),1),\"-\")","v":"-"},"-",{"$f":"IFERROR(INDEX(OpzegArbeiders[OPZEG DOOR DE WERKNEMER],MATCH(L360,OpzegArbeiders[X],1),1),\"-\")","v":"-"},"-","-","-"]
[null,null,null,null,null,null,357,null,null,null,null,"-",{"$f":"IFERROR(INDEX(OpzegArbeiders[OPZEG DOOR DE WERKGEVER],MATCH(L361,OpzegArbeiders[X],1),1),\"-\")","v":"-"},"-",{"$f":"IFERROR(INDEX(OpzegArbeiders[OPZEG DOOR DE WERKNEMER],MATCH(L361,OpzegArbeiders[X],1),1),\"-\")","v":"-"},"-","-","-"]
[null,null,null,null,null,null,358,null,null,null,null,"-",{"$f":"IFERROR(INDEX(OpzegArbeiders[OPZEG DOOR DE WERKGEVER],MATCH(L362,OpzegArbeiders[X],1),1),\"-\")","v":"-"},"-",{"$f":"IFERROR(INDEX(OpzegArbeiders[OPZEG DOOR DE WERKNEMER],MATCH(L362,OpzegArbeiders[X],1),1),\"-\")","v":"-"},"-","-","-"]
[null,null,null,null,null,null,359,null,null,null,null,"-",{"$f":"IFERROR(INDEX(OpzegArbeiders[OPZEG DOOR DE WERKGEVER],MATCH(L363,OpzegArbeiders[X],1),1),\"-\")","v":"-"},"-",{"$f":"IFERROR(INDEX(OpzegArbeiders[OPZEG DOOR DE WERKNEMER],MATCH(L363,OpzegArbeiders[X],1),1),\"-\")","v":"-"},"-","-","-"]
[null,null,null,null,null,null,360,null,null,null,null,"-",{"$f":"IFERROR(INDEX(OpzegArbeiders[OPZEG DOOR DE WERKGEVER],MATCH(L364,OpzegArbeiders[X],1),1),\"-\")","v":"-"},"-",{"$f":"IFERROR(INDEX(OpzegArbeiders[OPZEG DOOR DE WERKNEMER],MATCH(L364,OpzegArbeiders[X],1),1),\"-\")","v":"-"},"-","-","-"]
[null,null,null,null,null,null,361,null,null,null,null,"-",{"$f":"IFERROR(INDEX(OpzegArbeiders[OPZEG DOOR DE WERKGEVER],MATCH(L365,OpzegArbeiders[X],1),1),\"-\")","v":"-"},"-",{"$f":"IFERROR(INDEX(OpzegArbeiders[OPZEG DOOR DE WERKNEMER],MATCH(L365,OpzegArbeiders[X],1),1),\"-\")","v":"-"},"-","-","-"]
[null,null,null,null,null,null,362,null,null,null,null,"-",{"$f":"IFERROR(INDEX(OpzegArbeiders[OPZEG DOOR DE WERKGEVER],MATCH(L366,OpzegArbeiders[X],1),1),\"-\")","v":"-"},"-",{"$f":"IFERROR(INDEX(OpzegArbeiders[OPZEG DOOR DE WERKNEMER],MATCH(L366,OpzegArbeiders[X],1),1),\"-\")","v":"-"},"-","-","-"]
[null,null,null,null,null,null,363,null,null,null,null,"-",{"$f":"IFERROR(INDEX(OpzegArbeiders[OPZEG DOOR DE WERKGEVER],MATCH(L367,OpzegArbeiders[X],1),1),\"-\")","v":"-"},"-",{"$f":"IFERROR(INDEX(OpzegArbeiders[OPZEG DOOR DE WERKNEMER],MATCH(L367,OpzegArbeiders[X],1),1),\"-\")","v":"-"},"-","-","-"]
[null,null,null,null,null,null,364,null,null,null,null,"-",{"$f":"IFERROR(INDEX(OpzegArbeiders[OPZEG DOOR DE WERKGEVER],MATCH(L368,OpzegArbeiders[X],1),1),\"-\")","v":"-"},"-",{"$f":"IFERROR(INDEX(OpzegArbeiders[OPZEG DOOR DE WERKNEMER],MATCH(L368,OpzegArbeiders[X],1),1),\"-\")","v":"-"},"-","-","-"]
[null,null,null,null,null,null,365,null,null,null,null,"-",{"$f":"IFERROR(INDEX(OpzegArbeiders[OPZEG DOOR DE WERKGEVER],MATCH(L369,OpzegArbeiders[X],1),1),\"-\")","v":"-"},"-",{"$f":"IFERROR(INDEX(OpzegArbeiders[OPZEG DOOR DE WERKNEMER],MATCH(L369,OpzegArbeiders[X],1),1),\"-\")","v":"-"},"-","-","-"]
[null,null,null,null,null,null,366,null,null,null,null,"-",{"$f":"IFERROR(INDEX(OpzegArbeiders[OPZEG DOOR DE WERKGEVER],MATCH(L370,OpzegArbeiders[X],1),1),\"-\")","v":"-"},"-",{"$f":"IFERROR(INDEX(OpzegArbeiders[OPZEG DOOR DE WERKNEMER],MATCH(L370,OpzegArbeiders[X],1),1),\"-\")","v":"-"},"-","-","-"]
[null,null,null,null,null,null,367,null,null,null,null,"-",{"$f":"IFERROR(INDEX(OpzegArbeiders[OPZEG DOOR DE WERKGEVER],MATCH(L371,OpzegArbeiders[X],1),1),\"-\")","v":"-"},"-",{"$f":"IFERROR(INDEX(OpzegArbeiders[OPZEG DOOR DE WERKNEMER],MATCH(L371,OpzegArbeiders[X],1),1),\"-\")","v":"-"},"-","-","-"]
[null,null,null,null,null,null,368,null,null,null,null,"-",{"$f":"IFERROR(INDEX(OpzegArbeiders[OPZEG DOOR DE WERKGEVER],MATCH(L372,OpzegArbeiders[X],1),1),\"-\")","v":"-"},"-",{"$f":"IFERROR(INDEX(OpzegArbeiders[OPZEG DOOR DE WERKNEMER],MATCH(L372,OpzegArbeiders[X],1),1),\"-\")","v":"-"},"-","-","-"]
[null,null,null,null,null,null,369,null,null,null,null,"-",{"$f":"IFERROR(INDEX(OpzegArbeiders[OPZEG DOOR DE WERKGEVER],MATCH(L373,OpzegArbeiders[X],1),1),\"-\")","v":"-"},"-",{"$f":"IFERROR(INDEX(OpzegArbeiders[OPZEG DOOR DE WERKNEMER],MATCH(L373,OpzegArbeiders[X],1),1),\"-\")","v":"-"},"-","-","-"]
[null,null,null,null,null,null,370,null,null,null,null,"-",{"$f":"IFERROR(INDEX(OpzegArbeiders[OPZEG DOOR DE WERKGEVER],MATCH(L374,OpzegArbeiders[X],1),1),\"-\")","v":"-"},"-",{"$f":"IFERROR(INDEX(OpzegArbeiders[OPZEG DOOR DE WERKNEMER],MATCH(L374,OpzegArbeiders[X],1),1),\"-\")","v":"-"},"-","-","-"]
[null,null,null,null,null,null,371,null,null,null,null,"-",{"$f":"IFERROR(INDEX(OpzegArbeiders[OPZEG DOOR DE WERKGEVER],MATCH(L375,OpzegArbeiders[X],1),1),\"-\")","v":"-"},"-",{"$f":"IFERROR(INDEX(OpzegArbeiders[OPZEG DOOR DE WERKNEMER],MATCH(L375,OpzegArbeiders[X],1),1),\"-\")","v":"-"},"-","-","-"]
[null,null,null,null,null,null,372,null,null,null,null,"-",{"$f":"IFERROR(INDEX(OpzegArbeiders[OPZEG DOOR DE WERKGEVER],MATCH(L376,OpzegArbeiders[X],1),1),\"-\")","v":"-"},"-",{"$f":"IFERROR(INDEX(OpzegArbeiders[OPZEG DOOR DE WERKNEMER],MATCH(L376,OpzegArbeiders[X],1),1),\"-\")","v":"-"},"-","-","-"]
[null,null,null,null,null,null,373,null,null,null,null,"-",{"$f":"IFERROR(INDEX(OpzegArbeiders[OPZEG DOOR DE WERKGEVER],MATCH(L377,OpzegArbeiders[X],1),1),\"-\")","v":"-"},"-",{"$f":"IFERROR(INDEX(OpzegArbeiders[OPZEG DOOR DE WERKNEMER],MATCH(L377,OpzegArbeiders[X],1),1),\"-\")","v":"-"},"-","-","-"]
[null,null,null,null,null,null,374,null,null,null,null,"-",{"$f":"IFERROR(INDEX(OpzegArbeiders[OPZEG DOOR DE WERKGEVER],MATCH(L378,OpzegArbeiders[X],1),1),\"-\")","v":"-"},"-",{"$f":"IFERROR(INDEX(OpzegArbeiders[OPZEG DOOR DE WERKNEMER],MATCH(L378,OpzegArbeiders[X],1),1),\"-\")","v":"-"},"-","-","-"]
[null,null,null,null,null,null,375,null,null,null,null,"-",{"$f":"IFERROR(INDEX(OpzegArbeiders[OPZEG DOOR DE WERKGEVER],MATCH(L379,OpzegArbeiders[X],1),1),\"-\")","v":"-"},"-",{"$f":"IFERROR(INDEX(OpzegArbeiders[OPZEG DOOR DE WERKNEMER],MATCH(L379,OpzegArbeiders[X],1),1),\"-\")","v":"-"},"-","-","-"]
[null,null,null,null,null,null,376,null,null,null,null,"-",{"$f":"IFERROR(INDEX(OpzegArbeiders[OPZEG DOOR DE WERKGEVER],MATCH(L380,OpzegArbeiders[X],1),1),\"-\")","v":"-"},"-",{"$f":"IFERROR(INDEX(OpzegArbeiders[OPZEG DOOR DE WERKNEMER],MATCH(L380,OpzegArbeiders[X],1),1),\"-\")","v":"-"},"-","-","-"]
[null,null,null,null,null,null,377,null,null,null,null,"-",{"$f":"IFERROR(INDEX(OpzegArbeiders[OPZEG DOOR DE WERKGEVER],MATCH(L381,OpzegArbeiders[X],1),1),\"-\")","v":"-"},"-",{"$f":"IFERROR(INDEX(OpzegArbeiders[OPZEG DOOR DE WERKNEMER],MATCH(L381,OpzegArbeiders[X],1),1),\"-\")","v":"-"},"-","-","-"]
[null,null,null,null,null,null,378,null,null,null,null,"-",{"$f":"IFERROR(INDEX(OpzegArbeiders[OPZEG DOOR DE WERKGEVER],MATCH(L382,OpzegArbeiders[X],1),1),\"-\")","v":"-"},"-",{"$f":"IFERROR(INDEX(OpzegArbeiders[OPZEG DOOR DE WERKNEMER],MATCH(L382,OpzegArbeiders[X],1),1),\"-\")","v":"-"},"-","-","-"]
[null,null,null,null,null,null,379,null,null,null,null,"-",{"$f":"IFERROR(INDEX(OpzegArbeiders[OPZEG DOOR DE WERKGEVER],MATCH(L383,OpzegArbeiders[X],1),1),\"-\")","v":"-"},"-",{"$f":"IFERROR(INDEX(OpzegArbeiders[OPZEG DOOR DE WERKNEMER],MATCH(L383,OpzegArbeiders[X],1),1),\"-\")","v":"-"},"-","-","-"]
[null,null,null,null,null,null,380,null,null,null,null,"-",{"$f":"IFERROR(INDEX(OpzegArbeiders[OPZEG DOOR DE WERKGEVER],MATCH(L384,OpzegArbeiders[X],1),1),\"-\")","v":"-"},"-",{"$f":"IFERROR(INDEX(OpzegArbeiders[OPZEG DOOR DE WERKNEMER],MATCH(L384,OpzegArbeiders[X],1),1),\"-\")","v":"-"},"-","-","-"]
[null,null,null,null,null,null,381,null,null,null,null,"-",{"$f":"IFERROR(INDEX(OpzegArbeiders[OPZEG DOOR DE WERKGEVER],MATCH(L385,OpzegArbeiders[X],1),1),\"-\")","v":"-"},"-",{"$f":"IFERROR(INDEX(OpzegArbeiders[OPZEG DOOR DE WERKNEMER],MATCH(L385,OpzegArbeiders[X],1),1),\"-\")","v":"-"},"-","-","-"]
[null,null,null,null,null,null,382,null,null,null,null,"-",{"$f":"IFERROR(INDEX(OpzegArbeiders[OPZEG DOOR DE WERKGEVER],MATCH(L386,OpzegArbeiders[X],1),1),\"-\")","v":"-"},"-",{"$f":"IFERROR(INDEX(OpzegArbeiders[OPZEG DOOR DE WERKNEMER],MATCH(L386,OpzegArbeiders[X],1),1),\"-\")","v":"-"},"-","-","-"]
[null,null,null,null,null,null,383,null,null,null,null,"-",{"$f":"IFERROR(INDEX(OpzegArbeiders[OPZEG DOOR DE WERKGEVER],MATCH(L387,OpzegArbeiders[X],1),1),\"-\")","v":"-"},"-",{"$f":"IFERROR(INDEX(OpzegArbeiders[OPZEG DOOR DE WERKNEMER],MATCH(L387,OpzegArbeiders[X],1),1),\"-\")","v":"-"},"-","-","-"]
[null,null,null,null,null,null,384,null,null,null,null,"-",{"$f":"IFERROR(INDEX(OpzegArbeiders[OPZEG DOOR DE WERKGEVER],MATCH(L388,OpzegArbeiders[X],1),1),\"-\")","v":"-"},"-",{"$f":"IFERROR(INDEX(OpzegArbeiders[OPZEG DOOR DE WERKNEMER],MATCH(L388,OpzegArbeiders[X],1),1),\"-\")","v":"-"},"-","-","-"]
[null,null,null,null,null,null,385,null,null,null,null,"-",{"$f":"IFERROR(INDEX(OpzegArbeiders[OPZEG DOOR DE WERKGEVER],MATCH(L389,OpzegArbeiders[X],1),1),\"-\")","v":"-"},"-",{"$f":"IFERROR(INDEX(OpzegArbeiders[OPZEG DOOR DE WERKNEMER],MATCH(L389,OpzegArbeiders[X],1),1),\"-\")","v":"-"},"-","-","-"]
[null,null,null,null,null,null,386,null,null,null,null,{"$f":"IF(OR(H390<>\"\",J390<>\"\"),(DATEDIF(K390-1,DATE(2013,12,31),\"y\"))+(DATEDIF(K390-1,DATE(2013,12,31),\"ym\")/12)+(DATEDIF(K390-1,DATE(2013,12,31),\"md\")/365.25),\"-\")","v":"-"},{"$f":"IFERROR(INDEX(OpzegArbeiders[OPZEG DOOR DE WERKGEVER],MATCH(L390,OpzegArbeiders[X],1),1),\"-\")","v":"-"},{"$f":"IFERROR(M390/7,\"-\")","v":"-"},{"$f":"IFERROR(INDEX(OpzegArbeiders[OPZEG DOOR DE WERKNEMER],MATCH(L390,OpzegArbeiders[X],1),1),\"-\")","v":"-"},{"$f":"IFERROR(O390/7,\"-\")","v":"-"},{"$f":"IF(OR(ISTEXT(H390),ISTEXT(I390)),H390&\" \"&I390,\"-\")","v":"-"},{"$f":"IF(ISBLANK(J390),\"-\",J390)","v":"-"}]
[null,null,null,null,null,null,387,null,null,null,null,"-",{"$f":"IFERROR(INDEX(OpzegArbeiders[OPZEG DOOR DE WERKGEVER],MATCH(L391,OpzegArbeiders[X],1),1),\"-\")","v":"-"},"-",{"$f":"IFERROR(INDEX(OpzegArbeiders[OPZEG DOOR DE WERKNEMER],MATCH(L391,OpzegArbeiders[X],1),1),\"-\")","v":"-"},"-","-","-"]
[null,null,null,null,null,null,388,null,null,null,null,"-",{"$f":"IFERROR(INDEX(OpzegArbeiders[OPZEG DOOR DE WERKGEVER],MATCH(L392,OpzegArbeiders[X],1),1),\"-\")","v":"-"},"-",{"$f":"IFERROR(INDEX(OpzegArbeiders[OPZEG DOOR DE WERKNEMER],MATCH(L392,OpzegArbeiders[X],1),1),\"-\")","v":"-"},"-","-","-"]
[null,null,null,null,null,null,389,null,null,null,null,"-",{"$f":"IFERROR(INDEX(OpzegArbeiders[OPZEG DOOR DE WERKGEVER],MATCH(L393,OpzegArbeiders[X],1),1),\"-\")","v":"-"},"-",{"$f":"IFERROR(INDEX(OpzegArbeiders[OPZEG DOOR DE WERKNEMER],MATCH(L393,OpzegArbeiders[X],1),1),\"-\")","v":"-"},"-","-","-"]
[null,null,null,null,null,null,390,null,null,null,null,"-",{"$f":"IFERROR(INDEX(OpzegArbeiders[OPZEG DOOR DE WERKGEVER],MATCH(L394,OpzegArbeiders[X],1),1),\"-\")","v":"-"},"-",{"$f":"IFERROR(INDEX(OpzegArbeiders[OPZEG DOOR DE WERKNEMER],MATCH(L394,OpzegArbeiders[X],1),1),\"-\")","v":"-"},"-","-","-"]
[null,null,null,null,null,null,391,null,null,null,null,"-",{"$f":"IFERROR(INDEX(OpzegArbeiders[OPZEG DOOR DE WERKGEVER],MATCH(L395,OpzegArbeiders[X],1),1),\"-\")","v":"-"},"-",{"$f":"IFERROR(INDEX(OpzegArbeiders[OPZEG DOOR DE WERKNEMER],MATCH(L395,OpzegArbeiders[X],1),1),\"-\")","v":"-"},"-","-","-"]
[null,null,null,null,null,null,392,null,null,null,null,"-",{"$f":"IFERROR(INDEX(OpzegArbeiders[OPZEG DOOR DE WERKGEVER],MATCH(L396,OpzegArbeiders[X],1),1),\"-\")","v":"-"},"-",{"$f":"IFERROR(INDEX(OpzegArbeiders[OPZEG DOOR DE WERKNEMER],MATCH(L396,OpzegArbeiders[X],1),1),\"-\")","v":"-"},"-","-","-"]
[null,null,null,null,null,null,393,null,null,null,null,"-",{"$f":"IFERROR(INDEX(OpzegArbeiders[OPZEG DOOR DE WERKGEVER],MATCH(L397,OpzegArbeiders[X],1),1),\"-\")","v":"-"},"-",{"$f":"IFERROR(INDEX(OpzegArbeiders[OPZEG DOOR DE WERKNEMER],MATCH(L397,OpzegArbeiders[X],1),1),\"-\")","v":"-"},"-","-","-"]
[null,null,null,null,null,null,394,null,null,null,null,"-",{"$f":"IFERROR(INDEX(OpzegArbeiders[OPZEG DOOR DE WERKGEVER],MATCH(L398,OpzegArbeiders[X],1),1),\"-\")","v":"-"},"-",{"$f":"IFERROR(INDEX(OpzegArbeiders[OPZEG DOOR DE WERKNEMER],MATCH(L398,OpzegArbeiders[X],1),1),\"-\")","v":"-"},"-","-","-"]
[null,null,null,null,null,null,395,null,null,null,null,"-",{"$f":"IFERROR(INDEX(OpzegArbeiders[OPZEG DOOR DE WERKGEVER],MATCH(L399,OpzegArbeiders[X],1),1),\"-\")","v":"-"},"-",{"$f":"IFERROR(INDEX(OpzegArbeiders[OPZEG DOOR DE WERKNEMER],MATCH(L399,OpzegArbeiders[X],1),1),\"-\")","v":"-"},"-","-","-"]
[null,null,null,null,null,null,396,null,null,null,null,"-",{"$f":"IFERROR(INDEX(OpzegArbeiders[OPZEG DOOR DE WERKGEVER],MATCH(L400,OpzegArbeiders[X],1),1),\"-\")","v":"-"},"-",{"$f":"IFERROR(INDEX(OpzegArbeiders[OPZEG DOOR DE WERKNEMER],MATCH(L400,OpzegArbeiders[X],1),1),\"-\")","v":"-"},"-","-","-"]
[null,null,null,null,null,null,397,null,null,null,null,"-",{"$f":"IFERROR(INDEX(OpzegArbeiders[OPZEG DOOR DE WERKGEVER],MATCH(L401,OpzegArbeiders[X],1),1),\"-\")","v":"-"},"-",{"$f":"IFERROR(INDEX(OpzegArbeiders[OPZEG DOOR DE WERKNEMER],MATCH(L401,OpzegArbeiders[X],1),1),\"-\")","v":"-"},"-","-","-"]
[null,null,null,null,null,null,398,null,null,null,null,"-",{"$f":"IFERROR(INDEX(OpzegArbeiders[OPZEG DOOR DE WERKGEVER],MATCH(L402,OpzegArbeiders[X],1),1),\"-\")","v":"-"},"-",{"$f":"IFERROR(INDEX(OpzegArbeiders[OPZEG DOOR DE WERKNEMER],MATCH(L402,OpzegArbeiders[X],1),1),\"-\")","v":"-"},"-","-","-"]
[null,null,null,null,null,null,399,null,null,null,null,"-",{"$f":"IFERROR(INDEX(OpzegArbeiders[OPZEG DOOR DE WERKGEVER],MATCH(L403,OpzegArbeiders[X],1),1),\"-\")","v":"-"},"-",{"$f":"IFERROR(INDEX(OpzegArbeiders[OPZEG DOOR DE WERKNEMER],MATCH(L403,OpzegArbeiders[X],1),1),\"-\")","v":"-"},"-","-","-"]
[null,null,null,null,null,null,400,null,null,null,null,"-",{"$f":"IFERROR(INDEX(OpzegArbeiders[OPZEG DOOR DE WERKGEVER],MATCH(L404,OpzegArbeiders[X],1),1),\"-\")","v":"-"},"-",{"$f":"IFERROR(INDEX(OpzegArbeiders[OPZEG DOOR DE WERKNEMER],MATCH(L404,OpzegArbeiders[X],1),1),\"-\")","v":"-"},"-","-","-"]
[null,null,null,null,null,null,401,null,null,null,null,"-",{"$f":"IFERROR(INDEX(OpzegArbeiders[OPZEG DOOR DE WERKGEVER],MATCH(L405,OpzegArbeiders[X],1),1),\"-\")","v":"-"},"-",{"$f":"IFERROR(INDEX(OpzegArbeiders[OPZEG DOOR DE WERKNEMER],MATCH(L405,OpzegArbeiders[X],1),1),\"-\")","v":"-"},"-","-","-"]
[null,null,null,null,null,null,402,null,null,null,null,"-",{"$f":"IFERROR(INDEX(OpzegArbeiders[OPZEG DOOR DE WERKGEVER],MATCH(L406,OpzegArbeiders[X],1),1),\"-\")","v":"-"},"-",{"$f":"IFERROR(INDEX(OpzegArbeiders[OPZEG DOOR DE WERKNEMER],MATCH(L406,OpzegArbeiders[X],1),1),\"-\")","v":"-"},"-","-","-"]
[null,null,null,null,null,null,403,null,null,null,null,"-",{"$f":"IFERROR(INDEX(OpzegArbeiders[OPZEG DOOR DE WERKGEVER],MATCH(L407,OpzegArbeiders[X],1),1),\"-\")","v":"-"},"-",{"$f":"IFERROR(INDEX(OpzegArbeiders[OPZEG DOOR DE WERKNEMER],MATCH(L407,OpzegArbeiders[X],1),1),\"-\")","v":"-"},"-","-","-"]
[null,null,null,null,null,null,404,null,null,null,null,"-",{"$f":"IFERROR(INDEX(OpzegArbeiders[OPZEG DOOR DE WERKGEVER],MATCH(L408,OpzegArbeiders[X],1),1),\"-\")","v":"-"},"-",{"$f":"IFERROR(INDEX(OpzegArbeiders[OPZEG DOOR DE WERKNEMER],MATCH(L408,OpzegArbeiders[X],1),1),\"-\")","v":"-"},"-","-","-"]
[null,null,null,null,null,null,405,null,null,null,null,"-",{"$f":"IFERROR(INDEX(OpzegArbeiders[OPZEG DOOR DE WERKGEVER],MATCH(L409,OpzegArbeiders[X],1),1),\"-\")","v":"-"},"-",{"$f":"IFERROR(INDEX(OpzegArbeiders[OPZEG DOOR DE WERKNEMER],MATCH(L409,OpzegArbeiders[X],1),1),\"-\")","v":"-"},"-","-","-"]
[null,null,null,null,null,null,406,null,null,null,null,"-",{"$f":"IFERROR(INDEX(OpzegArbeiders[OPZEG DOOR DE WERKGEVER],MATCH(L410,OpzegArbeiders[X],1),1),\"-\")","v":"-"},"-",{"$f":"IFERROR(INDEX(OpzegArbeiders[OPZEG DOOR DE WERKNEMER],MATCH(L410,OpzegArbeiders[X],1),1),\"-\")","v":"-"},"-","-","-"]
[null,null,null,null,null,null,407,null,null,null,null,"-",{"$f":"IFERROR(INDEX(OpzegArbeiders[OPZEG DOOR DE WERKGEVER],MATCH(L411,OpzegArbeiders[X],1),1),\"-\")","v":"-"},"-",{"$f":"IFERROR(INDEX(OpzegArbeiders[OPZEG DOOR DE WERKNEMER],MATCH(L411,OpzegArbeiders[X],1),1),\"-\")","v":"-"},"-","-","-"]
[null,null,null,null,null,null,408,null,null,null,null,"-",{"$f":"IFERROR(INDEX(OpzegArbeiders[OPZEG DOOR DE WERKGEVER],MATCH(L412,OpzegArbeiders[X],1),1),\"-\")","v":"-"},"-",{"$f":"IFERROR(INDEX(OpzegArbeiders[OPZEG DOOR DE WERKNEMER],MATCH(L412,OpzegArbeiders[X],1),1),\"-\")","v":"-"},"-","-","-"]
[null,null,null,null,null,null,409,null,null,null,null,"-",{"$f":"IFERROR(INDEX(OpzegArbeiders[OPZEG DOOR DE WERKGEVER],MATCH(L413,OpzegArbeiders[X],1),1),\"-\")","v":"-"},"-",{"$f":"IFERROR(INDEX(OpzegArbeiders[OPZEG DOOR DE WERKNEMER],MATCH(L413,OpzegArbeiders[X],1),1),\"-\")","v":"-"},"-","-","-"]
[null,null,null,null,null,null,410,null,null,null,null,"-",{"$f":"IFERROR(INDEX(OpzegArbeiders[OPZEG DOOR DE WERKGEVER],MATCH(L414,OpzegArbeiders[X],1),1),\"-\")","v":"-"},"-",{"$f":"IFERROR(INDEX(OpzegArbeiders[OPZEG DOOR DE WERKNEMER],MATCH(L414,OpzegArbeiders[X],1),1),\"-\")","v":"-"},"-","-","-"]
[null,null,null,null,null,null,411,null,null,null,null,"-",{"$f":"IFERROR(INDEX(OpzegArbeiders[OPZEG DOOR DE WERKGEVER],MATCH(L415,OpzegArbeiders[X],1),1),\"-\")","v":"-"},"-",{"$f":"IFERROR(INDEX(OpzegArbeiders[OPZEG DOOR DE WERKNEMER],MATCH(L415,OpzegArbeiders[X],1),1),\"-\")","v":"-"},"-","-","-"]
[null,null,null,null,null,null,412,null,null,null,null,"-",{"$f":"IFERROR(INDEX(OpzegArbeiders[OPZEG DOOR DE WERKGEVER],MATCH(L416,OpzegArbeiders[X],1),1),\"-\")","v":"-"},"-",{"$f":"IFERROR(INDEX(OpzegArbeiders[OPZEG DOOR DE WERKNEMER],MATCH(L416,OpzegArbeiders[X],1),1),\"-\")","v":"-"},"-","-","-"]
[null,null,null,null,null,null,413,null,null,null,null,"-",{"$f":"IFERROR(INDEX(OpzegArbeiders[OPZEG DOOR DE WERKGEVER],MATCH(L417,OpzegArbeiders[X],1),1),\"-\")","v":"-"},"-",{"$f":"IFERROR(INDEX(OpzegArbeiders[OPZEG DOOR DE WERKNEMER],MATCH(L417,OpzegArbeiders[X],1),1),\"-\")","v":"-"},"-","-","-"]
[null,null,null,null,null,null,414,null,null,null,null,"-",{"$f":"IFERROR(INDEX(OpzegArbeiders[OPZEG DOOR DE WERKGEVER],MATCH(L418,OpzegArbeiders[X],1),1),\"-\")","v":"-"},"-",{"$f":"IFERROR(INDEX(OpzegArbeiders[OPZEG DOOR DE WERKNEMER],MATCH(L418,OpzegArbeiders[X],1),1),\"-\")","v":"-"},"-","-","-"]
[null,null,null,null,null,null,415,null,null,null,null,"-",{"$f":"IFERROR(INDEX(OpzegArbeiders[OPZEG DOOR DE WERKGEVER],MATCH(L419,OpzegArbeiders[X],1),1),\"-\")","v":"-"},"-",{"$f":"IFERROR(INDEX(OpzegArbeiders[OPZEG DOOR DE WERKNEMER],MATCH(L419,OpzegArbeiders[X],1),1),\"-\")","v":"-"},"-","-","-"]
[null,null,null,null,null,null,416,null,null,null,null,"-",{"$f":"IFERROR(INDEX(OpzegArbeiders[OPZEG DOOR DE WERKGEVER],MATCH(L420,OpzegArbeiders[X],1),1),\"-\")","v":"-"},"-",{"$f":"IFERROR(INDEX(OpzegArbeiders[OPZEG DOOR DE WERKNEMER],MATCH(L420,OpzegArbeiders[X],1),1),\"-\")","v":"-"},"-","-","-"]
[null,null,null,null,null,null,417,null,null,null,null,"-",{"$f":"IFERROR(INDEX(OpzegArbeiders[OPZEG DOOR DE WERKGEVER],MATCH(L421,OpzegArbeiders[X],1),1),\"-\")","v":"-"},"-",{"$f":"IFERROR(INDEX(OpzegArbeiders[OPZEG DOOR DE WERKNEMER],MATCH(L421,OpzegArbeiders[X],1),1),\"-\")","v":"-"},"-","-","-"]
[null,null,null,null,null,null,418,null,null,null,null,"-",{"$f":"IFERROR(INDEX(OpzegArbeiders[OPZEG DOOR DE WERKGEVER],MATCH(L422,OpzegArbeiders[X],1),1),\"-\")","v":"-"},"-",{"$f":"IFERROR(INDEX(OpzegArbeiders[OPZEG DOOR DE WERKNEMER],MATCH(L422,OpzegArbeiders[X],1),1),\"-\")","v":"-"},"-","-","-"]
[null,null,null,null,null,null,419,null,null,null,null,"-",{"$f":"IFERROR(INDEX(OpzegArbeiders[OPZEG DOOR DE WERKGEVER],MATCH(L423,OpzegArbeiders[X],1),1),\"-\")","v":"-"},"-",{"$f":"IFERROR(INDEX(OpzegArbeiders[OPZEG DOOR DE WERKNEMER],MATCH(L423,OpzegArbeiders[X],1),1),\"-\")","v":"-"},"-","-","-"]
[null,null,null,null,null,null,420,null,null,null,null,"-",{"$f":"IFERROR(INDEX(OpzegArbeiders[OPZEG DOOR DE WERKGEVER],MATCH(L424,OpzegArbeiders[X],1),1),\"-\")","v":"-"},"-",{"$f":"IFERROR(INDEX(OpzegArbeiders[OPZEG DOOR DE WERKNEMER],MATCH(L424,OpzegArbeiders[X],1),1),\"-\")","v":"-"},"-","-","-"]
[null,null,null,null,null,null,421,null,null,null,null,"-",{"$f":"IFERROR(INDEX(OpzegArbeiders[OPZEG DOOR DE WERKGEVER],MATCH(L425,OpzegArbeiders[X],1),1),\"-\")","v":"-"},"-",{"$f":"IFERROR(INDEX(OpzegArbeiders[OPZEG DOOR DE WERKNEMER],MATCH(L425,OpzegArbeiders[X],1),1),\"-\")","v":"-"},"-","-","-"]
[null,null,null,null,null,null,422,null,null,null,null,"-",{"$f":"IFERROR(INDEX(OpzegArbeiders[OPZEG DOOR DE WERKGEVER],MATCH(L426,OpzegArbeiders[X],1),1),\"-\")","v":"-"},"-",{"$f":"IFERROR(INDEX(OpzegArbeiders[OPZEG DOOR DE WERKNEMER],MATCH(L426,OpzegArbeiders[X],1),1),\"-\")","v":"-"},"-","-","-"]
[null,null,null,null,null,null,423,null,null,null,null,"-",{"$f":"IFERROR(INDEX(OpzegArbeiders[OPZEG DOOR DE WERKGEVER],MATCH(L427,OpzegArbeiders[X],1),1),\"-\")","v":"-"},"-",{"$f":"IFERROR(INDEX(OpzegArbeiders[OPZEG DOOR DE WERKNEMER],MATCH(L427,OpzegArbeiders[X],1),1),\"-\")","v":"-"},"-","-","-"]
[null,null,null,null,null,null,424,null,null,null,null,"-",{"$f":"IFERROR(INDEX(OpzegArbeiders[OPZEG DOOR DE WERKGEVER],MATCH(L428,OpzegArbeiders[X],1),1),\"-\")","v":"-"},"-",{"$f":"IFERROR(INDEX(OpzegArbeiders[OPZEG DOOR DE WERKNEMER],MATCH(L428,OpzegArbeiders[X],1),1),\"-\")","v":"-"},"-","-","-"]
[null,null,null,null,null,null,425,null,null,null,null,"-",{"$f":"IFERROR(INDEX(OpzegArbeiders[OPZEG DOOR DE WERKGEVER],MATCH(L429,OpzegArbeiders[X],1),1),\"-\")","v":"-"},"-",{"$f":"IFERROR(INDEX(OpzegArbeiders[OPZEG DOOR DE WERKNEMER],MATCH(L429,OpzegArbeiders[X],1),1),\"-\")","v":"-"},"-","-","-"]
[null,null,null,null,null,null,426,null,null,null,null,"-",{"$f":"IFERROR(INDEX(OpzegArbeiders[OPZEG DOOR DE WERKGEVER],MATCH(L430,OpzegArbeiders[X],1),1),\"-\")","v":"-"},"-",{"$f":"IFERROR(INDEX(OpzegArbeiders[OPZEG DOOR DE WERKNEMER],MATCH(L430,OpzegArbeiders[X],1),1),\"-\")","v":"-"},"-","-","-"]
[null,null,null,null,null,null,427,null,null,null,null,"-",{"$f":"IFERROR(INDEX(OpzegArbeiders[OPZEG DOOR DE WERKGEVER],MATCH(L431,OpzegArbeiders[X],1),1),\"-\")","v":"-"},"-",{"$f":"IFERROR(INDEX(OpzegArbeiders[OPZEG DOOR DE WERKNEMER],MATCH(L431,OpzegArbeiders[X],1),1),\"-\")","v":"-"},"-","-","-"]
[null,null,null,null,null,null,428,null,null,null,null,"-",{"$f":"IFERROR(INDEX(OpzegArbeiders[OPZEG DOOR DE WERKGEVER],MATCH(L432,OpzegArbeiders[X],1),1),\"-\")","v":"-"},"-",{"$f":"IFERROR(INDEX(OpzegArbeiders[OPZEG DOOR DE WERKNEMER],MATCH(L432,OpzegArbeiders[X],1),1),\"-\")","v":"-"},"-","-","-"]
[null,null,null,null,null,null,429,null,null,null,null,"-",{"$f":"IFERROR(INDEX(OpzegArbeiders[OPZEG DOOR DE WERKGEVER],MATCH(L433,OpzegArbeiders[X],1),1),\"-\")","v":"-"},"-",{"$f":"IFERROR(INDEX(OpzegArbeiders[OPZEG DOOR DE WERKNEMER],MATCH(L433,OpzegArbeiders[X],1),1),\"-\")","v":"-"},"-","-","-"]
[null,null,null,null,null,null,430,null,null,null,null,"-",{"$f":"IFERROR(INDEX(OpzegArbeiders[OPZEG DOOR DE WERKGEVER],MATCH(L434,OpzegArbeiders[X],1),1),\"-\")","v":"-"},"-",{"$f":"IFERROR(INDEX(OpzegArbeiders[OPZEG DOOR DE WERKNEMER],MATCH(L434,OpzegArbeiders[X],1),1),\"-\")","v":"-"},"-","-","-"]
[null,null,null,null,null,null,431,null,null,null,null,"-",{"$f":"IFERROR(INDEX(OpzegArbeiders[OPZEG DOOR DE WERKGEVER],MATCH(L435,OpzegArbeiders[X],1),1),\"-\")","v":"-"},"-",{"$f":"IFERROR(INDEX(OpzegArbeiders[OPZEG DOOR DE WERKNEMER],MATCH(L435,OpzegArbeiders[X],1),1),\"-\")","v":"-"},"-","-","-"]
[null,null,null,null,null,null,432,null,null,null,null,"-",{"$f":"IFERROR(INDEX(OpzegArbeiders[OPZEG DOOR DE WERKGEVER],MATCH(L436,OpzegArbeiders[X],1),1),\"-\")","v":"-"},"-",{"$f":"IFERROR(INDEX(OpzegArbeiders[OPZEG DOOR DE WERKNEMER],MATCH(L436,OpzegArbeiders[X],1),1),\"-\")","v":"-"},"-","-","-"]
[null,null,null,null,null,null,433,null,null,null,null,"-",{"$f":"IFERROR(INDEX(OpzegArbeiders[OPZEG DOOR DE WERKGEVER],MATCH(L437,OpzegArbeiders[X],1),1),\"-\")","v":"-"},"-",{"$f":"IFERROR(INDEX(OpzegArbeiders[OPZEG DOOR DE WERKNEMER],MATCH(L437,OpzegArbeiders[X],1),1),\"-\")","v":"-"},"-","-","-"]
[null,null,null,null,null,null,434,null,null,null,null,"-",{"$f":"IFERROR(INDEX(OpzegArbeiders[OPZEG DOOR DE WERKGEVER],MATCH(L438,OpzegArbeiders[X],1),1),\"-\")","v":"-"},"-",{"$f":"IFERROR(INDEX(OpzegArbeiders[OPZEG DOOR DE WERKNEMER],MATCH(L438,OpzegArbeiders[X],1),1),\"-\")","v":"-"},"-","-","-"]
[null,null,null,null,null,null,435,null,null,null,null,"-",{"$f":"IFERROR(INDEX(OpzegArbeiders[OPZEG DOOR DE WERKGEVER],MATCH(L439,OpzegArbeiders[X],1),1),\"-\")","v":"-"},"-",{"$f":"IFERROR(INDEX(OpzegArbeiders[OPZEG DOOR DE WERKNEMER],MATCH(L439,OpzegArbeiders[X],1),1),\"-\")","v":"-"},"-","-","-"]
[null,null,null,null,null,null,436,null,null,null,null,"-",{"$f":"IFERROR(INDEX(OpzegArbeiders[OPZEG DOOR DE WERKGEVER],MATCH(L440,OpzegArbeiders[X],1),1),\"-\")","v":"-"},"-",{"$f":"IFERROR(INDEX(OpzegArbeiders[OPZEG DOOR DE WERKNEMER],MATCH(L440,OpzegArbeiders[X],1),1),\"-\")","v":"-"},"-","-","-"]
[null,null,null,null,null,null,437,null,null,null,null,"-",{"$f":"IFERROR(INDEX(OpzegArbeiders[OPZEG DOOR DE WERKGEVER],MATCH(L441,OpzegArbeiders[X],1),1),\"-\")","v":"-"},"-",{"$f":"IFERROR(INDEX(OpzegArbeiders[OPZEG DOOR DE WERKNEMER],MATCH(L441,OpzegArbeiders[X],1),1),\"-\")","v":"-"},"-","-","-"]
[null,null,null,null,null,null,438,null,null,null,null,"-",{"$f":"IFERROR(INDEX(OpzegArbeiders[OPZEG DOOR DE WERKGEVER],MATCH(L442,OpzegArbeiders[X],1),1),\"-\")","v":"-"},"-",{"$f":"IFERROR(INDEX(OpzegArbeiders[OPZEG DOOR DE WERKNEMER],MATCH(L442,OpzegArbeiders[X],1),1),\"-\")","v":"-"},"-","-","-"]
[null,null,null,null,null,null,439,null,null,null,null,"-",{"$f":"IFERROR(INDEX(OpzegArbeiders[OPZEG DOOR DE WERKGEVER],MATCH(L443,OpzegArbeiders[X],1),1),\"-\")","v":"-"},"-",{"$f":"IFERROR(INDEX(OpzegArbeiders[OPZEG DOOR DE WERKNEMER],MATCH(L443,OpzegArbeiders[X],1),1),\"-\")","v":"-"},"-","-","-"]
[null,null,null,null,null,null,440,null,null,null,null,"-",{"$f":"IFERROR(INDEX(OpzegArbeiders[OPZEG DOOR DE WERKGEVER],MATCH(L444,OpzegArbeiders[X],1),1),\"-\")","v":"-"},"-",{"$f":"IFERROR(INDEX(OpzegArbeiders[OPZEG DOOR DE WERKNEMER],MATCH(L444,OpzegArbeiders[X],1),1),\"-\")","v":"-"},"-","-","-"]
[null,null,null,null,null,null,441,null,null,null,null,"-",{"$f":"IFERROR(INDEX(OpzegArbeiders[OPZEG DOOR DE WERKGEVER],MATCH(L445,OpzegArbeiders[X],1),1),\"-\")","v":"-"},"-",{"$f":"IFERROR(INDEX(OpzegArbeiders[OPZEG DOOR DE WERKNEMER],MATCH(L445,OpzegArbeiders[X],1),1),\"-\")","v":"-"},"-","-","-"]
[null,null,null,null,null,null,442,null,null,null,null,"-",{"$f":"IFERROR(INDEX(OpzegArbeiders[OPZEG DOOR DE WERKGEVER],MATCH(L446,OpzegArbeiders[X],1),1),\"-\")","v":"-"},"-",{"$f":"IFERROR(INDEX(OpzegArbeiders[OPZEG DOOR DE WERKNEMER],MATCH(L446,OpzegArbeiders[X],1),1),\"-\")","v":"-"},"-","-","-"]
[null,null,null,null,null,null,443,null,null,null,null,"-",{"$f":"IFERROR(INDEX(OpzegArbeiders[OPZEG DOOR DE WERKGEVER],MATCH(L447,OpzegArbeiders[X],1),1),\"-\")","v":"-"},"-",{"$f":"IFERROR(INDEX(OpzegArbeiders[OPZEG DOOR DE WERKNEMER],MATCH(L447,OpzegArbeiders[X],1),1),\"-\")","v":"-"},"-","-","-"]
[null,null,null,null,null,null,444,null,null,null,null,"-",{"$f":"IFERROR(INDEX(OpzegArbeiders[OPZEG DOOR DE WERKGEVER],MATCH(L448,OpzegArbeiders[X],1),1),\"-\")","v":"-"},"-",{"$f":"IFERROR(INDEX(OpzegArbeiders[OPZEG DOOR DE WERKNEMER],MATCH(L448,OpzegArbeiders[X],1),1),\"-\")","v":"-"},"-","-","-"]
[null,null,null,null,null,null,445,null,null,null,null,"-",{"$f":"IFERROR(INDEX(OpzegArbeiders[OPZEG DOOR DE WERKGEVER],MATCH(L449,OpzegArbeiders[X],1),1),\"-\")","v":"-"},"-",{"$f":"IFERROR(INDEX(OpzegArbeiders[OPZEG DOOR DE WERKNEMER],MATCH(L449,OpzegArbeiders[X],1),1),\"-\")","v":"-"},"-","-","-"]
[null,null,null,null,null,null,446,null,null,null,null,"-",{"$f":"IFERROR(INDEX(OpzegArbeiders[OPZEG DOOR DE WERKGEVER],MATCH(L450,OpzegArbeiders[X],1),1),\"-\")","v":"-"},"-",{"$f":"IFERROR(INDEX(OpzegArbeiders[OPZEG DOOR DE WERKNEMER],MATCH(L450,OpzegArbeiders[X],1),1),\"-\")","v":"-"},"-","-","-"]
[null,null,null,null,null,null,447,null,null,null,null,"-",{"$f":"IFERROR(INDEX(OpzegArbeiders[OPZEG DOOR DE WERKGEVER],MATCH(L451,OpzegArbeiders[X],1),1),\"-\")","v":"-"},"-",{"$f":"IFERROR(INDEX(OpzegArbeiders[OPZEG DOOR DE WERKNEMER],MATCH(L451,OpzegArbeiders[X],1),1),\"-\")","v":"-"},"-","-","-"]
[null,null,null,null,null,null,448,null,null,null,null,"-",{"$f":"IFERROR(INDEX(OpzegArbeiders[OPZEG DOOR DE WERKGEVER],MATCH(L452,OpzegArbeiders[X],1),1),\"-\")","v":"-"},"-",{"$f":"IFERROR(INDEX(OpzegArbeiders[OPZEG DOOR DE WERKNEMER],MATCH(L452,OpzegArbeiders[X],1),1),\"-\")","v":"-"},"-","-","-"]
[null,null,null,null,null,null,449,null,null,null,null,"-",{"$f":"IFERROR(INDEX(OpzegArbeiders[OPZEG DOOR DE WERKGEVER],MATCH(L453,OpzegArbeiders[X],1),1),\"-\")","v":"-"},"-",{"$f":"IFERROR(INDEX(OpzegArbeiders[OPZEG DOOR DE WERKNEMER],MATCH(L453,OpzegArbeiders[X],1),1),\"-\")","v":"-"},"-","-","-"]
[null,null,null,null,null,null,450,null,null,null,null,{"$f":"IF(OR(H454<>\"\",J454<>\"\"),(DATEDIF(K454-1,DATE(2013,12,31),\"y\"))+(DATEDIF(K454-1,DATE(2013,12,31),\"ym\")/12)+(DATEDIF(K454-1,DATE(2013,12,31),\"md\")/365.25),\"-\")","v":"-"},{"$f":"IFERROR(INDEX(OpzegArbeiders[OPZEG DOOR DE WERKGEVER],MATCH(L454,OpzegArbeiders[X],1),1),\"-\")","v":"-"},{"$f":"IFERROR(M454/7,\"-\")","v":"-"},{"$f":"IFERROR(INDEX(OpzegArbeiders[OPZEG DOOR DE WERKNEMER],MATCH(L454,OpzegArbeiders[X],1),1),\"-\")","v":"-"},{"$f":"IFERROR(O454/7,\"-\")","v":"-"},{"$f":"IF(OR(ISTEXT(H454),ISTEXT(I454)),H454&\" \"&I454,\"-\")","v":"-"},{"$f":"IF(ISBLANK(J454),\"-\",J454)","v":"-"}]
[null,null,null,null,null,null,451,null,null,null,null,"-",{"$f":"IFERROR(INDEX(OpzegArbeiders[OPZEG DOOR DE WERKGEVER],MATCH(L455,OpzegArbeiders[X],1),1),\"-\")","v":"-"},"-",{"$f":"IFERROR(INDEX(OpzegArbeiders[OPZEG DOOR DE WERKNEMER],MATCH(L455,OpzegArbeiders[X],1),1),\"-\")","v":"-"},"-","-","-"]
[null,null,null,null,null,null,452,null,null,null,null,"-",{"$f":"IFERROR(INDEX(OpzegArbeiders[OPZEG DOOR DE WERKGEVER],MATCH(L456,OpzegArbeiders[X],1),1),\"-\")","v":"-"},"-",{"$f":"IFERROR(INDEX(OpzegArbeiders[OPZEG DOOR DE WERKNEMER],MATCH(L456,OpzegArbeiders[X],1),1),\"-\")","v":"-"},"-","-","-"]
[null,null,null,null,null,null,453,null,null,null,null,"-",{"$f":"IFERROR(INDEX(OpzegArbeiders[OPZEG DOOR DE WERKGEVER],MATCH(L457,OpzegArbeiders[X],1),1),\"-\")","v":"-"},"-",{"$f":"IFERROR(INDEX(OpzegArbeiders[OPZEG DOOR DE WERKNEMER],MATCH(L457,OpzegArbeiders[X],1),1),\"-\")","v":"-"},"-","-","-"]
[null,null,null,null,null,null,454,null,null,null,null,"-",{"$f":"IFERROR(INDEX(OpzegArbeiders[OPZEG DOOR DE WERKGEVER],MATCH(L458,OpzegArbeiders[X],1),1),\"-\")","v":"-"},"-",{"$f":"IFERROR(INDEX(OpzegArbeiders[OPZEG DOOR DE WERKNEMER],MATCH(L458,OpzegArbeiders[X],1),1),\"-\")","v":"-"},"-","-","-"]
[null,null,null,null,null,null,455,null,null,null,null,"-",{"$f":"IFERROR(INDEX(OpzegArbeiders[OPZEG DOOR DE WERKGEVER],MATCH(L459,OpzegArbeiders[X],1),1),\"-\")","v":"-"},"-",{"$f":"IFERROR(INDEX(OpzegArbeiders[OPZEG DOOR DE WERKNEMER],MATCH(L459,OpzegArbeiders[X],1),1),\"-\")","v":"-"},"-","-","-"]
[null,null,null,null,null,null,456,null,null,null,null,"-",{"$f":"IFERROR(INDEX(OpzegArbeiders[OPZEG DOOR DE WERKGEVER],MATCH(L460,OpzegArbeiders[X],1),1),\"-\")","v":"-"},"-",{"$f":"IFERROR(INDEX(OpzegArbeiders[OPZEG DOOR DE WERKNEMER],MATCH(L460,OpzegArbeiders[X],1),1),\"-\")","v":"-"},"-","-","-"]
[null,null,null,null,null,null,457,null,null,null,null,"-",{"$f":"IFERROR(INDEX(OpzegArbeiders[OPZEG DOOR DE WERKGEVER],MATCH(L461,OpzegArbeiders[X],1),1),\"-\")","v":"-"},"-",{"$f":"IFERROR(INDEX(OpzegArbeiders[OPZEG DOOR DE WERKNEMER],MATCH(L461,OpzegArbeiders[X],1),1),\"-\")","v":"-"},"-","-","-"]
[null,null,null,null,null,null,458,null,null,null,null,"-",{"$f":"IFERROR(INDEX(OpzegArbeiders[OPZEG DOOR DE WERKGEVER],MATCH(L462,OpzegArbeiders[X],1),1),\"-\")","v":"-"},"-",{"$f":"IFERROR(INDEX(OpzegArbeiders[OPZEG DOOR DE WERKNEMER],MATCH(L462,OpzegArbeiders[X],1),1),\"-\")","v":"-"},"-","-","-"]
[null,null,null,null,null,null,459,null,null,null,null,"-",{"$f":"IFERROR(INDEX(OpzegArbeiders[OPZEG DOOR DE WERKGEVER],MATCH(L463,OpzegArbeiders[X],1),1),\"-\")","v":"-"},"-",{"$f":"IFERROR(INDEX(OpzegArbeiders[OPZEG DOOR DE WERKNEMER],MATCH(L463,OpzegArbeiders[X],1),1),\"-\")","v":"-"},"-","-","-"]
[null,null,null,null,null,null,460,null,null,null,null,"-",{"$f":"IFERROR(INDEX(OpzegArbeiders[OPZEG DOOR DE WERKGEVER],MATCH(L464,OpzegArbeiders[X],1),1),\"-\")","v":"-"},"-",{"$f":"IFERROR(INDEX(OpzegArbeiders[OPZEG DOOR DE WERKNEMER],MATCH(L464,OpzegArbeiders[X],1),1),\"-\")","v":"-"},"-","-","-"]
[null,null,null,null,null,null,461,null,null,null,null,"-",{"$f":"IFERROR(INDEX(OpzegArbeiders[OPZEG DOOR DE WERKGEVER],MATCH(L465,OpzegArbeiders[X],1),1),\"-\")","v":"-"},"-",{"$f":"IFERROR(INDEX(OpzegArbeiders[OPZEG DOOR DE WERKNEMER],MATCH(L465,OpzegArbeiders[X],1),1),\"-\")","v":"-"},"-","-","-"]
[null,null,null,null,null,null,462,null,null,null,null,"-",{"$f":"IFERROR(INDEX(OpzegArbeiders[OPZEG DOOR DE WERKGEVER],MATCH(L466,OpzegArbeiders[X],1),1),\"-\")","v":"-"},"-",{"$f":"IFERROR(INDEX(OpzegArbeiders[OPZEG DOOR DE WERKNEMER],MATCH(L466,OpzegArbeiders[X],1),1),\"-\")","v":"-"},"-","-","-"]
[null,null,null,null,null,null,463,null,null,null,null,"-",{"$f":"IFERROR(INDEX(OpzegArbeiders[OPZEG DOOR DE WERKGEVER],MATCH(L467,OpzegArbeiders[X],1),1),\"-\")","v":"-"},"-",{"$f":"IFERROR(INDEX(OpzegArbeiders[OPZEG DOOR DE WERKNEMER],MATCH(L467,OpzegArbeiders[X],1),1),\"-\")","v":"-"},"-","-","-"]
[null,null,null,null,null,null,464,null,null,null,null,"-",{"$f":"IFERROR(INDEX(OpzegArbeiders[OPZEG DOOR DE WERKGEVER],MATCH(L468,OpzegArbeiders[X],1),1),\"-\")","v":"-"},"-",{"$f":"IFERROR(INDEX(OpzegArbeiders[OPZEG DOOR DE WERKNEMER],MATCH(L468,OpzegArbeiders[X],1),1),\"-\")","v":"-"},"-","-","-"]
[null,null,null,null,null,null,465,null,null,null,null,"-",{"$f":"IFERROR(INDEX(OpzegArbeiders[OPZEG DOOR DE WERKGEVER],MATCH(L469,OpzegArbeiders[X],1),1),\"-\")","v":"-"},"-",{"$f":"IFERROR(INDEX(OpzegArbeiders[OPZEG DOOR DE WERKNEMER],MATCH(L469,OpzegArbeiders[X],1),1),\"-\")","v":"-"},"-","-","-"]
[null,null,null,null,null,null,466,null,null,null,null,"-",{"$f":"IFERROR(INDEX(OpzegArbeiders[OPZEG DOOR DE WERKGEVER],MATCH(L470,OpzegArbeiders[X],1),1),\"-\")","v":"-"},"-",{"$f":"IFERROR(INDEX(OpzegArbeiders[OPZEG DOOR DE WERKNEMER],MATCH(L470,OpzegArbeiders[X],1),1),\"-\")","v":"-"},"-","-","-"]
[null,null,null,null,null,null,467,null,null,null,null,"-",{"$f":"IFERROR(INDEX(OpzegArbeiders[OPZEG DOOR DE WERKGEVER],MATCH(L471,OpzegArbeiders[X],1),1),\"-\")","v":"-"},"-",{"$f":"IFERROR(INDEX(OpzegArbeiders[OPZEG DOOR DE WERKNEMER],MATCH(L471,OpzegArbeiders[X],1),1),\"-\")","v":"-"},"-","-","-"]
[null,null,null,null,null,null,468,null,null,null,null,"-",{"$f":"IFERROR(INDEX(OpzegArbeiders[OPZEG DOOR DE WERKGEVER],MATCH(L472,OpzegArbeiders[X],1),1),\"-\")","v":"-"},"-",{"$f":"IFERROR(INDEX(OpzegArbeiders[OPZEG DOOR DE WERKNEMER],MATCH(L472,OpzegArbeiders[X],1),1),\"-\")","v":"-"},"-","-","-"]
[null,null,null,null,null,null,469,null,null,null,null,"-",{"$f":"IFERROR(INDEX(OpzegArbeiders[OPZEG DOOR DE WERKGEVER],MATCH(L473,OpzegArbeiders[X],1),1),\"-\")","v":"-"},"-",{"$f":"IFERROR(INDEX(OpzegArbeiders[OPZEG DOOR DE WERKNEMER],MATCH(L473,OpzegArbeiders[X],1),1),\"-\")","v":"-"},"-","-","-"]
[null,null,null,null,null,null,470,null,null,null,null,"-",{"$f":"IFERROR(INDEX(OpzegArbeiders[OPZEG DOOR DE WERKGEVER],MATCH(L474,OpzegArbeiders[X],1),1),\"-\")","v":"-"},"-",{"$f":"IFERROR(INDEX(OpzegArbeiders[OPZEG DOOR DE WERKNEMER],MATCH(L474,OpzegArbeiders[X],1),1),\"-\")","v":"-"},"-","-","-"]
[null,null,null,null,null,null,471,null,null,null,null,"-",{"$f":"IFERROR(INDEX(OpzegArbeiders[OPZEG DOOR DE WERKGEVER],MATCH(L475,OpzegArbeiders[X],1),1),\"-\")","v":"-"},"-",{"$f":"IFERROR(INDEX(OpzegArbeiders[OPZEG DOOR DE WERKNEMER],MATCH(L475,OpzegArbeiders[X],1),1),\"-\")","v":"-"},"-","-","-"]
[null,null,null,null,null,null,472,null,null,null,null,"-",{"$f":"IFERROR(INDEX(OpzegArbeiders[OPZEG DOOR DE WERKGEVER],MATCH(L476,OpzegArbeiders[X],1),1),\"-\")","v":"-"},"-",{"$f":"IFERROR(INDEX(OpzegArbeiders[OPZEG DOOR DE WERKNEMER],MATCH(L476,OpzegArbeiders[X],1),1),\"-\")","v":"-"},"-","-","-"]
[null,null,null,null,null,null,473,null,null,null,null,"-",{"$f":"IFERROR(INDEX(OpzegArbeiders[OPZEG DOOR DE WERKGEVER],MATCH(L477,OpzegArbeiders[X],1),1),\"-\")","v":"-"},"-",{"$f":"IFERROR(INDEX(OpzegArbeiders[OPZEG DOOR DE WERKNEMER],MATCH(L477,OpzegArbeiders[X],1),1),\"-\")","v":"-"},"-","-","-"]
[null,null,null,null,null,null,474,null,null,null,null,"-",{"$f":"IFERROR(INDEX(OpzegArbeiders[OPZEG DOOR DE WERKGEVER],MATCH(L478,OpzegArbeiders[X],1),1),\"-\")","v":"-"},"-",{"$f":"IFERROR(INDEX(OpzegArbeiders[OPZEG DOOR DE WERKNEMER],MATCH(L478,OpzegArbeiders[X],1),1),\"-\")","v":"-"},"-","-","-"]
[null,null,null,null,null,null,475,null,null,null,null,"-",{"$f":"IFERROR(INDEX(OpzegArbeiders[OPZEG DOOR DE WERKGEVER],MATCH(L479,OpzegArbeiders[X],1),1),\"-\")","v":"-"},"-",{"$f":"IFERROR(INDEX(OpzegArbeiders[OPZEG DOOR DE WERKNEMER],MATCH(L479,OpzegArbeiders[X],1),1),\"-\")","v":"-"},"-","-","-"]
[null,null,null,null,null,null,476,null,null,null,null,"-",{"$f":"IFERROR(INDEX(OpzegArbeiders[OPZEG DOOR DE WERKGEVER],MATCH(L480,OpzegArbeiders[X],1),1),\"-\")","v":"-"},"-",{"$f":"IFERROR(INDEX(OpzegArbeiders[OPZEG DOOR DE WERKNEMER],MATCH(L480,OpzegArbeiders[X],1),1),\"-\")","v":"-"},"-","-","-"]
[null,null,null,null,null,null,477,null,null,null,null,"-",{"$f":"IFERROR(INDEX(OpzegArbeiders[OPZEG DOOR DE WERKGEVER],MATCH(L481,OpzegArbeiders[X],1),1),\"-\")","v":"-"},"-",{"$f":"IFERROR(INDEX(OpzegArbeiders[OPZEG DOOR DE WERKNEMER],MATCH(L481,OpzegArbeiders[X],1),1),\"-\")","v":"-"},"-","-","-"]
[null,null,null,null,null,null,478,null,null,null,null,"-",{"$f":"IFERROR(INDEX(OpzegArbeiders[OPZEG DOOR DE WERKGEVER],MATCH(L482,OpzegArbeiders[X],1),1),\"-\")","v":"-"},"-",{"$f":"IFERROR(INDEX(OpzegArbeiders[OPZEG DOOR DE WERKNEMER],MATCH(L482,OpzegArbeiders[X],1),1),\"-\")","v":"-"},"-","-","-"]
[null,null,null,null,null,null,479,null,null,null,null,"-",{"$f":"IFERROR(INDEX(OpzegArbeiders[OPZEG DOOR DE WERKGEVER],MATCH(L483,OpzegArbeiders[X],1),1),\"-\")","v":"-"},"-",{"$f":"IFERROR(INDEX(OpzegArbeiders[OPZEG DOOR DE WERKNEMER],MATCH(L483,OpzegArbeiders[X],1),1),\"-\")","v":"-"},"-","-","-"]
[null,null,null,null,null,null,480,null,null,null,null,"-",{"$f":"IFERROR(INDEX(OpzegArbeiders[OPZEG DOOR DE WERKGEVER],MATCH(L484,OpzegArbeiders[X],1),1),\"-\")","v":"-"},"-",{"$f":"IFERROR(INDEX(OpzegArbeiders[OPZEG DOOR DE WERKNEMER],MATCH(L484,OpzegArbeiders[X],1),1),\"-\")","v":"-"},"-","-","-"]
[null,null,null,null,null,null,481,null,null,null,null,"-",{"$f":"IFERROR(INDEX(OpzegArbeiders[OPZEG DOOR DE WERKGEVER],MATCH(L485,OpzegArbeiders[X],1),1),\"-\")","v":"-"},"-",{"$f":"IFERROR(INDEX(OpzegArbeiders[OPZEG DOOR DE WERKNEMER],MATCH(L485,OpzegArbeiders[X],1),1),\"-\")","v":"-"},"-","-","-"]
[null,null,null,null,null,null,482,null,null,null,null,"-",{"$f":"IFERROR(INDEX(OpzegArbeiders[OPZEG DOOR DE WERKGEVER],MATCH(L486,OpzegArbeiders[X],1),1),\"-\")","v":"-"},"-",{"$f":"IFERROR(INDEX(OpzegArbeiders[OPZEG DOOR DE WERKNEMER],MATCH(L486,OpzegArbeiders[X],1),1),\"-\")","v":"-"},"-","-","-"]
[null,null,null,null,null,null,483,null,null,null,null,"-",{"$f":"IFERROR(INDEX(OpzegArbeiders[OPZEG DOOR DE WERKGEVER],MATCH(L487,OpzegArbeiders[X],1),1),\"-\")","v":"-"},"-",{"$f":"IFERROR(INDEX(OpzegArbeiders[OPZEG DOOR DE WERKNEMER],MATCH(L487,OpzegArbeiders[X],1),1),\"-\")","v":"-"},"-","-","-"]
[null,null,null,null,null,null,484,null,null,null,null,"-",{"$f":"IFERROR(INDEX(OpzegArbeiders[OPZEG DOOR DE WERKGEVER],MATCH(L488,OpzegArbeiders[X],1),1),\"-\")","v":"-"},"-",{"$f":"IFERROR(INDEX(OpzegArbeiders[OPZEG DOOR DE WERKNEMER],MATCH(L488,OpzegArbeiders[X],1),1),\"-\")","v":"-"},"-","-","-"]
[null,null,null,null,null,null,485,null,null,null,null,"-",{"$f":"IFERROR(INDEX(OpzegArbeiders[OPZEG DOOR DE WERKGEVER],MATCH(L489,OpzegArbeiders[X],1),1),\"-\")","v":"-"},"-",{"$f":"IFERROR(INDEX(OpzegArbeiders[OPZEG DOOR DE WERKNEMER],MATCH(L489,OpzegArbeiders[X],1),1),\"-\")","v":"-"},"-","-","-"]
[null,null,null,null,null,null,486,null,null,null,null,"-",{"$f":"IFERROR(INDEX(OpzegArbeiders[OPZEG DOOR DE WERKGEVER],MATCH(L490,OpzegArbeiders[X],1),1),\"-\")","v":"-"},"-",{"$f":"IFERROR(INDEX(OpzegArbeiders[OPZEG DOOR DE WERKNEMER],MATCH(L490,OpzegArbeiders[X],1),1),\"-\")","v":"-"},"-","-","-"]
[null,null,null,null,null,null,487,null,null,null,null,"-",{"$f":"IFERROR(INDEX(OpzegArbeiders[OPZEG DOOR DE WERKGEVER],MATCH(L491,OpzegArbeiders[X],1),1),\"-\")","v":"-"},"-",{"$f":"IFERROR(INDEX(OpzegArbeiders[OPZEG DOOR DE WERKNEMER],MATCH(L491,OpzegArbeiders[X],1),1),\"-\")","v":"-"},"-","-","-"]
[null,null,null,null,null,null,488,null,null,null,null,"-",{"$f":"IFERROR(INDEX(OpzegArbeiders[OPZEG DOOR DE WERKGEVER],MATCH(L492,OpzegArbeiders[X],1),1),\"-\")","v":"-"},"-",{"$f":"IFERROR(INDEX(OpzegArbeiders[OPZEG DOOR DE WERKNEMER],MATCH(L492,OpzegArbeiders[X],1),1),\"-\")","v":"-"},"-","-","-"]
[null,null,null,null,null,null,489,null,null,null,null,"-",{"$f":"IFERROR(INDEX(OpzegArbeiders[OPZEG DOOR DE WERKGEVER],MATCH(L493,OpzegArbeiders[X],1),1),\"-\")","v":"-"},"-",{"$f":"IFERROR(INDEX(OpzegArbeiders[OPZEG DOOR DE WERKNEMER],MATCH(L493,OpzegArbeiders[X],1),1),\"-\")","v":"-"},"-","-","-"]
[null,null,null,null,null,null,490,null,null,null,null,"-",{"$f":"IFERROR(INDEX(OpzegArbeiders[OPZEG DOOR DE WERKGEVER],MATCH(L494,OpzegArbeiders[X],1),1),\"-\")","v":"-"},"-",{"$f":"IFERROR(INDEX(OpzegArbeiders[OPZEG DOOR DE WERKNEMER],MATCH(L494,OpzegArbeiders[X],1),1),\"-\")","v":"-"},"-","-","-"]
[null,null,null,null,null,null,491,null,null,null,null,"-",{"$f":"IFERROR(INDEX(OpzegArbeiders[OPZEG DOOR DE WERKGEVER],MATCH(L495,OpzegArbeiders[X],1),1),\"-\")","v":"-"},"-",{"$f":"IFERROR(INDEX(OpzegArbeiders[OPZEG DOOR DE WERKNEMER],MATCH(L495,OpzegArbeiders[X],1),1),\"-\")","v":"-"},"-","-","-"]
[null,null,null,null,null,null,492,null,null,null,null,"-",{"$f":"IFERROR(INDEX(OpzegArbeiders[OPZEG DOOR DE WERKGEVER],MATCH(L496,OpzegArbeiders[X],1),1),\"-\")","v":"-"},"-",{"$f":"IFERROR(INDEX(OpzegArbeiders[OPZEG DOOR DE WERKNEMER],MATCH(L496,OpzegArbeiders[X],1),1),\"-\")","v":"-"},"-","-","-"]
[null,null,null,null,null,null,493,null,null,null,null,"-",{"$f":"IFERROR(INDEX(OpzegArbeiders[OPZEG DOOR DE WERKGEVER],MATCH(L497,OpzegArbeiders[X],1),1),\"-\")","v":"-"},"-",{"$f":"IFERROR(INDEX(OpzegArbeiders[OPZEG DOOR DE WERKNEMER],MATCH(L497,OpzegArbeiders[X],1),1),\"-\")","v":"-"},"-","-","-"]
[null,null,null,null,null,null,494,null,null,null,null,"-",{"$f":"IFERROR(INDEX(OpzegArbeiders[OPZEG DOOR DE WERKGEVER],MATCH(L498,OpzegArbeiders[X],1),1),\"-\")","v":"-"},"-",{"$f":"IFERROR(INDEX(OpzegArbeiders[OPZEG DOOR DE WERKNEMER],MATCH(L498,OpzegArbeiders[X],1),1),\"-\")","v":"-"},"-","-","-"]
[null,null,null,null,null,null,495,null,null,null,null,"-",{"$f":"IFERROR(INDEX(OpzegArbeiders[OPZEG DOOR DE WERKGEVER],MATCH(L499,OpzegArbeiders[X],1),1),\"-\")","v":"-"},"-",{"$f":"IFERROR(INDEX(OpzegArbeiders[OPZEG DOOR DE WERKNEMER],MATCH(L499,OpzegArbeiders[X],1),1),\"-\")","v":"-"},"-","-","-"]
[null,null,null,null,null,null,496,null,null,null,null,"-",{"$f":"IFERROR(INDEX(OpzegArbeiders[OPZEG DOOR DE WERKGEVER],MATCH(L500,OpzegArbeiders[X],1),1),\"-\")","v":"-"},"-",{"$f":"IFERROR(INDEX(OpzegArbeiders[OPZEG DOOR DE WERKNEMER],MATCH(L500,OpzegArbeiders[X],1),1),\"-\")","v":"-"},"-","-","-"]
[null,null,null,null,null,null,497,null,null,null,null,"-",{"$f":"IFERROR(INDEX(OpzegArbeiders[OPZEG DOOR DE WERKGEVER],MATCH(L501,OpzegArbeiders[X],1),1),\"-\")","v":"-"},"-",{"$f":"IFERROR(INDEX(OpzegArbeiders[OPZEG DOOR DE WERKNEMER],MATCH(L501,OpzegArbeiders[X],1),1),\"-\")","v":"-"},"-","-","-"]
[null,null,null,null,null,null,498,null,null,null,null,"-",{"$f":"IFERROR(INDEX(OpzegArbeiders[OPZEG DOOR DE WERKGEVER],MATCH(L502,OpzegArbeiders[X],1),1),\"-\")","v":"-"},"-",{"$f":"IFERROR(INDEX(OpzegArbeiders[OPZEG DOOR DE WERKNEMER],MATCH(L502,OpzegArbeiders[X],1),1),\"-\")","v":"-"},"-","-","-"]
[null,null,null,null,null,null,499,null,null,null,null,"-",{"$f":"IFERROR(INDEX(OpzegArbeiders[OPZEG DOOR DE WERKGEVER],MATCH(L503,OpzegArbeiders[X],1),1),\"-\")","v":"-"},"-",{"$f":"IFERROR(INDEX(OpzegArbeiders[OPZEG DOOR DE WERKNEMER],MATCH(L503,OpzegArbeiders[X],1),1),\"-\")","v":"-"},"-","-","-"]
[null,null,null,null,null,null,500,null,null,null,null,"-",{"$f":"IFERROR(INDEX(OpzegArbeiders[OPZEG DOOR DE WERKGEVER],MATCH(L504,OpzegArbeiders[X],1),1),\"-\")","v":"-"},"-",{"$f":"IFERROR(INDEX(OpzegArbeiders[OPZEG DOOR DE WERKNEMER],MATCH(L504,OpzegArbeiders[X],1),1),\"-\")","v":"-"},"-","-","-"]
[null,null,null,null,null,null,501,null,null,null,null,"-",{"$f":"IFERROR(INDEX(OpzegArbeiders[OPZEG DOOR DE WERKGEVER],MATCH(L505,OpzegArbeiders[X],1),1),\"-\")","v":"-"},"-",{"$f":"IFERROR(INDEX(OpzegArbeiders[OPZEG DOOR DE WERKNEMER],MATCH(L505,OpzegArbeiders[X],1),1),\"-\")","v":"-"},"-","-","-"]
[null,null,null,null,null,null,502,null,null,null,null,"-",{"$f":"IFERROR(INDEX(OpzegArbeiders[OPZEG DOOR DE WERKGEVER],MATCH(L506,OpzegArbeiders[X],1),1),\"-\")","v":"-"},"-",{"$f":"IFERROR(INDEX(OpzegArbeiders[OPZEG DOOR DE WERKNEMER],MATCH(L506,OpzegArbeiders[X],1),1),\"-\")","v":"-"},"-","-","-"]
[null,null,null,null,null,null,503,null,null,null,null,"-",{"$f":"IFERROR(INDEX(OpzegArbeiders[OPZEG DOOR DE WERKGEVER],MATCH(L507,OpzegArbeiders[X],1),1),\"-\")","v":"-"},"-",{"$f":"IFERROR(INDEX(OpzegArbeiders[OPZEG DOOR DE WERKNEMER],MATCH(L507,OpzegArbeiders[X],1),1),\"-\")","v":"-"},"-","-","-"]
[null,null,null,null,null,null,504,null,null,null,null,"-",{"$f":"IFERROR(INDEX(OpzegArbeiders[OPZEG DOOR DE WERKGEVER],MATCH(L508,OpzegArbeiders[X],1),1),\"-\")","v":"-"},"-",{"$f":"IFERROR(INDEX(OpzegArbeiders[OPZEG DOOR DE WERKNEMER],MATCH(L508,OpzegArbeiders[X],1),1),\"-\")","v":"-"},"-","-","-"]
[null,null,null,null,null,null,505,null,null,null,null,"-",{"$f":"IFERROR(INDEX(OpzegArbeiders[OPZEG DOOR DE WERKGEVER],MATCH(L509,OpzegArbeiders[X],1),1),\"-\")","v":"-"},"-",{"$f":"IFERROR(INDEX(OpzegArbeiders[OPZEG DOOR DE WERKNEMER],MATCH(L509,OpzegArbeiders[X],1),1),\"-\")","v":"-"},"-","-","-"]
[null,null,null,null,null,null,506,null,null,null,null,"-",{"$f":"IFERROR(INDEX(OpzegArbeiders[OPZEG DOOR DE WERKGEVER],MATCH(L510,OpzegArbeiders[X],1),1),\"-\")","v":"-"},"-",{"$f":"IFERROR(INDEX(OpzegArbeiders[OPZEG DOOR DE WERKNEMER],MATCH(L510,OpzegArbeiders[X],1),1),\"-\")","v":"-"},"-","-","-"]
[null,null,null,null,null,null,507,null,null,null,null,"-",{"$f":"IFERROR(INDEX(OpzegArbeiders[OPZEG DOOR DE WERKGEVER],MATCH(L511,OpzegArbeiders[X],1),1),\"-\")","v":"-"},"-",{"$f":"IFERROR(INDEX(OpzegArbeiders[OPZEG DOOR DE WERKNEMER],MATCH(L511,OpzegArbeiders[X],1),1),\"-\")","v":"-"},"-","-","-"]
[null,null,null,null,null,null,508,null,null,null,null,"-",{"$f":"IFERROR(INDEX(OpzegArbeiders[OPZEG DOOR DE WERKGEVER],MATCH(L512,OpzegArbeiders[X],1),1),\"-\")","v":"-"},"-",{"$f":"IFERROR(INDEX(OpzegArbeiders[OPZEG DOOR DE WERKNEMER],MATCH(L512,OpzegArbeiders[X],1),1),\"-\")","v":"-"},"-","-","-"]
[null,null,null,null,null,null,509,null,null,null,null,"-",{"$f":"IFERROR(INDEX(OpzegArbeiders[OPZEG DOOR DE WERKGEVER],MATCH(L513,OpzegArbeiders[X],1),1),\"-\")","v":"-"},"-",{"$f":"IFERROR(INDEX(OpzegArbeiders[OPZEG DOOR DE WERKNEMER],MATCH(L513,OpzegArbeiders[X],1),1),\"-\")","v":"-"},"-","-","-"]
[null,null,null,null,null,null,510,null,null,null,null,"-",{"$f":"IFERROR(INDEX(OpzegArbeiders[OPZEG DOOR DE WERKGEVER],MATCH(L514,OpzegArbeiders[X],1),1),\"-\")","v":"-"},"-",{"$f":"IFERROR(INDEX(OpzegArbeiders[OPZEG DOOR DE WERKNEMER],MATCH(L514,OpzegArbeiders[X],1),1),\"-\")","v":"-"},"-","-","-"]
[null,null,null,null,null,null,511,null,null,null,null,"-",{"$f":"IFERROR(INDEX(OpzegArbeiders[OPZEG DOOR DE WERKGEVER],MATCH(L515,OpzegArbeiders[X],1),1),\"-\")","v":"-"},"-",{"$f":"IFERROR(INDEX(OpzegArbeiders[OPZEG DOOR DE WERKNEMER],MATCH(L515,OpzegArbeiders[X],1),1),\"-\")","v":"-"},"-","-","-"]
[null,null,null,null,null,null,512,null,null,null,null,"-",{"$f":"IFERROR(INDEX(OpzegArbeiders[OPZEG DOOR DE WERKGEVER],MATCH(L516,OpzegArbeiders[X],1),1),\"-\")","v":"-"},"-",{"$f":"IFERROR(INDEX(OpzegArbeiders[OPZEG DOOR DE WERKNEMER],MATCH(L516,OpzegArbeiders[X],1),1),\"-\")","v":"-"},"-","-","-"]
[null,null,null,null,null,null,513,null,null,null,null,"-",{"$f":"IFERROR(INDEX(OpzegArbeiders[OPZEG DOOR DE WERKGEVER],MATCH(L517,OpzegArbeiders[X],1),1),\"-\")","v":"-"},"-",{"$f":"IFERROR(INDEX(OpzegArbeiders[OPZEG DOOR DE WERKNEMER],MATCH(L517,OpzegArbeiders[X],1),1),\"-\")","v":"-"},"-","-","-"]
[null,null,null,null,null,null,514,null,null,null,null,{"$f":"IF(OR(H518<>\"\",J518<>\"\"),(DATEDIF(K518-1,DATE(2013,12,31),\"y\"))+(DATEDIF(K518-1,DATE(2013,12,31),\"ym\")/12)+(DATEDIF(K518-1,DATE(2013,12,31),\"md\")/365.25),\"-\")","v":"-"},{"$f":"IFERROR(INDEX(OpzegArbeiders[OPZEG DOOR DE WERKGEVER],MATCH(L518,OpzegArbeiders[X],1),1),\"-\")","v":"-"},{"$f":"IFERROR(M518/7,\"-\")","v":"-"},{"$f":"IFERROR(INDEX(OpzegArbeiders[OPZEG DOOR DE WERKNEMER],MATCH(L518,OpzegArbeiders[X],1),1),\"-\")","v":"-"},{"$f":"IFERROR(O518/7,\"-\")","v":"-"},{"$f":"IF(OR(ISTEXT(H518),ISTEXT(I518)),H518&\" \"&I518,\"-\")","v":"-"},{"$f":"IF(ISBLANK(J518),\"-\",J518)","v":"-"}]
[null,null,null,null,null,null,515,null,null,null,null,"-",{"$f":"IFERROR(INDEX(OpzegArbeiders[OPZEG DOOR DE WERKGEVER],MATCH(L519,OpzegArbeiders[X],1),1),\"-\")","v":"-"},"-",{"$f":"IFERROR(INDEX(OpzegArbeiders[OPZEG DOOR DE WERKNEMER],MATCH(L519,OpzegArbeiders[X],1),1),\"-\")","v":"-"},"-","-","-"]
[null,null,null,null,null,null,516,null,null,null,null,"-",{"$f":"IFERROR(INDEX(OpzegArbeiders[OPZEG DOOR DE WERKGEVER],MATCH(L520,OpzegArbeiders[X],1),1),\"-\")","v":"-"},"-",{"$f":"IFERROR(INDEX(OpzegArbeiders[OPZEG DOOR DE WERKNEMER],MATCH(L520,OpzegArbeiders[X],1),1),\"-\")","v":"-"},"-","-","-"]
[null,null,null,null,null,null,517,null,null,null,null,"-",{"$f":"IFERROR(INDEX(OpzegArbeiders[OPZEG DOOR DE WERKGEVER],MATCH(L521,OpzegArbeiders[X],1),1),\"-\")","v":"-"},"-",{"$f":"IFERROR(INDEX(OpzegArbeiders[OPZEG DOOR DE WERKNEMER],MATCH(L521,OpzegArbeiders[X],1),1),\"-\")","v":"-"},"-","-","-"]
[null,null,null,null,null,null,518,null,null,null,null,"-",{"$f":"IFERROR(INDEX(OpzegArbeiders[OPZEG DOOR DE WERKGEVER],MATCH(L522,OpzegArbeiders[X],1),1),\"-\")","v":"-"},"-",{"$f":"IFERROR(INDEX(OpzegArbeiders[OPZEG DOOR DE WERKNEMER],MATCH(L522,OpzegArbeiders[X],1),1),\"-\")","v":"-"},"-","-","-"]
[null,null,null,null,null,null,519,null,null,null,null,"-",{"$f":"IFERROR(INDEX(OpzegArbeiders[OPZEG DOOR DE WERKGEVER],MATCH(L523,OpzegArbeiders[X],1),1),\"-\")","v":"-"},"-",{"$f":"IFERROR(INDEX(OpzegArbeiders[OPZEG DOOR DE WERKNEMER],MATCH(L523,OpzegArbeiders[X],1),1),\"-\")","v":"-"},"-","-","-"]
[null,null,null,null,null,null,520,null,null,null,null,"-",{"$f":"IFERROR(INDEX(OpzegArbeiders[OPZEG DOOR DE WERKGEVER],MATCH(L524,OpzegArbeiders[X],1),1),\"-\")","v":"-"},"-",{"$f":"IFERROR(INDEX(OpzegArbeiders[OPZEG DOOR DE WERKNEMER],MATCH(L524,OpzegArbeiders[X],1),1),\"-\")","v":"-"},"-","-","-"]
[null,null,null,null,null,null,521,null,null,null,null,"-",{"$f":"IFERROR(INDEX(OpzegArbeiders[OPZEG DOOR DE WERKGEVER],MATCH(L525,OpzegArbeiders[X],1),1),\"-\")","v":"-"},"-",{"$f":"IFERROR(INDEX(OpzegArbeiders[OPZEG DOOR DE WERKNEMER],MATCH(L525,OpzegArbeiders[X],1),1),\"-\")","v":"-"},"-","-","-"]
[null,null,null,null,null,null,522,null,null,null,null,"-",{"$f":"IFERROR(INDEX(OpzegArbeiders[OPZEG DOOR DE WERKGEVER],MATCH(L526,OpzegArbeiders[X],1),1),\"-\")","v":"-"},"-",{"$f":"IFERROR(INDEX(OpzegArbeiders[OPZEG DOOR DE WERKNEMER],MATCH(L526,OpzegArbeiders[X],1),1),\"-\")","v":"-"},"-","-","-"]
[null,null,null,null,null,null,523,null,null,null,null,"-",{"$f":"IFERROR(INDEX(OpzegArbeiders[OPZEG DOOR DE WERKGEVER],MATCH(L527,OpzegArbeiders[X],1),1),\"-\")","v":"-"},"-",{"$f":"IFERROR(INDEX(OpzegArbeiders[OPZEG DOOR DE WERKNEMER],MATCH(L527,OpzegArbeiders[X],1),1),\"-\")","v":"-"},"-","-","-"]
[null,null,null,null,null,null,524,null,null,null,null,"-",{"$f":"IFERROR(INDEX(OpzegArbeiders[OPZEG DOOR DE WERKGEVER],MATCH(L528,OpzegArbeiders[X],1),1),\"-\")","v":"-"},"-",{"$f":"IFERROR(INDEX(OpzegArbeiders[OPZEG DOOR DE WERKNEMER],MATCH(L528,OpzegArbeiders[X],1),1),\"-\")","v":"-"},"-","-","-"]
[null,null,null,null,null,null,525,null,null,null,null,"-",{"$f":"IFERROR(INDEX(OpzegArbeiders[OPZEG DOOR DE WERKGEVER],MATCH(L529,OpzegArbeiders[X],1),1),\"-\")","v":"-"},"-",{"$f":"IFERROR(INDEX(OpzegArbeiders[OPZEG DOOR DE WERKNEMER],MATCH(L529,OpzegArbeiders[X],1),1),\"-\")","v":"-"},"-","-","-"]
[null,null,null,null,null,null,526,null,null,null,null,"-",{"$f":"IFERROR(INDEX(OpzegArbeiders[OPZEG DOOR DE WERKGEVER],MATCH(L530,OpzegArbeiders[X],1),1),\"-\")","v":"-"},"-",{"$f":"IFERROR(INDEX(OpzegArbeiders[OPZEG DOOR DE WERKNEMER],MATCH(L530,OpzegArbeiders[X],1),1),\"-\")","v":"-"},"-","-","-"]
[null,null,null,null,null,null,527,null,null,null,null,"-",{"$f":"IFERROR(INDEX(OpzegArbeiders[OPZEG DOOR DE WERKGEVER],MATCH(L531,OpzegArbeiders[X],1),1),\"-\")","v":"-"},"-",{"$f":"IFERROR(INDEX(OpzegArbeiders[OPZEG DOOR DE WERKNEMER],MATCH(L531,OpzegArbeiders[X],1),1),\"-\")","v":"-"},"-","-","-"]
[null,null,null,null,null,null,528,null,null,null,null,"-",{"$f":"IFERROR(INDEX(OpzegArbeiders[OPZEG DOOR DE WERKGEVER],MATCH(L532,OpzegArbeiders[X],1),1),\"-\")","v":"-"},"-",{"$f":"IFERROR(INDEX(OpzegArbeiders[OPZEG DOOR DE WERKNEMER],MATCH(L532,OpzegArbeiders[X],1),1),\"-\")","v":"-"},"-","-","-"]
[null,null,null,null,null,null,529,null,null,null,null,"-",{"$f":"IFERROR(INDEX(OpzegArbeiders[OPZEG DOOR DE WERKGEVER],MATCH(L533,OpzegArbeiders[X],1),1),\"-\")","v":"-"},"-",{"$f":"IFERROR(INDEX(OpzegArbeiders[OPZEG DOOR DE WERKNEMER],MATCH(L533,OpzegArbeiders[X],1),1),\"-\")","v":"-"},"-","-","-"]
[null,null,null,null,null,null,530,null,null,null,null,"-",{"$f":"IFERROR(INDEX(OpzegArbeiders[OPZEG DOOR DE WERKGEVER],MATCH(L534,OpzegArbeiders[X],1),1),\"-\")","v":"-"},"-",{"$f":"IFERROR(INDEX(OpzegArbeiders[OPZEG DOOR DE WERKNEMER],MATCH(L534,OpzegArbeiders[X],1),1),\"-\")","v":"-"},"-","-","-"]
[null,null,null,null,null,null,531,null,null,null,null,"-",{"$f":"IFERROR(INDEX(OpzegArbeiders[OPZEG DOOR DE WERKGEVER],MATCH(L535,OpzegArbeiders[X],1),1),\"-\")","v":"-"},"-",{"$f":"IFERROR(INDEX(OpzegArbeiders[OPZEG DOOR DE WERKNEMER],MATCH(L535,OpzegArbeiders[X],1),1),\"-\")","v":"-"},"-","-","-"]
[null,null,null,null,null,null,532,null,null,null,null,"-",{"$f":"IFERROR(INDEX(OpzegArbeiders[OPZEG DOOR DE WERKGEVER],MATCH(L536,OpzegArbeiders[X],1),1),\"-\")","v":"-"},"-",{"$f":"IFERROR(INDEX(OpzegArbeiders[OPZEG DOOR DE WERKNEMER],MATCH(L536,OpzegArbeiders[X],1),1),\"-\")","v":"-"},"-","-","-"]
[null,null,null,null,null,null,533,null,null,null,null,"-",{"$f":"IFERROR(INDEX(OpzegArbeiders[OPZEG DOOR DE WERKGEVER],MATCH(L537,OpzegArbeiders[X],1),1),\"-\")","v":"-"},"-",{"$f":"IFERROR(INDEX(OpzegArbeiders[OPZEG DOOR DE WERKNEMER],MATCH(L537,OpzegArbeiders[X],1),1),\"-\")","v":"-"},"-","-","-"]
[null,null,null,null,null,null,534,null,null,null,null,"-",{"$f":"IFERROR(INDEX(OpzegArbeiders[OPZEG DOOR DE WERKGEVER],MATCH(L538,OpzegArbeiders[X],1),1),\"-\")","v":"-"},"-",{"$f":"IFERROR(INDEX(OpzegArbeiders[OPZEG DOOR DE WERKNEMER],MATCH(L538,OpzegArbeiders[X],1),1),\"-\")","v":"-"},"-","-","-"]
[null,null,null,null,null,null,535,null,null,null,null,"-",{"$f":"IFERROR(INDEX(OpzegArbeiders[OPZEG DOOR DE WERKGEVER],MATCH(L539,OpzegArbeiders[X],1),1),\"-\")","v":"-"},"-",{"$f":"IFERROR(INDEX(OpzegArbeiders[OPZEG DOOR DE WERKNEMER],MATCH(L539,OpzegArbeiders[X],1),1),\"-\")","v":"-"},"-","-","-"]
[null,null,null,null,null,null,536,null,null,null,null,"-",{"$f":"IFERROR(INDEX(OpzegArbeiders[OPZEG DOOR DE WERKGEVER],MATCH(L540,OpzegArbeiders[X],1),1),\"-\")","v":"-"},"-",{"$f":"IFERROR(INDEX(OpzegArbeiders[OPZEG DOOR DE WERKNEMER],MATCH(L540,OpzegArbeiders[X],1),1),\"-\")","v":"-"},"-","-","-"]
[null,null,null,null,null,null,537,null,null,null,null,"-",{"$f":"IFERROR(INDEX(OpzegArbeiders[OPZEG DOOR DE WERKGEVER],MATCH(L541,OpzegArbeiders[X],1),1),\"-\")","v":"-"},"-",{"$f":"IFERROR(INDEX(OpzegArbeiders[OPZEG DOOR DE WERKNEMER],MATCH(L541,OpzegArbeiders[X],1),1),\"-\")","v":"-"},"-","-","-"]
[null,null,null,null,null,null,538,null,null,null,null,"-",{"$f":"IFERROR(INDEX(OpzegArbeiders[OPZEG DOOR DE WERKGEVER],MATCH(L542,OpzegArbeiders[X],1),1),\"-\")","v":"-"},"-",{"$f":"IFERROR(INDEX(OpzegArbeiders[OPZEG DOOR DE WERKNEMER],MATCH(L542,OpzegArbeiders[X],1),1),\"-\")","v":"-"},"-","-","-"]
[null,null,null,null,null,null,539,null,null,null,null,"-",{"$f":"IFERROR(INDEX(OpzegArbeiders[OPZEG DOOR DE WERKGEVER],MATCH(L543,OpzegArbeiders[X],1),1),\"-\")","v":"-"},"-",{"$f":"IFERROR(INDEX(OpzegArbeiders[OPZEG DOOR DE WERKNEMER],MATCH(L543,OpzegArbeiders[X],1),1),\"-\")","v":"-"},"-","-","-"]
[null,null,null,null,null,null,540,null,null,null,null,"-",{"$f":"IFERROR(INDEX(OpzegArbeiders[OPZEG DOOR DE WERKGEVER],MATCH(L544,OpzegArbeiders[X],1),1),\"-\")","v":"-"},"-",{"$f":"IFERROR(INDEX(OpzegArbeiders[OPZEG DOOR DE WERKNEMER],MATCH(L544,OpzegArbeiders[X],1),1),\"-\")","v":"-"},"-","-","-"]
[null,null,null,null,null,null,541,null,null,null,null,"-",{"$f":"IFERROR(INDEX(OpzegArbeiders[OPZEG DOOR DE WERKGEVER],MATCH(L545,OpzegArbeiders[X],1),1),\"-\")","v":"-"},"-",{"$f":"IFERROR(INDEX(OpzegArbeiders[OPZEG DOOR DE WERKNEMER],MATCH(L545,OpzegArbeiders[X],1),1),\"-\")","v":"-"},"-","-","-"]
[null,null,null,null,null,null,542,null,null,null,null,"-",{"$f":"IFERROR(INDEX(OpzegArbeiders[OPZEG DOOR DE WERKGEVER],MATCH(L546,OpzegArbeiders[X],1),1),\"-\")","v":"-"},"-",{"$f":"IFERROR(INDEX(OpzegArbeiders[OPZEG DOOR DE WERKNEMER],MATCH(L546,OpzegArbeiders[X],1),1),\"-\")","v":"-"},"-","-","-"]
[null,null,null,null,null,null,543,null,null,null,null,"-",{"$f":"IFERROR(INDEX(OpzegArbeiders[OPZEG DOOR DE WERKGEVER],MATCH(L547,OpzegArbeiders[X],1),1),\"-\")","v":"-"},"-",{"$f":"IFERROR(INDEX(OpzegArbeiders[OPZEG DOOR DE WERKNEMER],MATCH(L547,OpzegArbeiders[X],1),1),\"-\")","v":"-"},"-","-","-"]
[null,null,null,null,null,null,544,null,null,null,null,"-",{"$f":"IFERROR(INDEX(OpzegArbeiders[OPZEG DOOR DE WERKGEVER],MATCH(L548,OpzegArbeiders[X],1),1),\"-\")","v":"-"},"-",{"$f":"IFERROR(INDEX(OpzegArbeiders[OPZEG DOOR DE WERKNEMER],MATCH(L548,OpzegArbeiders[X],1),1),\"-\")","v":"-"},"-","-","-"]
[null,null,null,null,null,null,545,null,null,null,null,"-",{"$f":"IFERROR(INDEX(OpzegArbeiders[OPZEG DOOR DE WERKGEVER],MATCH(L549,OpzegArbeiders[X],1),1),\"-\")","v":"-"},"-",{"$f":"IFERROR(INDEX(OpzegArbeiders[OPZEG DOOR DE WERKNEMER],MATCH(L549,OpzegArbeiders[X],1),1),\"-\")","v":"-"},"-","-","-"]
[null,null,null,null,null,null,546,null,null,null,null,"-",{"$f":"IFERROR(INDEX(OpzegArbeiders[OPZEG DOOR DE WERKGEVER],MATCH(L550,OpzegArbeiders[X],1),1),\"-\")","v":"-"},"-",{"$f":"IFERROR(INDEX(OpzegArbeiders[OPZEG DOOR DE WERKNEMER],MATCH(L550,OpzegArbeiders[X],1),1),\"-\")","v":"-"},"-","-","-"]
[null,null,null,null,null,null,547,null,null,null,null,"-",{"$f":"IFERROR(INDEX(OpzegArbeiders[OPZEG DOOR DE WERKGEVER],MATCH(L551,OpzegArbeiders[X],1),1),\"-\")","v":"-"},"-",{"$f":"IFERROR(INDEX(OpzegArbeiders[OPZEG DOOR DE WERKNEMER],MATCH(L551,OpzegArbeiders[X],1),1),\"-\")","v":"-"},"-","-","-"]
[null,null,null,null,null,null,548,null,null,null,null,"-",{"$f":"IFERROR(INDEX(OpzegArbeiders[OPZEG DOOR DE WERKGEVER],MATCH(L552,OpzegArbeiders[X],1),1),\"-\")","v":"-"},"-",{"$f":"IFERROR(INDEX(OpzegArbeiders[OPZEG DOOR DE WERKNEMER],MATCH(L552,OpzegArbeiders[X],1),1),\"-\")","v":"-"},"-","-","-"]
[null,null,null,null,null,null,549,null,null,null,null,"-",{"$f":"IFERROR(INDEX(OpzegArbeiders[OPZEG DOOR DE WERKGEVER],MATCH(L553,OpzegArbeiders[X],1),1),\"-\")","v":"-"},"-",{"$f":"IFERROR(INDEX(OpzegArbeiders[OPZEG DOOR DE WERKNEMER],MATCH(L553,OpzegArbeiders[X],1),1),\"-\")","v":"-"},"-","-","-"]
[null,null,null,null,null,null,550,null,null,null,null,"-",{"$f":"IFERROR(INDEX(OpzegArbeiders[OPZEG DOOR DE WERKGEVER],MATCH(L554,OpzegArbeiders[X],1),1),\"-\")","v":"-"},"-",{"$f":"IFERROR(INDEX(OpzegArbeiders[OPZEG DOOR DE WERKNEMER],MATCH(L554,OpzegArbeiders[X],1),1),\"-\")","v":"-"},"-","-","-"]
[null,null,null,null,null,null,551,null,null,null,null,"-",{"$f":"IFERROR(INDEX(OpzegArbeiders[OPZEG DOOR DE WERKGEVER],MATCH(L555,OpzegArbeiders[X],1),1),\"-\")","v":"-"},"-",{"$f":"IFERROR(INDEX(OpzegArbeiders[OPZEG DOOR DE WERKNEMER],MATCH(L555,OpzegArbeiders[X],1),1),\"-\")","v":"-"},"-","-","-"]
[null,null,null,null,null,null,552,null,null,null,null,"-",{"$f":"IFERROR(INDEX(OpzegArbeiders[OPZEG DOOR DE WERKGEVER],MATCH(L556,OpzegArbeiders[X],1),1),\"-\")","v":"-"},"-",{"$f":"IFERROR(INDEX(OpzegArbeiders[OPZEG DOOR DE WERKNEMER],MATCH(L556,OpzegArbeiders[X],1),1),\"-\")","v":"-"},"-","-","-"]
[null,null,null,null,null,null,553,null,null,null,null,"-",{"$f":"IFERROR(INDEX(OpzegArbeiders[OPZEG DOOR DE WERKGEVER],MATCH(L557,OpzegArbeiders[X],1),1),\"-\")","v":"-"},"-",{"$f":"IFERROR(INDEX(OpzegArbeiders[OPZEG DOOR DE WERKNEMER],MATCH(L557,OpzegArbeiders[X],1),1),\"-\")","v":"-"},"-","-","-"]
[null,null,null,null,null,null,554,null,null,null,null,"-",{"$f":"IFERROR(INDEX(OpzegArbeiders[OPZEG DOOR DE WERKGEVER],MATCH(L558,OpzegArbeiders[X],1),1),\"-\")","v":"-"},"-",{"$f":"IFERROR(INDEX(OpzegArbeiders[OPZEG DOOR DE WERKNEMER],MATCH(L558,OpzegArbeiders[X],1),1),\"-\")","v":"-"},"-","-","-"]
[null,null,null,null,null,null,555,null,null,null,null,"-",{"$f":"IFERROR(INDEX(OpzegArbeiders[OPZEG DOOR DE WERKGEVER],MATCH(L559,OpzegArbeiders[X],1),1),\"-\")","v":"-"},"-",{"$f":"IFERROR(INDEX(OpzegArbeiders[OPZEG DOOR DE WERKNEMER],MATCH(L559,OpzegArbeiders[X],1),1),\"-\")","v":"-"},"-","-","-"]
[null,null,null,null,null,null,556,null,null,null,null,"-",{"$f":"IFERROR(INDEX(OpzegArbeiders[OPZEG DOOR DE WERKGEVER],MATCH(L560,OpzegArbeiders[X],1),1),\"-\")","v":"-"},"-",{"$f":"IFERROR(INDEX(OpzegArbeiders[OPZEG DOOR DE WERKNEMER],MATCH(L560,OpzegArbeiders[X],1),1),\"-\")","v":"-"},"-","-","-"]
[null,null,null,null,null,null,557,null,null,null,null,"-",{"$f":"IFERROR(INDEX(OpzegArbeiders[OPZEG DOOR DE WERKGEVER],MATCH(L561,OpzegArbeiders[X],1),1),\"-\")","v":"-"},"-",{"$f":"IFERROR(INDEX(OpzegArbeiders[OPZEG DOOR DE WERKNEMER],MATCH(L561,OpzegArbeiders[X],1),1),\"-\")","v":"-"},"-","-","-"]
[null,null,null,null,null,null,558,null,null,null,null,"-",{"$f":"IFERROR(INDEX(OpzegArbeiders[OPZEG DOOR DE WERKGEVER],MATCH(L562,OpzegArbeiders[X],1),1),\"-\")","v":"-"},"-",{"$f":"IFERROR(INDEX(OpzegArbeiders[OPZEG DOOR DE WERKNEMER],MATCH(L562,OpzegArbeiders[X],1),1),\"-\")","v":"-"},"-","-","-"]
[null,null,null,null,null,null,559,null,null,null,null,"-",{"$f":"IFERROR(INDEX(OpzegArbeiders[OPZEG DOOR DE WERKGEVER],MATCH(L563,OpzegArbeiders[X],1),1),\"-\")","v":"-"},"-",{"$f":"IFERROR(INDEX(OpzegArbeiders[OPZEG DOOR DE WERKNEMER],MATCH(L563,OpzegArbeiders[X],1),1),\"-\")","v":"-"},"-","-","-"]
[null,null,null,null,null,null,560,null,null,null,null,"-",{"$f":"IFERROR(INDEX(OpzegArbeiders[OPZEG DOOR DE WERKGEVER],MATCH(L564,OpzegArbeiders[X],1),1),\"-\")","v":"-"},"-",{"$f":"IFERROR(INDEX(OpzegArbeiders[OPZEG DOOR DE WERKNEMER],MATCH(L564,OpzegArbeiders[X],1),1),\"-\")","v":"-"},"-","-","-"]
[null,null,null,null,null,null,561,null,null,null,null,"-",{"$f":"IFERROR(INDEX(OpzegArbeiders[OPZEG DOOR DE WERKGEVER],MATCH(L565,OpzegArbeiders[X],1),1),\"-\")","v":"-"},"-",{"$f":"IFERROR(INDEX(OpzegArbeiders[OPZEG DOOR DE WERKNEMER],MATCH(L565,OpzegArbeiders[X],1),1),\"-\")","v":"-"},"-","-","-"]
[null,null,null,null,null,null,562,null,null,null,null,"-",{"$f":"IFERROR(INDEX(OpzegArbeiders[OPZEG DOOR DE WERKGEVER],MATCH(L566,OpzegArbeiders[X],1),1),\"-\")","v":"-"},"-",{"$f":"IFERROR(INDEX(OpzegArbeiders[OPZEG DOOR DE WERKNEMER],MATCH(L566,OpzegArbeiders[X],1),1),\"-\")","v":"-"},"-","-","-"]
[null,null,null,null,null,null,563,null,null,null,null,"-",{"$f":"IFERROR(INDEX(OpzegArbeiders[OPZEG DOOR DE WERKGEVER],MATCH(L567,OpzegArbeiders[X],1),1),\"-\")","v":"-"},"-",{"$f":"IFERROR(INDEX(OpzegArbeiders[OPZEG DOOR DE WERKNEMER],MATCH(L567,OpzegArbeiders[X],1),1),\"-\")","v":"-"},"-","-","-"]
[null,null,null,null,null,null,564,null,null,null,null,"-",{"$f":"IFERROR(INDEX(OpzegArbeiders[OPZEG DOOR DE WERKGEVER],MATCH(L568,OpzegArbeiders[X],1),1),\"-\")","v":"-"},"-",{"$f":"IFERROR(INDEX(OpzegArbeiders[OPZEG DOOR DE WERKNEMER],MATCH(L568,OpzegArbeiders[X],1),1),\"-\")","v":"-"},"-","-","-"]
[null,null,null,null,null,null,565,null,null,null,null,"-",{"$f":"IFERROR(INDEX(OpzegArbeiders[OPZEG DOOR DE WERKGEVER],MATCH(L569,OpzegArbeiders[X],1),1),\"-\")","v":"-"},"-",{"$f":"IFERROR(INDEX(OpzegArbeiders[OPZEG DOOR DE WERKNEMER],MATCH(L569,OpzegArbeiders[X],1),1),\"-\")","v":"-"},"-","-","-"]
[null,null,null,null,null,null,566,null,null,null,null,"-",{"$f":"IFERROR(INDEX(OpzegArbeiders[OPZEG DOOR DE WERKGEVER],MATCH(L570,OpzegArbeiders[X],1),1),\"-\")","v":"-"},"-",{"$f":"IFERROR(INDEX(OpzegArbeiders[OPZEG DOOR DE WERKNEMER],MATCH(L570,OpzegArbeiders[X],1),1),\"-\")","v":"-"},"-","-","-"]
[null,null,null,null,null,null,567,null,null,null,null,"-",{"$f":"IFERROR(INDEX(OpzegArbeiders[OPZEG DOOR DE WERKGEVER],MATCH(L571,OpzegArbeiders[X],1),1),\"-\")","v":"-"},"-",{"$f":"IFERROR(INDEX(OpzegArbeiders[OPZEG DOOR DE WERKNEMER],MATCH(L571,OpzegArbeiders[X],1),1),\"-\")","v":"-"},"-","-","-"]
[null,null,null,null,null,null,568,null,null,null,null,"-",{"$f":"IFERROR(INDEX(OpzegArbeiders[OPZEG DOOR DE WERKGEVER],MATCH(L572,OpzegArbeiders[X],1),1),\"-\")","v":"-"},"-",{"$f":"IFERROR(INDEX(OpzegArbeiders[OPZEG DOOR DE WERKNEMER],MATCH(L572,OpzegArbeiders[X],1),1),\"-\")","v":"-"},"-","-","-"]
[null,null,null,null,null,null,569,null,null,null,null,"-",{"$f":"IFERROR(INDEX(OpzegArbeiders[OPZEG DOOR DE WERKGEVER],MATCH(L573,OpzegArbeiders[X],1),1),\"-\")","v":"-"},"-",{"$f":"IFERROR(INDEX(OpzegArbeiders[OPZEG DOOR DE WERKNEMER],MATCH(L573,OpzegArbeiders[X],1),1),\"-\")","v":"-"},"-","-","-"]
[null,null,null,null,null,null,570,null,null,null,null,"-",{"$f":"IFERROR(INDEX(OpzegArbeiders[OPZEG DOOR DE WERKGEVER],MATCH(L574,OpzegArbeiders[X],1),1),\"-\")","v":"-"},"-",{"$f":"IFERROR(INDEX(OpzegArbeiders[OPZEG DOOR DE WERKNEMER],MATCH(L574,OpzegArbeiders[X],1),1),\"-\")","v":"-"},"-","-","-"]
[null,null,null,null,null,null,571,null,null,null,null,"-",{"$f":"IFERROR(INDEX(OpzegArbeiders[OPZEG DOOR DE WERKGEVER],MATCH(L575,OpzegArbeiders[X],1),1),\"-\")","v":"-"},"-",{"$f":"IFERROR(INDEX(OpzegArbeiders[OPZEG DOOR DE WERKNEMER],MATCH(L575,OpzegArbeiders[X],1),1),\"-\")","v":"-"},"-","-","-"]
[null,null,null,null,null,null,572,null,null,null,null,"-",{"$f":"IFERROR(INDEX(OpzegArbeiders[OPZEG DOOR DE WERKGEVER],MATCH(L576,OpzegArbeiders[X],1),1),\"-\")","v":"-"},"-",{"$f":"IFERROR(INDEX(OpzegArbeiders[OPZEG DOOR DE WERKNEMER],MATCH(L576,OpzegArbeiders[X],1),1),\"-\")","v":"-"},"-","-","-"]
[null,null,null,null,null,null,573,null,null,null,null,"-",{"$f":"IFERROR(INDEX(OpzegArbeiders[OPZEG DOOR DE WERKGEVER],MATCH(L577,OpzegArbeiders[X],1),1),\"-\")","v":"-"},"-",{"$f":"IFERROR(INDEX(OpzegArbeiders[OPZEG DOOR DE WERKNEMER],MATCH(L577,OpzegArbeiders[X],1),1),\"-\")","v":"-"},"-","-","-"]
[null,null,null,null,null,null,574,null,null,null,null,"-",{"$f":"IFERROR(INDEX(OpzegArbeiders[OPZEG DOOR DE WERKGEVER],MATCH(L578,OpzegArbeiders[X],1),1),\"-\")","v":"-"},"-",{"$f":"IFERROR(INDEX(OpzegArbeiders[OPZEG DOOR DE WERKNEMER],MATCH(L578,OpzegArbeiders[X],1),1),\"-\")","v":"-"},"-","-","-"]
[null,null,null,null,null,null,575,null,null,null,null,"-",{"$f":"IFERROR(INDEX(OpzegArbeiders[OPZEG DOOR DE WERKGEVER],MATCH(L579,OpzegArbeiders[X],1),1),\"-\")","v":"-"},"-",{"$f":"IFERROR(INDEX(OpzegArbeiders[OPZEG DOOR DE WERKNEMER],MATCH(L579,OpzegArbeiders[X],1),1),\"-\")","v":"-"},"-","-","-"]
[null,null,null,null,null,null,576,null,null,null,null,"-",{"$f":"IFERROR(INDEX(OpzegArbeiders[OPZEG DOOR DE WERKGEVER],MATCH(L580,OpzegArbeiders[X],1),1),\"-\")","v":"-"},"-",{"$f":"IFERROR(INDEX(OpzegArbeiders[OPZEG DOOR DE WERKNEMER],MATCH(L580,OpzegArbeiders[X],1),1),\"-\")","v":"-"},"-","-","-"]
[null,null,null,null,null,null,577,null,null,null,null,"-",{"$f":"IFERROR(INDEX(OpzegArbeiders[OPZEG DOOR DE WERKGEVER],MATCH(L581,OpzegArbeiders[X],1),1),\"-\")","v":"-"},"-",{"$f":"IFERROR(INDEX(OpzegArbeiders[OPZEG DOOR DE WERKNEMER],MATCH(L581,OpzegArbeiders[X],1),1),\"-\")","v":"-"},"-","-","-"]
[null,null,null,null,null,null,578,null,null,null,null,{"$f":"IF(OR(H582<>\"\",J582<>\"\"),(DATEDIF(K582-1,DATE(2013,12,31),\"y\"))+(DATEDIF(K582-1,DATE(2013,12,31),\"ym\")/12)+(DATEDIF(K582-1,DATE(2013,12,31),\"md\")/365.25),\"-\")","v":"-"},{"$f":"IFERROR(INDEX(OpzegArbeiders[OPZEG DOOR DE WERKGEVER],MATCH(L582,OpzegArbeiders[X],1),1),\"-\")","v":"-"},{"$f":"IFERROR(M582/7,\"-\")","v":"-"},{"$f":"IFERROR(INDEX(OpzegArbeiders[OPZEG DOOR DE WERKNEMER],MATCH(L582,OpzegArbeiders[X],1),1),\"-\")","v":"-"},{"$f":"IFERROR(O582/7,\"-\")","v":"-"},{"$f":"IF(OR(ISTEXT(H582),ISTEXT(I582)),H582&\" \"&I582,\"-\")","v":"-"},{"$f":"IF(ISBLANK(J582),\"-\",J582)","v":"-"}]
[null,null,null,null,null,null,579,null,null,null,null,"-",{"$f":"IFERROR(INDEX(OpzegArbeiders[OPZEG DOOR DE WERKGEVER],MATCH(L583,OpzegArbeiders[X],1),1),\"-\")","v":"-"},"-",{"$f":"IFERROR(INDEX(OpzegArbeiders[OPZEG DOOR DE WERKNEMER],MATCH(L583,OpzegArbeiders[X],1),1),\"-\")","v":"-"},"-","-","-"]
[null,null,null,null,null,null,580,null,null,null,null,"-",{"$f":"IFERROR(INDEX(OpzegArbeiders[OPZEG DOOR DE WERKGEVER],MATCH(L584,OpzegArbeiders[X],1),1),\"-\")","v":"-"},"-",{"$f":"IFERROR(INDEX(OpzegArbeiders[OPZEG DOOR DE WERKNEMER],MATCH(L584,OpzegArbeiders[X],1),1),\"-\")","v":"-"},"-","-","-"]
[null,null,null,null,null,null,581,null,null,null,null,"-",{"$f":"IFERROR(INDEX(OpzegArbeiders[OPZEG DOOR DE WERKGEVER],MATCH(L585,OpzegArbeiders[X],1),1),\"-\")","v":"-"},"-",{"$f":"IFERROR(INDEX(OpzegArbeiders[OPZEG DOOR DE WERKNEMER],MATCH(L585,OpzegArbeiders[X],1),1),\"-\")","v":"-"},"-","-","-"]
[null,null,null,null,null,null,582,null,null,null,null,"-",{"$f":"IFERROR(INDEX(OpzegArbeiders[OPZEG DOOR DE WERKGEVER],MATCH(L586,OpzegArbeiders[X],1),1),\"-\")","v":"-"},"-",{"$f":"IFERROR(INDEX(OpzegArbeiders[OPZEG DOOR DE WERKNEMER],MATCH(L586,OpzegArbeiders[X],1),1),\"-\")","v":"-"},"-","-","-"]
[null,null,null,null,null,null,583,null,null,null,null,"-",{"$f":"IFERROR(INDEX(OpzegArbeiders[OPZEG DOOR DE WERKGEVER],MATCH(L587,OpzegArbeiders[X],1),1),\"-\")","v":"-"},"-",{"$f":"IFERROR(INDEX(OpzegArbeiders[OPZEG DOOR DE WERKNEMER],MATCH(L587,OpzegArbeiders[X],1),1),\"-\")","v":"-"},"-","-","-"]
[null,null,null,null,null,null,584,null,null,null,null,"-",{"$f":"IFERROR(INDEX(OpzegArbeiders[OPZEG DOOR DE WERKGEVER],MATCH(L588,OpzegArbeiders[X],1),1),\"-\")","v":"-"},"-",{"$f":"IFERROR(INDEX(OpzegArbeiders[OPZEG DOOR DE WERKNEMER],MATCH(L588,OpzegArbeiders[X],1),1),\"-\")","v":"-"},"-","-","-"]
[null,null,null,null,null,null,585,null,null,null,null,"-",{"$f":"IFERROR(INDEX(OpzegArbeiders[OPZEG DOOR DE WERKGEVER],MATCH(L589,OpzegArbeiders[X],1),1),\"-\")","v":"-"},"-",{"$f":"IFERROR(INDEX(OpzegArbeiders[OPZEG DOOR DE WERKNEMER],MATCH(L589,OpzegArbeiders[X],1),1),\"-\")","v":"-"},"-","-","-"]
[null,null,null,null,null,null,586,null,null,null,null,"-",{"$f":"IFERROR(INDEX(OpzegArbeiders[OPZEG DOOR DE WERKGEVER],MATCH(L590,OpzegArbeiders[X],1),1),\"-\")","v":"-"},"-",{"$f":"IFERROR(INDEX(OpzegArbeiders[OPZEG DOOR DE WERKNEMER],MATCH(L590,OpzegArbeiders[X],1),1),\"-\")","v":"-"},"-","-","-"]
[null,null,null,null,null,null,587,null,null,null,null,"-",{"$f":"IFERROR(INDEX(OpzegArbeiders[OPZEG DOOR DE WERKGEVER],MATCH(L591,OpzegArbeiders[X],1),1),\"-\")","v":"-"},"-",{"$f":"IFERROR(INDEX(OpzegArbeiders[OPZEG DOOR DE WERKNEMER],MATCH(L591,OpzegArbeiders[X],1),1),\"-\")","v":"-"},"-","-","-"]
[null,null,null,null,null,null,588,null,null,null,null,"-",{"$f":"IFERROR(INDEX(OpzegArbeiders[OPZEG DOOR DE WERKGEVER],MATCH(L592,OpzegArbeiders[X],1),1),\"-\")","v":"-"},"-",{"$f":"IFERROR(INDEX(OpzegArbeiders[OPZEG DOOR DE WERKNEMER],MATCH(L592,OpzegArbeiders[X],1),1),\"-\")","v":"-"},"-","-","-"]
[null,null,null,null,null,null,589,null,null,null,null,"-",{"$f":"IFERROR(INDEX(OpzegArbeiders[OPZEG DOOR DE WERKGEVER],MATCH(L593,OpzegArbeiders[X],1),1),\"-\")","v":"-"},"-",{"$f":"IFERROR(INDEX(OpzegArbeiders[OPZEG DOOR DE WERKNEMER],MATCH(L593,OpzegArbeiders[X],1),1),\"-\")","v":"-"},"-","-","-"]
[null,null,null,null,null,null,590,null,null,null,null,"-",{"$f":"IFERROR(INDEX(OpzegArbeiders[OPZEG DOOR DE WERKGEVER],MATCH(L594,OpzegArbeiders[X],1),1),\"-\")","v":"-"},"-",{"$f":"IFERROR(INDEX(OpzegArbeiders[OPZEG DOOR DE WERKNEMER],MATCH(L594,OpzegArbeiders[X],1),1),\"-\")","v":"-"},"-","-","-"]
[null,null,null,null,null,null,591,null,null,null,null,"-",{"$f":"IFERROR(INDEX(OpzegArbeiders[OPZEG DOOR DE WERKGEVER],MATCH(L595,OpzegArbeiders[X],1),1),\"-\")","v":"-"},"-",{"$f":"IFERROR(INDEX(OpzegArbeiders[OPZEG DOOR DE WERKNEMER],MATCH(L595,OpzegArbeiders[X],1),1),\"-\")","v":"-"},"-","-","-"]
[null,null,null,null,null,null,592,null,null,null,null,"-",{"$f":"IFERROR(INDEX(OpzegArbeiders[OPZEG DOOR DE WERKGEVER],MATCH(L596,OpzegArbeiders[X],1),1),\"-\")","v":"-"},"-",{"$f":"IFERROR(INDEX(OpzegArbeiders[OPZEG DOOR DE WERKNEMER],MATCH(L596,OpzegArbeiders[X],1),1),\"-\")","v":"-"},"-","-","-"]
[null,null,null,null,null,null,593,null,null,null,null,"-",{"$f":"IFERROR(INDEX(OpzegArbeiders[OPZEG DOOR DE WERKGEVER],MATCH(L597,OpzegArbeiders[X],1),1),\"-\")","v":"-"},"-",{"$f":"IFERROR(INDEX(OpzegArbeiders[OPZEG DOOR DE WERKNEMER],MATCH(L597,OpzegArbeiders[X],1),1),\"-\")","v":"-"},"-","-","-"]
[null,null,null,null,null,null,594,null,null,null,null,"-",{"$f":"IFERROR(INDEX(OpzegArbeiders[OPZEG DOOR DE WERKGEVER],MATCH(L598,OpzegArbeiders[X],1),1),\"-\")","v":"-"},"-",{"$f":"IFERROR(INDEX(OpzegArbeiders[OPZEG DOOR DE WERKNEMER],MATCH(L598,OpzegArbeiders[X],1),1),\"-\")","v":"-"},"-","-","-"]
[null,null,null,null,null,null,595,null,null,null,null,"-",{"$f":"IFERROR(INDEX(OpzegArbeiders[OPZEG DOOR DE WERKGEVER],MATCH(L599,OpzegArbeiders[X],1),1),\"-\")","v":"-"},"-",{"$f":"IFERROR(INDEX(OpzegArbeiders[OPZEG DOOR DE WERKNEMER],MATCH(L599,OpzegArbeiders[X],1),1),\"-\")","v":"-"},"-","-","-"]
[null,null,null,null,null,null,596,null,null,null,null,"-",{"$f":"IFERROR(INDEX(OpzegArbeiders[OPZEG DOOR DE WERKGEVER],MATCH(L600,OpzegArbeiders[X],1),1),\"-\")","v":"-"},"-",{"$f":"IFERROR(INDEX(OpzegArbeiders[OPZEG DOOR DE WERKNEMER],MATCH(L600,OpzegArbeiders[X],1),1),\"-\")","v":"-"},"-","-","-"]
[null,null,null,null,null,null,597,null,null,null,null,"-",{"$f":"IFERROR(INDEX(OpzegArbeiders[OPZEG DOOR DE WERKGEVER],MATCH(L601,OpzegArbeiders[X],1),1),\"-\")","v":"-"},"-",{"$f":"IFERROR(INDEX(OpzegArbeiders[OPZEG DOOR DE WERKNEMER],MATCH(L601,OpzegArbeiders[X],1),1),\"-\")","v":"-"},"-","-","-"]
[null,null,null,null,null,null,598,null,null,null,null,"-",{"$f":"IFERROR(INDEX(OpzegArbeiders[OPZEG DOOR DE WERKGEVER],MATCH(L602,OpzegArbeiders[X],1),1),\"-\")","v":"-"},"-",{"$f":"IFERROR(INDEX(OpzegArbeiders[OPZEG DOOR DE WERKNEMER],MATCH(L602,OpzegArbeiders[X],1),1),\"-\")","v":"-"},"-","-","-"]
[null,null,null,null,null,null,599,null,null,null,null,"-",{"$f":"IFERROR(INDEX(OpzegArbeiders[OPZEG DOOR DE WERKGEVER],MATCH(L603,OpzegArbeiders[X],1),1),\"-\")","v":"-"},"-",{"$f":"IFERROR(INDEX(OpzegArbeiders[OPZEG DOOR DE WERKNEMER],MATCH(L603,OpzegArbeiders[X],1),1),\"-\")","v":"-"},"-","-","-"]
[null,null,null,null,null,null,600,null,null,null,null,"-",{"$f":"IFERROR(INDEX(OpzegArbeiders[OPZEG DOOR DE WERKGEVER],MATCH(L604,OpzegArbeiders[X],1),1),\"-\")","v":"-"},"-",{"$f":"IFERROR(INDEX(OpzegArbeiders[OPZEG DOOR DE WERKNEMER],MATCH(L604,OpzegArbeiders[X],1),1),\"-\")","v":"-"},"-","-","-"]
[null,null,null,null,null,null,601,null,null,null,null,"-",{"$f":"IFERROR(INDEX(OpzegArbeiders[OPZEG DOOR DE WERKGEVER],MATCH(L605,OpzegArbeiders[X],1),1),\"-\")","v":"-"},"-",{"$f":"IFERROR(INDEX(OpzegArbeiders[OPZEG DOOR DE WERKNEMER],MATCH(L605,OpzegArbeiders[X],1),1),\"-\")","v":"-"},"-","-","-"]
[null,null,null,null,null,null,602,null,null,null,null,"-",{"$f":"IFERROR(INDEX(OpzegArbeiders[OPZEG DOOR DE WERKGEVER],MATCH(L606,OpzegArbeiders[X],1),1),\"-\")","v":"-"},"-",{"$f":"IFERROR(INDEX(OpzegArbeiders[OPZEG DOOR DE WERKNEMER],MATCH(L606,OpzegArbeiders[X],1),1),\"-\")","v":"-"},"-","-","-"]
[null,null,null,null,null,null,603,null,null,null,null,"-",{"$f":"IFERROR(INDEX(OpzegArbeiders[OPZEG DOOR DE WERKGEVER],MATCH(L607,OpzegArbeiders[X],1),1),\"-\")","v":"-"},"-",{"$f":"IFERROR(INDEX(OpzegArbeiders[OPZEG DOOR DE WERKNEMER],MATCH(L607,OpzegArbeiders[X],1),1),\"-\")","v":"-"},"-","-","-"]
[null,null,null,null,null,null,604,null,null,null,null,"-",{"$f":"IFERROR(INDEX(OpzegArbeiders[OPZEG DOOR DE WERKGEVER],MATCH(L608,OpzegArbeiders[X],1),1),\"-\")","v":"-"},"-",{"$f":"IFERROR(INDEX(OpzegArbeiders[OPZEG DOOR DE WERKNEMER],MATCH(L608,OpzegArbeiders[X],1),1),\"-\")","v":"-"},"-","-","-"]
[null,null,null,null,null,null,605,null,null,null,null,"-",{"$f":"IFERROR(INDEX(OpzegArbeiders[OPZEG DOOR DE WERKGEVER],MATCH(L609,OpzegArbeiders[X],1),1),\"-\")","v":"-"},"-",{"$f":"IFERROR(INDEX(OpzegArbeiders[OPZEG DOOR DE WERKNEMER],MATCH(L609,OpzegArbeiders[X],1),1),\"-\")","v":"-"},"-","-","-"]
[null,null,null,null,null,null,606,null,null,null,null,"-",{"$f":"IFERROR(INDEX(OpzegArbeiders[OPZEG DOOR DE WERKGEVER],MATCH(L610,OpzegArbeiders[X],1),1),\"-\")","v":"-"},"-",{"$f":"IFERROR(INDEX(OpzegArbeiders[OPZEG DOOR DE WERKNEMER],MATCH(L610,OpzegArbeiders[X],1),1),\"-\")","v":"-"},"-","-","-"]
[null,null,null,null,null,null,607,null,null,null,null,"-",{"$f":"IFERROR(INDEX(OpzegArbeiders[OPZEG DOOR DE WERKGEVER],MATCH(L611,OpzegArbeiders[X],1),1),\"-\")","v":"-"},"-",{"$f":"IFERROR(INDEX(OpzegArbeiders[OPZEG DOOR DE WERKNEMER],MATCH(L611,OpzegArbeiders[X],1),1),\"-\")","v":"-"},"-","-","-"]
[null,null,null,null,null,null,608,null,null,null,null,"-",{"$f":"IFERROR(INDEX(OpzegArbeiders[OPZEG DOOR DE WERKGEVER],MATCH(L612,OpzegArbeiders[X],1),1),\"-\")","v":"-"},"-",{"$f":"IFERROR(INDEX(OpzegArbeiders[OPZEG DOOR DE WERKNEMER],MATCH(L612,OpzegArbeiders[X],1),1),\"-\")","v":"-"},"-","-","-"]
[null,null,null,null,null,null,609,null,null,null,null,"-",{"$f":"IFERROR(INDEX(OpzegArbeiders[OPZEG DOOR DE WERKGEVER],MATCH(L613,OpzegArbeiders[X],1),1),\"-\")","v":"-"},"-",{"$f":"IFERROR(INDEX(OpzegArbeiders[OPZEG DOOR DE WERKNEMER],MATCH(L613,OpzegArbeiders[X],1),1),\"-\")","v":"-"},"-","-","-"]
[null,null,null,null,null,null,610,null,null,null,null,"-",{"$f":"IFERROR(INDEX(OpzegArbeiders[OPZEG DOOR DE WERKGEVER],MATCH(L614,OpzegArbeiders[X],1),1),\"-\")","v":"-"},"-",{"$f":"IFERROR(INDEX(OpzegArbeiders[OPZEG DOOR DE WERKNEMER],MATCH(L614,OpzegArbeiders[X],1),1),\"-\")","v":"-"},"-","-","-"]
[null,null,null,null,null,null,611,null,null,null,null,"-",{"$f":"IFERROR(INDEX(OpzegArbeiders[OPZEG DOOR DE WERKGEVER],MATCH(L615,OpzegArbeiders[X],1),1),\"-\")","v":"-"},"-",{"$f":"IFERROR(INDEX(OpzegArbeiders[OPZEG DOOR DE WERKNEMER],MATCH(L615,OpzegArbeiders[X],1),1),\"-\")","v":"-"},"-","-","-"]
[null,null,null,null,null,null,612,null,null,null,null,"-",{"$f":"IFERROR(INDEX(OpzegArbeiders[OPZEG DOOR DE WERKGEVER],MATCH(L616,OpzegArbeiders[X],1),1),\"-\")","v":"-"},"-",{"$f":"IFERROR(INDEX(OpzegArbeiders[OPZEG DOOR DE WERKNEMER],MATCH(L616,OpzegArbeiders[X],1),1),\"-\")","v":"-"},"-","-","-"]
[null,null,null,null,null,null,613,null,null,null,null,"-",{"$f":"IFERROR(INDEX(OpzegArbeiders[OPZEG DOOR DE WERKGEVER],MATCH(L617,OpzegArbeiders[X],1),1),\"-\")","v":"-"},"-",{"$f":"IFERROR(INDEX(OpzegArbeiders[OPZEG DOOR DE WERKNEMER],MATCH(L617,OpzegArbeiders[X],1),1),\"-\")","v":"-"},"-","-","-"]
[null,null,null,null,null,null,614,null,null,null,null,"-",{"$f":"IFERROR(INDEX(OpzegArbeiders[OPZEG DOOR DE WERKGEVER],MATCH(L618,OpzegArbeiders[X],1),1),\"-\")","v":"-"},"-",{"$f":"IFERROR(INDEX(OpzegArbeiders[OPZEG DOOR DE WERKNEMER],MATCH(L618,OpzegArbeiders[X],1),1),\"-\")","v":"-"},"-","-","-"]
[null,null,null,null,null,null,615,null,null,null,null,"-",{"$f":"IFERROR(INDEX(OpzegArbeiders[OPZEG DOOR DE WERKGEVER],MATCH(L619,OpzegArbeiders[X],1),1),\"-\")","v":"-"},"-",{"$f":"IFERROR(INDEX(OpzegArbeiders[OPZEG DOOR DE WERKNEMER],MATCH(L619,OpzegArbeiders[X],1),1),\"-\")","v":"-"},"-","-","-"]
[null,null,null,null,null,null,616,null,null,null,null,"-",{"$f":"IFERROR(INDEX(OpzegArbeiders[OPZEG DOOR DE WERKGEVER],MATCH(L620,OpzegArbeiders[X],1),1),\"-\")","v":"-"},"-",{"$f":"IFERROR(INDEX(OpzegArbeiders[OPZEG DOOR DE WERKNEMER],MATCH(L620,OpzegArbeiders[X],1),1),\"-\")","v":"-"},"-","-","-"]
[null,null,null,null,null,null,617,null,null,null,null,"-",{"$f":"IFERROR(INDEX(OpzegArbeiders[OPZEG DOOR DE WERKGEVER],MATCH(L621,OpzegArbeiders[X],1),1),\"-\")","v":"-"},"-",{"$f":"IFERROR(INDEX(OpzegArbeiders[OPZEG DOOR DE WERKNEMER],MATCH(L621,OpzegArbeiders[X],1),1),\"-\")","v":"-"},"-","-","-"]
[null,null,null,null,null,null,618,null,null,null,null,"-",{"$f":"IFERROR(INDEX(OpzegArbeiders[OPZEG DOOR DE WERKGEVER],MATCH(L622,OpzegArbeiders[X],1),1),\"-\")","v":"-"},"-",{"$f":"IFERROR(INDEX(OpzegArbeiders[OPZEG DOOR DE WERKNEMER],MATCH(L622,OpzegArbeiders[X],1),1),\"-\")","v":"-"},"-","-","-"]
[null,null,null,null,null,null,619,null,null,null,null,"-",{"$f":"IFERROR(INDEX(OpzegArbeiders[OPZEG DOOR DE WERKGEVER],MATCH(L623,OpzegArbeiders[X],1),1),\"-\")","v":"-"},"-",{"$f":"IFERROR(INDEX(OpzegArbeiders[OPZEG DOOR DE WERKNEMER],MATCH(L623,OpzegArbeiders[X],1),1),\"-\")","v":"-"},"-","-","-"]
[null,null,null,null,null,null,620,null,null,null,null,"-",{"$f":"IFERROR(INDEX(OpzegArbeiders[OPZEG DOOR DE WERKGEVER],MATCH(L624,OpzegArbeiders[X],1),1),\"-\")","v":"-"},"-",{"$f":"IFERROR(INDEX(OpzegArbeiders[OPZEG DOOR DE WERKNEMER],MATCH(L624,OpzegArbeiders[X],1),1),\"-\")","v":"-"},"-","-","-"]
[null,null,null,null,null,null,621,null,null,null,null,"-",{"$f":"IFERROR(INDEX(OpzegArbeiders[OPZEG DOOR DE WERKGEVER],MATCH(L625,OpzegArbeiders[X],1),1),\"-\")","v":"-"},"-",{"$f":"IFERROR(INDEX(OpzegArbeiders[OPZEG DOOR DE WERKNEMER],MATCH(L625,OpzegArbeiders[X],1),1),\"-\")","v":"-"},"-","-","-"]
[null,null,null,null,null,null,622,null,null,null,null,"-",{"$f":"IFERROR(INDEX(OpzegArbeiders[OPZEG DOOR DE WERKGEVER],MATCH(L626,OpzegArbeiders[X],1),1),\"-\")","v":"-"},"-",{"$f":"IFERROR(INDEX(OpzegArbeiders[OPZEG DOOR DE WERKNEMER],MATCH(L626,OpzegArbeiders[X],1),1),\"-\")","v":"-"},"-","-","-"]
[null,null,null,null,null,null,623,null,null,null,null,"-",{"$f":"IFERROR(INDEX(OpzegArbeiders[OPZEG DOOR DE WERKGEVER],MATCH(L627,OpzegArbeiders[X],1),1),\"-\")","v":"-"},"-",{"$f":"IFERROR(INDEX(OpzegArbeiders[OPZEG DOOR DE WERKNEMER],MATCH(L627,OpzegArbeiders[X],1),1),\"-\")","v":"-"},"-","-","-"]
[null,null,null,null,null,null,624,null,null,null,null,"-",{"$f":"IFERROR(INDEX(OpzegArbeiders[OPZEG DOOR DE WERKGEVER],MATCH(L628,OpzegArbeiders[X],1),1),\"-\")","v":"-"},"-",{"$f":"IFERROR(INDEX(OpzegArbeiders[OPZEG DOOR DE WERKNEMER],MATCH(L628,OpzegArbeiders[X],1),1),\"-\")","v":"-"},"-","-","-"]
[null,null,null,null,null,null,625,null,null,null,null,"-",{"$f":"IFERROR(INDEX(OpzegArbeiders[OPZEG DOOR DE WERKGEVER],MATCH(L629,OpzegArbeiders[X],1),1),\"-\")","v":"-"},"-",{"$f":"IFERROR(INDEX(OpzegArbeiders[OPZEG DOOR DE WERKNEMER],MATCH(L629,OpzegArbeiders[X],1),1),\"-\")","v":"-"},"-","-","-"]
[null,null,null,null,null,null,626,null,null,null,null,"-",{"$f":"IFERROR(INDEX(OpzegArbeiders[OPZEG DOOR DE WERKGEVER],MATCH(L630,OpzegArbeiders[X],1),1),\"-\")","v":"-"},"-",{"$f":"IFERROR(INDEX(OpzegArbeiders[OPZEG DOOR DE WERKNEMER],MATCH(L630,OpzegArbeiders[X],1),1),\"-\")","v":"-"},"-","-","-"]
[null,null,null,null,null,null,627,null,null,null,null,"-",{"$f":"IFERROR(INDEX(OpzegArbeiders[OPZEG DOOR DE WERKGEVER],MATCH(L631,OpzegArbeiders[X],1),1),\"-\")","v":"-"},"-",{"$f":"IFERROR(INDEX(OpzegArbeiders[OPZEG DOOR DE WERKNEMER],MATCH(L631,OpzegArbeiders[X],1),1),\"-\")","v":"-"},"-","-","-"]
[null,null,null,null,null,null,628,null,null,null,null,"-",{"$f":"IFERROR(INDEX(OpzegArbeiders[OPZEG DOOR DE WERKGEVER],MATCH(L632,OpzegArbeiders[X],1),1),\"-\")","v":"-"},"-",{"$f":"IFERROR(INDEX(OpzegArbeiders[OPZEG DOOR DE WERKNEMER],MATCH(L632,OpzegArbeiders[X],1),1),\"-\")","v":"-"},"-","-","-"]
[null,null,null,null,null,null,629,null,null,null,null,"-",{"$f":"IFERROR(INDEX(OpzegArbeiders[OPZEG DOOR DE WERKGEVER],MATCH(L633,OpzegArbeiders[X],1),1),\"-\")","v":"-"},"-",{"$f":"IFERROR(INDEX(OpzegArbeiders[OPZEG DOOR DE WERKNEMER],MATCH(L633,OpzegArbeiders[X],1),1),\"-\")","v":"-"},"-","-","-"]
[null,null,null,null,null,null,630,null,null,null,null,"-",{"$f":"IFERROR(INDEX(OpzegArbeiders[OPZEG DOOR DE WERKGEVER],MATCH(L634,OpzegArbeiders[X],1),1),\"-\")","v":"-"},"-",{"$f":"IFERROR(INDEX(OpzegArbeiders[OPZEG DOOR DE WERKNEMER],MATCH(L634,OpzegArbeiders[X],1),1),\"-\")","v":"-"},"-","-","-"]
[null,null,null,null,null,null,631,null,null,null,null,"-",{"$f":"IFERROR(INDEX(OpzegArbeiders[OPZEG DOOR DE WERKGEVER],MATCH(L635,OpzegArbeiders[X],1),1),\"-\")","v":"-"},"-",{"$f":"IFERROR(INDEX(OpzegArbeiders[OPZEG DOOR DE WERKNEMER],MATCH(L635,OpzegArbeiders[X],1),1),\"-\")","v":"-"},"-","-","-"]
[null,null,null,null,null,null,632,null,null,null,null,"-",{"$f":"IFERROR(INDEX(OpzegArbeiders[OPZEG DOOR DE WERKGEVER],MATCH(L636,OpzegArbeiders[X],1),1),\"-\")","v":"-"},"-",{"$f":"IFERROR(INDEX(OpzegArbeiders[OPZEG DOOR DE WERKNEMER],MATCH(L636,OpzegArbeiders[X],1),1),\"-\")","v":"-"},"-","-","-"]
[null,null,null,null,null,null,633,null,null,null,null,"-",{"$f":"IFERROR(INDEX(OpzegArbeiders[OPZEG DOOR DE WERKGEVER],MATCH(L637,OpzegArbeiders[X],1),1),\"-\")","v":"-"},"-",{"$f":"IFERROR(INDEX(OpzegArbeiders[OPZEG DOOR DE WERKNEMER],MATCH(L637,OpzegArbeiders[X],1),1),\"-\")","v":"-"},"-","-","-"]
[null,null,null,null,null,null,634,null,null,null,null,"-",{"$f":"IFERROR(INDEX(OpzegArbeiders[OPZEG DOOR DE WERKGEVER],MATCH(L638,OpzegArbeiders[X],1),1),\"-\")","v":"-"},"-",{"$f":"IFERROR(INDEX(OpzegArbeiders[OPZEG DOOR DE WERKNEMER],MATCH(L638,OpzegArbeiders[X],1),1),\"-\")","v":"-"},"-","-","-"]
[null,null,null,null,null,null,635,null,null,null,null,"-",{"$f":"IFERROR(INDEX(OpzegArbeiders[OPZEG DOOR DE WERKGEVER],MATCH(L639,OpzegArbeiders[X],1),1),\"-\")","v":"-"},"-",{"$f":"IFERROR(INDEX(OpzegArbeiders[OPZEG DOOR DE WERKNEMER],MATCH(L639,OpzegArbeiders[X],1),1),\"-\")","v":"-"},"-","-","-"]
[null,null,null,null,null,null,636,null,null,null,null,"-",{"$f":"IFERROR(INDEX(OpzegArbeiders[OPZEG DOOR DE WERKGEVER],MATCH(L640,OpzegArbeiders[X],1),1),\"-\")","v":"-"},"-",{"$f":"IFERROR(INDEX(OpzegArbeiders[OPZEG DOOR DE WERKNEMER],MATCH(L640,OpzegArbeiders[X],1),1),\"-\")","v":"-"},"-","-","-"]
[null,null,null,null,null,null,637,null,null,null,null,"-",{"$f":"IFERROR(INDEX(OpzegArbeiders[OPZEG DOOR DE WERKGEVER],MATCH(L641,OpzegArbeiders[X],1),1),\"-\")","v":"-"},"-",{"$f":"IFERROR(INDEX(OpzegArbeiders[OPZEG DOOR DE WERKNEMER],MATCH(L641,OpzegArbeiders[X],1),1),\"-\")","v":"-"},"-","-","-"]
[null,null,null,null,null,null,638,null,null,null,null,"-",{"$f":"IFERROR(INDEX(OpzegArbeiders[OPZEG DOOR DE WERKGEVER],MATCH(L642,OpzegArbeiders[X],1),1),\"-\")","v":"-"},"-",{"$f":"IFERROR(INDEX(OpzegArbeiders[OPZEG DOOR DE WERKNEMER],MATCH(L642,OpzegArbeiders[X],1),1),\"-\")","v":"-"},"-","-","-"]
[null,null,null,null,null,null,639,null,null,null,null,"-",{"$f":"IFERROR(INDEX(OpzegArbeiders[OPZEG DOOR DE WERKGEVER],MATCH(L643,OpzegArbeiders[X],1),1),\"-\")","v":"-"},"-",{"$f":"IFERROR(INDEX(OpzegArbeiders[OPZEG DOOR DE WERKNEMER],MATCH(L643,OpzegArbeiders[X],1),1),\"-\")","v":"-"},"-","-","-"]
[null,null,null,null,null,null,640,null,null,null,null,"-",{"$f":"IFERROR(INDEX(OpzegArbeiders[OPZEG DOOR DE WERKGEVER],MATCH(L644,OpzegArbeiders[X],1),1),\"-\")","v":"-"},"-",{"$f":"IFERROR(INDEX(OpzegArbeiders[OPZEG DOOR DE WERKNEMER],MATCH(L644,OpzegArbeiders[X],1),1),\"-\")","v":"-"},"-","-","-"]
[null,null,null,null,null,null,641,null,null,null,null,"-",{"$f":"IFERROR(INDEX(OpzegArbeiders[OPZEG DOOR DE WERKGEVER],MATCH(L645,OpzegArbeiders[X],1),1),\"-\")","v":"-"},"-",{"$f":"IFERROR(INDEX(OpzegArbeiders[OPZEG DOOR DE WERKNEMER],MATCH(L645,OpzegArbeiders[X],1),1),\"-\")","v":"-"},"-","-","-"]
[null,null,null,null,null,null,642,null,null,null,null,{"$f":"IF(OR(H646<>\"\",J646<>\"\"),(DATEDIF(K646-1,DATE(2013,12,31),\"y\"))+(DATEDIF(K646-1,DATE(2013,12,31),\"ym\")/12)+(DATEDIF(K646-1,DATE(2013,12,31),\"md\")/365.25),\"-\")","v":"-"},{"$f":"IFERROR(INDEX(OpzegArbeiders[OPZEG DOOR DE WERKGEVER],MATCH(L646,OpzegArbeiders[X],1),1),\"-\")","v":"-"},{"$f":"IFERROR(M646/7,\"-\")","v":"-"},{"$f":"IFERROR(INDEX(OpzegArbeiders[OPZEG DOOR DE WERKNEMER],MATCH(L646,OpzegArbeiders[X],1),1),\"-\")","v":"-"},{"$f":"IFERROR(O646/7,\"-\")","v":"-"},{"$f":"IF(OR(ISTEXT(H646),ISTEXT(I646)),H646&\" \"&I646,\"-\")","v":"-"},{"$f":"IF(ISBLANK(J646),\"-\",J646)","v":"-"}]
[null,null,null,null,null,null,643,null,null,null,null,"-",{"$f":"IFERROR(INDEX(OpzegArbeiders[OPZEG DOOR DE WERKGEVER],MATCH(L647,OpzegArbeiders[X],1),1),\"-\")","v":"-"},"-",{"$f":"IFERROR(INDEX(OpzegArbeiders[OPZEG DOOR DE WERKNEMER],MATCH(L647,OpzegArbeiders[X],1),1),\"-\")","v":"-"},"-","-","-"]
[null,null,null,null,null,null,644,null,null,null,null,"-",{"$f":"IFERROR(INDEX(OpzegArbeiders[OPZEG DOOR DE WERKGEVER],MATCH(L648,OpzegArbeiders[X],1),1),\"-\")","v":"-"},"-",{"$f":"IFERROR(INDEX(OpzegArbeiders[OPZEG DOOR DE WERKNEMER],MATCH(L648,OpzegArbeiders[X],1),1),\"-\")","v":"-"},"-","-","-"]
[null,null,null,null,null,null,645,null,null,null,null,"-",{"$f":"IFERROR(INDEX(OpzegArbeiders[OPZEG DOOR DE WERKGEVER],MATCH(L649,OpzegArbeiders[X],1),1),\"-\")","v":"-"},"-",{"$f":"IFERROR(INDEX(OpzegArbeiders[OPZEG DOOR DE WERKNEMER],MATCH(L649,OpzegArbeiders[X],1),1),\"-\")","v":"-"},"-","-","-"]
[null,null,null,null,null,null,646,null,null,null,null,"-",{"$f":"IFERROR(INDEX(OpzegArbeiders[OPZEG DOOR DE WERKGEVER],MATCH(L650,OpzegArbeiders[X],1),1),\"-\")","v":"-"},"-",{"$f":"IFERROR(INDEX(OpzegArbeiders[OPZEG DOOR DE WERKNEMER],MATCH(L650,OpzegArbeiders[X],1),1),\"-\")","v":"-"},"-","-","-"]
[null,null,null,null,null,null,647,null,null,null,null,"-",{"$f":"IFERROR(INDEX(OpzegArbeiders[OPZEG DOOR DE WERKGEVER],MATCH(L651,OpzegArbeiders[X],1),1),\"-\")","v":"-"},"-",{"$f":"IFERROR(INDEX(OpzegArbeiders[OPZEG DOOR DE WERKNEMER],MATCH(L651,OpzegArbeiders[X],1),1),\"-\")","v":"-"},"-","-","-"]
[null,null,null,null,null,null,648,null,null,null,null,"-",{"$f":"IFERROR(INDEX(OpzegArbeiders[OPZEG DOOR DE WERKGEVER],MATCH(L652,OpzegArbeiders[X],1),1),\"-\")","v":"-"},"-",{"$f":"IFERROR(INDEX(OpzegArbeiders[OPZEG DOOR DE WERKNEMER],MATCH(L652,OpzegArbeiders[X],1),1),\"-\")","v":"-"},"-","-","-"]
[null,null,null,null,null,null,649,null,null,null,null,"-",{"$f":"IFERROR(INDEX(OpzegArbeiders[OPZEG DOOR DE WERKGEVER],MATCH(L653,OpzegArbeiders[X],1),1),\"-\")","v":"-"},"-",{"$f":"IFERROR(INDEX(OpzegArbeiders[OPZEG DOOR DE WERKNEMER],MATCH(L653,OpzegArbeiders[X],1),1),\"-\")","v":"-"},"-","-","-"]
[null,null,null,null,null,null,650,null,null,null,null,"-",{"$f":"IFERROR(INDEX(OpzegArbeiders[OPZEG DOOR DE WERKGEVER],MATCH(L654,OpzegArbeiders[X],1),1),\"-\")","v":"-"},"-",{"$f":"IFERROR(INDEX(OpzegArbeiders[OPZEG DOOR DE WERKNEMER],MATCH(L654,OpzegArbeiders[X],1),1),\"-\")","v":"-"},"-","-","-"]
[null,null,null,null,null,null,651,null,null,null,null,"-",{"$f":"IFERROR(INDEX(OpzegArbeiders[OPZEG DOOR DE WERKGEVER],MATCH(L655,OpzegArbeiders[X],1),1),\"-\")","v":"-"},"-",{"$f":"IFERROR(INDEX(OpzegArbeiders[OPZEG DOOR DE WERKNEMER],MATCH(L655,OpzegArbeiders[X],1),1),\"-\")","v":"-"},"-","-","-"]
[null,null,null,null,null,null,652,null,null,null,null,"-",{"$f":"IFERROR(INDEX(OpzegArbeiders[OPZEG DOOR DE WERKGEVER],MATCH(L656,OpzegArbeiders[X],1),1),\"-\")","v":"-"},"-",{"$f":"IFERROR(INDEX(OpzegArbeiders[OPZEG DOOR DE WERKNEMER],MATCH(L656,OpzegArbeiders[X],1),1),\"-\")","v":"-"},"-","-","-"]
[null,null,null,null,null,null,653,null,null,null,null,"-",{"$f":"IFERROR(INDEX(OpzegArbeiders[OPZEG DOOR DE WERKGEVER],MATCH(L657,OpzegArbeiders[X],1),1),\"-\")","v":"-"},"-",{"$f":"IFERROR(INDEX(OpzegArbeiders[OPZEG DOOR DE WERKNEMER],MATCH(L657,OpzegArbeiders[X],1),1),\"-\")","v":"-"},"-","-","-"]
[null,null,null,null,null,null,654,null,null,null,null,"-",{"$f":"IFERROR(INDEX(OpzegArbeiders[OPZEG DOOR DE WERKGEVER],MATCH(L658,OpzegArbeiders[X],1),1),\"-\")","v":"-"},"-",{"$f":"IFERROR(INDEX(OpzegArbeiders[OPZEG DOOR DE WERKNEMER],MATCH(L658,OpzegArbeiders[X],1),1),\"-\")","v":"-"},"-","-","-"]
[null,null,null,null,null,null,655,null,null,null,null,"-",{"$f":"IFERROR(INDEX(OpzegArbeiders[OPZEG DOOR DE WERKGEVER],MATCH(L659,OpzegArbeiders[X],1),1),\"-\")","v":"-"},"-",{"$f":"IFERROR(INDEX(OpzegArbeiders[OPZEG DOOR DE WERKNEMER],MATCH(L659,OpzegArbeiders[X],1),1),\"-\")","v":"-"},"-","-","-"]
[null,null,null,null,null,null,656,null,null,null,null,"-",{"$f":"IFERROR(INDEX(OpzegArbeiders[OPZEG DOOR DE WERKGEVER],MATCH(L660,OpzegArbeiders[X],1),1),\"-\")","v":"-"},"-",{"$f":"IFERROR(INDEX(OpzegArbeiders[OPZEG DOOR DE WERKNEMER],MATCH(L660,OpzegArbeiders[X],1),1),\"-\")","v":"-"},"-","-","-"]
[null,null,null,null,null,null,657,null,null,null,null,"-",{"$f":"IFERROR(INDEX(OpzegArbeiders[OPZEG DOOR DE WERKGEVER],MATCH(L661,OpzegArbeiders[X],1),1),\"-\")","v":"-"},"-",{"$f":"IFERROR(INDEX(OpzegArbeiders[OPZEG DOOR DE WERKNEMER],MATCH(L661,OpzegArbeiders[X],1),1),\"-\")","v":"-"},"-","-","-"]
[null,null,null,null,null,null,658,null,null,null,null,"-",{"$f":"IFERROR(INDEX(OpzegArbeiders[OPZEG DOOR DE WERKGEVER],MATCH(L662,OpzegArbeiders[X],1),1),\"-\")","v":"-"},"-",{"$f":"IFERROR(INDEX(OpzegArbeiders[OPZEG DOOR DE WERKNEMER],MATCH(L662,OpzegArbeiders[X],1),1),\"-\")","v":"-"},"-","-","-"]
[null,null,null,null,null,null,659,null,null,null,null,"-",{"$f":"IFERROR(INDEX(OpzegArbeiders[OPZEG DOOR DE WERKGEVER],MATCH(L663,OpzegArbeiders[X],1),1),\"-\")","v":"-"},"-",{"$f":"IFERROR(INDEX(OpzegArbeiders[OPZEG DOOR DE WERKNEMER],MATCH(L663,OpzegArbeiders[X],1),1),\"-\")","v":"-"},"-","-","-"]
[null,null,null,null,null,null,660,null,null,null,null,"-",{"$f":"IFERROR(INDEX(OpzegArbeiders[OPZEG DOOR DE WERKGEVER],MATCH(L664,OpzegArbeiders[X],1),1),\"-\")","v":"-"},"-",{"$f":"IFERROR(INDEX(OpzegArbeiders[OPZEG DOOR DE WERKNEMER],MATCH(L664,OpzegArbeiders[X],1),1),\"-\")","v":"-"},"-","-","-"]
[null,null,null,null,null,null,661,null,null,null,null,"-",{"$f":"IFERROR(INDEX(OpzegArbeiders[OPZEG DOOR DE WERKGEVER],MATCH(L665,OpzegArbeiders[X],1),1),\"-\")","v":"-"},"-",{"$f":"IFERROR(INDEX(OpzegArbeiders[OPZEG DOOR DE WERKNEMER],MATCH(L665,OpzegArbeiders[X],1),1),\"-\")","v":"-"},"-","-","-"]
[null,null,null,null,null,null,662,null,null,null,null,"-",{"$f":"IFERROR(INDEX(OpzegArbeiders[OPZEG DOOR DE WERKGEVER],MATCH(L666,OpzegArbeiders[X],1),1),\"-\")","v":"-"},"-",{"$f":"IFERROR(INDEX(OpzegArbeiders[OPZEG DOOR DE WERKNEMER],MATCH(L666,OpzegArbeiders[X],1),1),\"-\")","v":"-"},"-","-","-"]
[null,null,null,null,null,null,663,null,null,null,null,"-",{"$f":"IFERROR(INDEX(OpzegArbeiders[OPZEG DOOR DE WERKGEVER],MATCH(L667,OpzegArbeiders[X],1),1),\"-\")","v":"-"},"-",{"$f":"IFERROR(INDEX(OpzegArbeiders[OPZEG DOOR DE WERKNEMER],MATCH(L667,OpzegArbeiders[X],1),1),\"-\")","v":"-"},"-","-","-"]
[null,null,null,null,null,null,664,null,null,null,null,"-",{"$f":"IFERROR(INDEX(OpzegArbeiders[OPZEG DOOR DE WERKGEVER],MATCH(L668,OpzegArbeiders[X],1),1),\"-\")","v":"-"},"-",{"$f":"IFERROR(INDEX(OpzegArbeiders[OPZEG DOOR DE WERKNEMER],MATCH(L668,OpzegArbeiders[X],1),1),\"-\")","v":"-"},"-","-","-"]
[null,null,null,null,null,null,665,null,null,null,null,"-",{"$f":"IFERROR(INDEX(OpzegArbeiders[OPZEG DOOR DE WERKGEVER],MATCH(L669,OpzegArbeiders[X],1),1),\"-\")","v":"-"},"-",{"$f":"IFERROR(INDEX(OpzegArbeiders[OPZEG DOOR DE WERKNEMER],MATCH(L669,OpzegArbeiders[X],1),1),\"-\")","v":"-"},"-","-","-"]
[null,null,null,null,null,null,666,null,null,null,null,"-",{"$f":"IFERROR(INDEX(OpzegArbeiders[OPZEG DOOR DE WERKGEVER],MATCH(L670,OpzegArbeiders[X],1),1),\"-\")","v":"-"},"-",{"$f":"IFERROR(INDEX(OpzegArbeiders[OPZEG DOOR DE WERKNEMER],MATCH(L670,OpzegArbeiders[X],1),1),\"-\")","v":"-"},"-","-","-"]
[null,null,null,null,null,null,667,null,null,null,null,"-",{"$f":"IFERROR(INDEX(OpzegArbeiders[OPZEG DOOR DE WERKGEVER],MATCH(L671,OpzegArbeiders[X],1),1),\"-\")","v":"-"},"-",{"$f":"IFERROR(INDEX(OpzegArbeiders[OPZEG DOOR DE WERKNEMER],MATCH(L671,OpzegArbeiders[X],1),1),\"-\")","v":"-"},"-","-","-"]
[null,null,null,null,null,null,668,null,null,null,null,"-",{"$f":"IFERROR(INDEX(OpzegArbeiders[OPZEG DOOR DE WERKGEVER],MATCH(L672,OpzegArbeiders[X],1),1),\"-\")","v":"-"},"-",{"$f":"IFERROR(INDEX(OpzegArbeiders[OPZEG DOOR DE WERKNEMER],MATCH(L672,OpzegArbeiders[X],1),1),\"-\")","v":"-"},"-","-","-"]
[null,null,null,null,null,null,669,null,null,null,null,"-",{"$f":"IFERROR(INDEX(OpzegArbeiders[OPZEG DOOR DE WERKGEVER],MATCH(L673,OpzegArbeiders[X],1),1),\"-\")","v":"-"},"-",{"$f":"IFERROR(INDEX(OpzegArbeiders[OPZEG DOOR DE WERKNEMER],MATCH(L673,OpzegArbeiders[X],1),1),\"-\")","v":"-"},"-","-","-"]
[null,null,null,null,null,null,670,null,null,null,null,"-",{"$f":"IFERROR(INDEX(OpzegArbeiders[OPZEG DOOR DE WERKGEVER],MATCH(L674,OpzegArbeiders[X],1),1),\"-\")","v":"-"},"-",{"$f":"IFERROR(INDEX(OpzegArbeiders[OPZEG DOOR DE WERKNEMER],MATCH(L674,OpzegArbeiders[X],1),1),\"-\")","v":"-"},"-","-","-"]
[null,null,null,null,null,null,671,null,null,null,null,"-",{"$f":"IFERROR(INDEX(OpzegArbeiders[OPZEG DOOR DE WERKGEVER],MATCH(L675,OpzegArbeiders[X],1),1),\"-\")","v":"-"},"-",{"$f":"IFERROR(INDEX(OpzegArbeiders[OPZEG DOOR DE WERKNEMER],MATCH(L675,OpzegArbeiders[X],1),1),\"-\")","v":"-"},"-","-","-"]
[null,null,null,null,null,null,672,null,null,null,null,"-",{"$f":"IFERROR(INDEX(OpzegArbeiders[OPZEG DOOR DE WERKGEVER],MATCH(L676,OpzegArbeiders[X],1),1),\"-\")","v":"-"},"-",{"$f":"IFERROR(INDEX(OpzegArbeiders[OPZEG DOOR DE WERKNEMER],MATCH(L676,OpzegArbeiders[X],1),1),\"-\")","v":"-"},"-","-","-"]
[null,null,null,null,null,null,673,null,null,null,null,"-",{"$f":"IFERROR(INDEX(OpzegArbeiders[OPZEG DOOR DE WERKGEVER],MATCH(L677,OpzegArbeiders[X],1),1),\"-\")","v":"-"},"-",{"$f":"IFERROR(INDEX(OpzegArbeiders[OPZEG DOOR DE WERKNEMER],MATCH(L677,OpzegArbeiders[X],1),1),\"-\")","v":"-"},"-","-","-"]
[null,null,null,null,null,null,674,null,null,null,null,"-",{"$f":"IFERROR(INDEX(OpzegArbeiders[OPZEG DOOR DE WERKGEVER],MATCH(L678,OpzegArbeiders[X],1),1),\"-\")","v":"-"},"-",{"$f":"IFERROR(INDEX(OpzegArbeiders[OPZEG DOOR DE WERKNEMER],MATCH(L678,OpzegArbeiders[X],1),1),\"-\")","v":"-"},"-","-","-"]
[null,null,null,null,null,null,675,null,null,null,null,"-",{"$f":"IFERROR(INDEX(OpzegArbeiders[OPZEG DOOR DE WERKGEVER],MATCH(L679,OpzegArbeiders[X],1),1),\"-\")","v":"-"},"-",{"$f":"IFERROR(INDEX(OpzegArbeiders[OPZEG DOOR DE WERKNEMER],MATCH(L679,OpzegArbeiders[X],1),1),\"-\")","v":"-"},"-","-","-"]
[null,null,null,null,null,null,676,null,null,null,null,"-",{"$f":"IFERROR(INDEX(OpzegArbeiders[OPZEG DOOR DE WERKGEVER],MATCH(L680,OpzegArbeiders[X],1),1),\"-\")","v":"-"},"-",{"$f":"IFERROR(INDEX(OpzegArbeiders[OPZEG DOOR DE WERKNEMER],MATCH(L680,OpzegArbeiders[X],1),1),\"-\")","v":"-"},"-","-","-"]
[null,null,null,null,null,null,677,null,null,null,null,"-",{"$f":"IFERROR(INDEX(OpzegArbeiders[OPZEG DOOR DE WERKGEVER],MATCH(L681,OpzegArbeiders[X],1),1),\"-\")","v":"-"},"-",{"$f":"IFERROR(INDEX(OpzegArbeiders[OPZEG DOOR DE WERKNEMER],MATCH(L681,OpzegArbeiders[X],1),1),\"-\")","v":"-"},"-","-","-"]
[null,null,null,null,null,null,678,null,null,null,null,"-",{"$f":"IFERROR(INDEX(OpzegArbeiders[OPZEG DOOR DE WERKGEVER],MATCH(L682,OpzegArbeiders[X],1),1),\"-\")","v":"-"},"-",{"$f":"IFERROR(INDEX(OpzegArbeiders[OPZEG DOOR DE WERKNEMER],MATCH(L682,OpzegArbeiders[X],1),1),\"-\")","v":"-"},"-","-","-"]
[null,null,null,null,null,null,679,null,null,null,null,"-",{"$f":"IFERROR(INDEX(OpzegArbeiders[OPZEG DOOR DE WERKGEVER],MATCH(L683,OpzegArbeiders[X],1),1),\"-\")","v":"-"},"-",{"$f":"IFERROR(INDEX(OpzegArbeiders[OPZEG DOOR DE WERKNEMER],MATCH(L683,OpzegArbeiders[X],1),1),\"-\")","v":"-"},"-","-","-"]
[null,null,null,null,null,null,680,null,null,null,null,"-",{"$f":"IFERROR(INDEX(OpzegArbeiders[OPZEG DOOR DE WERKGEVER],MATCH(L684,OpzegArbeiders[X],1),1),\"-\")","v":"-"},"-",{"$f":"IFERROR(INDEX(OpzegArbeiders[OPZEG DOOR DE WERKNEMER],MATCH(L684,OpzegArbeiders[X],1),1),\"-\")","v":"-"},"-","-","-"]
[null,null,null,null,null,null,681,null,null,null,null,"-",{"$f":"IFERROR(INDEX(OpzegArbeiders[OPZEG DOOR DE WERKGEVER],MATCH(L685,OpzegArbeiders[X],1),1),\"-\")","v":"-"},"-",{"$f":"IFERROR(INDEX(OpzegArbeiders[OPZEG DOOR DE WERKNEMER],MATCH(L685,OpzegArbeiders[X],1),1),\"-\")","v":"-"},"-","-","-"]
[null,null,null,null,null,null,682,null,null,null,null,"-",{"$f":"IFERROR(INDEX(OpzegArbeiders[OPZEG DOOR DE WERKGEVER],MATCH(L686,OpzegArbeiders[X],1),1),\"-\")","v":"-"},"-",{"$f":"IFERROR(INDEX(OpzegArbeiders[OPZEG DOOR DE WERKNEMER],MATCH(L686,OpzegArbeiders[X],1),1),\"-\")","v":"-"},"-","-","-"]
[null,null,null,null,null,null,683,null,null,null,null,"-",{"$f":"IFERROR(INDEX(OpzegArbeiders[OPZEG DOOR DE WERKGEVER],MATCH(L687,OpzegArbeiders[X],1),1),\"-\")","v":"-"},"-",{"$f":"IFERROR(INDEX(OpzegArbeiders[OPZEG DOOR DE WERKNEMER],MATCH(L687,OpzegArbeiders[X],1),1),\"-\")","v":"-"},"-","-","-"]
[null,null,null,null,null,null,684,null,null,null,null,"-",{"$f":"IFERROR(INDEX(OpzegArbeiders[OPZEG DOOR DE WERKGEVER],MATCH(L688,OpzegArbeiders[X],1),1),\"-\")","v":"-"},"-",{"$f":"IFERROR(INDEX(OpzegArbeiders[OPZEG DOOR DE WERKNEMER],MATCH(L688,OpzegArbeiders[X],1),1),\"-\")","v":"-"},"-","-","-"]
[null,null,null,null,null,null,685,null,null,null,null,"-",{"$f":"IFERROR(INDEX(OpzegArbeiders[OPZEG DOOR DE WERKGEVER],MATCH(L689,OpzegArbeiders[X],1),1),\"-\")","v":"-"},"-",{"$f":"IFERROR(INDEX(OpzegArbeiders[OPZEG DOOR DE WERKNEMER],MATCH(L689,OpzegArbeiders[X],1),1),\"-\")","v":"-"},"-","-","-"]
[null,null,null,null,null,null,686,null,null,null,null,"-",{"$f":"IFERROR(INDEX(OpzegArbeiders[OPZEG DOOR DE WERKGEVER],MATCH(L690,OpzegArbeiders[X],1),1),\"-\")","v":"-"},"-",{"$f":"IFERROR(INDEX(OpzegArbeiders[OPZEG DOOR DE WERKNEMER],MATCH(L690,OpzegArbeiders[X],1),1),\"-\")","v":"-"},"-","-","-"]
[null,null,null,null,null,null,687,null,null,null,null,"-",{"$f":"IFERROR(INDEX(OpzegArbeiders[OPZEG DOOR DE WERKGEVER],MATCH(L691,OpzegArbeiders[X],1),1),\"-\")","v":"-"},"-",{"$f":"IFERROR(INDEX(OpzegArbeiders[OPZEG DOOR DE WERKNEMER],MATCH(L691,OpzegArbeiders[X],1),1),\"-\")","v":"-"},"-","-","-"]
[null,null,null,null,null,null,688,null,null,null,null,"-",{"$f":"IFERROR(INDEX(OpzegArbeiders[OPZEG DOOR DE WERKGEVER],MATCH(L692,OpzegArbeiders[X],1),1),\"-\")","v":"-"},"-",{"$f":"IFERROR(INDEX(OpzegArbeiders[OPZEG DOOR DE WERKNEMER],MATCH(L692,OpzegArbeiders[X],1),1),\"-\")","v":"-"},"-","-","-"]
[null,null,null,null,null,null,689,null,null,null,null,"-",{"$f":"IFERROR(INDEX(OpzegArbeiders[OPZEG DOOR DE WERKGEVER],MATCH(L693,OpzegArbeiders[X],1),1),\"-\")","v":"-"},"-",{"$f":"IFERROR(INDEX(OpzegArbeiders[OPZEG DOOR DE WERKNEMER],MATCH(L693,OpzegArbeiders[X],1),1),\"-\")","v":"-"},"-","-","-"]
[null,null,null,null,null,null,690,null,null,null,null,"-",{"$f":"IFERROR(INDEX(OpzegArbeiders[OPZEG DOOR DE WERKGEVER],MATCH(L694,OpzegArbeiders[X],1),1),\"-\")","v":"-"},"-",{"$f":"IFERROR(INDEX(OpzegArbeiders[OPZEG DOOR DE WERKNEMER],MATCH(L694,OpzegArbeiders[X],1),1),\"-\")","v":"-"},"-","-","-"]
[null,null,null,null,null,null,691,null,null,null,null,"-",{"$f":"IFERROR(INDEX(OpzegArbeiders[OPZEG DOOR DE WERKGEVER],MATCH(L695,OpzegArbeiders[X],1),1),\"-\")","v":"-"},"-",{"$f":"IFERROR(INDEX(OpzegArbeiders[OPZEG DOOR DE WERKNEMER],MATCH(L695,OpzegArbeiders[X],1),1),\"-\")","v":"-"},"-","-","-"]
[null,null,null,null,null,null,692,null,null,null,null,"-",{"$f":"IFERROR(INDEX(OpzegArbeiders[OPZEG DOOR DE WERKGEVER],MATCH(L696,OpzegArbeiders[X],1),1),\"-\")","v":"-"},"-",{"$f":"IFERROR(INDEX(OpzegArbeiders[OPZEG DOOR DE WERKNEMER],MATCH(L696,OpzegArbeiders[X],1),1),\"-\")","v":"-"},"-","-","-"]
[null,null,null,null,null,null,693,null,null,null,null,"-",{"$f":"IFERROR(INDEX(OpzegArbeiders[OPZEG DOOR DE WERKGEVER],MATCH(L697,OpzegArbeiders[X],1),1),\"-\")","v":"-"},"-",{"$f":"IFERROR(INDEX(OpzegArbeiders[OPZEG DOOR DE WERKNEMER],MATCH(L697,OpzegArbeiders[X],1),1),\"-\")","v":"-"},"-","-","-"]
[null,null,null,null,null,null,694,null,null,null,null,"-",{"$f":"IFERROR(INDEX(OpzegArbeiders[OPZEG DOOR DE WERKGEVER],MATCH(L698,OpzegArbeiders[X],1),1),\"-\")","v":"-"},"-",{"$f":"IFERROR(INDEX(OpzegArbeiders[OPZEG DOOR DE WERKNEMER],MATCH(L698,OpzegArbeiders[X],1),1),\"-\")","v":"-"},"-","-","-"]
[null,null,null,null,null,null,695,null,null,null,null,"-",{"$f":"IFERROR(INDEX(OpzegArbeiders[OPZEG DOOR DE WERKGEVER],MATCH(L699,OpzegArbeiders[X],1),1),\"-\")","v":"-"},"-",{"$f":"IFERROR(INDEX(OpzegArbeiders[OPZEG DOOR DE WERKNEMER],MATCH(L699,OpzegArbeiders[X],1),1),\"-\")","v":"-"},"-","-","-"]
[null,null,null,null,null,null,696,null,null,null,null,"-",{"$f":"IFERROR(INDEX(OpzegArbeiders[OPZEG DOOR DE WERKGEVER],MATCH(L700,OpzegArbeiders[X],1),1),\"-\")","v":"-"},"-",{"$f":"IFERROR(INDEX(OpzegArbeiders[OPZEG DOOR DE WERKNEMER],MATCH(L700,OpzegArbeiders[X],1),1),\"-\")","v":"-"},"-","-","-"]
[null,null,null,null,null,null,697,null,null,null,null,"-",{"$f":"IFERROR(INDEX(OpzegArbeiders[OPZEG DOOR DE WERKGEVER],MATCH(L701,OpzegArbeiders[X],1),1),\"-\")","v":"-"},"-",{"$f":"IFERROR(INDEX(OpzegArbeiders[OPZEG DOOR DE WERKNEMER],MATCH(L701,OpzegArbeiders[X],1),1),\"-\")","v":"-"},"-","-","-"]
[null,null,null,null,null,null,698,null,null,null,null,"-",{"$f":"IFERROR(INDEX(OpzegArbeiders[OPZEG DOOR DE WERKGEVER],MATCH(L702,OpzegArbeiders[X],1),1),\"-\")","v":"-"},"-",{"$f":"IFERROR(INDEX(OpzegArbeiders[OPZEG DOOR DE WERKNEMER],MATCH(L702,OpzegArbeiders[X],1),1),\"-\")","v":"-"},"-","-","-"]
[null,null,null,null,null,null,699,null,null,null,null,"-",{"$f":"IFERROR(INDEX(OpzegArbeiders[OPZEG DOOR DE WERKGEVER],MATCH(L703,OpzegArbeiders[X],1),1),\"-\")","v":"-"},"-",{"$f":"IFERROR(INDEX(OpzegArbeiders[OPZEG DOOR DE WERKNEMER],MATCH(L703,OpzegArbeiders[X],1),1),\"-\")","v":"-"},"-","-","-"]
[null,null,null,null,null,null,700,null,null,null,null,"-",{"$f":"IFERROR(INDEX(OpzegArbeiders[OPZEG DOOR DE WERKGEVER],MATCH(L704,OpzegArbeiders[X],1),1),\"-\")","v":"-"},"-",{"$f":"IFERROR(INDEX(OpzegArbeiders[OPZEG DOOR DE WERKNEMER],MATCH(L704,OpzegArbeiders[X],1),1),\"-\")","v":"-"},"-","-","-"]
[null,null,null,null,null,null,701,null,null,null,null,"-",{"$f":"IFERROR(INDEX(OpzegArbeiders[OPZEG DOOR DE WERKGEVER],MATCH(L705,OpzegArbeiders[X],1),1),\"-\")","v":"-"},"-",{"$f":"IFERROR(INDEX(OpzegArbeiders[OPZEG DOOR DE WERKNEMER],MATCH(L705,OpzegArbeiders[X],1),1),\"-\")","v":"-"},"-","-","-"]
[null,null,null,null,null,null,702,null,null,null,null,"-",{"$f":"IFERROR(INDEX(OpzegArbeiders[OPZEG DOOR DE WERKGEVER],MATCH(L706,OpzegArbeiders[X],1),1),\"-\")","v":"-"},"-",{"$f":"IFERROR(INDEX(OpzegArbeiders[OPZEG DOOR DE WERKNEMER],MATCH(L706,OpzegArbeiders[X],1),1),\"-\")","v":"-"},"-","-","-"]
[null,null,null,null,null,null,703,null,null,null,null,"-",{"$f":"IFERROR(INDEX(OpzegArbeiders[OPZEG DOOR DE WERKGEVER],MATCH(L707,OpzegArbeiders[X],1),1),\"-\")","v":"-"},"-",{"$f":"IFERROR(INDEX(OpzegArbeiders[OPZEG DOOR DE WERKNEMER],MATCH(L707,OpzegArbeiders[X],1),1),\"-\")","v":"-"},"-","-","-"]
[null,null,null,null,null,null,704,null,null,null,null,"-",{"$f":"IFERROR(INDEX(OpzegArbeiders[OPZEG DOOR DE WERKGEVER],MATCH(L708,OpzegArbeiders[X],1),1),\"-\")","v":"-"},"-",{"$f":"IFERROR(INDEX(OpzegArbeiders[OPZEG DOOR DE WERKNEMER],MATCH(L708,OpzegArbeiders[X],1),1),\"-\")","v":"-"},"-","-","-"]
[null,null,null,null,null,null,705,null,null,null,null,"-",{"$f":"IFERROR(INDEX(OpzegArbeiders[OPZEG DOOR DE WERKGEVER],MATCH(L709,OpzegArbeiders[X],1),1),\"-\")","v":"-"},"-",{"$f":"IFERROR(INDEX(OpzegArbeiders[OPZEG DOOR DE WERKNEMER],MATCH(L709,OpzegArbeiders[X],1),1),\"-\")","v":"-"},"-","-","-"]
[null,null,null,null,null,null,706,null,null,null,null,{"$f":"IF(OR(H710<>\"\",J710<>\"\"),(DATEDIF(K710-1,DATE(2013,12,31),\"y\"))+(DATEDIF(K710-1,DATE(2013,12,31),\"ym\")/12)+(DATEDIF(K710-1,DATE(2013,12,31),\"md\")/365.25),\"-\")","v":"-"},{"$f":"IFERROR(INDEX(OpzegArbeiders[OPZEG DOOR DE WERKGEVER],MATCH(L710,OpzegArbeiders[X],1),1),\"-\")","v":"-"},{"$f":"IFERROR(M710/7,\"-\")","v":"-"},{"$f":"IFERROR(INDEX(OpzegArbeiders[OPZEG DOOR DE WERKNEMER],MATCH(L710,OpzegArbeiders[X],1),1),\"-\")","v":"-"},{"$f":"IFERROR(O710/7,\"-\")","v":"-"},{"$f":"IF(OR(ISTEXT(H710),ISTEXT(I710)),H710&\" \"&I710,\"-\")","v":"-"},{"$f":"IF(ISBLANK(J710),\"-\",J710)","v":"-"}]
[null,null,null,null,null,null,707,null,null,null,null,"-",{"$f":"IFERROR(INDEX(OpzegArbeiders[OPZEG DOOR DE WERKGEVER],MATCH(L711,OpzegArbeiders[X],1),1),\"-\")","v":"-"},"-",{"$f":"IFERROR(INDEX(OpzegArbeiders[OPZEG DOOR DE WERKNEMER],MATCH(L711,OpzegArbeiders[X],1),1),\"-\")","v":"-"},"-","-","-"]
[null,null,null,null,null,null,708,null,null,null,null,"-",{"$f":"IFERROR(INDEX(OpzegArbeiders[OPZEG DOOR DE WERKGEVER],MATCH(L712,OpzegArbeiders[X],1),1),\"-\")","v":"-"},"-",{"$f":"IFERROR(INDEX(OpzegArbeiders[OPZEG DOOR DE WERKNEMER],MATCH(L712,OpzegArbeiders[X],1),1),\"-\")","v":"-"},"-","-","-"]
[null,null,null,null,null,null,709,null,null,null,null,"-",{"$f":"IFERROR(INDEX(OpzegArbeiders[OPZEG DOOR DE WERKGEVER],MATCH(L713,OpzegArbeiders[X],1),1),\"-\")","v":"-"},"-",{"$f":"IFERROR(INDEX(OpzegArbeiders[OPZEG DOOR DE WERKNEMER],MATCH(L713,OpzegArbeiders[X],1),1),\"-\")","v":"-"},"-","-","-"]
[null,null,null,null,null,null,710,null,null,null,null,"-",{"$f":"IFERROR(INDEX(OpzegArbeiders[OPZEG DOOR DE WERKGEVER],MATCH(L714,OpzegArbeiders[X],1),1),\"-\")","v":"-"},"-",{"$f":"IFERROR(INDEX(OpzegArbeiders[OPZEG DOOR DE WERKNEMER],MATCH(L714,OpzegArbeiders[X],1),1),\"-\")","v":"-"},"-","-","-"]
[null,null,null,null,null,null,711,null,null,null,null,"-",{"$f":"IFERROR(INDEX(OpzegArbeiders[OPZEG DOOR DE WERKGEVER],MATCH(L715,OpzegArbeiders[X],1),1),\"-\")","v":"-"},"-",{"$f":"IFERROR(INDEX(OpzegArbeiders[OPZEG DOOR DE WERKNEMER],MATCH(L715,OpzegArbeiders[X],1),1),\"-\")","v":"-"},"-","-","-"]
[null,null,null,null,null,null,712,null,null,null,null,"-",{"$f":"IFERROR(INDEX(OpzegArbeiders[OPZEG DOOR DE WERKGEVER],MATCH(L716,OpzegArbeiders[X],1),1),\"-\")","v":"-"},"-",{"$f":"IFERROR(INDEX(OpzegArbeiders[OPZEG DOOR DE WERKNEMER],MATCH(L716,OpzegArbeiders[X],1),1),\"-\")","v":"-"},"-","-","-"]
[null,null,null,null,null,null,713,null,null,null,null,"-",{"$f":"IFERROR(INDEX(OpzegArbeiders[OPZEG DOOR DE WERKGEVER],MATCH(L717,OpzegArbeiders[X],1),1),\"-\")","v":"-"},"-",{"$f":"IFERROR(INDEX(OpzegArbeiders[OPZEG DOOR DE WERKNEMER],MATCH(L717,OpzegArbeiders[X],1),1),\"-\")","v":"-"},"-","-","-"]
[null,null,null,null,null,null,714,null,null,null,null,"-",{"$f":"IFERROR(INDEX(OpzegArbeiders[OPZEG DOOR DE WERKGEVER],MATCH(L718,OpzegArbeiders[X],1),1),\"-\")","v":"-"},"-",{"$f":"IFERROR(INDEX(OpzegArbeiders[OPZEG DOOR DE WERKNEMER],MATCH(L718,OpzegArbeiders[X],1),1),\"-\")","v":"-"},"-","-","-"]
[null,null,null,null,null,null,715,null,null,null,null,"-",{"$f":"IFERROR(INDEX(OpzegArbeiders[OPZEG DOOR DE WERKGEVER],MATCH(L719,OpzegArbeiders[X],1),1),\"-\")","v":"-"},"-",{"$f":"IFERROR(INDEX(OpzegArbeiders[OPZEG DOOR DE WERKNEMER],MATCH(L719,OpzegArbeiders[X],1),1),\"-\")","v":"-"},"-","-","-"]
[null,null,null,null,null,null,716,null,null,null,null,"-",{"$f":"IFERROR(INDEX(OpzegArbeiders[OPZEG DOOR DE WERKGEVER],MATCH(L720,OpzegArbeiders[X],1),1),\"-\")","v":"-"},"-",{"$f":"IFERROR(INDEX(OpzegArbeiders[OPZEG DOOR DE WERKNEMER],MATCH(L720,OpzegArbeiders[X],1),1),\"-\")","v":"-"},"-","-","-"]
[null,null,null,null,null,null,717,null,null,null,null,"-",{"$f":"IFERROR(INDEX(OpzegArbeiders[OPZEG DOOR DE WERKGEVER],MATCH(L721,OpzegArbeiders[X],1),1),\"-\")","v":"-"},"-",{"$f":"IFERROR(INDEX(OpzegArbeiders[OPZEG DOOR DE WERKNEMER],MATCH(L721,OpzegArbeiders[X],1),1),\"-\")","v":"-"},"-","-","-"]
[null,null,null,null,null,null,718,null,null,null,null,"-",{"$f":"IFERROR(INDEX(OpzegArbeiders[OPZEG DOOR DE WERKGEVER],MATCH(L722,OpzegArbeiders[X],1),1),\"-\")","v":"-"},"-",{"$f":"IFERROR(INDEX(OpzegArbeiders[OPZEG DOOR DE WERKNEMER],MATCH(L722,OpzegArbeiders[X],1),1),\"-\")","v":"-"},"-","-","-"]
[null,null,null,null,null,null,719,null,null,null,null,"-",{"$f":"IFERROR(INDEX(OpzegArbeiders[OPZEG DOOR DE WERKGEVER],MATCH(L723,OpzegArbeiders[X],1),1),\"-\")","v":"-"},"-",{"$f":"IFERROR(INDEX(OpzegArbeiders[OPZEG DOOR DE WERKNEMER],MATCH(L723,OpzegArbeiders[X],1),1),\"-\")","v":"-"},"-","-","-"]
[null,null,null,null,null,null,720,null,null,null,null,"-",{"$f":"IFERROR(INDEX(OpzegArbeiders[OPZEG DOOR DE WERKGEVER],MATCH(L724,OpzegArbeiders[X],1),1),\"-\")","v":"-"},"-",{"$f":"IFERROR(INDEX(OpzegArbeiders[OPZEG DOOR DE WERKNEMER],MATCH(L724,OpzegArbeiders[X],1),1),\"-\")","v":"-"},"-","-","-"]
[null,null,null,null,null,null,721,null,null,null,null,"-",{"$f":"IFERROR(INDEX(OpzegArbeiders[OPZEG DOOR DE WERKGEVER],MATCH(L725,OpzegArbeiders[X],1),1),\"-\")","v":"-"},"-",{"$f":"IFERROR(INDEX(OpzegArbeiders[OPZEG DOOR DE WERKNEMER],MATCH(L725,OpzegArbeiders[X],1),1),\"-\")","v":"-"},"-","-","-"]
[null,null,null,null,null,null,722,null,null,null,null,"-",{"$f":"IFERROR(INDEX(OpzegArbeiders[OPZEG DOOR DE WERKGEVER],MATCH(L726,OpzegArbeiders[X],1),1),\"-\")","v":"-"},"-",{"$f":"IFERROR(INDEX(OpzegArbeiders[OPZEG DOOR DE WERKNEMER],MATCH(L726,OpzegArbeiders[X],1),1),\"-\")","v":"-"},"-","-","-"]
[null,null,null,null,null,null,723,null,null,null,null,"-",{"$f":"IFERROR(INDEX(OpzegArbeiders[OPZEG DOOR DE WERKGEVER],MATCH(L727,OpzegArbeiders[X],1),1),\"-\")","v":"-"},"-",{"$f":"IFERROR(INDEX(OpzegArbeiders[OPZEG DOOR DE WERKNEMER],MATCH(L727,OpzegArbeiders[X],1),1),\"-\")","v":"-"},"-","-","-"]
[null,null,null,null,null,null,724,null,null,null,null,"-",{"$f":"IFERROR(INDEX(OpzegArbeiders[OPZEG DOOR DE WERKGEVER],MATCH(L728,OpzegArbeiders[X],1),1),\"-\")","v":"-"},"-",{"$f":"IFERROR(INDEX(OpzegArbeiders[OPZEG DOOR DE WERKNEMER],MATCH(L728,OpzegArbeiders[X],1),1),\"-\")","v":"-"},"-","-","-"]
[null,null,null,null,null,null,725,null,null,null,null,"-",{"$f":"IFERROR(INDEX(OpzegArbeiders[OPZEG DOOR DE WERKGEVER],MATCH(L729,OpzegArbeiders[X],1),1),\"-\")","v":"-"},"-",{"$f":"IFERROR(INDEX(OpzegArbeiders[OPZEG DOOR DE WERKNEMER],MATCH(L729,OpzegArbeiders[X],1),1),\"-\")","v":"-"},"-","-","-"]
[null,null,null,null,null,null,726,null,null,null,null,"-",{"$f":"IFERROR(INDEX(OpzegArbeiders[OPZEG DOOR DE WERKGEVER],MATCH(L730,OpzegArbeiders[X],1),1),\"-\")","v":"-"},"-",{"$f":"IFERROR(INDEX(OpzegArbeiders[OPZEG DOOR DE WERKNEMER],MATCH(L730,OpzegArbeiders[X],1),1),\"-\")","v":"-"},"-","-","-"]
[null,null,null,null,null,null,727,null,null,null,null,"-",{"$f":"IFERROR(INDEX(OpzegArbeiders[OPZEG DOOR DE WERKGEVER],MATCH(L731,OpzegArbeiders[X],1),1),\"-\")","v":"-"},"-",{"$f":"IFERROR(INDEX(OpzegArbeiders[OPZEG DOOR DE WERKNEMER],MATCH(L731,OpzegArbeiders[X],1),1),\"-\")","v":"-"},"-","-","-"]
[null,null,null,null,null,null,728,null,null,null,null,"-",{"$f":"IFERROR(INDEX(OpzegArbeiders[OPZEG DOOR DE WERKGEVER],MATCH(L732,OpzegArbeiders[X],1),1),\"-\")","v":"-"},"-",{"$f":"IFERROR(INDEX(OpzegArbeiders[OPZEG DOOR DE WERKNEMER],MATCH(L732,OpzegArbeiders[X],1),1),\"-\")","v":"-"},"-","-","-"]
[null,null,null,null,null,null,729,null,null,null,null,"-",{"$f":"IFERROR(INDEX(OpzegArbeiders[OPZEG DOOR DE WERKGEVER],MATCH(L733,OpzegArbeiders[X],1),1),\"-\")","v":"-"},"-",{"$f":"IFERROR(INDEX(OpzegArbeiders[OPZEG DOOR DE WERKNEMER],MATCH(L733,OpzegArbeiders[X],1),1),\"-\")","v":"-"},"-","-","-"]
[null,null,null,null,null,null,730,null,null,null,null,"-",{"$f":"IFERROR(INDEX(OpzegArbeiders[OPZEG DOOR DE WERKGEVER],MATCH(L734,OpzegArbeiders[X],1),1),\"-\")","v":"-"},"-",{"$f":"IFERROR(INDEX(OpzegArbeiders[OPZEG DOOR DE WERKNEMER],MATCH(L734,OpzegArbeiders[X],1),1),\"-\")","v":"-"},"-","-","-"]
[null,null,null,null,null,null,731,null,null,null,null,"-",{"$f":"IFERROR(INDEX(OpzegArbeiders[OPZEG DOOR DE WERKGEVER],MATCH(L735,OpzegArbeiders[X],1),1),\"-\")","v":"-"},"-",{"$f":"IFERROR(INDEX(OpzegArbeiders[OPZEG DOOR DE WERKNEMER],MATCH(L735,OpzegArbeiders[X],1),1),\"-\")","v":"-"},"-","-","-"]
[null,null,null,null,null,null,732,null,null,null,null,"-",{"$f":"IFERROR(INDEX(OpzegArbeiders[OPZEG DOOR DE WERKGEVER],MATCH(L736,OpzegArbeiders[X],1),1),\"-\")","v":"-"},"-",{"$f":"IFERROR(INDEX(OpzegArbeiders[OPZEG DOOR DE WERKNEMER],MATCH(L736,OpzegArbeiders[X],1),1),\"-\")","v":"-"},"-","-","-"]
[null,null,null,null,null,null,733,null,null,null,null,"-",{"$f":"IFERROR(INDEX(OpzegArbeiders[OPZEG DOOR DE WERKGEVER],MATCH(L737,OpzegArbeiders[X],1),1),\"-\")","v":"-"},"-",{"$f":"IFERROR(INDEX(OpzegArbeiders[OPZEG DOOR DE WERKNEMER],MATCH(L737,OpzegArbeiders[X],1),1),\"-\")","v":"-"},"-","-","-"]
[null,null,null,null,null,null,734,null,null,null,null,"-",{"$f":"IFERROR(INDEX(OpzegArbeiders[OPZEG DOOR DE WERKGEVER],MATCH(L738,OpzegArbeiders[X],1),1),\"-\")","v":"-"},"-",{"$f":"IFERROR(INDEX(OpzegArbeiders[OPZEG DOOR DE WERKNEMER],MATCH(L738,OpzegArbeiders[X],1),1),\"-\")","v":"-"},"-","-","-"]
[null,null,null,null,null,null,735,null,null,null,null,"-",{"$f":"IFERROR(INDEX(OpzegArbeiders[OPZEG DOOR DE WERKGEVER],MATCH(L739,OpzegArbeiders[X],1),1),\"-\")","v":"-"},"-",{"$f":"IFERROR(INDEX(OpzegArbeiders[OPZEG DOOR DE WERKNEMER],MATCH(L739,OpzegArbeiders[X],1),1),\"-\")","v":"-"},"-","-","-"]
[null,null,null,null,null,null,736,null,null,null,null,"-",{"$f":"IFERROR(INDEX(OpzegArbeiders[OPZEG DOOR DE WERKGEVER],MATCH(L740,OpzegArbeiders[X],1),1),\"-\")","v":"-"},"-",{"$f":"IFERROR(INDEX(OpzegArbeiders[OPZEG DOOR DE WERKNEMER],MATCH(L740,OpzegArbeiders[X],1),1),\"-\")","v":"-"},"-","-","-"]
[null,null,null,null,null,null,737,null,null,null,null,"-",{"$f":"IFERROR(INDEX(OpzegArbeiders[OPZEG DOOR DE WERKGEVER],MATCH(L741,OpzegArbeiders[X],1),1),\"-\")","v":"-"},"-",{"$f":"IFERROR(INDEX(OpzegArbeiders[OPZEG DOOR DE WERKNEMER],MATCH(L741,OpzegArbeiders[X],1),1),\"-\")","v":"-"},"-","-","-"]
[null,null,null,null,null,null,738,null,null,null,null,"-",{"$f":"IFERROR(INDEX(OpzegArbeiders[OPZEG DOOR DE WERKGEVER],MATCH(L742,OpzegArbeiders[X],1),1),\"-\")","v":"-"},"-",{"$f":"IFERROR(INDEX(OpzegArbeiders[OPZEG DOOR DE WERKNEMER],MATCH(L742,OpzegArbeiders[X],1),1),\"-\")","v":"-"},"-","-","-"]
[null,null,null,null,null,null,739,null,null,null,null,"-",{"$f":"IFERROR(INDEX(OpzegArbeiders[OPZEG DOOR DE WERKGEVER],MATCH(L743,OpzegArbeiders[X],1),1),\"-\")","v":"-"},"-",{"$f":"IFERROR(INDEX(OpzegArbeiders[OPZEG DOOR DE WERKNEMER],MATCH(L743,OpzegArbeiders[X],1),1),\"-\")","v":"-"},"-","-","-"]
[null,null,null,null,null,null,740,null,null,null,null,"-",{"$f":"IFERROR(INDEX(OpzegArbeiders[OPZEG DOOR DE WERKGEVER],MATCH(L744,OpzegArbeiders[X],1),1),\"-\")","v":"-"},"-",{"$f":"IFERROR(INDEX(OpzegArbeiders[OPZEG DOOR DE WERKNEMER],MATCH(L744,OpzegArbeiders[X],1),1),\"-\")","v":"-"},"-","-","-"]
[null,null,null,null,null,null,741,null,null,null,null,"-",{"$f":"IFERROR(INDEX(OpzegArbeiders[OPZEG DOOR DE WERKGEVER],MATCH(L745,OpzegArbeiders[X],1),1),\"-\")","v":"-"},"-",{"$f":"IFERROR(INDEX(OpzegArbeiders[OPZEG DOOR DE WERKNEMER],MATCH(L745,OpzegArbeiders[X],1),1),\"-\")","v":"-"},"-","-","-"]
[null,null,null,null,null,null,742,null,null,null,null,"-",{"$f":"IFERROR(INDEX(OpzegArbeiders[OPZEG DOOR DE WERKGEVER],MATCH(L746,OpzegArbeiders[X],1),1),\"-\")","v":"-"},"-",{"$f":"IFERROR(INDEX(OpzegArbeiders[OPZEG DOOR DE WERKNEMER],MATCH(L746,OpzegArbeiders[X],1),1),\"-\")","v":"-"},"-","-","-"]
[null,null,null,null,null,null,743,null,null,null,null,"-",{"$f":"IFERROR(INDEX(OpzegArbeiders[OPZEG DOOR DE WERKGEVER],MATCH(L747,OpzegArbeiders[X],1),1),\"-\")","v":"-"},"-",{"$f":"IFERROR(INDEX(OpzegArbeiders[OPZEG DOOR DE WERKNEMER],MATCH(L747,OpzegArbeiders[X],1),1),\"-\")","v":"-"},"-","-","-"]
[null,null,null,null,null,null,744,null,null,null,null,"-",{"$f":"IFERROR(INDEX(OpzegArbeiders[OPZEG DOOR DE WERKGEVER],MATCH(L748,OpzegArbeiders[X],1),1),\"-\")","v":"-"},"-",{"$f":"IFERROR(INDEX(OpzegArbeiders[OPZEG DOOR DE WERKNEMER],MATCH(L748,OpzegArbeiders[X],1),1),\"-\")","v":"-"},"-","-","-"]
[null,null,null,null,null,null,745,null,null,null,null,"-",{"$f":"IFERROR(INDEX(OpzegArbeiders[OPZEG DOOR DE WERKGEVER],MATCH(L749,OpzegArbeiders[X],1),1),\"-\")","v":"-"},"-",{"$f":"IFERROR(INDEX(OpzegArbeiders[OPZEG DOOR DE WERKNEMER],MATCH(L749,OpzegArbeiders[X],1),1),\"-\")","v":"-"},"-","-","-"]
[null,null,null,null,null,null,746,null,null,null,null,"-",{"$f":"IFERROR(INDEX(OpzegArbeiders[OPZEG DOOR DE WERKGEVER],MATCH(L750,OpzegArbeiders[X],1),1),\"-\")","v":"-"},"-",{"$f":"IFERROR(INDEX(OpzegArbeiders[OPZEG DOOR DE WERKNEMER],MATCH(L750,OpzegArbeiders[X],1),1),\"-\")","v":"-"},"-","-","-"]
[null,null,null,null,null,null,747,null,null,null,null,"-",{"$f":"IFERROR(INDEX(OpzegArbeiders[OPZEG DOOR DE WERKGEVER],MATCH(L751,OpzegArbeiders[X],1),1),\"-\")","v":"-"},"-",{"$f":"IFERROR(INDEX(OpzegArbeiders[OPZEG DOOR DE WERKNEMER],MATCH(L751,OpzegArbeiders[X],1),1),\"-\")","v":"-"},"-","-","-"]
[null,null,null,null,null,null,748,null,null,null,null,"-",{"$f":"IFERROR(INDEX(OpzegArbeiders[OPZEG DOOR DE WERKGEVER],MATCH(L752,OpzegArbeiders[X],1),1),\"-\")","v":"-"},"-",{"$f":"IFERROR(INDEX(OpzegArbeiders[OPZEG DOOR DE WERKNEMER],MATCH(L752,OpzegArbeiders[X],1),1),\"-\")","v":"-"},"-","-","-"]
[null,null,null,null,null,null,749,null,null,null,null,"-",{"$f":"IFERROR(INDEX(OpzegArbeiders[OPZEG DOOR DE WERKGEVER],MATCH(L753,OpzegArbeiders[X],1),1),\"-\")","v":"-"},"-",{"$f":"IFERROR(INDEX(OpzegArbeiders[OPZEG DOOR DE WERKNEMER],MATCH(L753,OpzegArbeiders[X],1),1),\"-\")","v":"-"},"-","-","-"]
[null,null,null,null,null,null,750,null,null,null,null,"-",{"$f":"IFERROR(INDEX(OpzegArbeiders[OPZEG DOOR DE WERKGEVER],MATCH(L754,OpzegArbeiders[X],1),1),\"-\")","v":"-"},"-",{"$f":"IFERROR(INDEX(OpzegArbeiders[OPZEG DOOR DE WERKNEMER],MATCH(L754,OpzegArbeiders[X],1),1),\"-\")","v":"-"},"-","-","-"]
[null,null,null,null,null,null,751,null,null,null,null,"-",{"$f":"IFERROR(INDEX(OpzegArbeiders[OPZEG DOOR DE WERKGEVER],MATCH(L755,OpzegArbeiders[X],1),1),\"-\")","v":"-"},"-",{"$f":"IFERROR(INDEX(OpzegArbeiders[OPZEG DOOR DE WERKNEMER],MATCH(L755,OpzegArbeiders[X],1),1),\"-\")","v":"-"},"-","-","-"]
[null,null,null,null,null,null,752,null,null,null,null,"-",{"$f":"IFERROR(INDEX(OpzegArbeiders[OPZEG DOOR DE WERKGEVER],MATCH(L756,OpzegArbeiders[X],1),1),\"-\")","v":"-"},"-",{"$f":"IFERROR(INDEX(OpzegArbeiders[OPZEG DOOR DE WERKNEMER],MATCH(L756,OpzegArbeiders[X],1),1),\"-\")","v":"-"},"-","-","-"]
[null,null,null,null,null,null,753,null,null,null,null,"-",{"$f":"IFERROR(INDEX(OpzegArbeiders[OPZEG DOOR DE WERKGEVER],MATCH(L757,OpzegArbeiders[X],1),1),\"-\")","v":"-"},"-",{"$f":"IFERROR(INDEX(OpzegArbeiders[OPZEG DOOR DE WERKNEMER],MATCH(L757,OpzegArbeiders[X],1),1),\"-\")","v":"-"},"-","-","-"]
[null,null,null,null,null,null,754,null,null,null,null,"-",{"$f":"IFERROR(INDEX(OpzegArbeiders[OPZEG DOOR DE WERKGEVER],MATCH(L758,OpzegArbeiders[X],1),1),\"-\")","v":"-"},"-",{"$f":"IFERROR(INDEX(OpzegArbeiders[OPZEG DOOR DE WERKNEMER],MATCH(L758,OpzegArbeiders[X],1),1),\"-\")","v":"-"},"-","-","-"]
[null,null,null,null,null,null,755,null,null,null,null,"-",{"$f":"IFERROR(INDEX(OpzegArbeiders[OPZEG DOOR DE WERKGEVER],MATCH(L759,OpzegArbeiders[X],1),1),\"-\")","v":"-"},"-",{"$f":"IFERROR(INDEX(OpzegArbeiders[OPZEG DOOR DE WERKNEMER],MATCH(L759,OpzegArbeiders[X],1),1),\"-\")","v":"-"},"-","-","-"]
[null,null,null,null,null,null,756,null,null,null,null,"-",{"$f":"IFERROR(INDEX(OpzegArbeiders[OPZEG DOOR DE WERKGEVER],MATCH(L760,OpzegArbeiders[X],1),1),\"-\")","v":"-"},"-",{"$f":"IFERROR(INDEX(OpzegArbeiders[OPZEG DOOR DE WERKNEMER],MATCH(L760,OpzegArbeiders[X],1),1),\"-\")","v":"-"},"-","-","-"]
[null,null,null,null,null,null,757,null,null,null,null,"-",{"$f":"IFERROR(INDEX(OpzegArbeiders[OPZEG DOOR DE WERKGEVER],MATCH(L761,OpzegArbeiders[X],1),1),\"-\")","v":"-"},"-",{"$f":"IFERROR(INDEX(OpzegArbeiders[OPZEG DOOR DE WERKNEMER],MATCH(L761,OpzegArbeiders[X],1),1),\"-\")","v":"-"},"-","-","-"]
[null,null,null,null,null,null,758,null,null,null,null,"-",{"$f":"IFERROR(INDEX(OpzegArbeiders[OPZEG DOOR DE WERKGEVER],MATCH(L762,OpzegArbeiders[X],1),1),\"-\")","v":"-"},"-",{"$f":"IFERROR(INDEX(OpzegArbeiders[OPZEG DOOR DE WERKNEMER],MATCH(L762,OpzegArbeiders[X],1),1),\"-\")","v":"-"},"-","-","-"]
[null,null,null,null,null,null,759,null,null,null,null,"-",{"$f":"IFERROR(INDEX(OpzegArbeiders[OPZEG DOOR DE WERKGEVER],MATCH(L763,OpzegArbeiders[X],1),1),\"-\")","v":"-"},"-",{"$f":"IFERROR(INDEX(OpzegArbeiders[OPZEG DOOR DE WERKNEMER],MATCH(L763,OpzegArbeiders[X],1),1),\"-\")","v":"-"},"-","-","-"]
[null,null,null,null,null,null,760,null,null,null,null,"-",{"$f":"IFERROR(INDEX(OpzegArbeiders[OPZEG DOOR DE WERKGEVER],MATCH(L764,OpzegArbeiders[X],1),1),\"-\")","v":"-"},"-",{"$f":"IFERROR(INDEX(OpzegArbeiders[OPZEG DOOR DE WERKNEMER],MATCH(L764,OpzegArbeiders[X],1),1),\"-\")","v":"-"},"-","-","-"]
[null,null,null,null,null,null,761,null,null,null,null,"-",{"$f":"IFERROR(INDEX(OpzegArbeiders[OPZEG DOOR DE WERKGEVER],MATCH(L765,OpzegArbeiders[X],1),1),\"-\")","v":"-"},"-",{"$f":"IFERROR(INDEX(OpzegArbeiders[OPZEG DOOR DE WERKNEMER],MATCH(L765,OpzegArbeiders[X],1),1),\"-\")","v":"-"},"-","-","-"]
[null,null,null,null,null,null,762,null,null,null,null,"-",{"$f":"IFERROR(INDEX(OpzegArbeiders[OPZEG DOOR DE WERKGEVER],MATCH(L766,OpzegArbeiders[X],1),1),\"-\")","v":"-"},"-",{"$f":"IFERROR(INDEX(OpzegArbeiders[OPZEG DOOR DE WERKNEMER],MATCH(L766,OpzegArbeiders[X],1),1),\"-\")","v":"-"},"-","-","-"]
[null,null,null,null,null,null,763,null,null,null,null,"-",{"$f":"IFERROR(INDEX(OpzegArbeiders[OPZEG DOOR DE WERKGEVER],MATCH(L767,OpzegArbeiders[X],1),1),\"-\")","v":"-"},"-",{"$f":"IFERROR(INDEX(OpzegArbeiders[OPZEG DOOR DE WERKNEMER],MATCH(L767,OpzegArbeiders[X],1),1),\"-\")","v":"-"},"-","-","-"]
[null,null,null,null,null,null,764,null,null,null,null,"-",{"$f":"IFERROR(INDEX(OpzegArbeiders[OPZEG DOOR DE WERKGEVER],MATCH(L768,OpzegArbeiders[X],1),1),\"-\")","v":"-"},"-",{"$f":"IFERROR(INDEX(OpzegArbeiders[OPZEG DOOR DE WERKNEMER],MATCH(L768,OpzegArbeiders[X],1),1),\"-\")","v":"-"},"-","-","-"]
[null,null,null,null,null,null,765,null,null,null,null,"-",{"$f":"IFERROR(INDEX(OpzegArbeiders[OPZEG DOOR DE WERKGEVER],MATCH(L769,OpzegArbeiders[X],1),1),\"-\")","v":"-"},"-",{"$f":"IFERROR(INDEX(OpzegArbeiders[OPZEG DOOR DE WERKNEMER],MATCH(L769,OpzegArbeiders[X],1),1),\"-\")","v":"-"},"-","-","-"]
[null,null,null,null,null,null,766,null,null,null,null,"-",{"$f":"IFERROR(INDEX(OpzegArbeiders[OPZEG DOOR DE WERKGEVER],MATCH(L770,OpzegArbeiders[X],1),1),\"-\")","v":"-"},"-",{"$f":"IFERROR(INDEX(OpzegArbeiders[OPZEG DOOR DE WERKNEMER],MATCH(L770,OpzegArbeiders[X],1),1),\"-\")","v":"-"},"-","-","-"]
[null,null,null,null,null,null,767,null,null,null,null,"-",{"$f":"IFERROR(INDEX(OpzegArbeiders[OPZEG DOOR DE WERKGEVER],MATCH(L771,OpzegArbeiders[X],1),1),\"-\")","v":"-"},"-",{"$f":"IFERROR(INDEX(OpzegArbeiders[OPZEG DOOR DE WERKNEMER],MATCH(L771,OpzegArbeiders[X],1),1),\"-\")","v":"-"},"-","-","-"]
[null,null,null,null,null,null,768,null,null,null,null,"-",{"$f":"IFERROR(INDEX(OpzegArbeiders[OPZEG DOOR DE WERKGEVER],MATCH(L772,OpzegArbeiders[X],1),1),\"-\")","v":"-"},"-",{"$f":"IFERROR(INDEX(OpzegArbeiders[OPZEG DOOR DE WERKNEMER],MATCH(L772,OpzegArbeiders[X],1),1),\"-\")","v":"-"},"-","-","-"]
[null,null,null,null,null,null,769,null,null,null,null,"-",{"$f":"IFERROR(INDEX(OpzegArbeiders[OPZEG DOOR DE WERKGEVER],MATCH(L773,OpzegArbeiders[X],1),1),\"-\")","v":"-"},"-",{"$f":"IFERROR(INDEX(OpzegArbeiders[OPZEG DOOR DE WERKNEMER],MATCH(L773,OpzegArbeiders[X],1),1),\"-\")","v":"-"},"-","-","-"]
[null,null,null,null,null,null,770,null,null,null,null,{"$f":"IF(OR(H774<>\"\",J774<>\"\"),(DATEDIF(K774-1,DATE(2013,12,31),\"y\"))+(DATEDIF(K774-1,DATE(2013,12,31),\"ym\")/12)+(DATEDIF(K774-1,DATE(2013,12,31),\"md\")/365.25),\"-\")","v":"-"},{"$f":"IFERROR(INDEX(OpzegArbeiders[OPZEG DOOR DE WERKGEVER],MATCH(L774,OpzegArbeiders[X],1),1),\"-\")","v":"-"},{"$f":"IFERROR(M774/7,\"-\")","v":"-"},{"$f":"IFERROR(INDEX(OpzegArbeiders[OPZEG DOOR DE WERKNEMER],MATCH(L774,OpzegArbeiders[X],1),1),\"-\")","v":"-"},{"$f":"IFERROR(O774/7,\"-\")","v":"-"},{"$f":"IF(OR(ISTEXT(H774),ISTEXT(I774)),H774&\" \"&I774,\"-\")","v":"-"},{"$f":"IF(ISBLANK(J774),\"-\",J774)","v":"-"}]
[null,null,null,null,null,null,771,null,null,null,null,"-",{"$f":"IFERROR(INDEX(OpzegArbeiders[OPZEG DOOR DE WERKGEVER],MATCH(L775,OpzegArbeiders[X],1),1),\"-\")","v":"-"},"-",{"$f":"IFERROR(INDEX(OpzegArbeiders[OPZEG DOOR DE WERKNEMER],MATCH(L775,OpzegArbeiders[X],1),1),\"-\")","v":"-"},"-","-","-"]
[null,null,null,null,null,null,772,null,null,null,null,"-",{"$f":"IFERROR(INDEX(OpzegArbeiders[OPZEG DOOR DE WERKGEVER],MATCH(L776,OpzegArbeiders[X],1),1),\"-\")","v":"-"},"-",{"$f":"IFERROR(INDEX(OpzegArbeiders[OPZEG DOOR DE WERKNEMER],MATCH(L776,OpzegArbeiders[X],1),1),\"-\")","v":"-"},"-","-","-"]
[null,null,null,null,null,null,773,null,null,null,null,"-",{"$f":"IFERROR(INDEX(OpzegArbeiders[OPZEG DOOR DE WERKGEVER],MATCH(L777,OpzegArbeiders[X],1),1),\"-\")","v":"-"},"-",{"$f":"IFERROR(INDEX(OpzegArbeiders[OPZEG DOOR DE WERKNEMER],MATCH(L777,OpzegArbeiders[X],1),1),\"-\")","v":"-"},"-","-","-"]
[null,null,null,null,null,null,774,null,null,null,null,"-",{"$f":"IFERROR(INDEX(OpzegArbeiders[OPZEG DOOR DE WERKGEVER],MATCH(L778,OpzegArbeiders[X],1),1),\"-\")","v":"-"},"-",{"$f":"IFERROR(INDEX(OpzegArbeiders[OPZEG DOOR DE WERKNEMER],MATCH(L778,OpzegArbeiders[X],1),1),\"-\")","v":"-"},"-","-","-"]
[null,null,null,null,null,null,775,null,null,null,null,"-",{"$f":"IFERROR(INDEX(OpzegArbeiders[OPZEG DOOR DE WERKGEVER],MATCH(L779,OpzegArbeiders[X],1),1),\"-\")","v":"-"},"-",{"$f":"IFERROR(INDEX(OpzegArbeiders[OPZEG DOOR DE WERKNEMER],MATCH(L779,OpzegArbeiders[X],1),1),\"-\")","v":"-"},"-","-","-"]
[null,null,null,null,null,null,776,null,null,null,null,"-",{"$f":"IFERROR(INDEX(OpzegArbeiders[OPZEG DOOR DE WERKGEVER],MATCH(L780,OpzegArbeiders[X],1),1),\"-\")","v":"-"},"-",{"$f":"IFERROR(INDEX(OpzegArbeiders[OPZEG DOOR DE WERKNEMER],MATCH(L780,OpzegArbeiders[X],1),1),\"-\")","v":"-"},"-","-","-"]
[null,null,null,null,null,null,777,null,null,null,null,"-",{"$f":"IFERROR(INDEX(OpzegArbeiders[OPZEG DOOR DE WERKGEVER],MATCH(L781,OpzegArbeiders[X],1),1),\"-\")","v":"-"},"-",{"$f":"IFERROR(INDEX(OpzegArbeiders[OPZEG DOOR DE WERKNEMER],MATCH(L781,OpzegArbeiders[X],1),1),\"-\")","v":"-"},"-","-","-"]
[null,null,null,null,null,null,778,null,null,null,null,"-",{"$f":"IFERROR(INDEX(OpzegArbeiders[OPZEG DOOR DE WERKGEVER],MATCH(L782,OpzegArbeiders[X],1),1),\"-\")","v":"-"},"-",{"$f":"IFERROR(INDEX(OpzegArbeiders[OPZEG DOOR DE WERKNEMER],MATCH(L782,OpzegArbeiders[X],1),1),\"-\")","v":"-"},"-","-","-"]
[null,null,null,null,null,null,779,null,null,null,null,"-",{"$f":"IFERROR(INDEX(OpzegArbeiders[OPZEG DOOR DE WERKGEVER],MATCH(L783,OpzegArbeiders[X],1),1),\"-\")","v":"-"},"-",{"$f":"IFERROR(INDEX(OpzegArbeiders[OPZEG DOOR DE WERKNEMER],MATCH(L783,OpzegArbeiders[X],1),1),\"-\")","v":"-"},"-","-","-"]
[null,null,null,null,null,null,780,null,null,null,null,"-",{"$f":"IFERROR(INDEX(OpzegArbeiders[OPZEG DOOR DE WERKGEVER],MATCH(L784,OpzegArbeiders[X],1),1),\"-\")","v":"-"},"-",{"$f":"IFERROR(INDEX(OpzegArbeiders[OPZEG DOOR DE WERKNEMER],MATCH(L784,OpzegArbeiders[X],1),1),\"-\")","v":"-"},"-","-","-"]
[null,null,null,null,null,null,781,null,null,null,null,"-",{"$f":"IFERROR(INDEX(OpzegArbeiders[OPZEG DOOR DE WERKGEVER],MATCH(L785,OpzegArbeiders[X],1),1),\"-\")","v":"-"},"-",{"$f":"IFERROR(INDEX(OpzegArbeiders[OPZEG DOOR DE WERKNEMER],MATCH(L785,OpzegArbeiders[X],1),1),\"-\")","v":"-"},"-","-","-"]
[null,null,null,null,null,null,782,null,null,null,null,"-",{"$f":"IFERROR(INDEX(OpzegArbeiders[OPZEG DOOR DE WERKGEVER],MATCH(L786,OpzegArbeiders[X],1),1),\"-\")","v":"-"},"-",{"$f":"IFERROR(INDEX(OpzegArbeiders[OPZEG DOOR DE WERKNEMER],MATCH(L786,OpzegArbeiders[X],1),1),\"-\")","v":"-"},"-","-","-"]
[null,null,null,null,null,null,783,null,null,null,null,"-",{"$f":"IFERROR(INDEX(OpzegArbeiders[OPZEG DOOR DE WERKGEVER],MATCH(L787,OpzegArbeiders[X],1),1),\"-\")","v":"-"},"-",{"$f":"IFERROR(INDEX(OpzegArbeiders[OPZEG DOOR DE WERKNEMER],MATCH(L787,OpzegArbeiders[X],1),1),\"-\")","v":"-"},"-","-","-"]
[null,null,null,null,null,null,784,null,null,null,null,"-",{"$f":"IFERROR(INDEX(OpzegArbeiders[OPZEG DOOR DE WERKGEVER],MATCH(L788,OpzegArbeiders[X],1),1),\"-\")","v":"-"},"-",{"$f":"IFERROR(INDEX(OpzegArbeiders[OPZEG DOOR DE WERKNEMER],MATCH(L788,OpzegArbeiders[X],1),1),\"-\")","v":"-"},"-","-","-"]
[null,null,null,null,null,null,785,null,null,null,null,"-",{"$f":"IFERROR(INDEX(OpzegArbeiders[OPZEG DOOR DE WERKGEVER],MATCH(L789,OpzegArbeiders[X],1),1),\"-\")","v":"-"},"-",{"$f":"IFERROR(INDEX(OpzegArbeiders[OPZEG DOOR DE WERKNEMER],MATCH(L789,OpzegArbeiders[X],1),1),\"-\")","v":"-"},"-","-","-"]
[null,null,null,null,null,null,786,null,null,null,null,"-",{"$f":"IFERROR(INDEX(OpzegArbeiders[OPZEG DOOR DE WERKGEVER],MATCH(L790,OpzegArbeiders[X],1),1),\"-\")","v":"-"},"-",{"$f":"IFERROR(INDEX(OpzegArbeiders[OPZEG DOOR DE WERKNEMER],MATCH(L790,OpzegArbeiders[X],1),1),\"-\")","v":"-"},"-","-","-"]
[null,null,null,null,null,null,787,null,null,null,null,"-",{"$f":"IFERROR(INDEX(OpzegArbeiders[OPZEG DOOR DE WERKGEVER],MATCH(L791,OpzegArbeiders[X],1),1),\"-\")","v":"-"},"-",{"$f":"IFERROR(INDEX(OpzegArbeiders[OPZEG DOOR DE WERKNEMER],MATCH(L791,OpzegArbeiders[X],1),1),\"-\")","v":"-"},"-","-","-"]
[null,null,null,null,null,null,788,null,null,null,null,"-",{"$f":"IFERROR(INDEX(OpzegArbeiders[OPZEG DOOR DE WERKGEVER],MATCH(L792,OpzegArbeiders[X],1),1),\"-\")","v":"-"},"-",{"$f":"IFERROR(INDEX(OpzegArbeiders[OPZEG DOOR DE WERKNEMER],MATCH(L792,OpzegArbeiders[X],1),1),\"-\")","v":"-"},"-","-","-"]
[null,null,null,null,null,null,789,null,null,null,null,"-",{"$f":"IFERROR(INDEX(OpzegArbeiders[OPZEG DOOR DE WERKGEVER],MATCH(L793,OpzegArbeiders[X],1),1),\"-\")","v":"-"},"-",{"$f":"IFERROR(INDEX(OpzegArbeiders[OPZEG DOOR DE WERKNEMER],MATCH(L793,OpzegArbeiders[X],1),1),\"-\")","v":"-"},"-","-","-"]
[null,null,null,null,null,null,790,null,null,null,null,"-",{"$f":"IFERROR(INDEX(OpzegArbeiders[OPZEG DOOR DE WERKGEVER],MATCH(L794,OpzegArbeiders[X],1),1),\"-\")","v":"-"},"-",{"$f":"IFERROR(INDEX(OpzegArbeiders[OPZEG DOOR DE WERKNEMER],MATCH(L794,OpzegArbeiders[X],1),1),\"-\")","v":"-"},"-","-","-"]
[null,null,null,null,null,null,791,null,null,null,null,"-",{"$f":"IFERROR(INDEX(OpzegArbeiders[OPZEG DOOR DE WERKGEVER],MATCH(L795,OpzegArbeiders[X],1),1),\"-\")","v":"-"},"-",{"$f":"IFERROR(INDEX(OpzegArbeiders[OPZEG DOOR DE WERKNEMER],MATCH(L795,OpzegArbeiders[X],1),1),\"-\")","v":"-"},"-","-","-"]
[null,null,null,null,null,null,792,null,null,null,null,"-",{"$f":"IFERROR(INDEX(OpzegArbeiders[OPZEG DOOR DE WERKGEVER],MATCH(L796,OpzegArbeiders[X],1),1),\"-\")","v":"-"},"-",{"$f":"IFERROR(INDEX(OpzegArbeiders[OPZEG DOOR DE WERKNEMER],MATCH(L796,OpzegArbeiders[X],1),1),\"-\")","v":"-"},"-","-","-"]
[null,null,null,null,null,null,793,null,null,null,null,"-",{"$f":"IFERROR(INDEX(OpzegArbeiders[OPZEG DOOR DE WERKGEVER],MATCH(L797,OpzegArbeiders[X],1),1),\"-\")","v":"-"},"-",{"$f":"IFERROR(INDEX(OpzegArbeiders[OPZEG DOOR DE WERKNEMER],MATCH(L797,OpzegArbeiders[X],1),1),\"-\")","v":"-"},"-","-","-"]
[null,null,null,null,null,null,794,null,null,null,null,"-",{"$f":"IFERROR(INDEX(OpzegArbeiders[OPZEG DOOR DE WERKGEVER],MATCH(L798,OpzegArbeiders[X],1),1),\"-\")","v":"-"},"-",{"$f":"IFERROR(INDEX(OpzegArbeiders[OPZEG DOOR DE WERKNEMER],MATCH(L798,OpzegArbeiders[X],1),1),\"-\")","v":"-"},"-","-","-"]
[null,null,null,null,null,null,795,null,null,null,null,"-",{"$f":"IFERROR(INDEX(OpzegArbeiders[OPZEG DOOR DE WERKGEVER],MATCH(L799,OpzegArbeiders[X],1),1),\"-\")","v":"-"},"-",{"$f":"IFERROR(INDEX(OpzegArbeiders[OPZEG DOOR DE WERKNEMER],MATCH(L799,OpzegArbeiders[X],1),1),\"-\")","v":"-"},"-","-","-"]
[null,null,null,null,null,null,796,null,null,null,null,"-",{"$f":"IFERROR(INDEX(OpzegArbeiders[OPZEG DOOR DE WERKGEVER],MATCH(L800,OpzegArbeiders[X],1),1),\"-\")","v":"-"},"-",{"$f":"IFERROR(INDEX(OpzegArbeiders[OPZEG DOOR DE WERKNEMER],MATCH(L800,OpzegArbeiders[X],1),1),\"-\")","v":"-"},"-","-","-"]
[null,null,null,null,null,null,797,null,null,null,null,"-",{"$f":"IFERROR(INDEX(OpzegArbeiders[OPZEG DOOR DE WERKGEVER],MATCH(L801,OpzegArbeiders[X],1),1),\"-\")","v":"-"},"-",{"$f":"IFERROR(INDEX(OpzegArbeiders[OPZEG DOOR DE WERKNEMER],MATCH(L801,OpzegArbeiders[X],1),1),\"-\")","v":"-"},"-","-","-"]
[null,null,null,null,null,null,798,null,null,null,null,"-",{"$f":"IFERROR(INDEX(OpzegArbeiders[OPZEG DOOR DE WERKGEVER],MATCH(L802,OpzegArbeiders[X],1),1),\"-\")","v":"-"},"-",{"$f":"IFERROR(INDEX(OpzegArbeiders[OPZEG DOOR DE WERKNEMER],MATCH(L802,OpzegArbeiders[X],1),1),\"-\")","v":"-"},"-","-","-"]
[null,null,null,null,null,null,799,null,null,null,null,"-",{"$f":"IFERROR(INDEX(OpzegArbeiders[OPZEG DOOR DE WERKGEVER],MATCH(L803,OpzegArbeiders[X],1),1),\"-\")","v":"-"},"-",{"$f":"IFERROR(INDEX(OpzegArbeiders[OPZEG DOOR DE WERKNEMER],MATCH(L803,OpzegArbeiders[X],1),1),\"-\")","v":"-"},"-","-","-"]
[null,null,null,null,null,null,800,null,null,null,null,"-",{"$f":"IFERROR(INDEX(OpzegArbeiders[OPZEG DOOR DE WERKGEVER],MATCH(L804,OpzegArbeiders[X],1),1),\"-\")","v":"-"},"-",{"$f":"IFERROR(INDEX(OpzegArbeiders[OPZEG DOOR DE WERKNEMER],MATCH(L804,OpzegArbeiders[X],1),1),\"-\")","v":"-"},"-","-","-"]
[null,null,null,null,null,null,801,null,null,null,null,"-",{"$f":"IFERROR(INDEX(OpzegArbeiders[OPZEG DOOR DE WERKGEVER],MATCH(L805,OpzegArbeiders[X],1),1),\"-\")","v":"-"},"-",{"$f":"IFERROR(INDEX(OpzegArbeiders[OPZEG DOOR DE WERKNEMER],MATCH(L805,OpzegArbeiders[X],1),1),\"-\")","v":"-"},"-","-","-"]
[null,null,null,null,null,null,802,null,null,null,null,"-",{"$f":"IFERROR(INDEX(OpzegArbeiders[OPZEG DOOR DE WERKGEVER],MATCH(L806,OpzegArbeiders[X],1),1),\"-\")","v":"-"},"-",{"$f":"IFERROR(INDEX(OpzegArbeiders[OPZEG DOOR DE WERKNEMER],MATCH(L806,OpzegArbeiders[X],1),1),\"-\")","v":"-"},"-","-","-"]
[null,null,null,null,null,null,803,null,null,null,null,"-",{"$f":"IFERROR(INDEX(OpzegArbeiders[OPZEG DOOR DE WERKGEVER],MATCH(L807,OpzegArbeiders[X],1),1),\"-\")","v":"-"},"-",{"$f":"IFERROR(INDEX(OpzegArbeiders[OPZEG DOOR DE WERKNEMER],MATCH(L807,OpzegArbeiders[X],1),1),\"-\")","v":"-"},"-","-","-"]
[null,null,null,null,null,null,804,null,null,null,null,"-",{"$f":"IFERROR(INDEX(OpzegArbeiders[OPZEG DOOR DE WERKGEVER],MATCH(L808,OpzegArbeiders[X],1),1),\"-\")","v":"-"},"-",{"$f":"IFERROR(INDEX(OpzegArbeiders[OPZEG DOOR DE WERKNEMER],MATCH(L808,OpzegArbeiders[X],1),1),\"-\")","v":"-"},"-","-","-"]
[null,null,null,null,null,null,805,null,null,null,null,"-",{"$f":"IFERROR(INDEX(OpzegArbeiders[OPZEG DOOR DE WERKGEVER],MATCH(L809,OpzegArbeiders[X],1),1),\"-\")","v":"-"},"-",{"$f":"IFERROR(INDEX(OpzegArbeiders[OPZEG DOOR DE WERKNEMER],MATCH(L809,OpzegArbeiders[X],1),1),\"-\")","v":"-"},"-","-","-"]
[null,null,null,null,null,null,806,null,null,null,null,"-",{"$f":"IFERROR(INDEX(OpzegArbeiders[OPZEG DOOR DE WERKGEVER],MATCH(L810,OpzegArbeiders[X],1),1),\"-\")","v":"-"},"-",{"$f":"IFERROR(INDEX(OpzegArbeiders[OPZEG DOOR DE WERKNEMER],MATCH(L810,OpzegArbeiders[X],1),1),\"-\")","v":"-"},"-","-","-"]
[null,null,null,null,null,null,807,null,null,null,null,"-",{"$f":"IFERROR(INDEX(OpzegArbeiders[OPZEG DOOR DE WERKGEVER],MATCH(L811,OpzegArbeiders[X],1),1),\"-\")","v":"-"},"-",{"$f":"IFERROR(INDEX(OpzegArbeiders[OPZEG DOOR DE WERKNEMER],MATCH(L811,OpzegArbeiders[X],1),1),\"-\")","v":"-"},"-","-","-"]
[null,null,null,null,null,null,808,null,null,null,null,"-",{"$f":"IFERROR(INDEX(OpzegArbeiders[OPZEG DOOR DE WERKGEVER],MATCH(L812,OpzegArbeiders[X],1),1),\"-\")","v":"-"},"-",{"$f":"IFERROR(INDEX(OpzegArbeiders[OPZEG DOOR DE WERKNEMER],MATCH(L812,OpzegArbeiders[X],1),1),\"-\")","v":"-"},"-","-","-"]
[null,null,null,null,null,null,809,null,null,null,null,"-",{"$f":"IFERROR(INDEX(OpzegArbeiders[OPZEG DOOR DE WERKGEVER],MATCH(L813,OpzegArbeiders[X],1),1),\"-\")","v":"-"},"-",{"$f":"IFERROR(INDEX(OpzegArbeiders[OPZEG DOOR DE WERKNEMER],MATCH(L813,OpzegArbeiders[X],1),1),\"-\")","v":"-"},"-","-","-"]
[null,null,null,null,null,null,810,null,null,null,null,"-",{"$f":"IFERROR(INDEX(OpzegArbeiders[OPZEG DOOR DE WERKGEVER],MATCH(L814,OpzegArbeiders[X],1),1),\"-\")","v":"-"},"-",{"$f":"IFERROR(INDEX(OpzegArbeiders[OPZEG DOOR DE WERKNEMER],MATCH(L814,OpzegArbeiders[X],1),1),\"-\")","v":"-"},"-","-","-"]
[null,null,null,null,null,null,811,null,null,null,null,"-",{"$f":"IFERROR(INDEX(OpzegArbeiders[OPZEG DOOR DE WERKGEVER],MATCH(L815,OpzegArbeiders[X],1),1),\"-\")","v":"-"},"-",{"$f":"IFERROR(INDEX(OpzegArbeiders[OPZEG DOOR DE WERKNEMER],MATCH(L815,OpzegArbeiders[X],1),1),\"-\")","v":"-"},"-","-","-"]
[null,null,null,null,null,null,812,null,null,null,null,"-",{"$f":"IFERROR(INDEX(OpzegArbeiders[OPZEG DOOR DE WERKGEVER],MATCH(L816,OpzegArbeiders[X],1),1),\"-\")","v":"-"},"-",{"$f":"IFERROR(INDEX(OpzegArbeiders[OPZEG DOOR DE WERKNEMER],MATCH(L816,OpzegArbeiders[X],1),1),\"-\")","v":"-"},"-","-","-"]
[null,null,null,null,null,null,813,null,null,null,null,"-",{"$f":"IFERROR(INDEX(OpzegArbeiders[OPZEG DOOR DE WERKGEVER],MATCH(L817,OpzegArbeiders[X],1),1),\"-\")","v":"-"},"-",{"$f":"IFERROR(INDEX(OpzegArbeiders[OPZEG DOOR DE WERKNEMER],MATCH(L817,OpzegArbeiders[X],1),1),\"-\")","v":"-"},"-","-","-"]
[null,null,null,null,null,null,814,null,null,null,null,"-",{"$f":"IFERROR(INDEX(OpzegArbeiders[OPZEG DOOR DE WERKGEVER],MATCH(L818,OpzegArbeiders[X],1),1),\"-\")","v":"-"},"-",{"$f":"IFERROR(INDEX(OpzegArbeiders[OPZEG DOOR DE WERKNEMER],MATCH(L818,OpzegArbeiders[X],1),1),\"-\")","v":"-"},"-","-","-"]
[null,null,null,null,null,null,815,null,null,null,null,"-",{"$f":"IFERROR(INDEX(OpzegArbeiders[OPZEG DOOR DE WERKGEVER],MATCH(L819,OpzegArbeiders[X],1),1),\"-\")","v":"-"},"-",{"$f":"IFERROR(INDEX(OpzegArbeiders[OPZEG DOOR DE WERKNEMER],MATCH(L819,OpzegArbeiders[X],1),1),\"-\")","v":"-"},"-","-","-"]
[null,null,null,null,null,null,816,null,null,null,null,"-",{"$f":"IFERROR(INDEX(OpzegArbeiders[OPZEG DOOR DE WERKGEVER],MATCH(L820,OpzegArbeiders[X],1),1),\"-\")","v":"-"},"-",{"$f":"IFERROR(INDEX(OpzegArbeiders[OPZEG DOOR DE WERKNEMER],MATCH(L820,OpzegArbeiders[X],1),1),\"-\")","v":"-"},"-","-","-"]
[null,null,null,null,null,null,817,null,null,null,null,"-",{"$f":"IFERROR(INDEX(OpzegArbeiders[OPZEG DOOR DE WERKGEVER],MATCH(L821,OpzegArbeiders[X],1),1),\"-\")","v":"-"},"-",{"$f":"IFERROR(INDEX(OpzegArbeiders[OPZEG DOOR DE WERKNEMER],MATCH(L821,OpzegArbeiders[X],1),1),\"-\")","v":"-"},"-","-","-"]
[null,null,null,null,null,null,818,null,null,null,null,"-",{"$f":"IFERROR(INDEX(OpzegArbeiders[OPZEG DOOR DE WERKGEVER],MATCH(L822,OpzegArbeiders[X],1),1),\"-\")","v":"-"},"-",{"$f":"IFERROR(INDEX(OpzegArbeiders[OPZEG DOOR DE WERKNEMER],MATCH(L822,OpzegArbeiders[X],1),1),\"-\")","v":"-"},"-","-","-"]
[null,null,null,null,null,null,819,null,null,null,null,"-",{"$f":"IFERROR(INDEX(OpzegArbeiders[OPZEG DOOR DE WERKGEVER],MATCH(L823,OpzegArbeiders[X],1),1),\"-\")","v":"-"},"-",{"$f":"IFERROR(INDEX(OpzegArbeiders[OPZEG DOOR DE WERKNEMER],MATCH(L823,OpzegArbeiders[X],1),1),\"-\")","v":"-"},"-","-","-"]
[null,null,null,null,null,null,820,null,null,null,null,"-",{"$f":"IFERROR(INDEX(OpzegArbeiders[OPZEG DOOR DE WERKGEVER],MATCH(L824,OpzegArbeiders[X],1),1),\"-\")","v":"-"},"-",{"$f":"IFERROR(INDEX(OpzegArbeiders[OPZEG DOOR DE WERKNEMER],MATCH(L824,OpzegArbeiders[X],1),1),\"-\")","v":"-"},"-","-","-"]
[null,null,null,null,null,null,821,null,null,null,null,"-",{"$f":"IFERROR(INDEX(OpzegArbeiders[OPZEG DOOR DE WERKGEVER],MATCH(L825,OpzegArbeiders[X],1),1),\"-\")","v":"-"},"-",{"$f":"IFERROR(INDEX(OpzegArbeiders[OPZEG DOOR DE WERKNEMER],MATCH(L825,OpzegArbeiders[X],1),1),\"-\")","v":"-"},"-","-","-"]
[null,null,null,null,null,null,822,null,null,null,null,"-",{"$f":"IFERROR(INDEX(OpzegArbeiders[OPZEG DOOR DE WERKGEVER],MATCH(L826,OpzegArbeiders[X],1),1),\"-\")","v":"-"},"-",{"$f":"IFERROR(INDEX(OpzegArbeiders[OPZEG DOOR DE WERKNEMER],MATCH(L826,OpzegArbeiders[X],1),1),\"-\")","v":"-"},"-","-","-"]
[null,null,null,null,null,null,823,null,null,null,null,"-",{"$f":"IFERROR(INDEX(OpzegArbeiders[OPZEG DOOR DE WERKGEVER],MATCH(L827,OpzegArbeiders[X],1),1),\"-\")","v":"-"},"-",{"$f":"IFERROR(INDEX(OpzegArbeiders[OPZEG DOOR DE WERKNEMER],MATCH(L827,OpzegArbeiders[X],1),1),\"-\")","v":"-"},"-","-","-"]
[null,null,null,null,null,null,824,null,null,null,null,"-",{"$f":"IFERROR(INDEX(OpzegArbeiders[OPZEG DOOR DE WERKGEVER],MATCH(L828,OpzegArbeiders[X],1),1),\"-\")","v":"-"},"-",{"$f":"IFERROR(INDEX(OpzegArbeiders[OPZEG DOOR DE WERKNEMER],MATCH(L828,OpzegArbeiders[X],1),1),\"-\")","v":"-"},"-","-","-"]
[null,null,null,null,null,null,825,null,null,null,null,"-",{"$f":"IFERROR(INDEX(OpzegArbeiders[OPZEG DOOR DE WERKGEVER],MATCH(L829,OpzegArbeiders[X],1),1),\"-\")","v":"-"},"-",{"$f":"IFERROR(INDEX(OpzegArbeiders[OPZEG DOOR DE WERKNEMER],MATCH(L829,OpzegArbeiders[X],1),1),\"-\")","v":"-"},"-","-","-"]
[null,null,null,null,null,null,826,null,null,null,null,"-",{"$f":"IFERROR(INDEX(OpzegArbeiders[OPZEG DOOR DE WERKGEVER],MATCH(L830,OpzegArbeiders[X],1),1),\"-\")","v":"-"},"-",{"$f":"IFERROR(INDEX(OpzegArbeiders[OPZEG DOOR DE WERKNEMER],MATCH(L830,OpzegArbeiders[X],1),1),\"-\")","v":"-"},"-","-","-"]
[null,null,null,null,null,null,827,null,null,null,null,"-",{"$f":"IFERROR(INDEX(OpzegArbeiders[OPZEG DOOR DE WERKGEVER],MATCH(L831,OpzegArbeiders[X],1),1),\"-\")","v":"-"},"-",{"$f":"IFERROR(INDEX(OpzegArbeiders[OPZEG DOOR DE WERKNEMER],MATCH(L831,OpzegArbeiders[X],1),1),\"-\")","v":"-"},"-","-","-"]
[null,null,null,null,null,null,828,null,null,null,null,"-",{"$f":"IFERROR(INDEX(OpzegArbeiders[OPZEG DOOR DE WERKGEVER],MATCH(L832,OpzegArbeiders[X],1),1),\"-\")","v":"-"},"-",{"$f":"IFERROR(INDEX(OpzegArbeiders[OPZEG DOOR DE WERKNEMER],MATCH(L832,OpzegArbeiders[X],1),1),\"-\")","v":"-"},"-","-","-"]
[null,null,null,null,null,null,829,null,null,null,null,"-",{"$f":"IFERROR(INDEX(OpzegArbeiders[OPZEG DOOR DE WERKGEVER],MATCH(L833,OpzegArbeiders[X],1),1),\"-\")","v":"-"},"-",{"$f":"IFERROR(INDEX(OpzegArbeiders[OPZEG DOOR DE WERKNEMER],MATCH(L833,OpzegArbeiders[X],1),1),\"-\")","v":"-"},"-","-","-"]
[null,null,null,null,null,null,830,null,null,null,null,"-",{"$f":"IFERROR(INDEX(OpzegArbeiders[OPZEG DOOR DE WERKGEVER],MATCH(L834,OpzegArbeiders[X],1),1),\"-\")","v":"-"},"-",{"$f":"IFERROR(INDEX(OpzegArbeiders[OPZEG DOOR DE WERKNEMER],MATCH(L834,OpzegArbeiders[X],1),1),\"-\")","v":"-"},"-","-","-"]
[null,null,null,null,null,null,831,null,null,null,null,"-",{"$f":"IFERROR(INDEX(OpzegArbeiders[OPZEG DOOR DE WERKGEVER],MATCH(L835,OpzegArbeiders[X],1),1),\"-\")","v":"-"},"-",{"$f":"IFERROR(INDEX(OpzegArbeiders[OPZEG DOOR DE WERKNEMER],MATCH(L835,OpzegArbeiders[X],1),1),\"-\")","v":"-"},"-","-","-"]
[null,null,null,null,null,null,832,null,null,null,null,"-",{"$f":"IFERROR(INDEX(OpzegArbeiders[OPZEG DOOR DE WERKGEVER],MATCH(L836,OpzegArbeiders[X],1),1),\"-\")","v":"-"},"-",{"$f":"IFERROR(INDEX(OpzegArbeiders[OPZEG DOOR DE WERKNEMER],MATCH(L836,OpzegArbeiders[X],1),1),\"-\")","v":"-"},"-","-","-"]
[null,null,null,null,null,null,833,null,null,null,null,"-",{"$f":"IFERROR(INDEX(OpzegArbeiders[OPZEG DOOR DE WERKGEVER],MATCH(L837,OpzegArbeiders[X],1),1),\"-\")","v":"-"},"-",{"$f":"IFERROR(INDEX(OpzegArbeiders[OPZEG DOOR DE WERKNEMER],MATCH(L837,OpzegArbeiders[X],1),1),\"-\")","v":"-"},"-","-","-"]
[null,null,null,null,null,null,834,null,null,null,null,{"$f":"IF(OR(H838<>\"\",J838<>\"\"),(DATEDIF(K838-1,DATE(2013,12,31),\"y\"))+(DATEDIF(K838-1,DATE(2013,12,31),\"ym\")/12)+(DATEDIF(K838-1,DATE(2013,12,31),\"md\")/365.25),\"-\")","v":"-"},{"$f":"IFERROR(INDEX(OpzegArbeiders[OPZEG DOOR DE WERKGEVER],MATCH(L838,OpzegArbeiders[X],1),1),\"-\")","v":"-"},{"$f":"IFERROR(M838/7,\"-\")","v":"-"},{"$f":"IFERROR(INDEX(OpzegArbeiders[OPZEG DOOR DE WERKNEMER],MATCH(L838,OpzegArbeiders[X],1),1),\"-\")","v":"-"},{"$f":"IFERROR(O838/7,\"-\")","v":"-"},{"$f":"IF(OR(ISTEXT(H838),ISTEXT(I838)),H838&\" \"&I838,\"-\")","v":"-"},{"$f":"IF(ISBLANK(J838),\"-\",J838)","v":"-"}]
[null,null,null,null,null,null,835,null,null,null,null,"-",{"$f":"IFERROR(INDEX(OpzegArbeiders[OPZEG DOOR DE WERKGEVER],MATCH(L839,OpzegArbeiders[X],1),1),\"-\")","v":"-"},"-",{"$f":"IFERROR(INDEX(OpzegArbeiders[OPZEG DOOR DE WERKNEMER],MATCH(L839,OpzegArbeiders[X],1),1),\"-\")","v":"-"},"-","-","-"]
[null,null,null,null,null,null,836,null,null,null,null,"-",{"$f":"IFERROR(INDEX(OpzegArbeiders[OPZEG DOOR DE WERKGEVER],MATCH(L840,OpzegArbeiders[X],1),1),\"-\")","v":"-"},"-",{"$f":"IFERROR(INDEX(OpzegArbeiders[OPZEG DOOR DE WERKNEMER],MATCH(L840,OpzegArbeiders[X],1),1),\"-\")","v":"-"},"-","-","-"]
[null,null,null,null,null,null,837,null,null,null,null,"-",{"$f":"IFERROR(INDEX(OpzegArbeiders[OPZEG DOOR DE WERKGEVER],MATCH(L841,OpzegArbeiders[X],1),1),\"-\")","v":"-"},"-",{"$f":"IFERROR(INDEX(OpzegArbeiders[OPZEG DOOR DE WERKNEMER],MATCH(L841,OpzegArbeiders[X],1),1),\"-\")","v":"-"},"-","-","-"]
[null,null,null,null,null,null,838,null,null,null,null,"-",{"$f":"IFERROR(INDEX(OpzegArbeiders[OPZEG DOOR DE WERKGEVER],MATCH(L842,OpzegArbeiders[X],1),1),\"-\")","v":"-"},"-",{"$f":"IFERROR(INDEX(OpzegArbeiders[OPZEG DOOR DE WERKNEMER],MATCH(L842,OpzegArbeiders[X],1),1),\"-\")","v":"-"},"-","-","-"]
[null,null,null,null,null,null,839,null,null,null,null,"-",{"$f":"IFERROR(INDEX(OpzegArbeiders[OPZEG DOOR DE WERKGEVER],MATCH(L843,OpzegArbeiders[X],1),1),\"-\")","v":"-"},"-",{"$f":"IFERROR(INDEX(OpzegArbeiders[OPZEG DOOR DE WERKNEMER],MATCH(L843,OpzegArbeiders[X],1),1),\"-\")","v":"-"},"-","-","-"]
[null,null,null,null,null,null,840,null,null,null,null,"-",{"$f":"IFERROR(INDEX(OpzegArbeiders[OPZEG DOOR DE WERKGEVER],MATCH(L844,OpzegArbeiders[X],1),1),\"-\")","v":"-"},"-",{"$f":"IFERROR(INDEX(OpzegArbeiders[OPZEG DOOR DE WERKNEMER],MATCH(L844,OpzegArbeiders[X],1),1),\"-\")","v":"-"},"-","-","-"]
[null,null,null,null,null,null,841,null,null,null,null,"-",{"$f":"IFERROR(INDEX(OpzegArbeiders[OPZEG DOOR DE WERKGEVER],MATCH(L845,OpzegArbeiders[X],1),1),\"-\")","v":"-"},"-",{"$f":"IFERROR(INDEX(OpzegArbeiders[OPZEG DOOR DE WERKNEMER],MATCH(L845,OpzegArbeiders[X],1),1),\"-\")","v":"-"},"-","-","-"]
[null,null,null,null,null,null,842,null,null,null,null,"-",{"$f":"IFERROR(INDEX(OpzegArbeiders[OPZEG DOOR DE WERKGEVER],MATCH(L846,OpzegArbeiders[X],1),1),\"-\")","v":"-"},"-",{"$f":"IFERROR(INDEX(OpzegArbeiders[OPZEG DOOR DE WERKNEMER],MATCH(L846,OpzegArbeiders[X],1),1),\"-\")","v":"-"},"-","-","-"]
[null,null,null,null,null,null,843,null,null,null,null,"-",{"$f":"IFERROR(INDEX(OpzegArbeiders[OPZEG DOOR DE WERKGEVER],MATCH(L847,OpzegArbeiders[X],1),1),\"-\")","v":"-"},"-",{"$f":"IFERROR(INDEX(OpzegArbeiders[OPZEG DOOR DE WERKNEMER],MATCH(L847,OpzegArbeiders[X],1),1),\"-\")","v":"-"},"-","-","-"]
[null,null,null,null,null,null,844,null,null,null,null,"-",{"$f":"IFERROR(INDEX(OpzegArbeiders[OPZEG DOOR DE WERKGEVER],MATCH(L848,OpzegArbeiders[X],1),1),\"-\")","v":"-"},"-",{"$f":"IFERROR(INDEX(OpzegArbeiders[OPZEG DOOR DE WERKNEMER],MATCH(L848,OpzegArbeiders[X],1),1),\"-\")","v":"-"},"-","-","-"]
[null,null,null,null,null,null,845,null,null,null,null,"-",{"$f":"IFERROR(INDEX(OpzegArbeiders[OPZEG DOOR DE WERKGEVER],MATCH(L849,OpzegArbeiders[X],1),1),\"-\")","v":"-"},"-",{"$f":"IFERROR(INDEX(OpzegArbeiders[OPZEG DOOR DE WERKNEMER],MATCH(L849,OpzegArbeiders[X],1),1),\"-\")","v":"-"},"-","-","-"]
[null,null,null,null,null,null,846,null,null,null,null,"-",{"$f":"IFERROR(INDEX(OpzegArbeiders[OPZEG DOOR DE WERKGEVER],MATCH(L850,OpzegArbeiders[X],1),1),\"-\")","v":"-"},"-",{"$f":"IFERROR(INDEX(OpzegArbeiders[OPZEG DOOR DE WERKNEMER],MATCH(L850,OpzegArbeiders[X],1),1),\"-\")","v":"-"},"-","-","-"]
[null,null,null,null,null,null,847,null,null,null,null,"-",{"$f":"IFERROR(INDEX(OpzegArbeiders[OPZEG DOOR DE WERKGEVER],MATCH(L851,OpzegArbeiders[X],1),1),\"-\")","v":"-"},"-",{"$f":"IFERROR(INDEX(OpzegArbeiders[OPZEG DOOR DE WERKNEMER],MATCH(L851,OpzegArbeiders[X],1),1),\"-\")","v":"-"},"-","-","-"]
[null,null,null,null,null,null,848,null,null,null,null,"-",{"$f":"IFERROR(INDEX(OpzegArbeiders[OPZEG DOOR DE WERKGEVER],MATCH(L852,OpzegArbeiders[X],1),1),\"-\")","v":"-"},"-",{"$f":"IFERROR(INDEX(OpzegArbeiders[OPZEG DOOR DE WERKNEMER],MATCH(L852,OpzegArbeiders[X],1),1),\"-\")","v":"-"},"-","-","-"]
[null,null,null,null,null,null,849,null,null,null,null,"-",{"$f":"IFERROR(INDEX(OpzegArbeiders[OPZEG DOOR DE WERKGEVER],MATCH(L853,OpzegArbeiders[X],1),1),\"-\")","v":"-"},"-",{"$f":"IFERROR(INDEX(OpzegArbeiders[OPZEG DOOR DE WERKNEMER],MATCH(L853,OpzegArbeiders[X],1),1),\"-\")","v":"-"},"-","-","-"]
[null,null,null,null,null,null,850,null,null,null,null,"-",{"$f":"IFERROR(INDEX(OpzegArbeiders[OPZEG DOOR DE WERKGEVER],MATCH(L854,OpzegArbeiders[X],1),1),\"-\")","v":"-"},"-",{"$f":"IFERROR(INDEX(OpzegArbeiders[OPZEG DOOR DE WERKNEMER],MATCH(L854,OpzegArbeiders[X],1),1),\"-\")","v":"-"},"-","-","-"]
[null,null,null,null,null,null,851,null,null,null,null,"-",{"$f":"IFERROR(INDEX(OpzegArbeiders[OPZEG DOOR DE WERKGEVER],MATCH(L855,OpzegArbeiders[X],1),1),\"-\")","v":"-"},"-",{"$f":"IFERROR(INDEX(OpzegArbeiders[OPZEG DOOR DE WERKNEMER],MATCH(L855,OpzegArbeiders[X],1),1),\"-\")","v":"-"},"-","-","-"]
[null,null,null,null,null,null,852,null,null,null,null,"-",{"$f":"IFERROR(INDEX(OpzegArbeiders[OPZEG DOOR DE WERKGEVER],MATCH(L856,OpzegArbeiders[X],1),1),\"-\")","v":"-"},"-",{"$f":"IFERROR(INDEX(OpzegArbeiders[OPZEG DOOR DE WERKNEMER],MATCH(L856,OpzegArbeiders[X],1),1),\"-\")","v":"-"},"-","-","-"]
[null,null,null,null,null,null,853,null,null,null,null,"-",{"$f":"IFERROR(INDEX(OpzegArbeiders[OPZEG DOOR DE WERKGEVER],MATCH(L857,OpzegArbeiders[X],1),1),\"-\")","v":"-"},"-",{"$f":"IFERROR(INDEX(OpzegArbeiders[OPZEG DOOR DE WERKNEMER],MATCH(L857,OpzegArbeiders[X],1),1),\"-\")","v":"-"},"-","-","-"]
[null,null,null,null,null,null,854,null,null,null,null,"-",{"$f":"IFERROR(INDEX(OpzegArbeiders[OPZEG DOOR DE WERKGEVER],MATCH(L858,OpzegArbeiders[X],1),1),\"-\")","v":"-"},"-",{"$f":"IFERROR(INDEX(OpzegArbeiders[OPZEG DOOR DE WERKNEMER],MATCH(L858,OpzegArbeiders[X],1),1),\"-\")","v":"-"},"-","-","-"]
[null,null,null,null,null,null,855,null,null,null,null,"-",{"$f":"IFERROR(INDEX(OpzegArbeiders[OPZEG DOOR DE WERKGEVER],MATCH(L859,OpzegArbeiders[X],1),1),\"-\")","v":"-"},"-",{"$f":"IFERROR(INDEX(OpzegArbeiders[OPZEG DOOR DE WERKNEMER],MATCH(L859,OpzegArbeiders[X],1),1),\"-\")","v":"-"},"-","-","-"]
[null,null,null,null,null,null,856,null,null,null,null,"-",{"$f":"IFERROR(INDEX(OpzegArbeiders[OPZEG DOOR DE WERKGEVER],MATCH(L860,OpzegArbeiders[X],1),1),\"-\")","v":"-"},"-",{"$f":"IFERROR(INDEX(OpzegArbeiders[OPZEG DOOR DE WERKNEMER],MATCH(L860,OpzegArbeiders[X],1),1),\"-\")","v":"-"},"-","-","-"]
[null,null,null,null,null,null,857,null,null,null,null,"-",{"$f":"IFERROR(INDEX(OpzegArbeiders[OPZEG DOOR DE WERKGEVER],MATCH(L861,OpzegArbeiders[X],1),1),\"-\")","v":"-"},"-",{"$f":"IFERROR(INDEX(OpzegArbeiders[OPZEG DOOR DE WERKNEMER],MATCH(L861,OpzegArbeiders[X],1),1),\"-\")","v":"-"},"-","-","-"]
[null,null,null,null,null,null,858,null,null,null,null,"-",{"$f":"IFERROR(INDEX(OpzegArbeiders[OPZEG DOOR DE WERKGEVER],MATCH(L862,OpzegArbeiders[X],1),1),\"-\")","v":"-"},"-",{"$f":"IFERROR(INDEX(OpzegArbeiders[OPZEG DOOR DE WERKNEMER],MATCH(L862,OpzegArbeiders[X],1),1),\"-\")","v":"-"},"-","-","-"]
[null,null,null,null,null,null,859,null,null,null,null,"-",{"$f":"IFERROR(INDEX(OpzegArbeiders[OPZEG DOOR DE WERKGEVER],MATCH(L863,OpzegArbeiders[X],1),1),\"-\")","v":"-"},"-",{"$f":"IFERROR(INDEX(OpzegArbeiders[OPZEG DOOR DE WERKNEMER],MATCH(L863,OpzegArbeiders[X],1),1),\"-\")","v":"-"},"-","-","-"]
[null,null,null,null,null,null,860,null,null,null,null,"-",{"$f":"IFERROR(INDEX(OpzegArbeiders[OPZEG DOOR DE WERKGEVER],MATCH(L864,OpzegArbeiders[X],1),1),\"-\")","v":"-"},"-",{"$f":"IFERROR(INDEX(OpzegArbeiders[OPZEG DOOR DE WERKNEMER],MATCH(L864,OpzegArbeiders[X],1),1),\"-\")","v":"-"},"-","-","-"]
[null,null,null,null,null,null,861,null,null,null,null,"-",{"$f":"IFERROR(INDEX(OpzegArbeiders[OPZEG DOOR DE WERKGEVER],MATCH(L865,OpzegArbeiders[X],1),1),\"-\")","v":"-"},"-",{"$f":"IFERROR(INDEX(OpzegArbeiders[OPZEG DOOR DE WERKNEMER],MATCH(L865,OpzegArbeiders[X],1),1),\"-\")","v":"-"},"-","-","-"]
[null,null,null,null,null,null,862,null,null,null,null,"-",{"$f":"IFERROR(INDEX(OpzegArbeiders[OPZEG DOOR DE WERKGEVER],MATCH(L866,OpzegArbeiders[X],1),1),\"-\")","v":"-"},"-",{"$f":"IFERROR(INDEX(OpzegArbeiders[OPZEG DOOR DE WERKNEMER],MATCH(L866,OpzegArbeiders[X],1),1),\"-\")","v":"-"},"-","-","-"]
[null,null,null,null,null,null,863,null,null,null,null,"-",{"$f":"IFERROR(INDEX(OpzegArbeiders[OPZEG DOOR DE WERKGEVER],MATCH(L867,OpzegArbeiders[X],1),1),\"-\")","v":"-"},"-",{"$f":"IFERROR(INDEX(OpzegArbeiders[OPZEG DOOR DE WERKNEMER],MATCH(L867,OpzegArbeiders[X],1),1),\"-\")","v":"-"},"-","-","-"]
[null,null,null,null,null,null,864,null,null,null,null,"-",{"$f":"IFERROR(INDEX(OpzegArbeiders[OPZEG DOOR DE WERKGEVER],MATCH(L868,OpzegArbeiders[X],1),1),\"-\")","v":"-"},"-",{"$f":"IFERROR(INDEX(OpzegArbeiders[OPZEG DOOR DE WERKNEMER],MATCH(L868,OpzegArbeiders[X],1),1),\"-\")","v":"-"},"-","-","-"]
[null,null,null,null,null,null,865,null,null,null,null,"-",{"$f":"IFERROR(INDEX(OpzegArbeiders[OPZEG DOOR DE WERKGEVER],MATCH(L869,OpzegArbeiders[X],1),1),\"-\")","v":"-"},"-",{"$f":"IFERROR(INDEX(OpzegArbeiders[OPZEG DOOR DE WERKNEMER],MATCH(L869,OpzegArbeiders[X],1),1),\"-\")","v":"-"},"-","-","-"]
[null,null,null,null,null,null,866,null,null,null,null,"-",{"$f":"IFERROR(INDEX(OpzegArbeiders[OPZEG DOOR DE WERKGEVER],MATCH(L870,OpzegArbeiders[X],1),1),\"-\")","v":"-"},"-",{"$f":"IFERROR(INDEX(OpzegArbeiders[OPZEG DOOR DE WERKNEMER],MATCH(L870,OpzegArbeiders[X],1),1),\"-\")","v":"-"},"-","-","-"]
[null,null,null,null,null,null,867,null,null,null,null,"-",{"$f":"IFERROR(INDEX(OpzegArbeiders[OPZEG DOOR DE WERKGEVER],MATCH(L871,OpzegArbeiders[X],1),1),\"-\")","v":"-"},"-",{"$f":"IFERROR(INDEX(OpzegArbeiders[OPZEG DOOR DE WERKNEMER],MATCH(L871,OpzegArbeiders[X],1),1),\"-\")","v":"-"},"-","-","-"]
[null,null,null,null,null,null,868,null,null,null,null,"-",{"$f":"IFERROR(INDEX(OpzegArbeiders[OPZEG DOOR DE WERKGEVER],MATCH(L872,OpzegArbeiders[X],1),1),\"-\")","v":"-"},"-",{"$f":"IFERROR(INDEX(OpzegArbeiders[OPZEG DOOR DE WERKNEMER],MATCH(L872,OpzegArbeiders[X],1),1),\"-\")","v":"-"},"-","-","-"]
[null,null,null,null,null,null,869,null,null,null,null,"-",{"$f":"IFERROR(INDEX(OpzegArbeiders[OPZEG DOOR DE WERKGEVER],MATCH(L873,OpzegArbeiders[X],1),1),\"-\")","v":"-"},"-",{"$f":"IFERROR(INDEX(OpzegArbeiders[OPZEG DOOR DE WERKNEMER],MATCH(L873,OpzegArbeiders[X],1),1),\"-\")","v":"-"},"-","-","-"]
[null,null,null,null,null,null,870,null,null,null,null,"-",{"$f":"IFERROR(INDEX(OpzegArbeiders[OPZEG DOOR DE WERKGEVER],MATCH(L874,OpzegArbeiders[X],1),1),\"-\")","v":"-"},"-",{"$f":"IFERROR(INDEX(OpzegArbeiders[OPZEG DOOR DE WERKNEMER],MATCH(L874,OpzegArbeiders[X],1),1),\"-\")","v":"-"},"-","-","-"]
[null,null,null,null,null,null,871,null,null,null,null,"-",{"$f":"IFERROR(INDEX(OpzegArbeiders[OPZEG DOOR DE WERKGEVER],MATCH(L875,OpzegArbeiders[X],1),1),\"-\")","v":"-"},"-",{"$f":"IFERROR(INDEX(OpzegArbeiders[OPZEG DOOR DE WERKNEMER],MATCH(L875,OpzegArbeiders[X],1),1),\"-\")","v":"-"},"-","-","-"]
[null,null,null,null,null,null,872,null,null,null,null,"-",{"$f":"IFERROR(INDEX(OpzegArbeiders[OPZEG DOOR DE WERKGEVER],MATCH(L876,OpzegArbeiders[X],1),1),\"-\")","v":"-"},"-",{"$f":"IFERROR(INDEX(OpzegArbeiders[OPZEG DOOR DE WERKNEMER],MATCH(L876,OpzegArbeiders[X],1),1),\"-\")","v":"-"},"-","-","-"]
[null,null,null,null,null,null,873,null,null,null,null,"-",{"$f":"IFERROR(INDEX(OpzegArbeiders[OPZEG DOOR DE WERKGEVER],MATCH(L877,OpzegArbeiders[X],1),1),\"-\")","v":"-"},"-",{"$f":"IFERROR(INDEX(OpzegArbeiders[OPZEG DOOR DE WERKNEMER],MATCH(L877,OpzegArbeiders[X],1),1),\"-\")","v":"-"},"-","-","-"]
[null,null,null,null,null,null,874,null,null,null,null,"-",{"$f":"IFERROR(INDEX(OpzegArbeiders[OPZEG DOOR DE WERKGEVER],MATCH(L878,OpzegArbeiders[X],1),1),\"-\")","v":"-"},"-",{"$f":"IFERROR(INDEX(OpzegArbeiders[OPZEG DOOR DE WERKNEMER],MATCH(L878,OpzegArbeiders[X],1),1),\"-\")","v":"-"},"-","-","-"]
[null,null,null,null,null,null,875,null,null,null,null,"-",{"$f":"IFERROR(INDEX(OpzegArbeiders[OPZEG DOOR DE WERKGEVER],MATCH(L879,OpzegArbeiders[X],1),1),\"-\")","v":"-"},"-",{"$f":"IFERROR(INDEX(OpzegArbeiders[OPZEG DOOR DE WERKNEMER],MATCH(L879,OpzegArbeiders[X],1),1),\"-\")","v":"-"},"-","-","-"]
[null,null,null,null,null,null,876,null,null,null,null,"-",{"$f":"IFERROR(INDEX(OpzegArbeiders[OPZEG DOOR DE WERKGEVER],MATCH(L880,OpzegArbeiders[X],1),1),\"-\")","v":"-"},"-",{"$f":"IFERROR(INDEX(OpzegArbeiders[OPZEG DOOR DE WERKNEMER],MATCH(L880,OpzegArbeiders[X],1),1),\"-\")","v":"-"},"-","-","-"]
[null,null,null,null,null,null,877,null,null,null,null,"-",{"$f":"IFERROR(INDEX(OpzegArbeiders[OPZEG DOOR DE WERKGEVER],MATCH(L881,OpzegArbeiders[X],1),1),\"-\")","v":"-"},"-",{"$f":"IFERROR(INDEX(OpzegArbeiders[OPZEG DOOR DE WERKNEMER],MATCH(L881,OpzegArbeiders[X],1),1),\"-\")","v":"-"},"-","-","-"]
[null,null,null,null,null,null,878,null,null,null,null,"-",{"$f":"IFERROR(INDEX(OpzegArbeiders[OPZEG DOOR DE WERKGEVER],MATCH(L882,OpzegArbeiders[X],1),1),\"-\")","v":"-"},"-",{"$f":"IFERROR(INDEX(OpzegArbeiders[OPZEG DOOR DE WERKNEMER],MATCH(L882,OpzegArbeiders[X],1),1),\"-\")","v":"-"},"-","-","-"]
[null,null,null,null,null,null,879,null,null,null,null,"-",{"$f":"IFERROR(INDEX(OpzegArbeiders[OPZEG DOOR DE WERKGEVER],MATCH(L883,OpzegArbeiders[X],1),1),\"-\")","v":"-"},"-",{"$f":"IFERROR(INDEX(OpzegArbeiders[OPZEG DOOR DE WERKNEMER],MATCH(L883,OpzegArbeiders[X],1),1),\"-\")","v":"-"},"-","-","-"]
[null,null,null,null,null,null,880,null,null,null,null,"-",{"$f":"IFERROR(INDEX(OpzegArbeiders[OPZEG DOOR DE WERKGEVER],MATCH(L884,OpzegArbeiders[X],1),1),\"-\")","v":"-"},"-",{"$f":"IFERROR(INDEX(OpzegArbeiders[OPZEG DOOR DE WERKNEMER],MATCH(L884,OpzegArbeiders[X],1),1),\"-\")","v":"-"},"-","-","-"]
[null,null,null,null,null,null,881,null,null,null,null,"-",{"$f":"IFERROR(INDEX(OpzegArbeiders[OPZEG DOOR DE WERKGEVER],MATCH(L885,OpzegArbeiders[X],1),1),\"-\")","v":"-"},"-",{"$f":"IFERROR(INDEX(OpzegArbeiders[OPZEG DOOR DE WERKNEMER],MATCH(L885,OpzegArbeiders[X],1),1),\"-\")","v":"-"},"-","-","-"]
[null,null,null,null,null,null,882,null,null,null,null,"-",{"$f":"IFERROR(INDEX(OpzegArbeiders[OPZEG DOOR DE WERKGEVER],MATCH(L886,OpzegArbeiders[X],1),1),\"-\")","v":"-"},"-",{"$f":"IFERROR(INDEX(OpzegArbeiders[OPZEG DOOR DE WERKNEMER],MATCH(L886,OpzegArbeiders[X],1),1),\"-\")","v":"-"},"-","-","-"]
[null,null,null,null,null,null,883,null,null,null,null,"-",{"$f":"IFERROR(INDEX(OpzegArbeiders[OPZEG DOOR DE WERKGEVER],MATCH(L887,OpzegArbeiders[X],1),1),\"-\")","v":"-"},"-",{"$f":"IFERROR(INDEX(OpzegArbeiders[OPZEG DOOR DE WERKNEMER],MATCH(L887,OpzegArbeiders[X],1),1),\"-\")","v":"-"},"-","-","-"]
[null,null,null,null,null,null,884,null,null,null,null,"-",{"$f":"IFERROR(INDEX(OpzegArbeiders[OPZEG DOOR DE WERKGEVER],MATCH(L888,OpzegArbeiders[X],1),1),\"-\")","v":"-"},"-",{"$f":"IFERROR(INDEX(OpzegArbeiders[OPZEG DOOR DE WERKNEMER],MATCH(L888,OpzegArbeiders[X],1),1),\"-\")","v":"-"},"-","-","-"]
[null,null,null,null,null,null,885,null,null,null,null,"-",{"$f":"IFERROR(INDEX(OpzegArbeiders[OPZEG DOOR DE WERKGEVER],MATCH(L889,OpzegArbeiders[X],1),1),\"-\")","v":"-"},"-",{"$f":"IFERROR(INDEX(OpzegArbeiders[OPZEG DOOR DE WERKNEMER],MATCH(L889,OpzegArbeiders[X],1),1),\"-\")","v":"-"},"-","-","-"]
[null,null,null,null,null,null,886,null,null,null,null,"-",{"$f":"IFERROR(INDEX(OpzegArbeiders[OPZEG DOOR DE WERKGEVER],MATCH(L890,OpzegArbeiders[X],1),1),\"-\")","v":"-"},"-",{"$f":"IFERROR(INDEX(OpzegArbeiders[OPZEG DOOR DE WERKNEMER],MATCH(L890,OpzegArbeiders[X],1),1),\"-\")","v":"-"},"-","-","-"]
[null,null,null,null,null,null,887,null,null,null,null,"-",{"$f":"IFERROR(INDEX(OpzegArbeiders[OPZEG DOOR DE WERKGEVER],MATCH(L891,OpzegArbeiders[X],1),1),\"-\")","v":"-"},"-",{"$f":"IFERROR(INDEX(OpzegArbeiders[OPZEG DOOR DE WERKNEMER],MATCH(L891,OpzegArbeiders[X],1),1),\"-\")","v":"-"},"-","-","-"]
[null,null,null,null,null,null,888,null,null,null,null,"-",{"$f":"IFERROR(INDEX(OpzegArbeiders[OPZEG DOOR DE WERKGEVER],MATCH(L892,OpzegArbeiders[X],1),1),\"-\")","v":"-"},"-",{"$f":"IFERROR(INDEX(OpzegArbeiders[OPZEG DOOR DE WERKNEMER],MATCH(L892,OpzegArbeiders[X],1),1),\"-\")","v":"-"},"-","-","-"]
[null,null,null,null,null,null,889,null,null,null,null,"-",{"$f":"IFERROR(INDEX(OpzegArbeiders[OPZEG DOOR DE WERKGEVER],MATCH(L893,OpzegArbeiders[X],1),1),\"-\")","v":"-"},"-",{"$f":"IFERROR(INDEX(OpzegArbeiders[OPZEG DOOR DE WERKNEMER],MATCH(L893,OpzegArbeiders[X],1),1),\"-\")","v":"-"},"-","-","-"]
[null,null,null,null,null,null,890,null,null,null,null,"-",{"$f":"IFERROR(INDEX(OpzegArbeiders[OPZEG DOOR DE WERKGEVER],MATCH(L894,OpzegArbeiders[X],1),1),\"-\")","v":"-"},"-",{"$f":"IFERROR(INDEX(OpzegArbeiders[OPZEG DOOR DE WERKNEMER],MATCH(L894,OpzegArbeiders[X],1),1),\"-\")","v":"-"},"-","-","-"]
[null,null,null,null,null,null,891,null,null,null,null,"-",{"$f":"IFERROR(INDEX(OpzegArbeiders[OPZEG DOOR DE WERKGEVER],MATCH(L895,OpzegArbeiders[X],1),1),\"-\")","v":"-"},"-",{"$f":"IFERROR(INDEX(OpzegArbeiders[OPZEG DOOR DE WERKNEMER],MATCH(L895,OpzegArbeiders[X],1),1),\"-\")","v":"-"},"-","-","-"]
[null,null,null,null,null,null,892,null,null,null,null,"-",{"$f":"IFERROR(INDEX(OpzegArbeiders[OPZEG DOOR DE WERKGEVER],MATCH(L896,OpzegArbeiders[X],1),1),\"-\")","v":"-"},"-",{"$f":"IFERROR(INDEX(OpzegArbeiders[OPZEG DOOR DE WERKNEMER],MATCH(L896,OpzegArbeiders[X],1),1),\"-\")","v":"-"},"-","-","-"]
[null,null,null,null,null,null,893,null,null,null,null,"-",{"$f":"IFERROR(INDEX(OpzegArbeiders[OPZEG DOOR DE WERKGEVER],MATCH(L897,OpzegArbeiders[X],1),1),\"-\")","v":"-"},"-",{"$f":"IFERROR(INDEX(OpzegArbeiders[OPZEG DOOR DE WERKNEMER],MATCH(L897,OpzegArbeiders[X],1),1),\"-\")","v":"-"},"-","-","-"]
[null,null,null,null,null,null,894,null,null,null,null,"-",{"$f":"IFERROR(INDEX(OpzegArbeiders[OPZEG DOOR DE WERKGEVER],MATCH(L898,OpzegArbeiders[X],1),1),\"-\")","v":"-"},"-",{"$f":"IFERROR(INDEX(OpzegArbeiders[OPZEG DOOR DE WERKNEMER],MATCH(L898,OpzegArbeiders[X],1),1),\"-\")","v":"-"},"-","-","-"]
[null,null,null,null,null,null,895,null,null,null,null,"-",{"$f":"IFERROR(INDEX(OpzegArbeiders[OPZEG DOOR DE WERKGEVER],MATCH(L899,OpzegArbeiders[X],1),1),\"-\")","v":"-"},"-",{"$f":"IFERROR(INDEX(OpzegArbeiders[OPZEG DOOR DE WERKNEMER],MATCH(L899,OpzegArbeiders[X],1),1),\"-\")","v":"-"},"-","-","-"]
[null,null,null,null,null,null,896,null,null,null,null,"-",{"$f":"IFERROR(INDEX(OpzegArbeiders[OPZEG DOOR DE WERKGEVER],MATCH(L900,OpzegArbeiders[X],1),1),\"-\")","v":"-"},"-",{"$f":"IFERROR(INDEX(OpzegArbeiders[OPZEG DOOR DE WERKNEMER],MATCH(L900,OpzegArbeiders[X],1),1),\"-\")","v":"-"},"-","-","-"]
[null,null,null,null,null,null,897,null,null,null,null,"-",{"$f":"IFERROR(INDEX(OpzegArbeiders[OPZEG DOOR DE WERKGEVER],MATCH(L901,OpzegArbeiders[X],1),1),\"-\")","v":"-"},"-",{"$f":"IFERROR(INDEX(OpzegArbeiders[OPZEG DOOR DE WERKNEMER],MATCH(L901,OpzegArbeiders[X],1),1),\"-\")","v":"-"},"-","-","-"]
[null,null,null,null,null,null,898,null,null,null,null,{"$f":"IF(OR(H902<>\"\",J902<>\"\"),(DATEDIF(K902-1,DATE(2013,12,31),\"y\"))+(DATEDIF(K902-1,DATE(2013,12,31),\"ym\")/12)+(DATEDIF(K902-1,DATE(2013,12,31),\"md\")/365.25),\"-\")","v":"-"},{"$f":"IFERROR(INDEX(OpzegArbeiders[OPZEG DOOR DE WERKGEVER],MATCH(L902,OpzegArbeiders[X],1),1),\"-\")","v":"-"},{"$f":"IFERROR(M902/7,\"-\")","v":"-"},{"$f":"IFERROR(INDEX(OpzegArbeiders[OPZEG DOOR DE WERKNEMER],MATCH(L902,OpzegArbeiders[X],1),1),\"-\")","v":"-"},{"$f":"IFERROR(O902/7,\"-\")","v":"-"},{"$f":"IF(OR(ISTEXT(H902),ISTEXT(I902)),H902&\" \"&I902,\"-\")","v":"-"},{"$f":"IF(ISBLANK(J902),\"-\",J902)","v":"-"}]
[null,null,null,null,null,null,899,null,null,null,null,"-",{"$f":"IFERROR(INDEX(OpzegArbeiders[OPZEG DOOR DE WERKGEVER],MATCH(L903,OpzegArbeiders[X],1),1),\"-\")","v":"-"},"-",{"$f":"IFERROR(INDEX(OpzegArbeiders[OPZEG DOOR DE WERKNEMER],MATCH(L903,OpzegArbeiders[X],1),1),\"-\")","v":"-"},"-","-","-"]
[null,null,null,null,null,null,900,null,null,null,null,"-",{"$f":"IFERROR(INDEX(OpzegArbeiders[OPZEG DOOR DE WERKGEVER],MATCH(L904,OpzegArbeiders[X],1),1),\"-\")","v":"-"},"-",{"$f":"IFERROR(INDEX(OpzegArbeiders[OPZEG DOOR DE WERKNEMER],MATCH(L904,OpzegArbeiders[X],1),1),\"-\")","v":"-"},"-","-","-"]
[null,null,null,null,null,null,901,null,null,null,null,"-",{"$f":"IFERROR(INDEX(OpzegArbeiders[OPZEG DOOR DE WERKGEVER],MATCH(L905,OpzegArbeiders[X],1),1),\"-\")","v":"-"},"-",{"$f":"IFERROR(INDEX(OpzegArbeiders[OPZEG DOOR DE WERKNEMER],MATCH(L905,OpzegArbeiders[X],1),1),\"-\")","v":"-"},"-","-","-"]
[null,null,null,null,null,null,902,null,null,null,null,"-",{"$f":"IFERROR(INDEX(OpzegArbeiders[OPZEG DOOR DE WERKGEVER],MATCH(L906,OpzegArbeiders[X],1),1),\"-\")","v":"-"},"-",{"$f":"IFERROR(INDEX(OpzegArbeiders[OPZEG DOOR DE WERKNEMER],MATCH(L906,OpzegArbeiders[X],1),1),\"-\")","v":"-"},"-","-","-"]
[null,null,null,null,null,null,903,null,null,null,null,"-",{"$f":"IFERROR(INDEX(OpzegArbeiders[OPZEG DOOR DE WERKGEVER],MATCH(L907,OpzegArbeiders[X],1),1),\"-\")","v":"-"},"-",{"$f":"IFERROR(INDEX(OpzegArbeiders[OPZEG DOOR DE WERKNEMER],MATCH(L907,OpzegArbeiders[X],1),1),\"-\")","v":"-"},"-","-","-"]
[null,null,null,null,null,null,904,null,null,null,null,"-",{"$f":"IFERROR(INDEX(OpzegArbeiders[OPZEG DOOR DE WERKGEVER],MATCH(L908,OpzegArbeiders[X],1),1),\"-\")","v":"-"},"-",{"$f":"IFERROR(INDEX(OpzegArbeiders[OPZEG DOOR DE WERKNEMER],MATCH(L908,OpzegArbeiders[X],1),1),\"-\")","v":"-"},"-","-","-"]
[null,null,null,null,null,null,905,null,null,null,null,"-",{"$f":"IFERROR(INDEX(OpzegArbeiders[OPZEG DOOR DE WERKGEVER],MATCH(L909,OpzegArbeiders[X],1),1),\"-\")","v":"-"},"-",{"$f":"IFERROR(INDEX(OpzegArbeiders[OPZEG DOOR DE WERKNEMER],MATCH(L909,OpzegArbeiders[X],1),1),\"-\")","v":"-"},"-","-","-"]
[null,null,null,null,null,null,906,null,null,null,null,"-",{"$f":"IFERROR(INDEX(OpzegArbeiders[OPZEG DOOR DE WERKGEVER],MATCH(L910,OpzegArbeiders[X],1),1),\"-\")","v":"-"},"-",{"$f":"IFERROR(INDEX(OpzegArbeiders[OPZEG DOOR DE WERKNEMER],MATCH(L910,OpzegArbeiders[X],1),1),\"-\")","v":"-"},"-","-","-"]
[null,null,null,null,null,null,907,null,null,null,null,"-",{"$f":"IFERROR(INDEX(OpzegArbeiders[OPZEG DOOR DE WERKGEVER],MATCH(L911,OpzegArbeiders[X],1),1),\"-\")","v":"-"},"-",{"$f":"IFERROR(INDEX(OpzegArbeiders[OPZEG DOOR DE WERKNEMER],MATCH(L911,OpzegArbeiders[X],1),1),\"-\")","v":"-"},"-","-","-"]
[null,null,null,null,null,null,908,null,null,null,null,"-",{"$f":"IFERROR(INDEX(OpzegArbeiders[OPZEG DOOR DE WERKGEVER],MATCH(L912,OpzegArbeiders[X],1),1),\"-\")","v":"-"},"-",{"$f":"IFERROR(INDEX(OpzegArbeiders[OPZEG DOOR DE WERKNEMER],MATCH(L912,OpzegArbeiders[X],1),1),\"-\")","v":"-"},"-","-","-"]
[null,null,null,null,null,null,909,null,null,null,null,"-",{"$f":"IFERROR(INDEX(OpzegArbeiders[OPZEG DOOR DE WERKGEVER],MATCH(L913,OpzegArbeiders[X],1),1),\"-\")","v":"-"},"-",{"$f":"IFERROR(INDEX(OpzegArbeiders[OPZEG DOOR DE WERKNEMER],MATCH(L913,OpzegArbeiders[X],1),1),\"-\")","v":"-"},"-","-","-"]
[null,null,null,null,null,null,910,null,null,null,null,"-",{"$f":"IFERROR(INDEX(OpzegArbeiders[OPZEG DOOR DE WERKGEVER],MATCH(L914,OpzegArbeiders[X],1),1),\"-\")","v":"-"},"-",{"$f":"IFERROR(INDEX(OpzegArbeiders[OPZEG DOOR DE WERKNEMER],MATCH(L914,OpzegArbeiders[X],1),1),\"-\")","v":"-"},"-","-","-"]
[null,null,null,null,null,null,911,null,null,null,null,"-",{"$f":"IFERROR(INDEX(OpzegArbeiders[OPZEG DOOR DE WERKGEVER],MATCH(L915,OpzegArbeiders[X],1),1),\"-\")","v":"-"},"-",{"$f":"IFERROR(INDEX(OpzegArbeiders[OPZEG DOOR DE WERKNEMER],MATCH(L915,OpzegArbeiders[X],1),1),\"-\")","v":"-"},"-","-","-"]
[null,null,null,null,null,null,912,null,null,null,null,"-",{"$f":"IFERROR(INDEX(OpzegArbeiders[OPZEG DOOR DE WERKGEVER],MATCH(L916,OpzegArbeiders[X],1),1),\"-\")","v":"-"},"-",{"$f":"IFERROR(INDEX(OpzegArbeiders[OPZEG DOOR DE WERKNEMER],MATCH(L916,OpzegArbeiders[X],1),1),\"-\")","v":"-"},"-","-","-"]
[null,null,null,null,null,null,913,null,null,null,null,"-",{"$f":"IFERROR(INDEX(OpzegArbeiders[OPZEG DOOR DE WERKGEVER],MATCH(L917,OpzegArbeiders[X],1),1),\"-\")","v":"-"},"-",{"$f":"IFERROR(INDEX(OpzegArbeiders[OPZEG DOOR DE WERKNEMER],MATCH(L917,OpzegArbeiders[X],1),1),\"-\")","v":"-"},"-","-","-"]
[null,null,null,null,null,null,914,null,null,null,null,"-",{"$f":"IFERROR(INDEX(OpzegArbeiders[OPZEG DOOR DE WERKGEVER],MATCH(L918,OpzegArbeiders[X],1),1),\"-\")","v":"-"},"-",{"$f":"IFERROR(INDEX(OpzegArbeiders[OPZEG DOOR DE WERKNEMER],MATCH(L918,OpzegArbeiders[X],1),1),\"-\")","v":"-"},"-","-","-"]
[null,null,null,null,null,null,915,null,null,null,null,"-",{"$f":"IFERROR(INDEX(OpzegArbeiders[OPZEG DOOR DE WERKGEVER],MATCH(L919,OpzegArbeiders[X],1),1),\"-\")","v":"-"},"-",{"$f":"IFERROR(INDEX(OpzegArbeiders[OPZEG DOOR DE WERKNEMER],MATCH(L919,OpzegArbeiders[X],1),1),\"-\")","v":"-"},"-","-","-"]
[null,null,null,null,null,null,916,null,null,null,null,"-",{"$f":"IFERROR(INDEX(OpzegArbeiders[OPZEG DOOR DE WERKGEVER],MATCH(L920,OpzegArbeiders[X],1),1),\"-\")","v":"-"},"-",{"$f":"IFERROR(INDEX(OpzegArbeiders[OPZEG DOOR DE WERKNEMER],MATCH(L920,OpzegArbeiders[X],1),1),\"-\")","v":"-"},"-","-","-"]
[null,null,null,null,null,null,917,null,null,null,null,"-",{"$f":"IFERROR(INDEX(OpzegArbeiders[OPZEG DOOR DE WERKGEVER],MATCH(L921,OpzegArbeiders[X],1),1),\"-\")","v":"-"},"-",{"$f":"IFERROR(INDEX(OpzegArbeiders[OPZEG DOOR DE WERKNEMER],MATCH(L921,OpzegArbeiders[X],1),1),\"-\")","v":"-"},"-","-","-"]
[null,null,null,null,null,null,918,null,null,null,null,"-",{"$f":"IFERROR(INDEX(OpzegArbeiders[OPZEG DOOR DE WERKGEVER],MATCH(L922,OpzegArbeiders[X],1),1),\"-\")","v":"-"},"-",{"$f":"IFERROR(INDEX(OpzegArbeiders[OPZEG DOOR DE WERKNEMER],MATCH(L922,OpzegArbeiders[X],1),1),\"-\")","v":"-"},"-","-","-"]
[null,null,null,null,null,null,919,null,null,null,null,"-",{"$f":"IFERROR(INDEX(OpzegArbeiders[OPZEG DOOR DE WERKGEVER],MATCH(L923,OpzegArbeiders[X],1),1),\"-\")","v":"-"},"-",{"$f":"IFERROR(INDEX(OpzegArbeiders[OPZEG DOOR DE WERKNEMER],MATCH(L923,OpzegArbeiders[X],1),1),\"-\")","v":"-"},"-","-","-"]
[null,null,null,null,null,null,920,null,null,null,null,"-",{"$f":"IFERROR(INDEX(OpzegArbeiders[OPZEG DOOR DE WERKGEVER],MATCH(L924,OpzegArbeiders[X],1),1),\"-\")","v":"-"},"-",{"$f":"IFERROR(INDEX(OpzegArbeiders[OPZEG DOOR DE WERKNEMER],MATCH(L924,OpzegArbeiders[X],1),1),\"-\")","v":"-"},"-","-","-"]
[null,null,null,null,null,null,921,null,null,null,null,"-",{"$f":"IFERROR(INDEX(OpzegArbeiders[OPZEG DOOR DE WERKGEVER],MATCH(L925,OpzegArbeiders[X],1),1),\"-\")","v":"-"},"-",{"$f":"IFERROR(INDEX(OpzegArbeiders[OPZEG DOOR DE WERKNEMER],MATCH(L925,OpzegArbeiders[X],1),1),\"-\")","v":"-"},"-","-","-"]
[null,null,null,null,null,null,922,null,null,null,null,"-",{"$f":"IFERROR(INDEX(OpzegArbeiders[OPZEG DOOR DE WERKGEVER],MATCH(L926,OpzegArbeiders[X],1),1),\"-\")","v":"-"},"-",{"$f":"IFERROR(INDEX(OpzegArbeiders[OPZEG DOOR DE WERKNEMER],MATCH(L926,OpzegArbeiders[X],1),1),\"-\")","v":"-"},"-","-","-"]
[null,null,null,null,null,null,923,null,null,null,null,"-",{"$f":"IFERROR(INDEX(OpzegArbeiders[OPZEG DOOR DE WERKGEVER],MATCH(L927,OpzegArbeiders[X],1),1),\"-\")","v":"-"},"-",{"$f":"IFERROR(INDEX(OpzegArbeiders[OPZEG DOOR DE WERKNEMER],MATCH(L927,OpzegArbeiders[X],1),1),\"-\")","v":"-"},"-","-","-"]
[null,null,null,null,null,null,924,null,null,null,null,"-",{"$f":"IFERROR(INDEX(OpzegArbeiders[OPZEG DOOR DE WERKGEVER],MATCH(L928,OpzegArbeiders[X],1),1),\"-\")","v":"-"},"-",{"$f":"IFERROR(INDEX(OpzegArbeiders[OPZEG DOOR DE WERKNEMER],MATCH(L928,OpzegArbeiders[X],1),1),\"-\")","v":"-"},"-","-","-"]
[null,null,null,null,null,null,925,null,null,null,null,"-",{"$f":"IFERROR(INDEX(OpzegArbeiders[OPZEG DOOR DE WERKGEVER],MATCH(L929,OpzegArbeiders[X],1),1),\"-\")","v":"-"},"-",{"$f":"IFERROR(INDEX(OpzegArbeiders[OPZEG DOOR DE WERKNEMER],MATCH(L929,OpzegArbeiders[X],1),1),\"-\")","v":"-"},"-","-","-"]
[null,null,null,null,null,null,926,null,null,null,null,"-",{"$f":"IFERROR(INDEX(OpzegArbeiders[OPZEG DOOR DE WERKGEVER],MATCH(L930,OpzegArbeiders[X],1),1),\"-\")","v":"-"},"-",{"$f":"IFERROR(INDEX(OpzegArbeiders[OPZEG DOOR DE WERKNEMER],MATCH(L930,OpzegArbeiders[X],1),1),\"-\")","v":"-"},"-","-","-"]
[null,null,null,null,null,null,927,null,null,null,null,"-",{"$f":"IFERROR(INDEX(OpzegArbeiders[OPZEG DOOR DE WERKGEVER],MATCH(L931,OpzegArbeiders[X],1),1),\"-\")","v":"-"},"-",{"$f":"IFERROR(INDEX(OpzegArbeiders[OPZEG DOOR DE WERKNEMER],MATCH(L931,OpzegArbeiders[X],1),1),\"-\")","v":"-"},"-","-","-"]
[null,null,null,null,null,null,928,null,null,null,null,"-",{"$f":"IFERROR(INDEX(OpzegArbeiders[OPZEG DOOR DE WERKGEVER],MATCH(L932,OpzegArbeiders[X],1),1),\"-\")","v":"-"},"-",{"$f":"IFERROR(INDEX(OpzegArbeiders[OPZEG DOOR DE WERKNEMER],MATCH(L932,OpzegArbeiders[X],1),1),\"-\")","v":"-"},"-","-","-"]
[null,null,null,null,null,null,929,null,null,null,null,"-",{"$f":"IFERROR(INDEX(OpzegArbeiders[OPZEG DOOR DE WERKGEVER],MATCH(L933,OpzegArbeiders[X],1),1),\"-\")","v":"-"},"-",{"$f":"IFERROR(INDEX(OpzegArbeiders[OPZEG DOOR DE WERKNEMER],MATCH(L933,OpzegArbeiders[X],1),1),\"-\")","v":"-"},"-","-","-"]
[null,null,null,null,null,null,930,null,null,null,null,"-",{"$f":"IFERROR(INDEX(OpzegArbeiders[OPZEG DOOR DE WERKGEVER],MATCH(L934,OpzegArbeiders[X],1),1),\"-\")","v":"-"},"-",{"$f":"IFERROR(INDEX(OpzegArbeiders[OPZEG DOOR DE WERKNEMER],MATCH(L934,OpzegArbeiders[X],1),1),\"-\")","v":"-"},"-","-","-"]
[null,null,null,null,null,null,931,null,null,null,null,"-",{"$f":"IFERROR(INDEX(OpzegArbeiders[OPZEG DOOR DE WERKGEVER],MATCH(L935,OpzegArbeiders[X],1),1),\"-\")","v":"-"},"-",{"$f":"IFERROR(INDEX(OpzegArbeiders[OPZEG DOOR DE WERKNEMER],MATCH(L935,OpzegArbeiders[X],1),1),\"-\")","v":"-"},"-","-","-"]
[null,null,null,null,null,null,932,null,null,null,null,"-",{"$f":"IFERROR(INDEX(OpzegArbeiders[OPZEG DOOR DE WERKGEVER],MATCH(L936,OpzegArbeiders[X],1),1),\"-\")","v":"-"},"-",{"$f":"IFERROR(INDEX(OpzegArbeiders[OPZEG DOOR DE WERKNEMER],MATCH(L936,OpzegArbeiders[X],1),1),\"-\")","v":"-"},"-","-","-"]
[null,null,null,null,null,null,933,null,null,null,null,"-",{"$f":"IFERROR(INDEX(OpzegArbeiders[OPZEG DOOR DE WERKGEVER],MATCH(L937,OpzegArbeiders[X],1),1),\"-\")","v":"-"},"-",{"$f":"IFERROR(INDEX(OpzegArbeiders[OPZEG DOOR DE WERKNEMER],MATCH(L937,OpzegArbeiders[X],1),1),\"-\")","v":"-"},"-","-","-"]
[null,null,null,null,null,null,934,null,null,null,null,"-",{"$f":"IFERROR(INDEX(OpzegArbeiders[OPZEG DOOR DE WERKGEVER],MATCH(L938,OpzegArbeiders[X],1),1),\"-\")","v":"-"},"-",{"$f":"IFERROR(INDEX(OpzegArbeiders[OPZEG DOOR DE WERKNEMER],MATCH(L938,OpzegArbeiders[X],1),1),\"-\")","v":"-"},"-","-","-"]
[null,null,null,null,null,null,935,null,null,null,null,"-",{"$f":"IFERROR(INDEX(OpzegArbeiders[OPZEG DOOR DE WERKGEVER],MATCH(L939,OpzegArbeiders[X],1),1),\"-\")","v":"-"},"-",{"$f":"IFERROR(INDEX(OpzegArbeiders[OPZEG DOOR DE WERKNEMER],MATCH(L939,OpzegArbeiders[X],1),1),\"-\")","v":"-"},"-","-","-"]
[null,null,null,null,null,null,936,null,null,null,null,"-",{"$f":"IFERROR(INDEX(OpzegArbeiders[OPZEG DOOR DE WERKGEVER],MATCH(L940,OpzegArbeiders[X],1),1),\"-\")","v":"-"},"-",{"$f":"IFERROR(INDEX(OpzegArbeiders[OPZEG DOOR DE WERKNEMER],MATCH(L940,OpzegArbeiders[X],1),1),\"-\")","v":"-"},"-","-","-"]
[null,null,null,null,null,null,937,null,null,null,null,"-",{"$f":"IFERROR(INDEX(OpzegArbeiders[OPZEG DOOR DE WERKGEVER],MATCH(L941,OpzegArbeiders[X],1),1),\"-\")","v":"-"},"-",{"$f":"IFERROR(INDEX(OpzegArbeiders[OPZEG DOOR DE WERKNEMER],MATCH(L941,OpzegArbeiders[X],1),1),\"-\")","v":"-"},"-","-","-"]
[null,null,null,null,null,null,938,null,null,null,null,"-",{"$f":"IFERROR(INDEX(OpzegArbeiders[OPZEG DOOR DE WERKGEVER],MATCH(L942,OpzegArbeiders[X],1),1),\"-\")","v":"-"},"-",{"$f":"IFERROR(INDEX(OpzegArbeiders[OPZEG DOOR DE WERKNEMER],MATCH(L942,OpzegArbeiders[X],1),1),\"-\")","v":"-"},"-","-","-"]
[null,null,null,null,null,null,939,null,null,null,null,"-",{"$f":"IFERROR(INDEX(OpzegArbeiders[OPZEG DOOR DE WERKGEVER],MATCH(L943,OpzegArbeiders[X],1),1),\"-\")","v":"-"},"-",{"$f":"IFERROR(INDEX(OpzegArbeiders[OPZEG DOOR DE WERKNEMER],MATCH(L943,OpzegArbeiders[X],1),1),\"-\")","v":"-"},"-","-","-"]
[null,null,null,null,null,null,940,null,null,null,null,"-",{"$f":"IFERROR(INDEX(OpzegArbeiders[OPZEG DOOR DE WERKGEVER],MATCH(L944,OpzegArbeiders[X],1),1),\"-\")","v":"-"},"-",{"$f":"IFERROR(INDEX(OpzegArbeiders[OPZEG DOOR DE WERKNEMER],MATCH(L944,OpzegArbeiders[X],1),1),\"-\")","v":"-"},"-","-","-"]
[null,null,null,null,null,null,941,null,null,null,null,"-",{"$f":"IFERROR(INDEX(OpzegArbeiders[OPZEG DOOR DE WERKGEVER],MATCH(L945,OpzegArbeiders[X],1),1),\"-\")","v":"-"},"-",{"$f":"IFERROR(INDEX(OpzegArbeiders[OPZEG DOOR DE WERKNEMER],MATCH(L945,OpzegArbeiders[X],1),1),\"-\")","v":"-"},"-","-","-"]
[null,null,null,null,null,null,942,null,null,null,null,"-",{"$f":"IFERROR(INDEX(OpzegArbeiders[OPZEG DOOR DE WERKGEVER],MATCH(L946,OpzegArbeiders[X],1),1),\"-\")","v":"-"},"-",{"$f":"IFERROR(INDEX(OpzegArbeiders[OPZEG DOOR DE WERKNEMER],MATCH(L946,OpzegArbeiders[X],1),1),\"-\")","v":"-"},"-","-","-"]
[null,null,null,null,null,null,943,null,null,null,null,"-",{"$f":"IFERROR(INDEX(OpzegArbeiders[OPZEG DOOR DE WERKGEVER],MATCH(L947,OpzegArbeiders[X],1),1),\"-\")","v":"-"},"-",{"$f":"IFERROR(INDEX(OpzegArbeiders[OPZEG DOOR DE WERKNEMER],MATCH(L947,OpzegArbeiders[X],1),1),\"-\")","v":"-"},"-","-","-"]
[null,null,null,null,null,null,944,null,null,null,null,"-",{"$f":"IFERROR(INDEX(OpzegArbeiders[OPZEG DOOR DE WERKGEVER],MATCH(L948,OpzegArbeiders[X],1),1),\"-\")","v":"-"},"-",{"$f":"IFERROR(INDEX(OpzegArbeiders[OPZEG DOOR DE WERKNEMER],MATCH(L948,OpzegArbeiders[X],1),1),\"-\")","v":"-"},"-","-","-"]
[null,null,null,null,null,null,945,null,null,null,null,"-",{"$f":"IFERROR(INDEX(OpzegArbeiders[OPZEG DOOR DE WERKGEVER],MATCH(L949,OpzegArbeiders[X],1),1),\"-\")","v":"-"},"-",{"$f":"IFERROR(INDEX(OpzegArbeiders[OPZEG DOOR DE WERKNEMER],MATCH(L949,OpzegArbeiders[X],1),1),\"-\")","v":"-"},"-","-","-"]
[null,null,null,null,null,null,946,null,null,null,null,"-",{"$f":"IFERROR(INDEX(OpzegArbeiders[OPZEG DOOR DE WERKGEVER],MATCH(L950,OpzegArbeiders[X],1),1),\"-\")","v":"-"},"-",{"$f":"IFERROR(INDEX(OpzegArbeiders[OPZEG DOOR DE WERKNEMER],MATCH(L950,OpzegArbeiders[X],1),1),\"-\")","v":"-"},"-","-","-"]
[null,null,null,null,null,null,947,null,null,null,null,"-",{"$f":"IFERROR(INDEX(OpzegArbeiders[OPZEG DOOR DE WERKGEVER],MATCH(L951,OpzegArbeiders[X],1),1),\"-\")","v":"-"},"-",{"$f":"IFERROR(INDEX(OpzegArbeiders[OPZEG DOOR DE WERKNEMER],MATCH(L951,OpzegArbeiders[X],1),1),\"-\")","v":"-"},"-","-","-"]
[null,null,null,null,null,null,948,null,null,null,null,"-",{"$f":"IFERROR(INDEX(OpzegArbeiders[OPZEG DOOR DE WERKGEVER],MATCH(L952,OpzegArbeiders[X],1),1),\"-\")","v":"-"},"-",{"$f":"IFERROR(INDEX(OpzegArbeiders[OPZEG DOOR DE WERKNEMER],MATCH(L952,OpzegArbeiders[X],1),1),\"-\")","v":"-"},"-","-","-"]
[null,null,null,null,null,null,949,null,null,null,null,"-",{"$f":"IFERROR(INDEX(OpzegArbeiders[OPZEG DOOR DE WERKGEVER],MATCH(L953,OpzegArbeiders[X],1),1),\"-\")","v":"-"},"-",{"$f":"IFERROR(INDEX(OpzegArbeiders[OPZEG DOOR DE WERKNEMER],MATCH(L953,OpzegArbeiders[X],1),1),\"-\")","v":"-"},"-","-","-"]
[null,null,null,null,null,null,950,null,null,null,null,"-",{"$f":"IFERROR(INDEX(OpzegArbeiders[OPZEG DOOR DE WERKGEVER],MATCH(L954,OpzegArbeiders[X],1),1),\"-\")","v":"-"},"-",{"$f":"IFERROR(INDEX(OpzegArbeiders[OPZEG DOOR DE WERKNEMER],MATCH(L954,OpzegArbeiders[X],1),1),\"-\")","v":"-"},"-","-","-"]
[null,null,null,null,null,null,951,null,null,null,null,"-",{"$f":"IFERROR(INDEX(OpzegArbeiders[OPZEG DOOR DE WERKGEVER],MATCH(L955,OpzegArbeiders[X],1),1),\"-\")","v":"-"},"-",{"$f":"IFERROR(INDEX(OpzegArbeiders[OPZEG DOOR DE WERKNEMER],MATCH(L955,OpzegArbeiders[X],1),1),\"-\")","v":"-"},"-","-","-"]
[null,null,null,null,null,null,952,null,null,null,null,"-",{"$f":"IFERROR(INDEX(OpzegArbeiders[OPZEG DOOR DE WERKGEVER],MATCH(L956,OpzegArbeiders[X],1),1),\"-\")","v":"-"},"-",{"$f":"IFERROR(INDEX(OpzegArbeiders[OPZEG DOOR DE WERKNEMER],MATCH(L956,OpzegArbeiders[X],1),1),\"-\")","v":"-"},"-","-","-"]
[null,null,null,null,null,null,953,null,null,null,null,"-",{"$f":"IFERROR(INDEX(OpzegArbeiders[OPZEG DOOR DE WERKGEVER],MATCH(L957,OpzegArbeiders[X],1),1),\"-\")","v":"-"},"-",{"$f":"IFERROR(INDEX(OpzegArbeiders[OPZEG DOOR DE WERKNEMER],MATCH(L957,OpzegArbeiders[X],1),1),\"-\")","v":"-"},"-","-","-"]
[null,null,null,null,null,null,954,null,null,null,null,"-",{"$f":"IFERROR(INDEX(OpzegArbeiders[OPZEG DOOR DE WERKGEVER],MATCH(L958,OpzegArbeiders[X],1),1),\"-\")","v":"-"},"-",{"$f":"IFERROR(INDEX(OpzegArbeiders[OPZEG DOOR DE WERKNEMER],MATCH(L958,OpzegArbeiders[X],1),1),\"-\")","v":"-"},"-","-","-"]
[null,null,null,null,null,null,955,null,null,null,null,"-",{"$f":"IFERROR(INDEX(OpzegArbeiders[OPZEG DOOR DE WERKGEVER],MATCH(L959,OpzegArbeiders[X],1),1),\"-\")","v":"-"},"-",{"$f":"IFERROR(INDEX(OpzegArbeiders[OPZEG DOOR DE WERKNEMER],MATCH(L959,OpzegArbeiders[X],1),1),\"-\")","v":"-"},"-","-","-"]
[null,null,null,null,null,null,956,null,null,null,null,"-",{"$f":"IFERROR(INDEX(OpzegArbeiders[OPZEG DOOR DE WERKGEVER],MATCH(L960,OpzegArbeiders[X],1),1),\"-\")","v":"-"},"-",{"$f":"IFERROR(INDEX(OpzegArbeiders[OPZEG DOOR DE WERKNEMER],MATCH(L960,OpzegArbeiders[X],1),1),\"-\")","v":"-"},"-","-","-"]
[null,null,null,null,null,null,957,null,null,null,null,"-",{"$f":"IFERROR(INDEX(OpzegArbeiders[OPZEG DOOR DE WERKGEVER],MATCH(L961,OpzegArbeiders[X],1),1),\"-\")","v":"-"},"-",{"$f":"IFERROR(INDEX(OpzegArbeiders[OPZEG DOOR DE WERKNEMER],MATCH(L961,OpzegArbeiders[X],1),1),\"-\")","v":"-"},"-","-","-"]
[null,null,null,null,null,null,958,null,null,null,null,"-",{"$f":"IFERROR(INDEX(OpzegArbeiders[OPZEG DOOR DE WERKGEVER],MATCH(L962,OpzegArbeiders[X],1),1),\"-\")","v":"-"},"-",{"$f":"IFERROR(INDEX(OpzegArbeiders[OPZEG DOOR DE WERKNEMER],MATCH(L962,OpzegArbeiders[X],1),1),\"-\")","v":"-"},"-","-","-"]
[null,null,null,null,null,null,959,null,null,null,null,"-",{"$f":"IFERROR(INDEX(OpzegArbeiders[OPZEG DOOR DE WERKGEVER],MATCH(L963,OpzegArbeiders[X],1),1),\"-\")","v":"-"},"-",{"$f":"IFERROR(INDEX(OpzegArbeiders[OPZEG DOOR DE WERKNEMER],MATCH(L963,OpzegArbeiders[X],1),1),\"-\")","v":"-"},"-","-","-"]
[null,null,null,null,null,null,960,null,null,null,null,"-",{"$f":"IFERROR(INDEX(OpzegArbeiders[OPZEG DOOR DE WERKGEVER],MATCH(L964,OpzegArbeiders[X],1),1),\"-\")","v":"-"},"-",{"$f":"IFERROR(INDEX(OpzegArbeiders[OPZEG DOOR DE WERKNEMER],MATCH(L964,OpzegArbeiders[X],1),1),\"-\")","v":"-"},"-","-","-"]
[null,null,null,null,null,null,961,null,null,null,null,"-",{"$f":"IFERROR(INDEX(OpzegArbeiders[OPZEG DOOR DE WERKGEVER],MATCH(L965,OpzegArbeiders[X],1),1),\"-\")","v":"-"},"-",{"$f":"IFERROR(INDEX(OpzegArbeiders[OPZEG DOOR DE WERKNEMER],MATCH(L965,OpzegArbeiders[X],1),1),\"-\")","v":"-"},"-","-","-"]
[null,null,null,null,null,null,962,null,null,null,null,{"$f":"IF(OR(H966<>\"\",J966<>\"\"),(DATEDIF(K966-1,DATE(2013,12,31),\"y\"))+(DATEDIF(K966-1,DATE(2013,12,31),\"ym\")/12)+(DATEDIF(K966-1,DATE(2013,12,31),\"md\")/365.25),\"-\")","v":"-"},{"$f":"IFERROR(INDEX(OpzegArbeiders[OPZEG DOOR DE WERKGEVER],MATCH(L966,OpzegArbeiders[X],1),1),\"-\")","v":"-"},{"$f":"IFERROR(M966/7,\"-\")","v":"-"},{"$f":"IFERROR(INDEX(OpzegArbeiders[OPZEG DOOR DE WERKNEMER],MATCH(L966,OpzegArbeiders[X],1),1),\"-\")","v":"-"},{"$f":"IFERROR(O966/7,\"-\")","v":"-"},{"$f":"IF(OR(ISTEXT(H966),ISTEXT(I966)),H966&\" \"&I966,\"-\")","v":"-"},{"$f":"IF(ISBLANK(J966),\"-\",J966)","v":"-"}]
[null,null,null,null,null,null,963,null,null,null,null,"-",{"$f":"IFERROR(INDEX(OpzegArbeiders[OPZEG DOOR DE WERKGEVER],MATCH(L967,OpzegArbeiders[X],1),1),\"-\")","v":"-"},"-",{"$f":"IFERROR(INDEX(OpzegArbeiders[OPZEG DOOR DE WERKNEMER],MATCH(L967,OpzegArbeiders[X],1),1),\"-\")","v":"-"},"-","-","-"]
[null,null,null,null,null,null,964,null,null,null,null,"-",{"$f":"IFERROR(INDEX(OpzegArbeiders[OPZEG DOOR DE WERKGEVER],MATCH(L968,OpzegArbeiders[X],1),1),\"-\")","v":"-"},"-",{"$f":"IFERROR(INDEX(OpzegArbeiders[OPZEG DOOR DE WERKNEMER],MATCH(L968,OpzegArbeiders[X],1),1),\"-\")","v":"-"},"-","-","-"]
[null,null,null,null,null,null,965,null,null,null,null,"-",{"$f":"IFERROR(INDEX(OpzegArbeiders[OPZEG DOOR DE WERKGEVER],MATCH(L969,OpzegArbeiders[X],1),1),\"-\")","v":"-"},"-",{"$f":"IFERROR(INDEX(OpzegArbeiders[OPZEG DOOR DE WERKNEMER],MATCH(L969,OpzegArbeiders[X],1),1),\"-\")","v":"-"},"-","-","-"]
[null,null,null,null,null,null,966,null,null,null,null,"-",{"$f":"IFERROR(INDEX(OpzegArbeiders[OPZEG DOOR DE WERKGEVER],MATCH(L970,OpzegArbeiders[X],1),1),\"-\")","v":"-"},"-",{"$f":"IFERROR(INDEX(OpzegArbeiders[OPZEG DOOR DE WERKNEMER],MATCH(L970,OpzegArbeiders[X],1),1),\"-\")","v":"-"},"-","-","-"]
[null,null,null,null,null,null,967,null,null,null,null,"-",{"$f":"IFERROR(INDEX(OpzegArbeiders[OPZEG DOOR DE WERKGEVER],MATCH(L971,OpzegArbeiders[X],1),1),\"-\")","v":"-"},"-",{"$f":"IFERROR(INDEX(OpzegArbeiders[OPZEG DOOR DE WERKNEMER],MATCH(L971,OpzegArbeiders[X],1),1),\"-\")","v":"-"},"-","-","-"]
[null,null,null,null,null,null,968,null,null,null,null,"-",{"$f":"IFERROR(INDEX(OpzegArbeiders[OPZEG DOOR DE WERKGEVER],MATCH(L972,OpzegArbeiders[X],1),1),\"-\")","v":"-"},"-",{"$f":"IFERROR(INDEX(OpzegArbeiders[OPZEG DOOR DE WERKNEMER],MATCH(L972,OpzegArbeiders[X],1),1),\"-\")","v":"-"},"-","-","-"]
[null,null,null,null,null,null,969,null,null,null,null,"-",{"$f":"IFERROR(INDEX(OpzegArbeiders[OPZEG DOOR DE WERKGEVER],MATCH(L973,OpzegArbeiders[X],1),1),\"-\")","v":"-"},"-",{"$f":"IFERROR(INDEX(OpzegArbeiders[OPZEG DOOR DE WERKNEMER],MATCH(L973,OpzegArbeiders[X],1),1),\"-\")","v":"-"},"-","-","-"]
[null,null,null,null,null,null,970,null,null,null,null,"-",{"$f":"IFERROR(INDEX(OpzegArbeiders[OPZEG DOOR DE WERKGEVER],MATCH(L974,OpzegArbeiders[X],1),1),\"-\")","v":"-"},"-",{"$f":"IFERROR(INDEX(OpzegArbeiders[OPZEG DOOR DE WERKNEMER],MATCH(L974,OpzegArbeiders[X],1),1),\"-\")","v":"-"},"-","-","-"]
[null,null,null,null,null,null,971,null,null,null,null,"-",{"$f":"IFERROR(INDEX(OpzegArbeiders[OPZEG DOOR DE WERKGEVER],MATCH(L975,OpzegArbeiders[X],1),1),\"-\")","v":"-"},"-",{"$f":"IFERROR(INDEX(OpzegArbeiders[OPZEG DOOR DE WERKNEMER],MATCH(L975,OpzegArbeiders[X],1),1),\"-\")","v":"-"},"-","-","-"]
[null,null,null,null,null,null,972,null,null,null,null,"-",{"$f":"IFERROR(INDEX(OpzegArbeiders[OPZEG DOOR DE WERKGEVER],MATCH(L976,OpzegArbeiders[X],1),1),\"-\")","v":"-"},"-",{"$f":"IFERROR(INDEX(OpzegArbeiders[OPZEG DOOR DE WERKNEMER],MATCH(L976,OpzegArbeiders[X],1),1),\"-\")","v":"-"},"-","-","-"]
[null,null,null,null,null,null,973,null,null,null,null,"-",{"$f":"IFERROR(INDEX(OpzegArbeiders[OPZEG DOOR DE WERKGEVER],MATCH(L977,OpzegArbeiders[X],1),1),\"-\")","v":"-"},"-",{"$f":"IFERROR(INDEX(OpzegArbeiders[OPZEG DOOR DE WERKNEMER],MATCH(L977,OpzegArbeiders[X],1),1),\"-\")","v":"-"},"-","-","-"]
[null,null,null,null,null,null,974,null,null,null,null,"-",{"$f":"IFERROR(INDEX(OpzegArbeiders[OPZEG DOOR DE WERKGEVER],MATCH(L978,OpzegArbeiders[X],1),1),\"-\")","v":"-"},"-",{"$f":"IFERROR(INDEX(OpzegArbeiders[OPZEG DOOR DE WERKNEMER],MATCH(L978,OpzegArbeiders[X],1),1),\"-\")","v":"-"},"-","-","-"]
[null,null,null,null,null,null,975,null,null,null,null,"-",{"$f":"IFERROR(INDEX(OpzegArbeiders[OPZEG DOOR DE WERKGEVER],MATCH(L979,OpzegArbeiders[X],1),1),\"-\")","v":"-"},"-",{"$f":"IFERROR(INDEX(OpzegArbeiders[OPZEG DOOR DE WERKNEMER],MATCH(L979,OpzegArbeiders[X],1),1),\"-\")","v":"-"},"-","-","-"]
[null,null,null,null,null,null,976,null,null,null,null,"-",{"$f":"IFERROR(INDEX(OpzegArbeiders[OPZEG DOOR DE WERKGEVER],MATCH(L980,OpzegArbeiders[X],1),1),\"-\")","v":"-"},"-",{"$f":"IFERROR(INDEX(OpzegArbeiders[OPZEG DOOR DE WERKNEMER],MATCH(L980,OpzegArbeiders[X],1),1),\"-\")","v":"-"},"-","-","-"]
[null,null,null,null,null,null,977,null,null,null,null,"-",{"$f":"IFERROR(INDEX(OpzegArbeiders[OPZEG DOOR DE WERKGEVER],MATCH(L981,OpzegArbeiders[X],1),1),\"-\")","v":"-"},"-",{"$f":"IFERROR(INDEX(OpzegArbeiders[OPZEG DOOR DE WERKNEMER],MATCH(L981,OpzegArbeiders[X],1),1),\"-\")","v":"-"},"-","-","-"]
[null,null,null,null,null,null,978,null,null,null,null,"-",{"$f":"IFERROR(INDEX(OpzegArbeiders[OPZEG DOOR DE WERKGEVER],MATCH(L982,OpzegArbeiders[X],1),1),\"-\")","v":"-"},"-",{"$f":"IFERROR(INDEX(OpzegArbeiders[OPZEG DOOR DE WERKNEMER],MATCH(L982,OpzegArbeiders[X],1),1),\"-\")","v":"-"},"-","-","-"]
[null,null,null,null,null,null,979,null,null,null,null,"-",{"$f":"IFERROR(INDEX(OpzegArbeiders[OPZEG DOOR DE WERKGEVER],MATCH(L983,OpzegArbeiders[X],1),1),\"-\")","v":"-"},"-",{"$f":"IFERROR(INDEX(OpzegArbeiders[OPZEG DOOR DE WERKNEMER],MATCH(L983,OpzegArbeiders[X],1),1),\"-\")","v":"-"},"-","-","-"]
[null,null,null,null,null,null,980,null,null,null,null,"-",{"$f":"IFERROR(INDEX(OpzegArbeiders[OPZEG DOOR DE WERKGEVER],MATCH(L984,OpzegArbeiders[X],1),1),\"-\")","v":"-"},"-",{"$f":"IFERROR(INDEX(OpzegArbeiders[OPZEG DOOR DE WERKNEMER],MATCH(L984,OpzegArbeiders[X],1),1),\"-\")","v":"-"},"-","-","-"]
[null,null,null,null,null,null,981,null,null,null,null,"-",{"$f":"IFERROR(INDEX(OpzegArbeiders[OPZEG DOOR DE WERKGEVER],MATCH(L985,OpzegArbeiders[X],1),1),\"-\")","v":"-"},"-",{"$f":"IFERROR(INDEX(OpzegArbeiders[OPZEG DOOR DE WERKNEMER],MATCH(L985,OpzegArbeiders[X],1),1),\"-\")","v":"-"},"-","-","-"]
[null,null,null,null,null,null,982,null,null,null,null,"-",{"$f":"IFERROR(INDEX(OpzegArbeiders[OPZEG DOOR DE WERKGEVER],MATCH(L986,OpzegArbeiders[X],1),1),\"-\")","v":"-"},"-",{"$f":"IFERROR(INDEX(OpzegArbeiders[OPZEG DOOR DE WERKNEMER],MATCH(L986,OpzegArbeiders[X],1),1),\"-\")","v":"-"},"-","-","-"]
[null,null,null,null,null,null,983,null,null,null,null,"-",{"$f":"IFERROR(INDEX(OpzegArbeiders[OPZEG DOOR DE WERKGEVER],MATCH(L987,OpzegArbeiders[X],1),1),\"-\")","v":"-"},"-",{"$f":"IFERROR(INDEX(OpzegArbeiders[OPZEG DOOR DE WERKNEMER],MATCH(L987,OpzegArbeiders[X],1),1),\"-\")","v":"-"},"-","-","-"]
[null,null,null,null,null,null,984,null,null,null,null,"-",{"$f":"IFERROR(INDEX(OpzegArbeiders[OPZEG DOOR DE WERKGEVER],MATCH(L988,OpzegArbeiders[X],1),1),\"-\")","v":"-"},"-",{"$f":"IFERROR(INDEX(OpzegArbeiders[OPZEG DOOR DE WERKNEMER],MATCH(L988,OpzegArbeiders[X],1),1),\"-\")","v":"-"},"-","-","-"]
[null,null,null,null,null,null,985,null,null,null,null,"-",{"$f":"IFERROR(INDEX(OpzegArbeiders[OPZEG DOOR DE WERKGEVER],MATCH(L989,OpzegArbeiders[X],1),1),\"-\")","v":"-"},"-",{"$f":"IFERROR(INDEX(OpzegArbeiders[OPZEG DOOR DE WERKNEMER],MATCH(L989,OpzegArbeiders[X],1),1),\"-\")","v":"-"},"-","-","-"]
[null,null,null,null,null,null,986,null,null,null,null,"-",{"$f":"IFERROR(INDEX(OpzegArbeiders[OPZEG DOOR DE WERKGEVER],MATCH(L990,OpzegArbeiders[X],1),1),\"-\")","v":"-"},"-",{"$f":"IFERROR(INDEX(OpzegArbeiders[OPZEG DOOR DE WERKNEMER],MATCH(L990,OpzegArbeiders[X],1),1),\"-\")","v":"-"},"-","-","-"]
[null,null,null,null,null,null,987,null,null,null,null,"-",{"$f":"IFERROR(INDEX(OpzegArbeiders[OPZEG DOOR DE WERKGEVER],MATCH(L991,OpzegArbeiders[X],1),1),\"-\")","v":"-"},"-",{"$f":"IFERROR(INDEX(OpzegArbeiders[OPZEG DOOR DE WERKNEMER],MATCH(L991,OpzegArbeiders[X],1),1),\"-\")","v":"-"},"-","-","-"]
[null,null,null,null,null,null,988,null,null,null,null,"-",{"$f":"IFERROR(INDEX(OpzegArbeiders[OPZEG DOOR DE WERKGEVER],MATCH(L992,OpzegArbeiders[X],1),1),\"-\")","v":"-"},"-",{"$f":"IFERROR(INDEX(OpzegArbeiders[OPZEG DOOR DE WERKNEMER],MATCH(L992,OpzegArbeiders[X],1),1),\"-\")","v":"-"},"-","-","-"]
[null,null,null,null,null,null,989,null,null,null,null,"-",{"$f":"IFERROR(INDEX(OpzegArbeiders[OPZEG DOOR DE WERKGEVER],MATCH(L993,OpzegArbeiders[X],1),1),\"-\")","v":"-"},"-",{"$f":"IFERROR(INDEX(OpzegArbeiders[OPZEG DOOR DE WERKNEMER],MATCH(L993,OpzegArbeiders[X],1),1),\"-\")","v":"-"},"-","-","-"]
[null,null,null,null,null,null,990,null,null,null,null,"-",{"$f":"IFERROR(INDEX(OpzegArbeiders[OPZEG DOOR DE WERKGEVER],MATCH(L994,OpzegArbeiders[X],1),1),\"-\")","v":"-"},"-",{"$f":"IFERROR(INDEX(OpzegArbeiders[OPZEG DOOR DE WERKNEMER],MATCH(L994,OpzegArbeiders[X],1),1),\"-\")","v":"-"},"-","-","-"]
[null,null,null,null,null,null,991,null,null,null,null,"-",{"$f":"IFERROR(INDEX(OpzegArbeiders[OPZEG DOOR DE WERKGEVER],MATCH(L995,OpzegArbeiders[X],1),1),\"-\")","v":"-"},"-",{"$f":"IFERROR(INDEX(OpzegArbeiders[OPZEG DOOR DE WERKNEMER],MATCH(L995,OpzegArbeiders[X],1),1),\"-\")","v":"-"},"-","-","-"]
[null,null,null,null,null,null,992,null,null,null,null,"-",{"$f":"IFERROR(INDEX(OpzegArbeiders[OPZEG DOOR DE WERKGEVER],MATCH(L996,OpzegArbeiders[X],1),1),\"-\")","v":"-"},"-",{"$f":"IFERROR(INDEX(OpzegArbeiders[OPZEG DOOR DE WERKNEMER],MATCH(L996,OpzegArbeiders[X],1),1),\"-\")","v":"-"},"-","-","-"]
[null,null,null,null,null,null,993,null,null,null,null,"-",{"$f":"IFERROR(INDEX(OpzegArbeiders[OPZEG DOOR DE WERKGEVER],MATCH(L997,OpzegArbeiders[X],1),1),\"-\")","v":"-"},"-",{"$f":"IFERROR(INDEX(OpzegArbeiders[OPZEG DOOR DE WERKNEMER],MATCH(L997,OpzegArbeiders[X],1),1),\"-\")","v":"-"},"-","-","-"]
[null,null,null,null,null,null,994,null,null,null,null,"-",{"$f":"IFERROR(INDEX(OpzegArbeiders[OPZEG DOOR DE WERKGEVER],MATCH(L998,OpzegArbeiders[X],1),1),\"-\")","v":"-"},"-",{"$f":"IFERROR(INDEX(OpzegArbeiders[OPZEG DOOR DE WERKNEMER],MATCH(L998,OpzegArbeiders[X],1),1),\"-\")","v":"-"},"-","-","-"]
[null,null,null,null,null,null,995,null,null,null,null,"-",{"$f":"IFERROR(INDEX(OpzegArbeiders[OPZEG DOOR DE WERKGEVER],MATCH(L999,OpzegArbeiders[X],1),1),\"-\")","v":"-"},"-",{"$f":"IFERROR(INDEX(OpzegArbeiders[OPZEG DOOR DE WERKNEMER],MATCH(L999,OpzegArbeiders[X],1),1),\"-\")","v":"-"},"-","-","-"]
[null,null,null,null,null,null,996,null,null,null,null,"-",{"$f":"IFERROR(INDEX(OpzegArbeiders[OPZEG DOOR DE WERKGEVER],MATCH(L1000,OpzegArbeiders[X],1),1),\"-\")","v":"-"},"-",{"$f":"IFERROR(INDEX(OpzegArbeiders[OPZEG DOOR DE WERKNEMER],MATCH(L1000,OpzegArbeiders[X],1),1),\"-\")","v":"-"},"-","-","-"]
[null,null,null,null,null,null,997,null,null,null,null,"-",{"$f":"IFERROR(INDEX(OpzegArbeiders[OPZEG DOOR DE WERKGEVER],MATCH(L1001,OpzegArbeiders[X],1),1),\"-\")","v":"-"},"-",{"$f":"IFERROR(INDEX(OpzegArbeiders[OPZEG DOOR DE WERKNEMER],MATCH(L1001,OpzegArbeiders[X],1),1),\"-\")","v":"-"},"-","-","-"]
[null,null,null,null,null,null,998,null,null,null,null,"-",{"$f":"IFERROR(INDEX(OpzegArbeiders[OPZEG DOOR DE WERKGEVER],MATCH(L1002,OpzegArbeiders[X],1),1),\"-\")","v":"-"},"-",{"$f":"IFERROR(INDEX(OpzegArbeiders[OPZEG DOOR DE WERKNEMER],MATCH(L1002,OpzegArbeiders[X],1),1),\"-\")","v":"-"},"-","-","-"]
[null,null,null,null,null,null,999,null,null,null,null,"-",{"$f":"IFERROR(INDEX(OpzegArbeiders[OPZEG DOOR DE WERKGEVER],MATCH(L1003,OpzegArbeiders[X],1),1),\"-\")","v":"-"},"-",{"$f":"IFERROR(INDEX(OpzegArbeiders[OPZEG DOOR DE WERKNEMER],MATCH(L1003,OpzegArbeiders[X],1),1),\"-\")","v":"-"},"-","-","-"]
[null,null,null,null,null,null,1000,null,null,null,null,"-",{"$f":"IFERROR(INDEX(OpzegArbeiders[OPZEG DOOR DE WERKGEVER],MATCH(L1004,OpzegArbeiders[X],1),1),\"-\")","v":"-"},"-",{"$f":"IFERROR(INDEX(OpzegArbeiders[OPZEG DOOR DE WERKNEMER],MATCH(L1004,OpzegArbeiders[X],1),1),\"-\")","v":"-"},"-","-","-"]

{"sheet":"Afdrukversie arbeiders","index":3,"n_rows":27,"n_cols":14,"rows_kept":27,"cut":false,"hidden":false,"merged":[[16,2,16,4],[17,12,18,12],[15,10,16,14],[21,10,22,14],[26,10,27,14],[4,2,4,4],[10,2,10,3],[9,2,9,3],[8,2,8,3],[20,2,20,3],[19,2,19,3],[18,2,18,3],[17,2,17,3],[14,2,14,3],[13,2,13,3],[7,2,7,4],[12,2,12,4]]}
[]
[]
[]
[]
[null,null,"Opzeggingstermijn op basis van anciënniteit verworven op 31/12/2013"]
[]
[]
[null,null,"Persoonsgegevens"]
[null,null,"Naam van de werknemer",null,{"$f":"Invulblad_arbeiders!Q5","v":"Jan Jansens"}]
[null,null,"Personeelsnummer",null,{"$f":"Invulblad_arbeiders!R5","v":6510}]
[null,null,"Statuut",null,"arbeider"]
[]
[null,null,"Anciënniteit verworven op 31/12/2013"]
[null,null,"Datum indiensttreding",null,{"$f":"Invulblad_arbeiders!K5","v":"1999-01-01"}]
[null,null,"Verworven anciënniteit",null,{"$f":"Invulblad_arbeiders!L5","v":15}]
[null,null,null,null,null,null,null,null,null,null,"Huidige pagina printen"]
[null,null,"Opzeg volgens de oude ontslagregels op 31/12/2013"]
[null,null,"Ontslag door werkgever (in dagen)",null,{"$f":"Invulblad_arbeiders!M5","v":84},null,null,null,null,null,null,null,1]
[null,null,"Ontslag door werkgever (in weken)",null,{"$f":"Invulblad_arbeiders!N5","v":12}]
[null,null,"Ontslagname door de werknemer (in dagen)",null,{"$f":"Invulblad_arbeiders!O5","v":14}]
[null,null,"Ontslagname door de werknemer (in weken)",null,{"$f":"Invulblad_arbeiders!P5","v":2}]
[null,null,null,null,null,null,null,null,null,null,"Meerdere pagina's printen"]
[]
[null,null,null,null,null,null,null,null,null,null,"De",1,"à",500]
[]
[]
[null,null,null,null,null,null,null,null,null,null,"Alle pagina's printen"]

{"sheet":"Handleiding","index":4,"n_rows":0,"n_cols":0,"rows_kept":0,"cut":false,"hidden":false,"merged":[]}